Workbook

Sheet Inputs
B1: WisDOT Work Zone Delay | E1: Annual Tool
B2: Beta Version 4.2 User: | Q2: Version 8
B3: Released: 05-05-2020 Date: | Q3: Last Updated | R3: Change Log
Q4: 2019-12-13 | R4: First iteration of beta tool
B5: Project Inputs | E5: Notes: | K5: View/Print List | Q5: 2019-12-19 | R5: Fixed all-day check box functionality
B6: Region | C6: Northwest | Q6: 2020-01-09 | R6: Updated release date
B7: County | C7: Sauk | Q7: 2020-01-13 | R7: Updated volume import of SQL output to reference Sheets(1) on SQL output sheet rather than referencing sheet name, which will change
B8: Construction ID | C8: 0000-00-00 | Q8: 2020-03-19 | R8: Added 0 hour to miles, minutes, costs tables
B9: Highway | C9: I-90 | R9: Updated "Growth Factor" to be a positive percentage added to raw volumes
B10: Direction | C10: NB/SB | R10: Updated "Diversion Factor" to be a negative percentage subtracted from raw volumes
B11: Area Type | C11: Urban | R11: Updated "Volume Import" tab where if user cancels file selection dialog box, volumes will revert to previous state before clicking import button
B12: Normal Posted Speed Limit (mph) | C12: 70 | R12: Added "Adj. Volumes" tab that shows adjusted volume for each hour of each day
B13: Auto Cost/Veh-Hour of Delay | C13: 21.57 | E13: WisDOT Work Zone Capacity Equation | R13: Added "Avg. Monthly Volumes" tab that showed averge adjusted volumes by weekday for each month
B14: HV Cost/Veh-Hour of Delay | C14: 35.95 | R14: Added "Finished Updating" message box that pops up when all day check boxes finish updating so user can only select one at a time
B15: Capacity During Non-Work Hours (pce/hr/ln) | C15: =IF(OR($C$12=70,$C$12=65),2400,IF($C$12=60,2350,IF($C$12=55,2300,2250))) -> 2400 | R15: Removed error notification if user types in highway not in list. Useful if user wants to type in combined highway (e.g. I-43/894)
R16: Added cost calculation for diverted traffic; changed "Queue Costs" tab to "Total Costs"
B17: Closure Inputs | C17: Closure #1 | D17: Closure #2 | E17: Closure #3 | F17: Closure #4 | N17: =LEFT($C$10,2) -> NB | O17: =RIGHT($C$10,2) -> SB | R17: Fixed issue where overnight Saturday closure wasn't showing up as closed in Sunday morning hours.
B18: Lane Closure Type | C18: 3 to 2 | M18: Loc. Adj. Factor | N18: ='Volume Import'!$H$14 -> 1 | O18: ='Volume Import'!$I$14 -> 1 | Q18: 2020-03-23 | R18: Updated highways list for each county
B19: Barrier Type | C19: Soft | M19: Growth % (+) | N19: ='Volume Import'!$H$15 -> 0 | O19: ='Volume Import'!$I$15 -> 0 | Q19: 2020-04-09 | R19: Removed notification window that pops up when view/print list box checked/unchecked
B20: Construction Intensity | C20: High | M20: Diversion % (-) | N20: ='Volume Import'!$H$16 -> 0 | O20: ='Volume Import'!$I$16 -> 0 | Q20: 2020-05-05 | R20: Fixed bug in free flow capacity/WZ QDR equations on calcs tab (columns T/AJ)
Q21: 2021-04-15 | R21: Updated RUC Dollar Values
B22: Results | C22: Closure #1 | D22: Closure #2 | E22: Closure #3 | F22: Closure #4 | H22: Lane Closure Type (fLCSI) | K22: Vehicles/PCE Conversion Tool* | Q22: 2022-02-01 | R22: Updated RUC Values and updated macros to work with SQL.
B23: Base Value (1,866 default) | C23: 1866 | D23: =IF(D18="","",$C$23) ->  | E23: =IF(E18="","",$C$23) ->  | F23: =IF(F18="","",$C$23) ->  | H23: 4 to 1 | I23: 4 | K23: Vehicles | L23: 1500
B24: Lane Closure Type (fLCSI) | C24: =IF(C18="","",-40*INDEX(Lists!$O$3:$O$10,MATCH(Inputs!C18,Lists!$N$3:$N$10,0))) -> -30 | D24: =IF(D18="","",-40*INDEX(Lists!$O$3:$O$10,MATCH(Inputs!D18,Lists!$N$3:$N$10,0))) ->  | E24: =IF(E18="","",-40*INDEX(Lists!$O$3:$O$10,MATCH(Inputs!E18,Lists!$N$3:$N$10,0))) ->  | F24: =IF(F18="","",-40*INDEX(Lists!$O$3:$O$10,MATCH(Inputs!F18,Lists!$N$3:$N$10,0))) ->  | H24: 3 to 1 | I24: 3 | K24: HV % | L24: 0.1
B25: Barrier Type (fbarrier) | C25: =IF(C19="","",IF(C19="Soft",-132,0)) -> -132 | D25: =IF(D19="","",IF(D19="Soft",-132,0)) ->  | E25: =IF(E19="","",IF(E19="Soft",-132,0)) ->  | F25: =IF(F19="","",IF(F19="Soft",-132,0)) ->  | H25: 2 to 1 | I25: 2 | K25: =IF(K23="Vehicles","PCEs",IF(K23="PCEs","Vehicles","")) -> PCEs | L25: =IF(K25="PCEs",MROUND(L23/(1/(1+L24*(2-1))),1),IF(K25="Vehicles",MROUND(L23*(1/(1+L24*(2-1))),1),"")) -> 1650
B26: Area Type (farea) | C26: =IF(C18="","",IF($C$11="Rural",-205,0)) -> 0 | D26: =IF(D18="","",IF($C$11="Rural",-205,0)) ->  | E26: =IF(E18="","",IF($C$11="Rural",-205,0)) ->  | F26: =IF(F18="","",IF($C$11="Rural",-205,0)) ->  | H26: 4 to 2 | I26: 1 | K26: * for reference only
B27: Construction Intensity (fCI) | C27: =IF(C20="","",IF(C20="High",-207,0)) -> -207 | D27: =IF(D20="","",IF(D20="High",-207,0)) ->  | E27: =IF(E20="","",IF(E20="High",-207,0)) ->  | F27: =IF(F20="","",IF(F20="High",-207,0)) ->  | H27: 3 to 2 | I27: 0.75
B28: Regional (fregional) | C28: =IF(C18="","",IF(OR($C$6="North Central",$C$6="Northeast",$C$6="Northwest"),-47,0)) -> -47 | D28: =IF(D18="","",IF(OR($C$6="North Central",$C$6="Northeast",$C$6="Northwest"),-47,0)) ->  | E28: =IF(E18="","",IF(OR($C$6="North Central",$C$6="Northeast",$C$6="Northwest"),-47,0)) ->  | F28: =IF(F18="","",IF(OR($C$6="North Central",$C$6="Northeast",$C$6="Northwest"),-47,0)) ->  | H28: 2 to 2 | I28: 0.5
B29: Manual Adjustment | H29: 4 to 3 | I29: 0.44
B30: Estimated QDR Daytime (pce/hr/ln) | C30: =IF(SUM(C23:C29)=0,"",SUM(C23:C29)) -> 1450 | D30: =IF(SUM(D23:D29)=0,"",SUM(D23:D29)) ->  | H30: 3 to 3 | I30: 0.33
B31: Estimated Pre-Breakdown Capacity Daytime (pce/hr/ln) | C31: =IF(C30="","",MROUND(C30/(1-0.134),1)) -> 1674 | D31: =IF(D30="","",MROUND(D30/(1-0.134),1)) -> 
B32: Estimated QDR Nighttime* (pce/hr/ln) | C32: =IF(C30="","",C30-101) -> 1349 | D32: =IF(D30="","",D30-101) -> 
B33: Estimated Pre-Breakdown Capacity Nighttime (pce/hr/ln) | C33: =IF(C30="","",MROUND(C32/(1-0.134),1)) -> 1558 | D33: =IF(D30="","",MROUND(D32/(1-0.134),1)) -> 
B34: Estimated Daytime PCE Headway (ft/pce) | C34: =IF(C30="","",(3.1495)*(($C$12+5)/2)*(1-SQRT(1-((C30*RIGHT(C18,1))/($C$15*LEFT(C18,1)))))+27.789) -> 54.62255796 | D34: =IF(D30="","",(3.1495)*(($C$12+5)/2)*(1-SQRT(1-((D30*RIGHT(D18,1))/($C$15*LEFT(D18,1)))))+27.789) ->  | E34: =IF(E30="","",(3.1495)*(($C$12+5)/2)*(1-SQRT(1-((E30*RIGHT(E18,1))/($C$15*LEFT(E18,1)))))+27.789) -> 
B35: Estimated Nighttime PCE Headway (ft/pce) | C35: =IF(C32="","",(3.1495)*(($C$12+5)/2)*(1-SQRT(1-((C32*RIGHT(C18,1))/($C$15*LEFT(C18,1)))))+27.789) -> 52.50331418 | D35: =IF(D32="","",(3.1495)*(($C$12+5)/2)*(1-SQRT(1-((D32*RIGHT(D18,1))/($C$15*LEFT(D18,1)))))+27.789) -> 
B36: *6pm to 6am considered nighttime in calculations
B37: Duration Inputs | C37: OVERLAP DETECTED! PLEASE REVIEW CLOSURE TIMES!
B38: Closure #1 | C38: Monday | D38: Tuesday | E38: Wednesday | F38: Thursday | G38: Friday | H38: Saturday | I38: Sunday
B39: All Day?
B40: Start of Closure | C40: 09:00:00 | D40: 09:00:00 | E40: 09:00:00 | F40: 09:00:00 | G40: 09:00:00
B41: End of Closure | C41: 14:00:00 | D41: 14:00:00 | E41: 14:00:00 | F41: 14:00:00 | G41: 14:00:00
B42: Overlap? | C42: =IF(AND(AND(C40="",C41=""),AND(C50="",C51=""),AND(C60="",C61=""),AND(C70="",C71=""),NOT(C47)),"", IF(AND(OR(AND(C45>=I45,C45<=I46),AND(C46>=D45,C46<=D46)),AND(C45<>"",C46<>"")),"OVERLAP!", IF(AND(OR(AND(C55>=I55,C55<=I56),AND(C56>=D55,C56<=D56)),AND(C55<>"",C56<>"")),"OVERLAP!", IF(AND(OR(AND(C65>=I65,C65<=I66),AND(C66>=D65,C66<=D66)),AND(C65<>"",C66<>"")),"OVERLAP!", IF(AND(OR(AND(C75>=I75,C75<=I76),AND(C76>=D75,C76<=D76)),AND(C75<>"",C76<>"")),"OVERLAP!", IF(COUNTIFS($B$86:$B$253,C38,$I$86:$I$253,">1")>0,"OVERLAP!", IF(AND(IF(COUNTIFS($B$86:$B$253,C38,$I$86:$I$253,">1")>0,"OVERLAP!","OK!")="OVERLAP!",C47),"OK!",IF(COUNTIFS($B$86:$B$253,C38,$I$86:$I$253,">1")>0,"OVERLAP!","OK!")))))))) -> OK! | D42: =IF(AND(AND(D40="",D41=""),AND(D50="",D51=""),AND(D60="",D61=""),AND(D70="",D71=""),NOT(D47)),"", IF(AND(OR(AND(D45>=C45,D45<=C46),AND(D46>=E45,D46<=E46)),AND(D45<>"",D46<>"")),"OVERLAP!", IF(AND(OR(AND(D55>=C55,D55<=C56),AND(D56>=E55,D56<=E56)),AND(D55<>"",D56<>"")),"OVERLAP!", IF(AND(OR(AND(D65>=C65,D65<=C66),AND(D66>=E65,D66<=E66)),AND(D65<>"",D66<>"")),"OVERLAP!", IF(AND(OR(AND(D75>=C75,D75<=C76),AND(D76>=E75,D76<=E76)),AND(D75<>"",D76<>"")),"OVERLAP!", IF(COUNTIFS($B$86:$B$253,D38,$I$86:$I$253,">1")>0,"OVERLAP!", IF(AND(IF(COUNTIFS($B$86:$B$253,D38,$I$86:$I$253,">1")>0,"OVERLAP!","OK!")="OVERLAP!",D47),"OK!",IF(COUNTIFS($B$86:$B$253,D38,$I$86:$I$253,">1")>0,"OVERLAP!","OK!")))))))) -> OK! | E42: =IF(AND(AND(E40="",E41=""),AND(E50="",E51=""),AND(E60="",E61=""),AND(E70="",E71=""),NOT(E47)),"", IF(AND(OR(AND(E45>=D45,E45<=D46),AND(E46>=F45,E46<=F46)),AND(E45<>"",E46<>"")),"OVERLAP!", IF(AND(OR(AND(E55>=D55,E55<=D56),AND(E56>=F55,E56<=F56)),AND(E55<>"",E56<>"")),"OVERLAP!", IF(AND(OR(AND(E65>=D65,E65<=D66),AND(E66>=F65,E66<=F66)),AND(E65<>"",E66<>"")),"OVERLAP!", IF(AND(OR(AND(E75>=D75,E75<=D76),AND(E76>=F75,E76<=F76)),AND(E75<>"",E76<>"")),"OVERLAP!", IF(COUNTIFS($B$86:$B$253,E38,$I$86:$I$253,">1")>0,"OVERLAP!", IF(AND(IF(COUNTIFS($B$86:$B$253,E38,$I$86:$I$253,">1")>0,"OVERLAP!","OK!")="OVERLAP!",E47),"OK!",IF(COUNTIFS($B$86:$B$253,E38,$I$86:$I$253,">1")>0,"OVERLAP!","OK!")))))))) -> OK! | F42: =IF(AND(AND(F40="",F41=""),AND(F50="",F51=""),AND(F60="",F61=""),AND(F70="",F71=""),NOT(F47)),"", IF(AND(OR(AND(F45>=E45,F45<=E46),AND(F46>=G45,F46<=G46)),AND(F45<>"",F46<>"")),"OVERLAP!", IF(AND(OR(AND(F55>=E55,F55<=E56),AND(F56>=G55,F56<=G56)),AND(F55<>"",F56<>"")),"OVERLAP!", IF(AND(OR(AND(F65>=E65,F65<=E66),AND(F66>=G65,F66<=G66)),AND(F65<>"",F66<>"")),"OVERLAP!", IF(AND(OR(AND(F75>=E75,F75<=E76),AND(F76>=G75,F76<=G76)),AND(F75<>"",F76<>"")),"OVERLAP!", IF(COUNTIFS($B$86:$B$253,F38,$I$86:$I$253,">1")>0,"OVERLAP!", IF(AND(IF(COUNTIFS($B$86:$B$253,F38,$I$86:$I$253,">1")>0,"OVERLAP!","OK!")="OVERLAP!",F47),"OK!",IF(COUNTIFS($B$86:$B$253,F38,$I$86:$I$253,">1")>0,"OVERLAP!","OK!")))))))) -> OK! | G42: =IF(AND(AND(G40="",G41=""),AND(G50="",G51=""),AND(G60="",G61=""),AND(G70="",G71=""),NOT(G47)),"", IF(AND(OR(AND(G45>=F45,G45<=F46),AND(G46>=H45,G46<=H46)),AND(G45<>"",G46<>"")),"OVERLAP!", IF(AND(OR(AND(G55>=F55,G55<=F56),AND(G56>=H55,G56<=H56)),AND(G55<>"",G56<>"")),"OVERLAP!", IF(AND(OR(AND(G65>=F65,G65<=F66),AND(G66>=H65,G66<=H66)),AND(G65<>"",G66<>"")),"OVERLAP!", IF(AND(OR(AND(G75>=F75,G75<=F76),AND(G76>=H75,G76<=H76)),AND(G75<>"",G76<>"")),"OVERLAP!", IF(COUNTIFS($B$86:$B$253,G38,$I$86:$I$253,">1")>0,"OVERLAP!", IF(AND(IF(COUNTIFS($B$86:$B$253,G38,$I$86:$I$253,">1")>0,"OVERLAP!","OK!")="OVERLAP!",G47),"OK!",IF(COUNTIFS($B$86:$B$253,G38,$I$86:$I$253,">1")>0,"OVERLAP!","OK!")))))))) -> OK! | H42: =IF(AND(AND(H40="",H41=""),AND(H50="",H51=""),AND(H60="",H61=""),AND(H70="",H71=""),NOT(H47)),"", IF(AND(OR(AND(H45>=G45,H45<=G46),IFERROR(AND(H46>=I45+168,H46<=I46+168),FALSE)),AND(H45<>"",H46<>"")),"OVERLAP!", IF(AND(OR(AND(H55>=G55,H55<=G56),IFERROR(AND(H56>=I55+168,H56<=I56+168),FALSE)),AND(H55<>"",H56<>"")),"OVERLAP!", IF(AND(OR(AND(H65>=G65,H65<=G66),IFERROR(AND(H66>=I65+168,H66<=I66+168),FALSE)),AND(H65<>"",H66<>"")),"OVERLAP!", IF(AND(OR(AND(H75>=G75,H75<=G76),IFERROR(AND(H76>=I75+168,H76<=I76+168),FALSE)),AND(H75<>"",H76<>"")),"OVERLAP!", IF(COUNTIFS($B$86:$B$253,H38,$I$86:$I$253,">1")>0,"OVERLAP!", IF(AND(IF(COUNTIFS($B$86:$B$253,H38,$I$86:$I$253,">1")>0,"OVERLAP!","OK!")="OVERLAP!",H47),"OK!",IF(COUNTIFS($B$86:$B$253,H38,$I$86:$I$253,">1")>0,"OVERLAP!","OK!")))))))) ->  | I42: =IF(AND(AND(I40="",I41=""),AND(I50="",I51=""),AND(I60="",I61=""),AND(I70="",I71=""),NOT(I47)),"", IF(AND(OR(IFERROR(AND(I45+168>=H45,I45+168<=H46),FALSE),AND(I46>=C45,I46<=C46)),AND(I45<>"",I46<>"")),"OVERLAP!", IF(AND(OR(IFERROR(AND(I55+168>=H55,I55+168<=H56),FALSE),AND(I56>=C55,I56<=C56)),AND(I55<>"",I56<>"")),"OVERLAP!", IF(AND(OR(IFERROR(AND(I65+168>=H65,I65+168<=H66),FALSE),AND(I66>=C65,I66<=C66)),AND(I65<>"",I66<>"")),"OVERLAP!", IF(AND(OR(IFERROR(AND(I75+168>=H75,I75+168<=H76),FALSE),AND(I76>=C75,I76<=C76)),AND(I75<>"",I76<>"")),"OVERLAP!", IF(COUNTIFS($B$86:$B$253,I38,$I$86:$I$253,">1")>0,"OVERLAP!", IF(AND(IF(COUNTIFS($B$86:$B$253,I38,$I$86:$I$253,">1")>0,"OVERLAP!","OK!")="OVERLAP!",I47),"OK!",IF(COUNTIFS($B$86:$B$253,I38,$I$86:$I$253,">1")>0,"OVERLAP!","OK!")))))))) -> 
C44: 2 | D44: 3 | E44: 4 | F44: 5 | G44: 6 | H44: 7 | I44: 1
B45: Start of Closure | C45: =IF(C47,(C44*24-24),IF(OR(C40="",C41=""),"",HOUR(C40)+(C44*24-24))) -> 33 | D45: =IF(D47,(D44*24-24),IF(OR(D40="",D41=""),"",HOUR(D40)+(D44*24-24))) -> 57 | E45: =IF(E47,(E44*24-24),IF(OR(E40="",E41=""),"",HOUR(E40)+(E44*24-24))) -> 81 | F45: =IF(F47,(F44*24-24),IF(OR(F40="",F41=""),"",HOUR(F40)+(F44*24-24))) -> 105 | G45: 129
B46: End of Closure | C46: =IF(C47,(C44*24-1),IF(OR(C40="",C41=""),"",IF(C41>C40,HOUR(C41)+(C44*24-24)-1,HOUR(C41)+((C44+1)*24-24)-1))) -> 37 | D46: =IF(D47,(D44*24-1),IF(ISBLANK(D41),"",IF(D41>D40,HOUR(D41)+(D44*24-24)-1,HOUR(D41)+((D44+1)*24-24)-1))) -> 61 | E46: =IF(E47,(E44*24-1),IF(ISBLANK(E41),"",IF(E41>E40,HOUR(E41)+(E44*24-24)-1,HOUR(E41)+((E44+1)*24-24)-1))) -> 85 | F46: 109 | G46: 133 | I46: =IF(I47,(I44*24-1),IF(ISBLANK(I41),"",IF(I41>I40,HOUR(I41)+(I44*24-24)-1,HOUR(I41)+((I44+1)*24-24)-1))) -> 
C47: FALSE | D47: FALSE | E47: FALSE | F47: FALSE | G47: FALSE | H47: FALSE | I47: FALSE
B49: Closure #2 | C49: Monday | D49: Tuesday | E49: Wednesday | F49: Thursday | G49: Friday | H49: Saturday | I49: Sunday
B50: Start of Closure
B51: End of Closure
C54: 2 | D54: 3 | E54: 4 | F54: 5 | G54: 6 | H54: 7 | I54: 1
B55: Start of Closure | C55: =IF(OR(C50="",C51=""),"",HOUR(C50)+(C54*24-24)) ->  | D55: =IF(OR(D50="",D51=""),"",HOUR(D50)+(D54*24-24)) -> 
B56: End of Closure | C56: =IF(OR(C50="",C51=""),"",IF(C51>C50,HOUR(C51)+(C54*24-24)-1,HOUR(C51)+((C54+1)*24-24)-1)) ->  | D56: =IF(OR(D50="",D51=""),"",IF(D51>D50,HOUR(D51)+(D54*24-24)-1,HOUR(D51)+((D54+1)*24-24)-1)) -> 
B59: Closure #3 | C59: Monday | D59: Tuesday | E59: Wednesday | F59: Thursday | G59: Friday | H59: Saturday | I59: Sunday
B60: Start of Closure
B61: End of Closure
... 75 more rows

Sheet Volume Import
A1: Date | B1: Hour | C1: PDir | D1: PDirHV | E1: NDir | F1: NDirHV | J1: Truck Percentage Inputs | K1: Sunday | L1: Monday | M1: Tuesday | N1: Wednesday | O1: Thursday | P1: Friday | Q1: Saturday
A2: 2019-01-01 | B2: 0 | C2: 115 | D2: 4 | E2: 75 | F2: 2 | J2: AM Truck % (6 AM - 9 AM) | K2: 0.1 | L2: 0.1 | M2: 0.1 | N2: 0.1 | O2: 0.1 | P2: 0.1 | Q2: 0.1 | R2: AM
A3: 2019-01-01 | B3: 1 | C3: 92 | D3: 4 | E3: 74 | F3: 6 | J3: MD Truck % (9 AM - 3 PM) | K3: 0.1 | L3: 0.1 | M3: 0.1 | N3: 0.1 | O3: 0.1 | P3: 0.1 | Q3: 0.1 | R3: MD
A4: 2019-01-01 | B4: 2 | C4: 44 | D4: 2 | E4: 45 | F4: 1 | J4: PM Truck % (3 PM - 6 PM) | K4: 0.1 | L4: 0.1 | M4: 0.1 | N4: 0.1 | O4: 0.1 | P4: 0.1 | Q4: 0.1 | R4: PM
A5: 2019-01-01 | B5: 3 | C5: 43 | D5: 5 | E5: 41 | F5: 1 | J5: NT Truck % (6 PM - 6 AM) | K5: 0.1 | L5: 0.1 | M5: 0.1 | N5: 0.1 | O5: 0.1 | P5: 0.1 | Q5: 0.1 | R5: NT
A6: 2019-01-01 | B6: 4 | C6: 40 | D6: 9 | E6: 61 | F6: 12
A7: 2019-01-01 | B7: 5 | C7: 33 | D7: 6 | E7: 93 | F7: 9
A8: 2019-01-01 | B8: 6 | C8: 72 | D8: 11 | E8: 122 | F8: 8 | K8: 0.1
A9: 2019-01-01 | B9: 7 | C9: 105 | D9: 7 | E9: 141 | F9: 7
A10: 2019-01-01 | B10: 8 | C10: 190 | D10: 13 | E10: 252 | F10: 12 | H10: Counter ID: | I10: 326114
A11: 2019-01-01 | B11: 9 | C11: 271 | D11: 12 | E11: 338 | F11: 8 | H11: Location: | I11: USH 14/USH 61/STH 35 SOUTH OF MARION | L11: The purpose of this tab is to enable users to import volume data from a Jackalope SQL Excel output. Click the button to import data and a window will open to select the file to import. | V11: The purpose of this tab is to enable users to import volume data from a Jackalope SQL Excel output. Click the button to import data and a window will open to select the file to import.
A12: 2019-01-01 | B12: 10 | C12: 399 | D12: 14 | E12: 408 | F12: 12
A13: 2019-01-01 | B13: 11 | C13: 491 | D13: 14 | E13: 554 | F13: 9 | H13: =LEFT(Inputs!$C$10,2) -> NB | I13: =RIGHT(Inputs!$C$10,2) -> SB
A14: 2019-01-01 | B14: 12 | C14: 492 | D14: 16 | E14: 540 | F14: 11 | H14: 1 | I14: 1 | J14: Location Adjustment Factor | L14: Example volume-only file | S14: Location Adjustment Factor | V14: Example volume-only file
A15: 2019-01-01 | B15: 13 | C15: 574 | D15: 13 | E15: 552 | F15: 7 | H15: 0 | I15: 0 | J15: Growth % | L15: Example volume+length file | S15: Growth Adjustment Factor | V15: Example volume+length file
A16: 2019-01-01 | B16: 14 | C16: 589 | D16: 16 | E16: 469 | F16: 17 | H16: 0 | I16: 0 | J16: Diversion % | L16: Example volume+axle file | S16: Diversion % | V16: Example volume+axle file
A17: 2019-01-01 | B17: 15 | C17: 599 | D17: 23 | E17: 565 | F17: 16 | L17: Imported files must be in exact format as one of the three example files above. | V17: Imported files must be in exact format as one of the three example files above.
A18: 2019-01-01 | B18: 16 | C18: 568 | D18: 17 | E18: 483 | F18: 15
A19: 2019-01-01 | B19: 17 | C19: 469 | D19: 16 | E19: 379 | F19: 10 | L19: If user imports volume-only file, "PDirHV" and "NDirHV" columns will show zero and a truck percentage table will show where user can input truck percentages for each period of each day. "Copy Truck% For All" button can be clicked to copy same truck percentage for each period of each day. | V19: If user imports volume-only file, "PDirHV" and "NDirHV" columns will show zero and a truck percentage table will show where user can input truck percentages for each period of each day. "Copy Truck% For All" button can be clicked to copy same truck percentage for each period of each day.
A20: 2019-01-01 | B20: 18 | C20: 347 | D20: 12 | E20: 291 | F20: 1
A21: 2019-01-01 | B21: 19 | C21: 268 | D21: 8 | E21: 201 | F21: 3
A22: 2019-01-01 | B22: 20 | C22: 160 | D22: 3 | E22: 157 | F22: 3
A23: 2019-01-01 | B23: 21 | C23: 127 | D23: 5 | E23: 116 | F23: 3
A24: 2019-01-01 | B24: 22 | C24: 101 | D24: 2 | E24: 66 | F24: 1 | L24: "Location Adjustment Factor" is used to adjust raw volumes if count site not in same location as closure. See example below using AADT volumes. | V24: "Location Adjustment Factor" is used to adjust raw volumes if count site not in same location as closure. See example below using AADT volumes.
A25: 2019-01-01 | B25: 23 | C25: 61 | D25: 2 | E25: 38 | F25: 4
A26: 2019-01-02 | B26: 0 | C26: 37 | D26: 3 | E26: 26 | F26: 9
A27: 2019-01-02 | B27: 1 | C27: 22 | D27: 4 | E27: 30 | F27: 5
A28: 2019-01-02 | B28: 2 | C28: 19 | D28: 5 | E28: 47 | F28: 7
A29: 2019-01-02 | B29: 3 | C29: 25 | D29: 6 | E29: 63 | F29: 10
A30: 2019-01-02 | B30: 4 | C30: 42 | D30: 14 | E30: 258 | F30: 13
A31: 2019-01-02 | B31: 5 | C31: 106 | D31: 24 | E31: 459 | F31: 11
A32: 2019-01-02 | B32: 6 | C32: 274 | D32: 38 | E32: 971 | F32: 38
A33: 2019-01-02 | B33: 7 | C33: 402 | D33: 61 | E33: 1286 | F33: 29
A34: 2019-01-02 | B34: 8 | C34: 392 | D34: 59 | E34: 774 | F34: 48 | L34: Imported volumes from a nearby "Continuous Count Location" can be factored based on a short-duration count that is closer to the work zone closure. The factor is applied to every hour of every day. For example, in the picture above, to adjust the continuous count based on the nearby short duration count, a factor of 1.11 (128,000/115,000) can be applied to the continous count data to estimate continuous data at the site of the short-duration count closer to the closure. | V34: Imported volumes from a nearby "Continuous Count Location" can be factored based on a short-duration count that is closer to the work zone closure. The factor is applied to every hour of every day. For example, in the picture above, to adjust the continuous count based on the nearby short duration count, a factor of 1.11 (128,000/115,000) can be applied to the continous count data to estimate continuous data at the site of the short-duration count closer to the closure.
A35: 2019-01-02 | B35: 9 | C35: 392 | D35: 46 | E35: 628 | F35: 36
A36: 2019-01-02 | B36: 10 | C36: 403 | D36: 43 | E36: 610 | F36: 45
A37: 2019-01-02 | B37: 11 | C37: 553 | D37: 41 | E37: 624 | F37: 41
A38: 2019-01-02 | B38: 12 | C38: 598 | D38: 38 | E38: 652 | F38: 39
A39: 2019-01-02 | B39: 13 | C39: 665 | D39: 49 | E39: 570 | F39: 33
A40: 2019-01-02 | B40: 14 | C40: 798 | D40: 51 | E40: 576 | F40: 35
A41: 2019-01-02 | B41: 15 | C41: 1160 | D41: 65 | E41: 647 | F41: 45 | L41: "Growth %" is applied to the volumes to add growth (i.e. [raw volume]x[1+growth %]). For example, to test the impact if traffic volumes were 20% higher. It is important to note, this is NOT a growth rate to expand volumes through years (e.g., 3% per year). | V41: "Growth %" is applied to the volumes to add growth (i.e. [raw volume]x[1+growth %]). For example, to test the impact if traffic volumes were 20% higher. It is important to note, this is NOT a growth rate to expand volumes through years (e.g., 3% per year).
A42: 2019-01-02 | B42: 16 | C42: 1307 | D42: 49 | E42: 593 | F42: 39
A43: 2019-01-02 | B43: 17 | C43: 1103 | D43: 34 | E43: 466 | F43: 13
A44: 2019-01-02 | B44: 18 | C44: 626 | D44: 31 | E44: 347 | F44: 17
A45: 2019-01-02 | B45: 19 | C45: 428 | D45: 16 | E45: 236 | F45: 13 | L45: "Diversion %" is the percent of volume user expects to divert to alternative route(s) due to closure. | V45: "Diversion %" is the percent of volume user expects to divert to alternative route(s) due to closure.
A46: 2019-01-02 | B46: 20 | C46: 278 | D46: 10 | E46: 155 | F46: 7
A47: 2019-01-02 | B47: 21 | C47: 181 | D47: 6 | E47: 134 | F47: 5
A48: 2019-01-02 | B48: 22 | C48: 142 | D48: 6 | E48: 68 | F48: 3 | L48: Growth/diversion updates will be reflected on every tab throughout tool. | V48: Growth/diversion updates will be reflected on every tab throughout tool.
A49: 2019-01-02 | B49: 23 | C49: 90 | D49: 7 | E49: 34 | F49: 1
A50: 2019-01-03 | B50: 0 | C50: 60 | D50: 4 | E50: 30 | F50: 3 | L50: Volumes in columns C&E of this tab will always show the raw volumes. Adjusted volumes will be shown on "Calculations" tabs in columns M&P. | V50: Volumes in columns C&E of this tab will always show the raw volumes. Adjusted volumes will be shown on "Calculations" tabs in columns M&P.
A51: 2019-01-03 | B51: 1 | C51: 35 | D51: 2 | E51: 36 | F51: 6
A52: 2019-01-03 | B52: 2 | C52: 50 | D52: 10 | E52: 30 | F52: 4
A53: 2019-01-03 | B53: 3 | C53: 32 | D53: 15 | E53: 55 | F53: 6
A54: 2019-01-03 | B54: 4 | C54: 44 | D54: 15 | E54: 233 | F54: 8
A55: 2019-01-03 | B55: 5 | C55: 116 | D55: 22 | E55: 487 | F55: 13
A56: 2019-01-03 | B56: 6 | C56: 283 | D56: 48 | E56: 969 | F56: 31
A57: 2019-01-03 | B57: 7 | C57: 400 | D57: 45 | E57: 1279 | F57: 31
A58: 2019-01-03 | B58: 8 | C58: 370 | D58: 55 | E58: 787 | F58: 46
A59: 2019-01-03 | B59: 9 | C59: 407 | D59: 46 | E59: 659 | F59: 28
A60: 2019-01-03 | B60: 10 | C60: 485 | D60: 61 | E60: 644 | F60: 39
A61: 2019-01-03 | B61: 11 | C61: 548 | D61: 46 | E61: 640 | F61: 60
A62: 2019-01-03 | B62: 12 | C62: 634 | D62: 50 | E62: 689 | F62: 42
... 77 more rows

Sheet Volume Stats
R1: Imported Volume Continuity Statistics | Y1: Percent of Hours Counter Reported Data | AB1: The purpose of this tab is to show user the quality of the imported volume data.
A2: Month # | B2: Month | C2: Day | D2: PDir Counts | E2: NDir Counts | F2: Total | R2: Counter ID: | S2: ='Volume Import'!I10 -> 326114 | Y2: < 75%
A3: =MONTH(Calculations!A11) -> 1 | B3: =CHOOSE(A3,"Jan","Feb","Mar","Apr","May","Jun","Jul","Aug","Sep","Oct","Nov","Dec") -> Jan | C3: =Calculations!F11 -> Tuesday | D3: =IF(Calculations!M11<=0,0,1) -> 1 | E3: =IF(Calculations!P11<=0,0,1) -> 1 | F3: =IF(Calculations!A11>1,1,0) -> 1 | R3: County: | S3: =Inputs!C7 -> Sauk | Y3: 75% - 85% | AB3: 100% implies that each day of the particular month has volume data.
A4: =MONTH(Calculations!A12) -> 1 | B4: =CHOOSE(A4,"Jan","Feb","Mar","Apr","May","Jun","Jul","Aug","Sep","Oct","Nov","Dec") -> Jan | C4: =Calculations!F12 -> Tuesday | D4: =IF(Calculations!M12<=0,0,1) -> 1 | E4: =IF(Calculations!P12<=0,0,1) -> 1 | F4: =IF(Calculations!A12>1,1,0) -> 1 | R4: Location: | S4: ='Volume Import'!I11 -> USH 14/USH 61/STH 35 SOUTH OF MARION | Y4: > 85%
A5: =MONTH(Calculations!A13) -> 1 | B5: Jan | C5: =Calculations!F13 -> Tuesday | D5: =IF(Calculations!M13<=0,0,1) -> 1 | E5: =IF(Calculations!P13<=0,0,1) -> 1 | F5: =IF(Calculations!A13>1,1,0) -> 1
A6: =MONTH(Calculations!A14) -> 1 | B6: Jan | C6: =Calculations!F14 -> Tuesday | D6: =IF(Calculations!M14<=0,0,1) -> 1 | E6: =IF(Calculations!P14<=0,0,1) -> 1 | F6: =IF(Calculations!A14>1,1,0) -> 1 | H6: Sum of PDir Counts | R6: =Calculations!M8 -> NB | S6: Sunday | T6: Monday | U6: Tuesday | V6: Wednesday | W6: Thursday | X6: Friday | Y6: Saturday | Z6: Total Month % | AB6: Less than 100% means that some volume data is missing for that day of the particular month.
A7: =MONTH(Calculations!A15) -> 1 | B7: Jan | C7: =Calculations!F15 -> Tuesday | D7: =IF(Calculations!M15<=0,0,1) -> 1 | E7: =IF(Calculations!P15<=0,0,1) -> 1 | F7: =IF(Calculations!A15>1,1,0) -> 1 | I7: Sunday | J7: Monday | K7: Tuesday | L7: Wednesday | M7: Thursday | N7: Friday | O7: Saturday | P7: Total | R7: Jan | S7: =MROUND(I8/I40,1) -> 1 | T7: =J8/J40 -> 1 | U7: =K8/K40 -> 1 | V7: =L8/L40 -> 1 | W7: =M8/M40 -> 1 | X7: =N8/N40 -> 1 | Y7: =O8/O40 -> 1 | Z7: =P8/P40 -> 1
A8: =MONTH(Calculations!A16) -> 1 | B8: Jan | C8: =Calculations!F16 -> Tuesday | D8: =IF(Calculations!M16<=0,0,1) -> 1 | E8: =IF(Calculations!P16<=0,0,1) -> 1 | F8: =IF(Calculations!A16>1,1,0) -> 1 | H8: Jan | I8: =SUMIFS($D$3:$D$8762,$B$3:$B$8762,$H8,$C$3:$C$8762,I$7) -> 96 | J8: 96 | K8: 120 | L8: 120 | M8: 120 | N8: 96 | O8: 96 | P8: =SUM(I8:O8) -> 744 | R8: Feb | S8: =I9/I41 -> 1 | T8: 1 | U8: 1 | V8: 1 | W8: 1 | X8: 1 | Y8: 1 | Z8: 1
A9: =MONTH(Calculations!A17) -> 1 | B9: Jan | C9: =Calculations!F17 -> Tuesday | D9: =IF(Calculations!M17<=0,0,1) -> 1 | E9: =IF(Calculations!P17<=0,0,1) -> 1 | F9: =IF(Calculations!A17>1,1,0) -> 1 | H9: Feb | I9: 96 | J9: 96 | K9: 96 | L9: 96 | M9: 96 | N9: 96 | O9: 96 | P9: =SUM(I9:O9) -> 672 | R9: Mar | S9: 0.8 | T9: 0.75 | U9: 1 | V9: 1 | W9: 1 | X9: 1 | Y9: 1 | Z9: 0.935483871
A10: =MONTH(Calculations!A18) -> 1 | B10: Jan | C10: =Calculations!F18 -> Tuesday | D10: =IF(Calculations!M18<=0,0,1) -> 1 | E10: =IF(Calculations!P18<=0,0,1) -> 1 | F10: =IF(Calculations!A18>1,1,0) -> 1 | H10: Mar | I10: 96 | J10: 72 | K10: 96 | L10: 96 | M10: 96 | N10: 120 | O10: 120 | P10: 696 | R10: Apr | S10: 1 | T10: 1 | U10: 1 | V10: 1 | W10: 1 | X10: 1 | Y10: 1 | Z10: 1
A11: =MONTH(Calculations!A19) -> 1 | B11: Jan | C11: =Calculations!F19 -> Tuesday | D11: =IF(Calculations!M19<=0,0,1) -> 1 | E11: =IF(Calculations!P19<=0,0,1) -> 1 | F11: =IF(Calculations!A19>1,1,0) -> 1 | H11: Apr | I11: 96 | J11: 120 | K11: 120 | L11: 96 | M11: 96 | N11: 96 | O11: 96 | P11: 720 | R11: May | S11: 1 | T11: 1 | U11: 1 | V11: 1 | W11: 1 | X11: 1 | Y11: 1 | Z11: 1
A12: =MONTH(Calculations!A20) -> 1 | B12: Jan | C12: =Calculations!F20 -> Tuesday | D12: =IF(Calculations!M20<=0,0,1) -> 1 | E12: =IF(Calculations!P20<=0,0,1) -> 1 | F12: =IF(Calculations!A20>1,1,0) -> 1 | H12: May | I12: 96 | J12: 96 | K12: 96 | L12: 120 | M12: 120 | N12: 120 | O12: 96 | P12: 744 | R12: Jun | S12: 1 | T12: 1 | U12: 1 | V12: 1 | W12: 1 | X12: 1 | Y12: 1 | Z12: 1
A13: =MONTH(Calculations!A21) -> 1 | B13: Jan | C13: =Calculations!F21 -> Tuesday | D13: =IF(Calculations!M21<=0,0,1) -> 1 | E13: =IF(Calculations!P21<=0,0,1) -> 1 | F13: =IF(Calculations!A21>1,1,0) -> 1 | H13: Jun | I13: 120 | J13: 96 | K13: 96 | L13: 96 | M13: 96 | N13: 96 | O13: 120 | P13: 720 | R13: Jul | S13: 1 | T13: 1 | U13: 1 | V13: 1 | W13: 1 | X13: 1 | Y13: 1 | Z13: 1
A14: =MONTH(Calculations!A22) -> 1 | B14: Jan | C14: =Calculations!F22 -> Tuesday | D14: =IF(Calculations!M22<=0,0,1) -> 1 | E14: =IF(Calculations!P22<=0,0,1) -> 1 | F14: =IF(Calculations!A22>1,1,0) -> 1 | H14: Jul | I14: 96 | J14: 120 | K14: 120 | L14: 120 | M14: 96 | N14: 96 | O14: 96 | P14: 744 | R14: Aug | S14: 1 | T14: 1 | U14: 1 | V14: 1 | W14: 0.8 | X14: 1 | Y14: 1 | Z14: 0.9677419355
A15: =MONTH(Calculations!A23) -> 1 | B15: Jan | C15: =Calculations!F23 -> Tuesday | D15: =IF(Calculations!M23<=0,0,1) -> 1 | E15: =IF(Calculations!P23<=0,0,1) -> 1 | F15: =IF(Calculations!A23>1,1,0) -> 1 | H15: Aug | I15: 96 | J15: 96 | K15: 96 | L15: 96 | M15: 96 | N15: 120 | O15: 120 | P15: 720 | R15: Sep | S15: 0.8 | T15: 0.8 | U15: 0.75 | V15: 1 | W15: 0.75 | X15: 0.75 | Y15: 0.75 | Z15: 0.8
A16: =MONTH(Calculations!A24) -> 1 | B16: Jan | C16: =Calculations!F24 -> Tuesday | D16: =IF(Calculations!M24<=0,0,1) -> 1 | E16: =IF(Calculations!P24<=0,0,1) -> 1 | F16: =IF(Calculations!A24>1,1,0) -> 1 | H16: Sep | I16: 96 | J16: 96 | K16: 72 | L16: 96 | M16: 72 | N16: 72 | O16: 72 | P16: 576 | R16: Oct | S16: 1 | T16: 1 | U16: 1 | V16: 1 | W16: 1 | X16: 1 | Y16: 1 | Z16: 1
A17: =MONTH(Calculations!A25) -> 1 | B17: Jan | C17: =Calculations!F25 -> Tuesday | D17: =IF(Calculations!M25<=0,0,1) -> 1 | E17: =IF(Calculations!P25<=0,0,1) -> 1 | F17: =IF(Calculations!A25>1,1,0) -> 1 | H17: Oct | I17: 96 | J17: 96 | K17: 120 | L17: 120 | M17: 120 | N17: 96 | O17: 96 | P17: 744 | R17: Nov | S17: 0.75 | T17: 1 | U17: 1 | V17: 1 | W17: 1 | X17: 1 | Y17: 1 | Z17: 0.9666666667
A18: =MONTH(Calculations!A26) -> 1 | B18: Jan | C18: =Calculations!F26 -> Tuesday | D18: =IF(Calculations!M26<=0,0,1) -> 1 | E18: =IF(Calculations!P26<=0,0,1) -> 1 | F18: =IF(Calculations!A26>1,1,0) -> 1 | H18: Nov | I18: 72 | J18: 96 | K18: 96 | L18: 96 | M18: 96 | N18: 120 | O18: 120 | P18: 696 | R18: Dec | S18: 1 | T18: 0.8 | U18: 0.8 | V18: 0.75 | W18: 1 | X18: 1 | Y18: 0.75 | Z18: 0.8709677419
A19: =MONTH(Calculations!A27) -> 1 | B19: Jan | C19: =Calculations!F27 -> Tuesday | D19: =IF(Calculations!M27<=0,0,1) -> 1 | E19: =IF(Calculations!P27<=0,0,1) -> 1 | F19: =IF(Calculations!A27>1,1,0) -> 1 | H19: Dec | I19: 120 | J19: 96 | K19: 96 | L19: 72 | M19: 96 | N19: 96 | O19: 72 | P19: 648 | R19: Total Week % | S19: =I20/I52 -> 0.9423076923 | T19: 0.9423076923 | U19: 0.9622641509 | V19: 0.9807692308 | W19: 0.9615384615 | X19: 0.9807692308 | Y19: 0.9615384615
A20: =MONTH(Calculations!A28) -> 1 | B20: Jan | C20: =Calculations!F28 -> Tuesday | D20: =IF(Calculations!M28<=0,0,1) -> 1 | E20: =IF(Calculations!P28<=0,0,1) -> 1 | F20: =IF(Calculations!A28>1,1,0) -> 1 | H20: Total | I20: =SUM(I8:I19) -> 1176 | J20: =SUM(J8:J19) -> 1176 | K20: 1224 | L20: 1224 | M20: 1200 | N20: 1224 | O20: 1200
A21: =MONTH(Calculations!A29) -> 1 | B21: Jan | C21: =Calculations!F29 -> Tuesday | D21: =IF(Calculations!M29<=0,0,1) -> 1 | E21: =IF(Calculations!P29<=0,0,1) -> 1 | F21: =IF(Calculations!A29>1,1,0) -> 1 | R21: =Calculations!P8 -> SB | S21: Sunday | T21: Monday | U21: Tuesday | V21: Wednesday | W21: Thursday | X21: Friday | Y21: Saturday | Z21: Total Month %
A22: =MONTH(Calculations!A30) -> 1 | B22: Jan | C22: =Calculations!F30 -> Tuesday | D22: =IF(Calculations!M30<=0,0,1) -> 1 | E22: =IF(Calculations!P30<=0,0,1) -> 1 | F22: =IF(Calculations!A30>1,1,0) -> 1 | H22: Sum of NDir Counts | R22: Jan | S22: =I24/I40 -> 1 | T22: =J24/J40 -> 1 | U22: 1 | V22: 1 | W22: 1 | X22: 1 | Y22: 1 | Z22: 1
A23: =MONTH(Calculations!A31) -> 1 | B23: Jan | C23: =Calculations!F31 -> Tuesday | D23: =IF(Calculations!M31<=0,0,1) -> 1 | E23: =IF(Calculations!P31<=0,0,1) -> 1 | F23: =IF(Calculations!A31>1,1,0) -> 1 | I23: Sunday | J23: Monday | K23: Tuesday | L23: Wednesday | M23: Thursday | N23: Friday | O23: Saturday | P23: Total | R23: Feb | S23: =I25/I41 -> 1 | T23: 1 | U23: 1 | V23: 1 | W23: 1 | X23: 1 | Y23: 1 | Z23: 1
A24: =MONTH(Calculations!A32) -> 1 | B24: Jan | C24: =Calculations!F32 -> Tuesday | D24: =IF(Calculations!M32<=0,0,1) -> 1 | E24: =IF(Calculations!P32<=0,0,1) -> 1 | F24: =IF(Calculations!A32>1,1,0) -> 1 | H24: Jan | I24: =SUMIFS($E$3:$E$8762,$B$3:$B$8762,$H24,$C$3:$C$8762,I$23) -> 96 | J24: 96 | K24: 120 | L24: 120 | M24: 120 | N24: 96 | O24: 96 | P24: =SUM(I24:O24) -> 744 | R24: Mar | S24: =I26/I42 -> 0.8 | T24: 0.75 | U24: 1 | V24: 1 | W24: 1 | X24: 1 | Y24: 1 | Z24: 0.935483871
A25: =MONTH(Calculations!A33) -> 1 | B25: Jan | C25: =Calculations!F33 -> Tuesday | D25: =IF(Calculations!M33<=0,0,1) -> 1 | E25: =IF(Calculations!P33<=0,0,1) -> 1 | F25: =IF(Calculations!A33>1,1,0) -> 1 | H25: Feb | I25: 96 | J25: 96 | K25: 96 | L25: 96 | M25: 96 | N25: 96 | O25: 96 | P25: =SUM(I25:O25) -> 672 | R25: Apr | S25: =I27/I43 -> 1 | T25: 1 | U25: 1 | V25: 1 | W25: 1 | X25: 1 | Y25: 1 | Z25: 1
A26: =MONTH(Calculations!A34) -> 1 | B26: Jan | C26: =Calculations!F34 -> Tuesday | D26: =IF(Calculations!M34<=0,0,1) -> 1 | E26: =IF(Calculations!P34<=0,0,1) -> 1 | F26: =IF(Calculations!A34>1,1,0) -> 1 | H26: Mar | I26: 96 | J26: 72 | K26: 96 | L26: 96 | M26: 96 | N26: 120 | O26: 120 | P26: 696 | R26: May | S26: =I28/I44 -> 1 | T26: 1 | U26: 1 | V26: 1 | W26: 1 | X26: 1 | Y26: 1 | Z26: 1
A27: =MONTH(Calculations!A35) -> 1 | B27: Jan | C27: =Calculations!F35 -> Wednesday | D27: =IF(Calculations!M35<=0,0,1) -> 1 | E27: =IF(Calculations!P35<=0,0,1) -> 1 | F27: =IF(Calculations!A35>1,1,0) -> 1 | H27: Apr | I27: 96 | J27: 120 | K27: 120 | L27: 96 | M27: 96 | N27: 96 | O27: 96 | P27: 720 | R27: Jun | S27: =I29/I45 -> 1 | T27: 1 | U27: 1 | V27: 1 | W27: 1 | X27: 1 | Y27: 1 | Z27: 1
A28: =MONTH(Calculations!A36) -> 1 | B28: Jan | C28: =Calculations!F36 -> Wednesday | D28: =IF(Calculations!M36<=0,0,1) -> 1 | E28: =IF(Calculations!P36<=0,0,1) -> 1 | F28: =IF(Calculations!A36>1,1,0) -> 1 | H28: May | I28: 96 | J28: 96 | K28: 96 | L28: 120 | M28: 120 | N28: 120 | O28: 96 | P28: 744 | R28: Jul | S28: =I30/I46 -> 1 | T28: 1 | U28: 1 | V28: 1 | W28: 1 | X28: 1 | Y28: 1 | Z28: 1
A29: =MONTH(Calculations!A37) -> 1 | B29: Jan | C29: =Calculations!F37 -> Wednesday | D29: =IF(Calculations!M37<=0,0,1) -> 1 | E29: =IF(Calculations!P37<=0,0,1) -> 1 | F29: =IF(Calculations!A37>1,1,0) -> 1 | H29: Jun | I29: 120 | J29: 96 | K29: 96 | L29: 96 | M29: 96 | N29: 96 | O29: 120 | P29: 720 | R29: Aug | S29: =I31/I47 -> 1 | T29: 1 | U29: 1 | V29: 1 | W29: 0.8 | X29: 1 | Y29: 1 | Z29: 0.9677419355
A30: =MONTH(Calculations!A38) -> 1 | B30: Jan | C30: =Calculations!F38 -> Wednesday | D30: =IF(Calculations!M38<=0,0,1) -> 1 | E30: =IF(Calculations!P38<=0,0,1) -> 1 | F30: =IF(Calculations!A38>1,1,0) -> 1 | H30: Jul | I30: 96 | J30: 120 | K30: 120 | L30: 120 | M30: 96 | N30: 96 | O30: 96 | P30: 744 | R30: Sep | S30: =I32/I48 -> 0.8 | T30: 0.8 | U30: 0.75 | V30: 1 | W30: 0.75 | X30: 0.75 | Y30: 0.75 | Z30: 0.8
A31: =MONTH(Calculations!A39) -> 1 | B31: Jan | C31: =Calculations!F39 -> Wednesday | D31: =IF(Calculations!M39<=0,0,1) -> 1 | E31: =IF(Calculations!P39<=0,0,1) -> 1 | F31: =IF(Calculations!A39>1,1,0) -> 1 | H31: Aug | I31: 96 | J31: 96 | K31: 96 | L31: 96 | M31: 96 | N31: 120 | O31: 120 | P31: 720 | R31: Oct | S31: =I33/I49 -> 1 | T31: 1 | U31: 1 | V31: 1 | W31: 1 | X31: 1 | Y31: 1 | Z31: 1
A32: =MONTH(Calculations!A40) -> 1 | B32: Jan | C32: =Calculations!F40 -> Wednesday | D32: =IF(Calculations!M40<=0,0,1) -> 1 | E32: =IF(Calculations!P40<=0,0,1) -> 1 | F32: =IF(Calculations!A40>1,1,0) -> 1 | H32: Sep | I32: 96 | J32: 96 | K32: 72 | L32: 96 | M32: 72 | N32: 72 | O32: 72 | P32: 576 | R32: Nov | S32: =I34/I50 -> 0.75 | T32: 1 | U32: 1 | V32: 1 | W32: 1 | X32: 1 | Y32: 1 | Z32: 0.9666666667
A33: =MONTH(Calculations!A41) -> 1 | B33: Jan | C33: =Calculations!F41 -> Wednesday | D33: =IF(Calculations!M41<=0,0,1) -> 1 | E33: =IF(Calculations!P41<=0,0,1) -> 1 | F33: =IF(Calculations!A41>1,1,0) -> 1 | H33: Oct | I33: 96 | J33: 96 | K33: 120 | L33: 120 | M33: 120 | N33: 96 | O33: 96 | P33: 744 | R33: Dec | S33: =I35/I51 -> 1 | T33: 0.8 | U33: 0.8 | V33: 0.75 | W33: 1 | X33: 1 | Y33: 0.75 | Z33: 0.8709677419
A34: =MONTH(Calculations!A42) -> 1 | B34: Jan | C34: =Calculations!F42 -> Wednesday | D34: =IF(Calculations!M42<=0,0,1) -> 1 | E34: =IF(Calculations!P42<=0,0,1) -> 1 | F34: =IF(Calculations!A42>1,1,0) -> 1 | H34: Nov | I34: 72 | J34: 96 | K34: 96 | L34: 96 | M34: 96 | N34: 120 | O34: 120 | P34: 696 | R34: Total Week % | S34: =I36/I52 -> 0.9423076923 | T34: 0.9423076923 | U34: 0.9622641509 | V34: 0.9807692308 | W34: 0.9615384615 | X34: 0.9807692308 | Y34: 0.9615384615
A35: =MONTH(Calculations!A43) -> 1 | B35: Jan | C35: =Calculations!F43 -> Wednesday | D35: =IF(Calculations!M43<=0,0,1) -> 1 | E35: =IF(Calculations!P43<=0,0,1) -> 1 | F35: =IF(Calculations!A43>1,1,0) -> 1 | H35: Dec | I35: 120 | J35: 96 | K35: 96 | L35: 72 | M35: 96 | N35: 96 | O35: 72 | P35: 648
A36: =MONTH(Calculations!A44) -> 1 | B36: Jan | C36: =Calculations!F44 -> Wednesday | D36: =IF(Calculations!M44<=0,0,1) -> 1 | E36: =IF(Calculations!P44<=0,0,1) -> 1 | F36: =IF(Calculations!A44>1,1,0) -> 1 | H36: Total | I36: =SUM(I24:I35) -> 1176 | J36: =SUM(J24:J35) -> 1176 | K36: =SUM(K24:K35) -> 1224 | L36: =SUM(L24:L35) -> 1224 | M36: =SUM(M24:M35) -> 1200 | N36: =SUM(N24:N35) -> 1224 | O36: =SUM(O24:O35) -> 1200
A37: =MONTH(Calculations!A45) -> 1 | B37: Jan | C37: =Calculations!F45 -> Wednesday | D37: =IF(Calculations!M45<=0,0,1) -> 1 | E37: =IF(Calculations!P45<=0,0,1) -> 1 | F37: =IF(Calculations!A45>1,1,0) -> 1
A38: =MONTH(Calculations!A46) -> 1 | B38: Jan | C38: =Calculations!F46 -> Wednesday | D38: =IF(Calculations!M46<=0,0,1) -> 1 | E38: =IF(Calculations!P46<=0,0,1) -> 1 | F38: =IF(Calculations!A46>1,1,0) -> 1 | H38: Sum of Total
A39: =MONTH(Calculations!A47) -> 1 | B39: Jan | C39: =Calculations!F47 -> Wednesday | D39: =IF(Calculations!M47<=0,0,1) -> 1 | E39: =IF(Calculations!P47<=0,0,1) -> 1 | F39: =IF(Calculations!A47>1,1,0) -> 1 | I39: Sunday | J39: Monday | K39: Tuesday | L39: Wednesday | M39: Thursday | N39: Friday | O39: Saturday | P39: Total
A40: =MONTH(Calculations!A48) -> 1 | B40: Jan | C40: =Calculations!F48 -> Wednesday | D40: =IF(Calculations!M48<=0,0,1) -> 1 | E40: =IF(Calculations!P48<=0,0,1) -> 1 | F40: =IF(Calculations!A48>1,1,0) -> 1 | H40: Jan | I40: =SUMIFS($F$3:$F$8762,$B$3:$B$8762,$H40,$C$3:$C$8762,I$39) -> 96 | J40: =SUMIFS($F$3:$F$8762,$B$3:$B$8762,$H40,$C$3:$C$8762,J$39) -> 96 | K40: 120 | L40: 120 | M40: 120 | N40: 96 | O40: 96 | P40: =SUM(I40:O40) -> 744
A41: =MONTH(Calculations!A49) -> 1 | B41: Jan | C41: =Calculations!F49 -> Wednesday | D41: =IF(Calculations!M49<=0,0,1) -> 1 | E41: =IF(Calculations!P49<=0,0,1) -> 1 | F41: =IF(Calculations!A49>1,1,0) -> 1 | H41: Feb | I41: 96 | J41: 96 | K41: 96 | L41: 96 | M41: 96 | N41: 96 | O41: 96 | P41: =SUM(I41:O41) -> 672
A42: =MONTH(Calculations!A50) -> 1 | B42: Jan | C42: =Calculations!F50 -> Wednesday | D42: =IF(Calculations!M50<=0,0,1) -> 1 | E42: =IF(Calculations!P50<=0,0,1) -> 1 | F42: =IF(Calculations!A50>1,1,0) -> 1 | H42: Mar | I42: 120 | J42: 96 | K42: 96 | L42: 96 | M42: 96 | N42: 120 | O42: 120 | P42: 744
A43: =MONTH(Calculations!A51) -> 1 | B43: Jan | C43: =Calculations!F51 -> Wednesday | D43: =IF(Calculations!M51<=0,0,1) -> 1 | E43: =IF(Calculations!P51<=0,0,1) -> 1 | F43: =IF(Calculations!A51>1,1,0) -> 1 | H43: Apr | I43: 96 | J43: 120 | K43: 120 | L43: 96 | M43: 96 | N43: 96 | O43: 96 | P43: 720
A44: =MONTH(Calculations!A52) -> 1 | B44: Jan | C44: =Calculations!F52 -> Wednesday | D44: =IF(Calculations!M52<=0,0,1) -> 1 | E44: =IF(Calculations!P52<=0,0,1) -> 1 | F44: =IF(Calculations!A52>1,1,0) -> 1 | H44: May | I44: 96 | J44: 96 | K44: 96 | L44: 120 | M44: 120 | N44: 120 | O44: 96 | P44: 744
A45: =MONTH(Calculations!A53) -> 1 | B45: Jan | C45: =Calculations!F53 -> Wednesday | D45: =IF(Calculations!M53<=0,0,1) -> 1 | E45: =IF(Calculations!P53<=0,0,1) -> 1 | F45: =IF(Calculations!A53>1,1,0) -> 1 | H45: Jun | I45: 120 | J45: 96 | K45: 96 | L45: 96 | M45: 96 | N45: 96 | O45: 120 | P45: 720
A46: =MONTH(Calculations!A54) -> 1 | B46: Jan | C46: =Calculations!F54 -> Wednesday | D46: =IF(Calculations!M54<=0,0,1) -> 1 | E46: =IF(Calculations!P54<=0,0,1) -> 1 | F46: =IF(Calculations!A54>1,1,0) -> 1 | H46: Jul | I46: 96 | J46: 120 | K46: 120 | L46: 120 | M46: 96 | N46: 96 | O46: 96 | P46: 744
A47: =MONTH(Calculations!A55) -> 1 | B47: Jan | C47: =Calculations!F55 -> Wednesday | D47: =IF(Calculations!M55<=0,0,1) -> 1 | E47: =IF(Calculations!P55<=0,0,1) -> 1 | F47: =IF(Calculations!A55>1,1,0) -> 1 | H47: Aug | I47: 96 | J47: 96 | K47: 96 | L47: 96 | M47: 120 | N47: 120 | O47: 120 | P47: 744
A48: =MONTH(Calculations!A56) -> 1 | B48: Jan | C48: =Calculations!F56 -> Wednesday | D48: =IF(Calculations!M56<=0,0,1) -> 1 | E48: =IF(Calculations!P56<=0,0,1) -> 1 | F48: =IF(Calculations!A56>1,1,0) -> 1 | H48: Sep | I48: 120 | J48: 120 | K48: 96 | L48: 96 | M48: 96 | N48: 96 | O48: 96 | P48: 720
A49: =MONTH(Calculations!A57) -> 1 | B49: Jan | C49: =Calculations!F57 -> Wednesday | D49: =IF(Calculations!M57<=0,0,1) -> 1 | E49: =IF(Calculations!P57<=0,0,1) -> 1 | F49: =IF(Calculations!A57>1,1,0) -> 1 | H49: Oct | I49: 96 | J49: 96 | K49: 120 | L49: 120 | M49: 120 | N49: 96 | O49: 96 | P49: 744
A50: =MONTH(Calculations!A58) -> 1 | B50: Jan | C50: =Calculations!F58 -> Wednesday | D50: =IF(Calculations!M58<=0,0,1) -> 1 | E50: =IF(Calculations!P58<=0,0,1) -> 1 | F50: =IF(Calculations!A58>1,1,0) -> 1 | H50: Nov | I50: 96 | J50: 96 | K50: 96 | L50: 96 | M50: 96 | N50: 120 | O50: 120 | P50: 720
A51: =MONTH(Calculations!A59) -> 1 | B51: Jan | C51: =Calculations!F59 -> Thursday | D51: =IF(Calculations!M59<=0,0,1) -> 1 | E51: =IF(Calculations!P59<=0,0,1) -> 1 | F51: =IF(Calculations!A59>1,1,0) -> 1 | H51: Dec | I51: 120 | J51: 120 | K51: 120 | L51: 96 | M51: 96 | N51: 96 | O51: 96 | P51: 744
A52: =MONTH(Calculations!A60) -> 1 | B52: Jan | C52: =Calculations!F60 -> Thursday | D52: =IF(Calculations!M60<=0,0,1) -> 1 | E52: =IF(Calculations!P60<=0,0,1) -> 1 | F52: =IF(Calculations!A60>1,1,0) -> 1 | H52: Total | I52: =SUM(I40:I51) -> 1248 | J52: =SUM(J40:J51) -> 1248 | K52: =SUM(K40:K51) -> 1272 | L52: =SUM(L40:L51) -> 1248 | M52: =SUM(M40:M51) -> 1248 | N52: =SUM(N40:N51) -> 1248 | O52: =SUM(O40:O51) -> 1248
A53: =MONTH(Calculations!A61) -> 1 | B53: Jan | C53: =Calculations!F61 -> Thursday | D53: =IF(Calculations!M61<=0,0,1) -> 1 | E53: =IF(Calculations!P61<=0,0,1) -> 1 | F53: =IF(Calculations!A61>1,1,0) -> 1
A54: =MONTH(Calculations!A62) -> 1 | B54: Jan | C54: =Calculations!F62 -> Thursday | D54: =IF(Calculations!M62<=0,0,1) -> 1 | E54: =IF(Calculations!P62<=0,0,1) -> 1 | F54: =IF(Calculations!A62>1,1,0) -> 1
A55: =MONTH(Calculations!A63) -> 1 | B55: Jan | C55: =Calculations!F63 -> Thursday | D55: =IF(Calculations!M63<=0,0,1) -> 1 | E55: =IF(Calculations!P63<=0,0,1) -> 1 | F55: =IF(Calculations!A63>1,1,0) -> 1
A56: =MONTH(Calculations!A64) -> 1 | B56: Jan | C56: =Calculations!F64 -> Thursday | D56: =IF(Calculations!M64<=0,0,1) -> 1 | E56: =IF(Calculations!P64<=0,0,1) -> 1 | F56: =IF(Calculations!A64>1,1,0) -> 1
A57: =MONTH(Calculations!A65) -> 1 | B57: Jan | C57: =Calculations!F65 -> Thursday | D57: =IF(Calculations!M65<=0,0,1) -> 1 | E57: =IF(Calculations!P65<=0,0,1) -> 1 | F57: =IF(Calculations!A65>1,1,0) -> 1
A58: =MONTH(Calculations!A66) -> 1 | B58: Jan | C58: =Calculations!F66 -> Thursday | D58: =IF(Calculations!M66<=0,0,1) -> 1 | E58: =IF(Calculations!P66<=0,0,1) -> 1 | F58: =IF(Calculations!A66>1,1,0) -> 1
A59: =MONTH(Calculations!A67) -> 1 | B59: Jan | C59: =Calculations!F67 -> Thursday | D59: =IF(Calculations!M67<=0,0,1) -> 1 | E59: =IF(Calculations!P67<=0,0,1) -> 1 | F59: =IF(Calculations!A67>1,1,0) -> 1
A60: =MONTH(Calculations!A68) -> 1 | B60: Jan | C60: =Calculations!F68 -> Thursday | D60: =IF(Calculations!M68<=0,0,1) -> 1 | E60: =IF(Calculations!P68<=0,0,1) -> 1 | F60: =IF(Calculations!A68>1,1,0) -> 1
A61: =MONTH(Calculations!A69) -> 1 | B61: Jan | C61: =Calculations!F69 -> Thursday | D61: =IF(Calculations!M69<=0,0,1) -> 1 | E61: =IF(Calculations!P69<=0,0,1) -> 1 | F61: =IF(Calculations!A69>1,1,0) -> 1
A62: =MONTH(Calculations!A70) -> 1 | B62: Jan | C62: =Calculations!F70 -> Thursday | D62: =IF(Calculations!M70<=0,0,1) -> 1 | E62: =IF(Calculations!P70<=0,0,1) -> 1 | F62: =IF(Calculations!A70>1,1,0) -> 1
... 77 more rows

Sheet Calculations
A1: Queue Information Calculations | M1: ="Factors For "&M8 -> Factors For NB | P1: ="Factors For "&P8 -> Factors For SB | T1: =U8&" Queue Calculations" -> NB Queue Calculations | AJ1: =AK8&" Queue Calculations" -> SB Queue Calculations
A2: =Inputs!B6&": " -> Region: | B2: =Inputs!C6 -> Northwest | M2: Growth | N2: 0 | P2: Growth | Q2: 0 | T2: Closure 1 | U2: Closure 2 | V2: Closure 3 | W2: Closure 4 | AJ2: Closure 1 | AK2: Closure 2 | AL2: Closure 3 | AM2: Closure 4
A3: =Inputs!B7&": " -> County: | B3: =Inputs!C7 -> Sauk | M3: Diversion | N3: 0 | P3: Diversion | Q3: 0 | T3: =RIGHT(Inputs!C18,1) -> 2 | U3: =RIGHT(Inputs!D18,1) ->  | V3: =RIGHT(Inputs!E18,1) ->  | W3: =RIGHT(Inputs!F18,1) ->  | X3: Open Lanes | AJ3: =RIGHT(Inputs!C18,1) -> 2 | AK3: =RIGHT(Inputs!D18,1) ->  | AL3: =RIGHT(Inputs!E18,1) ->  | AM3: =RIGHT(Inputs!F18,1) ->  | AN3: Open Lanes
A4: =Inputs!B8&": " -> Construction ID: | B4: =Inputs!C8 -> 0000-00-00 | T4: =IFERROR(LEFT(Inputs!C18,1)-RIGHT(Inputs!C18,1),"") -> 1 | U4: =IFERROR(LEFT(Inputs!D18,1)-RIGHT(Inputs!D18,1),"") ->  | V4: =IFERROR(LEFT(Inputs!E18,1)-RIGHT(Inputs!E18,1),"") ->  | W4: =IFERROR(LEFT(Inputs!F18,1)-RIGHT(Inputs!F18,1),"") ->  | X4: Closed Lanes | AJ4: =IFERROR(LEFT(Inputs!C18,1)-RIGHT(Inputs!C18,1),"") -> 1 | AK4: =IFERROR(LEFT(Inputs!D18,1)-RIGHT(Inputs!D18,1),"") ->  | AL4: =IFERROR(LEFT(Inputs!E18,1)-RIGHT(Inputs!E18,1),"") ->  | AM4: =IFERROR(LEFT(Inputs!F18,1)-RIGHT(Inputs!F18,1),"") ->  | AN4: Closed Lanes
A5: =Inputs!B9&": " -> Highway: | B5: =Inputs!C9 -> I-90 | M5: Diversion Delay Time (min) | N5: 0 | P5: Diversion Delay Time (min) | Q5: 0
A6: This tab contains the caculations for the work zone capacity estimates, queues, and costs. The growth %, diversion %, and diversion delay time inputs are the only editable cells. Growth/diversion updates will be reflected on every tab throughout tool.
T7: Free Flow | AJ7: Free Flow
M8: =LEFT(Inputs!$C$10,2) -> NB | N8: =M8 -> NB | P8: =RIGHT(Inputs!$C$10,2) -> SB | Q8: =P8 -> SB | S8: Average | T8: Capacity or | U8: =M8 -> NB | V8: =U8 -> NB | W8: =U8 -> NB | X8: =U8 -> NB | Y8: =U8 -> NB | Z8: =U8 -> NB | AA8: =U8 -> NB | AF8: Max | AJ8: Capacity or | AK8: =P8 -> SB | AL8: =AK8 -> SB | AM8: =AK8 -> SB | AN8: =AK8 -> SB | AO8: =AK8 -> SB | AP8: =AK8 -> SB | AQ8: =AK8 -> SB | AV8: Max
M9: Vol | N9: HV% | P9: Vol | Q9: HV% | S9: PCE Headway | T9: WZ QDR | U9: # Over | V9: Total | W9: Queue | X9: Queue | Y9: Queue | Z9: Diversion | AA9: Total | AD9: Cell | AE9: Cell | AF9: Q in | AG9: Start | AH9: End | AJ9: WZ QDR | AK9: # Over | AL9: Total | AM9: Queue | AN9: Queue | AO9: Queue | AP9: Diversion | AQ9: Total | AT9: Cell | AU9: Cell | AV9: Q in | AW9: Start | AX9: End
A10: Date | B10: Month | C10: Day | D10: MonthDayHour | E10: Day # | F10: Day | G10: Hour | H10: Hour | I10: T.O.D. | J10: Week Hour | K10: Closure? | M10: PDir | N10: PDir | P10: NDir | Q10: NDir | S10: (ft/PCE) | T10: (veh/hr) | U10: Under | V10: Queue | W10: Miles | X10: Minutes | Y10: Costs | Z10: Costs | AA10: Costs | AC10: Date & Time | AD10: Start | AE10: End | AF10: Range | AG10: Time | AH10: Time | AJ10: (veh/hr) | AK10: Under | AL10: Queue | AM10: Miles | AN10: Minutes | AO10: Costs | AP10: Costs | AQ10: Costs | AS10: Date & Time | AT10: Start | AU10: End | AV10: Range | AW10: Time | AX10: Time
A11: ='Volume Import'!A2 -> 2019-01-01 | B11: =CHOOSE(MONTH(A11),"January","February","March","April","May","June","July","August","September","October","November","December") -> January | C11: =DAY(A11) -> 1 | D11: =B11&"-"&C11&"-"&H11 -> January-1-0 | E11: =WEEKDAY(A11) -> 3 | F11: =CHOOSE(WEEKDAY(A11),"Sunday","Monday","Tuesday","Wednesday","Thursday","Friday","Saturday") -> Tuesday | G11: 00:00:00 | H11: 0 | I11: =INDEX(Lists!$R$3:$R$26,MATCH(Calculations!G11,Lists!$Q$3:$Q$26,0)) -> NT | J11: =HOUR(G11)+(E11*24-24) -> 48 | K11: =IF(INDEX(Inputs!$H$86:$H$253,MATCH(J11,Inputs!$D$86:$D$253,0)),"TRUE 4", IF(INDEX(Inputs!$G$86:$G$253,MATCH(J11,Inputs!$D$86:$D$253,0)),"TRUE 3", IF(INDEX(Inputs!$F$86:$F$253,MATCH(J11,Inputs!$D$86:$D$253,0)),"TRUE 2", IF(INDEX(Inputs!$E$86:$E$253,MATCH(J11,Inputs!$D$86:$D$253,0)),"TRUE 1", FALSE)))) -> FALSE | M11: ='Volume Import'!C2*'Volume Import'!$H$14*(1+'Volume Import'!$H$15)*(1-'Volume Import'!$H$16) -> 115 | N11: =IF(AND('Volume Import'!D2=0,'Volume Import'!C2=0),0, IF('Volume Import'!D2=0,INDEX('Volume Import'!$K$2:$Q$5,MATCH(I11,'Volume Import'!$R$2:$R$5,0),MATCH(F11,'Volume Import'!$K$1:$Q$1,0)), 'Volume Import'!D2/'Volume Import'!C2)) -> 0.0347826087 | P11: ='Volume Import'!E2*'Volume Import'!$I$14*(1+'Volume Import'!$I$15)*(1-'Volume Import'!$I$16) -> 75 | Q11: =IF('Volume Import'!F2=0,N11,'Volume Import'!F2/'Volume Import'!E2) -> 0.02666666667 | S11: =IF(K11="TRUE 1",IF(I11="NT",Inputs!$C$35,Inputs!$C$34), IF(K11="TRUE 2",IF(I11="NT",Inputs!$D$35,Inputs!$D$34), IF(K11="TRUE 3",IF(I11="NT",Inputs!$E$35,Inputs!$E$34), IF(K11="TRUE 4",IF(I11="NT",Inputs!$F$35,Inputs!$F$34), 0)))) -> 0 | T11: =IF(K11="TRUE 1",IF(I11="NT",MROUND(Inputs!$C$32*$T$3*(1/(1+N11*(2-1))),1),MROUND(Inputs!$C$30*$T$3*(1/(1+N11*(2-1))),1)), IF(K11="TRUE 2",IF(I11="NT",MROUND(Inputs!$D$32*$U$3*(1/(1+N11*(2-1))),1),MROUND(Inputs!$D$30*$U$3*(1/(1+N11*(2-1))),1)), IF(K11="TRUE 3",IF(I11="NT",MROUND(Inputs!$E$32*$V$3*(1/(1+N11*(2-1))),1),MROUND(Inputs!$E$30*$V$3*(1/(1+N11*(2-1))),1)), IF(K11="TRUE 4",IF(I11="NT",MROUND(Inputs!$F$32*$W$3*(1/(1+N11*(2-1))),1),MROUND(Inputs!$F$30*$W$3*(1/(1+N11*(2-1))),1)), MROUND(Inputs!$C$15*(1/(1+N11*(2-1)))*($T$3+$T$4),1))))) -> 6958 | U11: =M11-T11 -> -6843 | V11: =IF(U11<0,0,U11) -> 0 | W11: =(V11/(1/(1+N11*(2-1))))*S11/LEFT(Inputs!$C$18,1)/5280 -> 0 | X11: =V11/T11*60 -> 0 | Y11: =((X11/60)*((Inputs!$C$13*V11*(1-N11))+(Inputs!$C$14*V11*N11))) -> 0 | Z11: =IF(V11>0,($N$5/60)*(((M11*$N$3/(1-$N$3))*(1-N11)*Inputs!$C$13)+((M11*$N$3/(1-$N$3))*N11*Inputs!$C$14)),0) -> 0 | AA11: =Y11+Z11 -> 0 | AC11: =A11 -> 2019-01-01 | AD11: =IF(AND(AG11="",AH11=""),"",IF(ISNUMBER(AG11),SUBSTITUTE(ADDRESS(1,COLUMN($W$10),4),"1","")&ROW(AD11),"")) ->  | AE11: =IF(ISNUMBER(AH11),SUBSTITUTE(ADDRESS(1,COLUMN($W$10),4),"1","")&ROW(AE11),"") ->  | AF11: =IF(AND(AD11<>"",AE11<>""),MAX(INDIRECT(AD11):INDIRECT(AE11)),"") ->  | AG11: =IF(W11>0,$AC11,"") ->  | AH11: =IF(AND(W11>0,W12=0),$AC11,IF(AND(W11>0,W12>0),"Q","")) ->  | AJ11: =IF(K11="TRUE 1",IF(I11="NT",MROUND(Inputs!$C$32*$AJ$3*(1/(1+Q11*(2-1))),1),MROUND(Inputs!$C$30*$AJ$3*(1/(1+Q11*(2-1))),1)), IF(K11="TRUE 2",IF(I11="NT",MROUND(Inputs!$D$32*$AK$3*(1/(1+Q11*(2-1))),1),MROUND(Inputs!$D$30*$AK$3*(1/(1+Q11*(2-1))),1)), IF(K11="TRUE 3",IF(I11="NT",MROUND(Inputs!$E$32*$AL$3*(1/(1+Q11*(2-1))),1),MROUND(Inputs!$E$30*$AL$3*(1/(1+Q11*(2-1))),1)), IF(K11="TRUE 4",IF(I11="NT",MROUND(Inputs!$F$32*$AM$3*(1/(1+Q11*(2-1))),1),MROUND(Inputs!$F$30*$AM$3*(1/(1+Q11*(2-1))),1)), MROUND(Inputs!$C$15*(1/(1+Q11*(2-1)))*($AJ$3+$AJ$4),1))))) -> 7013 | AK11: =P11-AJ11 -> -6938 | AL11: =IF(AK11<0,0,AK11) -> 0 | AM11: =(AL11/(1/(1+Q11*(2-1))))*S11/LEFT(Inputs!$C$18,1)/5280 -> 0 | AN11: =AL11/AJ11*60 -> 0 | AO11: =(AN11/60)*((Inputs!$C$13*AL11*(1-Q11))+(Inputs!$C$14*AL11*Q11)) -> 0 | AP11: =IF(AL11>0,($Q$5/60)*(((P11*$Q$3/(1-$Q$3))*(1-Q11)*Inputs!$C$13)+((P11*$Q$3/(1-$Q$3))*Q11*Inputs!$C$14)),0) -> 0 | AQ11: =AO11+AP11 -> 0 | AS11: =A11 -> 2019-01-01 | AT11: =IF(AND(AW11="",AX11=""),"",IF(ISNUMBER(AW11),SUBSTITUTE(ADDRESS(1,COLUMN($AM$10),4),"1","")&ROW(AT11),"")) ->  | AU11: =IF(ISNUMBER(AX11),SUBSTITUTE(ADDRESS(1,COLUMN($AM$10),4),"1","")&ROW(AU11),"") ->  | AV11: =IF(AND(AT11<>"",AU11<>""),MAX(INDIRECT(AT11):INDIRECT(AU11)),"") ->  | AW11: =IF(AM11>0,$AS11,"") ->  | AX11: =IF(AND(AM11>0,AM12=0),$AS11,IF(AND(AM11>0,AM12>0),"Q","")) -> 
A12: =A$11 -> 2019-01-01 | B12: =CHOOSE(MONTH(A12),"January","February","March","April","May","June","July","August","September","October","November","December") -> January | C12: =DAY(A12) -> 1 | D12: January-1-1 | E12: =WEEKDAY(A12) -> 3 | F12: =CHOOSE(WEEKDAY(A12),"Sunday","Monday","Tuesday","Wednesday","Thursday","Friday","Saturday") -> Tuesday | G12: 01:00:00 | H12: 1 | I12: =INDEX(Lists!$R$3:$R$26,MATCH(Calculations!G12,Lists!$Q$3:$Q$26,0)) -> NT | J12: =HOUR(G12)+(E12*24-24) -> 49 | K12: =IF(INDEX(Inputs!$H$86:$H$253,MATCH(J12,Inputs!$D$86:$D$253,0)),"TRUE 4", IF(INDEX(Inputs!$G$86:$G$253,MATCH(J12,Inputs!$D$86:$D$253,0)),"TRUE 3", IF(INDEX(Inputs!$F$86:$F$253,MATCH(J12,Inputs!$D$86:$D$253,0)),"TRUE 2", IF(INDEX(Inputs!$E$86:$E$253,MATCH(J12,Inputs!$D$86:$D$253,0)),"TRUE 1", FALSE)))) -> FALSE | M12: ='Volume Import'!C3*'Volume Import'!$H$14*(1+'Volume Import'!$H$15)*(1-'Volume Import'!$H$16) -> 92 | N12: =IF(AND('Volume Import'!D3=0,'Volume Import'!C3=0),0, IF('Volume Import'!D3=0,INDEX('Volume Import'!$K$2:$Q$5,MATCH(I12,'Volume Import'!$R$2:$R$5,0),MATCH(F12,'Volume Import'!$K$1:$Q$1,0)), 'Volume Import'!D3/'Volume Import'!C3)) -> 0.04347826087 | P12: ='Volume Import'!E3*'Volume Import'!$I$14*(1+'Volume Import'!$I$15)*(1-'Volume Import'!$I$16) -> 74 | Q12: =IF('Volume Import'!F3=0,N12,'Volume Import'!F3/'Volume Import'!E3) -> 0.08108108108 | S12: =IF(K12="TRUE 1",IF(I12="NT",Inputs!$C$35,Inputs!$C$34), IF(K12="TRUE 2",IF(I12="NT",Inputs!$D$35,Inputs!$D$34), IF(K12="TRUE 3",IF(I12="NT",Inputs!$E$35,Inputs!$E$34), IF(K12="TRUE 4",IF(I12="NT",Inputs!$F$35,Inputs!$F$34), S11)))) -> 0 | T12: =IF(K12="TRUE 1",IF(I12="NT",MROUND(Inputs!$C$32*$T$3*(1/(1+N12*(2-1))),1),MROUND(Inputs!$C$30*$T$3*(1/(1+N12*(2-1))),1)), IF(K12="TRUE 2",IF(I12="NT",MROUND(Inputs!$D$32*$U$3*(1/(1+N12*(2-1))),1),MROUND(Inputs!$D$30*$U$3*(1/(1+N12*(2-1))),1)), IF(K12="TRUE 3",IF(I12="NT",MROUND(Inputs!$E$32*$V$3*(1/(1+N12*(2-1))),1),MROUND(Inputs!$E$30*$V$3*(1/(1+N12*(2-1))),1)), IF(K12="TRUE 4",IF(I12="NT",MROUND(Inputs!$F$32*$W$3*(1/(1+N12*(2-1))),1),MROUND(Inputs!$F$30*$W$3*(1/(1+N12*(2-1))),1)), MROUND(Inputs!$C$15*(1/(1+N12*(2-1)))*($T$3+$T$4),1))))) -> 6900 | U12: -6808 | V12: =IF(V11+U12<0,0,V11+U12) -> 0 | W12: =(V12/(1/(1+N12*(2-1))))*S12/LEFT(Inputs!$C$18,1)/5280 -> 0 | X12: =V12/T12*60 -> 0 | Y12: =((X12/60)*((Inputs!$C$13*V12*(1-N12))+(Inputs!$C$14*V12*N12))) -> 0 | Z12: =IF(V12>0,($N$5/60)*(((M12*$N$3/(1-$N$3))*(1-N12)*Inputs!$C$13)+((M12*$N$3/(1-$N$3))*N12*Inputs!$C$14)),0) -> 0 | AA12: =Y12+Z12 -> 0 | AC12: =AC11+1/24 -> 2019-01-01T01:00:00 | AD12: =IF(AND(AG12="",AH12=""),"",IF(ISNUMBER(AG12),SUBSTITUTE(ADDRESS(1,COLUMN($W$10),4),"1","")&ROW(AD12),AD11)) ->  | AE12: =IF(ISNUMBER(AH12),SUBSTITUTE(ADDRESS(1,COLUMN($W$10),4),"1","")&ROW(AE12),"") ->  | AF12: =IF(AND(AD12<>"",AE12<>""),MAX(INDIRECT(AD12):INDIRECT(AE12)),"") ->  | AG12: =IF(AND(W12>0,W11=0),$AC12,IF(AND(W12>0,W11>0),"Q","")) ->  | AH12: =IF(AND(W12>0,W13=0),$AC12,IF(AND(W12>0,W13>0),"Q","")) ->  | AJ12: =IF(K12="TRUE 1",IF(I12="NT",MROUND(Inputs!$C$32*$AJ$3*(1/(1+Q12*(2-1))),1),MROUND(Inputs!$C$30*$AJ$3*(1/(1+Q12*(2-1))),1)), IF(K12="TRUE 2",IF(I12="NT",MROUND(Inputs!$D$32*$AK$3*(1/(1+Q12*(2-1))),1),MROUND(Inputs!$D$30*$AK$3*(1/(1+Q12*(2-1))),1)), IF(K12="TRUE 3",IF(I12="NT",MROUND(Inputs!$E$32*$AL$3*(1/(1+Q12*(2-1))),1),MROUND(Inputs!$E$30*$AL$3*(1/(1+Q12*(2-1))),1)), IF(K12="TRUE 4",IF(I12="NT",MROUND(Inputs!$F$32*$AM$3*(1/(1+Q12*(2-1))),1),MROUND(Inputs!$F$30*$AM$3*(1/(1+Q12*(2-1))),1)), MROUND(Inputs!$C$15*(1/(1+Q12*(2-1)))*($AJ$3+$AJ$4),1))))) -> 6660 | AK12: -6586 | AL12: =IF(AL11+AK12<0,0,AL11+AK12) -> 0 | AM12: =(AL12/(1/(1+Q12*(2-1))))*S12/LEFT(Inputs!$C$18,1)/5280 -> 0 | AN12: =AL12/AJ12*60 -> 0 | AO12: =(AN12/60)*((Inputs!$C$13*AL12*(1-Q12))+(Inputs!$C$14*AL12*Q12)) -> 0 | AP12: =IF(AL12>0,($Q$5/60)*(((P12*$Q$3/(1-$Q$3))*(1-Q12)*Inputs!$C$13)+((P12*$Q$3/(1-$Q$3))*Q12*Inputs!$C$14)),0) -> 0 | AQ12: =AO12+AP12 -> 0 | AS12: =AS11+1/24 -> 2019-01-01T01:00:00 | AT12: =IF(AND(AW12="",AX12=""),"",IF(ISNUMBER(AW12),SUBSTITUTE(ADDRESS(1,COLUMN($AM$10),4),"1","")&ROW(AT12),AT11)) ->  | AU12: =IF(ISNUMBER(AX12),SUBSTITUTE(ADDRESS(1,COLUMN($AM$10),4),"1","")&ROW(AU12),"") ->  | AV12: =IF(AND(AT12<>"",AU12<>""),MAX(INDIRECT(AT12):INDIRECT(AU12)),"") ->  | AW12: =IF(AND(AM12>0,AM11=0),$AS12,IF(AND(AM12>0,AM11>0),"Q","")) ->  | AX12: =IF(AND(AM12>0,AM13=0),$AS12,IF(AND(AM12>0,AM13>0),"Q","")) -> 
A13: =A$11 -> 2019-01-01 | B13: January | C13: 1 | D13: January-1-2 | E13: 3 | F13: Tuesday | G13: 02:00:00 | H13: 2 | I13: =INDEX(Lists!$R$3:$R$26,MATCH(Calculations!G13,Lists!$Q$3:$Q$26,0)) -> NT | J13: 50 | K13: =IF(INDEX(Inputs!$H$86:$H$253,MATCH(J13,Inputs!$D$86:$D$253,0)),"TRUE 4", IF(INDEX(Inputs!$G$86:$G$253,MATCH(J13,Inputs!$D$86:$D$253,0)),"TRUE 3", IF(INDEX(Inputs!$F$86:$F$253,MATCH(J13,Inputs!$D$86:$D$253,0)),"TRUE 2", IF(INDEX(Inputs!$E$86:$E$253,MATCH(J13,Inputs!$D$86:$D$253,0)),"TRUE 1", FALSE)))) -> FALSE | M13: ='Volume Import'!C4*'Volume Import'!$H$14*(1+'Volume Import'!$H$15)*(1-'Volume Import'!$H$16) -> 44 | N13: =IF(AND('Volume Import'!D4=0,'Volume Import'!C4=0),0, IF('Volume Import'!D4=0,INDEX('Volume Import'!$K$2:$Q$5,MATCH(I13,'Volume Import'!$R$2:$R$5,0),MATCH(F13,'Volume Import'!$K$1:$Q$1,0)), 'Volume Import'!D4/'Volume Import'!C4)) -> 0.04545454545 | P13: ='Volume Import'!E4*'Volume Import'!$I$14*(1+'Volume Import'!$I$15)*(1-'Volume Import'!$I$16) -> 45 | Q13: =IF('Volume Import'!F4=0,N13,'Volume Import'!F4/'Volume Import'!E4) -> 0.02222222222 | S13: =IF(K13="TRUE 1",IF(I13="NT",Inputs!$C$35,Inputs!$C$34), IF(K13="TRUE 2",IF(I13="NT",Inputs!$D$35,Inputs!$D$34), IF(K13="TRUE 3",IF(I13="NT",Inputs!$E$35,Inputs!$E$34), IF(K13="TRUE 4",IF(I13="NT",Inputs!$F$35,Inputs!$F$34), S12)))) -> 0 | T13: =IF(K13="TRUE 1",IF(I13="NT",MROUND(Inputs!$C$32*$T$3*(1/(1+N13*(2-1))),1),MROUND(Inputs!$C$30*$T$3*(1/(1+N13*(2-1))),1)), IF(K13="TRUE 2",IF(I13="NT",MROUND(Inputs!$D$32*$U$3*(1/(1+N13*(2-1))),1),MROUND(Inputs!$D$30*$U$3*(1/(1+N13*(2-1))),1)), IF(K13="TRUE 3",IF(I13="NT",MROUND(Inputs!$E$32*$V$3*(1/(1+N13*(2-1))),1),MROUND(Inputs!$E$30*$V$3*(1/(1+N13*(2-1))),1)), IF(K13="TRUE 4",IF(I13="NT",MROUND(Inputs!$F$32*$W$3*(1/(1+N13*(2-1))),1),MROUND(Inputs!$F$30*$W$3*(1/(1+N13*(2-1))),1)), MROUND(Inputs!$C$15*(1/(1+N13*(2-1)))*($T$3+$T$4),1))))) -> 6887 | U13: -6843 | V13: 0 | W13: =(V13/(1/(1+N13*(2-1))))*S13/LEFT(Inputs!$C$18,1)/5280 -> 0 | X13: =V13/T13*60 -> 0 | Y13: =((X13/60)*((Inputs!$C$13*V13*(1-N13))+(Inputs!$C$14*V13*N13))) -> 0 | Z13: =IF(V13>0,($N$5/60)*(((M13*$N$3/(1-$N$3))*(1-N13)*Inputs!$C$13)+((M13*$N$3/(1-$N$3))*N13*Inputs!$C$14)),0) -> 0 | AA13: 0 | AC13: =AC12+1/24 -> 2019-01-01T02:00:00 | AD13: =IF(AND(AG13="",AH13=""),"",IF(ISNUMBER(AG13),SUBSTITUTE(ADDRESS(1,COLUMN($W$10),4),"1","")&ROW(AD13),AD12)) ->  | AE13: =IF(ISNUMBER(AH13),SUBSTITUTE(ADDRESS(1,COLUMN($W$10),4),"1","")&ROW(AE13),"") ->  | AF13: =IF(AND(AD13<>"",AE13<>""),MAX(INDIRECT(AD13):INDIRECT(AE13)),"") ->  | AG13: =IF(AND(W13>0,W12=0),$AC13,IF(AND(W13>0,W12>0),"Q","")) ->  | AH13: =IF(AND(W13>0,W14=0),$AC13,IF(AND(W13>0,W14>0),"Q","")) ->  | AJ13: =IF(K13="TRUE 1",IF(I13="NT",MROUND(Inputs!$C$32*$AJ$3*(1/(1+Q13*(2-1))),1),MROUND(Inputs!$C$30*$AJ$3*(1/(1+Q13*(2-1))),1)), IF(K13="TRUE 2",IF(I13="NT",MROUND(Inputs!$D$32*$AK$3*(1/(1+Q13*(2-1))),1),MROUND(Inputs!$D$30*$AK$3*(1/(1+Q13*(2-1))),1)), IF(K13="TRUE 3",IF(I13="NT",MROUND(Inputs!$E$32*$AL$3*(1/(1+Q13*(2-1))),1),MROUND(Inputs!$E$30*$AL$3*(1/(1+Q13*(2-1))),1)), IF(K13="TRUE 4",IF(I13="NT",MROUND(Inputs!$F$32*$AM$3*(1/(1+Q13*(2-1))),1),MROUND(Inputs!$F$30*$AM$3*(1/(1+Q13*(2-1))),1)), MROUND(Inputs!$C$15*(1/(1+Q13*(2-1)))*($AJ$3+$AJ$4),1))))) -> 7043 | AK13: -6998 | AL13: 0 | AM13: =(AL13/(1/(1+Q13*(2-1))))*S13/LEFT(Inputs!$C$18,1)/5280 -> 0 | AN13: 0 | AO13: =(AN13/60)*((Inputs!$C$13*AL13*(1-Q13))+(Inputs!$C$14*AL13*Q13)) -> 0 | AP13: =IF(AL13>0,($Q$5/60)*(((P13*$Q$3/(1-$Q$3))*(1-Q13)*Inputs!$C$13)+((P13*$Q$3/(1-$Q$3))*Q13*Inputs!$C$14)),0) -> 0 | AQ13: 0 | AS13: 2019-01-01T02:00:00 | AT13: =IF(AND(AW13="",AX13=""),"",IF(ISNUMBER(AW13),SUBSTITUTE(ADDRESS(1,COLUMN($AM$10),4),"1","")&ROW(AT13),AT12)) ->  | AU13: =IF(ISNUMBER(AX13),SUBSTITUTE(ADDRESS(1,COLUMN($AM$10),4),"1","")&ROW(AU13),"") ->  | AV13: =IF(AND(AT13<>"",AU13<>""),MAX(INDIRECT(AT13):INDIRECT(AU13)),"") ->  | AW13: =IF(AND(AM13>0,AM12=0),$AS13,IF(AND(AM13>0,AM12>0),"Q","")) ->  | AX13: =IF(AND(AM13>0,AM14=0),$AS13,IF(AND(AM13>0,AM14>0),"Q","")) -> 
A14: 2019-01-01 | B14: January | C14: 1 | D14: January-1-3 | E14: 3 | F14: Tuesday | G14: 03:00:00 | H14: 3 | I14: =INDEX(Lists!$R$3:$R$26,MATCH(Calculations!G14,Lists!$Q$3:$Q$26,0)) -> NT | J14: 51 | K14: =IF(INDEX(Inputs!$H$86:$H$253,MATCH(J14,Inputs!$D$86:$D$253,0)),"TRUE 4", IF(INDEX(Inputs!$G$86:$G$253,MATCH(J14,Inputs!$D$86:$D$253,0)),"TRUE 3", IF(INDEX(Inputs!$F$86:$F$253,MATCH(J14,Inputs!$D$86:$D$253,0)),"TRUE 2", IF(INDEX(Inputs!$E$86:$E$253,MATCH(J14,Inputs!$D$86:$D$253,0)),"TRUE 1", FALSE)))) -> FALSE | M14: ='Volume Import'!C5*'Volume Import'!$H$14*(1+'Volume Import'!$H$15)*(1-'Volume Import'!$H$16) -> 43 | N14: =IF(AND('Volume Import'!D5=0,'Volume Import'!C5=0),0, IF('Volume Import'!D5=0,INDEX('Volume Import'!$K$2:$Q$5,MATCH(I14,'Volume Import'!$R$2:$R$5,0),MATCH(F14,'Volume Import'!$K$1:$Q$1,0)), 'Volume Import'!D5/'Volume Import'!C5)) -> 0.1162790698 | P14: ='Volume Import'!E5*'Volume Import'!$I$14*(1+'Volume Import'!$I$15)*(1-'Volume Import'!$I$16) -> 41 | Q14: =IF('Volume Import'!F5=0,N14,'Volume Import'!F5/'Volume Import'!E5) -> 0.0243902439 | S14: =IF(K14="TRUE 1",IF(I14="NT",Inputs!$C$35,Inputs!$C$34), IF(K14="TRUE 2",IF(I14="NT",Inputs!$D$35,Inputs!$D$34), IF(K14="TRUE 3",IF(I14="NT",Inputs!$E$35,Inputs!$E$34), IF(K14="TRUE 4",IF(I14="NT",Inputs!$F$35,Inputs!$F$34), S13)))) -> 0 | T14: =IF(K14="TRUE 1",IF(I14="NT",MROUND(Inputs!$C$32*$T$3*(1/(1+N14*(2-1))),1),MROUND(Inputs!$C$30*$T$3*(1/(1+N14*(2-1))),1)), IF(K14="TRUE 2",IF(I14="NT",MROUND(Inputs!$D$32*$U$3*(1/(1+N14*(2-1))),1),MROUND(Inputs!$D$30*$U$3*(1/(1+N14*(2-1))),1)), IF(K14="TRUE 3",IF(I14="NT",MROUND(Inputs!$E$32*$V$3*(1/(1+N14*(2-1))),1),MROUND(Inputs!$E$30*$V$3*(1/(1+N14*(2-1))),1)), IF(K14="TRUE 4",IF(I14="NT",MROUND(Inputs!$F$32*$W$3*(1/(1+N14*(2-1))),1),MROUND(Inputs!$F$30*$W$3*(1/(1+N14*(2-1))),1)), MROUND(Inputs!$C$15*(1/(1+N14*(2-1)))*($T$3+$T$4),1))))) -> 6450 | U14: -6407 | V14: 0 | W14: =(V14/(1/(1+N14*(2-1))))*S14/LEFT(Inputs!$C$18,1)/5280 -> 0 | X14: 0 | Y14: =((X14/60)*((Inputs!$C$13*V14*(1-N14))+(Inputs!$C$14*V14*N14))) -> 0 | Z14: =IF(V14>0,($N$5/60)*(((M14*$N$3/(1-$N$3))*(1-N14)*Inputs!$C$13)+((M14*$N$3/(1-$N$3))*N14*Inputs!$C$14)),0) -> 0 | AA14: 0 | AC14: 2019-01-01T03:00:00 | AD14: =IF(AND(AG14="",AH14=""),"",IF(ISNUMBER(AG14),SUBSTITUTE(ADDRESS(1,COLUMN($W$10),4),"1","")&ROW(AD14),AD13)) ->  | AF14: =IF(AND(AD14<>"",AE14<>""),MAX(INDIRECT(AD14):INDIRECT(AE14)),"") ->  | AJ14: =IF(K14="TRUE 1",IF(I14="NT",MROUND(Inputs!$C$32*$AJ$3*(1/(1+Q14*(2-1))),1),MROUND(Inputs!$C$30*$AJ$3*(1/(1+Q14*(2-1))),1)), IF(K14="TRUE 2",IF(I14="NT",MROUND(Inputs!$D$32*$AK$3*(1/(1+Q14*(2-1))),1),MROUND(Inputs!$D$30*$AK$3*(1/(1+Q14*(2-1))),1)), IF(K14="TRUE 3",IF(I14="NT",MROUND(Inputs!$E$32*$AL$3*(1/(1+Q14*(2-1))),1),MROUND(Inputs!$E$30*$AL$3*(1/(1+Q14*(2-1))),1)), IF(K14="TRUE 4",IF(I14="NT",MROUND(Inputs!$F$32*$AM$3*(1/(1+Q14*(2-1))),1),MROUND(Inputs!$F$30*$AM$3*(1/(1+Q14*(2-1))),1)), MROUND(Inputs!$C$15*(1/(1+Q14*(2-1)))*($AJ$3+$AJ$4),1))))) -> 7029 | AK14: -6988 | AL14: 0 | AM14: =(AL14/(1/(1+Q14*(2-1))))*S14/LEFT(Inputs!$C$18,1)/5280 -> 0 | AN14: 0 | AO14: =(AN14/60)*((Inputs!$C$13*AL14*(1-Q14))+(Inputs!$C$14*AL14*Q14)) -> 0 | AP14: =IF(AL14>0,($Q$5/60)*(((P14*$Q$3/(1-$Q$3))*(1-Q14)*Inputs!$C$13)+((P14*$Q$3/(1-$Q$3))*Q14*Inputs!$C$14)),0) -> 0 | AQ14: 0 | AS14: 2019-01-01T03:00:00 | AV14: =IF(AND(AT14<>"",AU14<>""),MAX(INDIRECT(AT14):INDIRECT(AU14)),"") -> 
A15: 2019-01-01 | B15: January | C15: 1 | D15: January-1-4 | E15: 3 | F15: Tuesday | G15: 04:00:00 | H15: 4 | I15: =INDEX(Lists!$R$3:$R$26,MATCH(Calculations!G15,Lists!$Q$3:$Q$26,0)) -> NT | J15: 52 | K15: =IF(INDEX(Inputs!$H$86:$H$253,MATCH(J15,Inputs!$D$86:$D$253,0)),"TRUE 4", IF(INDEX(Inputs!$G$86:$G$253,MATCH(J15,Inputs!$D$86:$D$253,0)),"TRUE 3", IF(INDEX(Inputs!$F$86:$F$253,MATCH(J15,Inputs!$D$86:$D$253,0)),"TRUE 2", IF(INDEX(Inputs!$E$86:$E$253,MATCH(J15,Inputs!$D$86:$D$253,0)),"TRUE 1", FALSE)))) -> FALSE | M15: ='Volume Import'!C6*'Volume Import'!$H$14*(1+'Volume Import'!$H$15)*(1-'Volume Import'!$H$16) -> 40 | N15: =IF(AND('Volume Import'!D6=0,'Volume Import'!C6=0),0, IF('Volume Import'!D6=0,INDEX('Volume Import'!$K$2:$Q$5,MATCH(I15,'Volume Import'!$R$2:$R$5,0),MATCH(F15,'Volume Import'!$K$1:$Q$1,0)), 'Volume Import'!D6/'Volume Import'!C6)) -> 0.225 | P15: ='Volume Import'!E6*'Volume Import'!$I$14*(1+'Volume Import'!$I$15)*(1-'Volume Import'!$I$16) -> 61 | Q15: =IF('Volume Import'!F6=0,N15,'Volume Import'!F6/'Volume Import'!E6) -> 0.1967213115 | S15: =IF(K15="TRUE 1",IF(I15="NT",Inputs!$C$35,Inputs!$C$34), IF(K15="TRUE 2",IF(I15="NT",Inputs!$D$35,Inputs!$D$34), IF(K15="TRUE 3",IF(I15="NT",Inputs!$E$35,Inputs!$E$34), IF(K15="TRUE 4",IF(I15="NT",Inputs!$F$35,Inputs!$F$34), S14)))) -> 0 | T15: =IF(K15="TRUE 1",IF(I15="NT",MROUND(Inputs!$C$32*$T$3*(1/(1+N15*(2-1))),1),MROUND(Inputs!$C$30*$T$3*(1/(1+N15*(2-1))),1)), IF(K15="TRUE 2",IF(I15="NT",MROUND(Inputs!$D$32*$U$3*(1/(1+N15*(2-1))),1),MROUND(Inputs!$D$30*$U$3*(1/(1+N15*(2-1))),1)), IF(K15="TRUE 3",IF(I15="NT",MROUND(Inputs!$E$32*$V$3*(1/(1+N15*(2-1))),1),MROUND(Inputs!$E$30*$V$3*(1/(1+N15*(2-1))),1)), IF(K15="TRUE 4",IF(I15="NT",MROUND(Inputs!$F$32*$W$3*(1/(1+N15*(2-1))),1),MROUND(Inputs!$F$30*$W$3*(1/(1+N15*(2-1))),1)), MROUND(Inputs!$C$15*(1/(1+N15*(2-1)))*($T$3+$T$4),1))))) -> 5878 | U15: -5838 | V15: 0 | W15: =(V15/(1/(1+N15*(2-1))))*S15/LEFT(Inputs!$C$18,1)/5280 -> 0 | X15: 0 | Y15: =((X15/60)*((Inputs!$C$13*V15*(1-N15))+(Inputs!$C$14*V15*N15))) -> 0 | Z15: =IF(V15>0,($N$5/60)*(((M15*$N$3/(1-$N$3))*(1-N15)*Inputs!$C$13)+((M15*$N$3/(1-$N$3))*N15*Inputs!$C$14)),0) -> 0 | AA15: 0 | AC15: 2019-01-01T04:00:00 | AF15: =IF(AND(AD15<>"",AE15<>""),MAX(INDIRECT(AD15):INDIRECT(AE15)),"") ->  | AJ15: =IF(K15="TRUE 1",IF(I15="NT",MROUND(Inputs!$C$32*$AJ$3*(1/(1+Q15*(2-1))),1),MROUND(Inputs!$C$30*$AJ$3*(1/(1+Q15*(2-1))),1)), IF(K15="TRUE 2",IF(I15="NT",MROUND(Inputs!$D$32*$AK$3*(1/(1+Q15*(2-1))),1),MROUND(Inputs!$D$30*$AK$3*(1/(1+Q15*(2-1))),1)), IF(K15="TRUE 3",IF(I15="NT",MROUND(Inputs!$E$32*$AL$3*(1/(1+Q15*(2-1))),1),MROUND(Inputs!$E$30*$AL$3*(1/(1+Q15*(2-1))),1)), IF(K15="TRUE 4",IF(I15="NT",MROUND(Inputs!$F$32*$AM$3*(1/(1+Q15*(2-1))),1),MROUND(Inputs!$F$30*$AM$3*(1/(1+Q15*(2-1))),1)), MROUND(Inputs!$C$15*(1/(1+Q15*(2-1)))*($AJ$3+$AJ$4),1))))) -> 6016 | AK15: -5955 | AL15: 0 | AM15: =(AL15/(1/(1+Q15*(2-1))))*S15/LEFT(Inputs!$C$18,1)/5280 -> 0 | AN15: 0 | AO15: =(AN15/60)*((Inputs!$C$13*AL15*(1-Q15))+(Inputs!$C$14*AL15*Q15)) -> 0 | AP15: =IF(AL15>0,($Q$5/60)*(((P15*$Q$3/(1-$Q$3))*(1-Q15)*Inputs!$C$13)+((P15*$Q$3/(1-$Q$3))*Q15*Inputs!$C$14)),0) -> 0 | AQ15: 0 | AS15: 2019-01-01T04:00:00 | AV15: =IF(AND(AT15<>"",AU15<>""),MAX(INDIRECT(AT15):INDIRECT(AU15)),"") -> 
A16: 2019-01-01 | B16: January | C16: 1 | D16: January-1-5 | E16: 3 | F16: Tuesday | G16: 05:00:00 | H16: 5 | I16: =INDEX(Lists!$R$3:$R$26,MATCH(Calculations!G16,Lists!$Q$3:$Q$26,0)) -> NT | J16: 53 | K16: =IF(INDEX(Inputs!$H$86:$H$253,MATCH(J16,Inputs!$D$86:$D$253,0)),"TRUE 4", IF(INDEX(Inputs!$G$86:$G$253,MATCH(J16,Inputs!$D$86:$D$253,0)),"TRUE 3", IF(INDEX(Inputs!$F$86:$F$253,MATCH(J16,Inputs!$D$86:$D$253,0)),"TRUE 2", IF(INDEX(Inputs!$E$86:$E$253,MATCH(J16,Inputs!$D$86:$D$253,0)),"TRUE 1", FALSE)))) -> FALSE | M16: ='Volume Import'!C7*'Volume Import'!$H$14*(1+'Volume Import'!$H$15)*(1-'Volume Import'!$H$16) -> 33 | N16: =IF(AND('Volume Import'!D7=0,'Volume Import'!C7=0),0, IF('Volume Import'!D7=0,INDEX('Volume Import'!$K$2:$Q$5,MATCH(I16,'Volume Import'!$R$2:$R$5,0),MATCH(F16,'Volume Import'!$K$1:$Q$1,0)), 'Volume Import'!D7/'Volume Import'!C7)) -> 0.1818181818 | P16: ='Volume Import'!E7*'Volume Import'!$I$14*(1+'Volume Import'!$I$15)*(1-'Volume Import'!$I$16) -> 93 | Q16: =IF('Volume Import'!F7=0,N16,'Volume Import'!F7/'Volume Import'!E7) -> 0.09677419355 | S16: =IF(K16="TRUE 1",IF(I16="NT",Inputs!$C$35,Inputs!$C$34), IF(K16="TRUE 2",IF(I16="NT",Inputs!$D$35,Inputs!$D$34), IF(K16="TRUE 3",IF(I16="NT",Inputs!$E$35,Inputs!$E$34), IF(K16="TRUE 4",IF(I16="NT",Inputs!$F$35,Inputs!$F$34), S15)))) -> 0 | T16: =IF(K16="TRUE 1",IF(I16="NT",MROUND(Inputs!$C$32*$T$3*(1/(1+N16*(2-1))),1),MROUND(Inputs!$C$30*$T$3*(1/(1+N16*(2-1))),1)), IF(K16="TRUE 2",IF(I16="NT",MROUND(Inputs!$D$32*$U$3*(1/(1+N16*(2-1))),1),MROUND(Inputs!$D$30*$U$3*(1/(1+N16*(2-1))),1)), IF(K16="TRUE 3",IF(I16="NT",MROUND(Inputs!$E$32*$V$3*(1/(1+N16*(2-1))),1),MROUND(Inputs!$E$30*$V$3*(1/(1+N16*(2-1))),1)), IF(K16="TRUE 4",IF(I16="NT",MROUND(Inputs!$F$32*$W$3*(1/(1+N16*(2-1))),1),MROUND(Inputs!$F$30*$W$3*(1/(1+N16*(2-1))),1)), MROUND(Inputs!$C$15*(1/(1+N16*(2-1)))*($T$3+$T$4),1))))) -> 6092 | U16: -6059 | V16: 0 | W16: =(V16/(1/(1+N16*(2-1))))*S16/LEFT(Inputs!$C$18,1)/5280 -> 0 | X16: 0 | Y16: =((X16/60)*((Inputs!$C$13*V16*(1-N16))+(Inputs!$C$14*V16*N16))) -> 0 | Z16: =IF(V16>0,($N$5/60)*(((M16*$N$3/(1-$N$3))*(1-N16)*Inputs!$C$13)+((M16*$N$3/(1-$N$3))*N16*Inputs!$C$14)),0) -> 0 | AA16: 0 | AC16: 2019-01-01T05:00:00 | AF16: =IF(AND(AD16<>"",AE16<>""),MAX(INDIRECT(AD16):INDIRECT(AE16)),"") ->  | AJ16: =IF(K16="TRUE 1",IF(I16="NT",MROUND(Inputs!$C$32*$AJ$3*(1/(1+Q16*(2-1))),1),MROUND(Inputs!$C$30*$AJ$3*(1/(1+Q16*(2-1))),1)), IF(K16="TRUE 2",IF(I16="NT",MROUND(Inputs!$D$32*$AK$3*(1/(1+Q16*(2-1))),1),MROUND(Inputs!$D$30*$AK$3*(1/(1+Q16*(2-1))),1)), IF(K16="TRUE 3",IF(I16="NT",MROUND(Inputs!$E$32*$AL$3*(1/(1+Q16*(2-1))),1),MROUND(Inputs!$E$30*$AL$3*(1/(1+Q16*(2-1))),1)), IF(K16="TRUE 4",IF(I16="NT",MROUND(Inputs!$F$32*$AM$3*(1/(1+Q16*(2-1))),1),MROUND(Inputs!$F$30*$AM$3*(1/(1+Q16*(2-1))),1)), MROUND(Inputs!$C$15*(1/(1+Q16*(2-1)))*($AJ$3+$AJ$4),1))))) -> 6565 | AK16: -6472 | AL16: 0 | AM16: =(AL16/(1/(1+Q16*(2-1))))*S16/LEFT(Inputs!$C$18,1)/5280 -> 0 | AN16: 0 | AO16: =(AN16/60)*((Inputs!$C$13*AL16*(1-Q16))+(Inputs!$C$14*AL16*Q16)) -> 0 | AP16: =IF(AL16>0,($Q$5/60)*(((P16*$Q$3/(1-$Q$3))*(1-Q16)*Inputs!$C$13)+((P16*$Q$3/(1-$Q$3))*Q16*Inputs!$C$14)),0) -> 0 | AQ16: 0 | AS16: 2019-01-01T05:00:00 | AV16: =IF(AND(AT16<>"",AU16<>""),MAX(INDIRECT(AT16):INDIRECT(AU16)),"") -> 
A17: 2019-01-01 | B17: January | C17: 1 | D17: January-1-6 | E17: 3 | F17: Tuesday | G17: 06:00:00 | H17: 6 | I17: =INDEX(Lists!$R$3:$R$26,MATCH(Calculations!G17,Lists!$Q$3:$Q$26,0)) -> AM | J17: 54 | K17: =IF(INDEX(Inputs!$H$86:$H$253,MATCH(J17,Inputs!$D$86:$D$253,0)),"TRUE 4", IF(INDEX(Inputs!$G$86:$G$253,MATCH(J17,Inputs!$D$86:$D$253,0)),"TRUE 3", IF(INDEX(Inputs!$F$86:$F$253,MATCH(J17,Inputs!$D$86:$D$253,0)),"TRUE 2", IF(INDEX(Inputs!$E$86:$E$253,MATCH(J17,Inputs!$D$86:$D$253,0)),"TRUE 1", FALSE)))) -> FALSE | M17: ='Volume Import'!C8*'Volume Import'!$H$14*(1+'Volume Import'!$H$15)*(1-'Volume Import'!$H$16) -> 72 | N17: =IF(AND('Volume Import'!D8=0,'Volume Import'!C8=0),0, IF('Volume Import'!D8=0,INDEX('Volume Import'!$K$2:$Q$5,MATCH(I17,'Volume Import'!$R$2:$R$5,0),MATCH(F17,'Volume Import'!$K$1:$Q$1,0)), 'Volume Import'!D8/'Volume Import'!C8)) -> 0.1527777778 | P17: ='Volume Import'!E8*'Volume Import'!$I$14*(1+'Volume Import'!$I$15)*(1-'Volume Import'!$I$16) -> 122 | Q17: =IF('Volume Import'!F8=0,N17,'Volume Import'!F8/'Volume Import'!E8) -> 0.06557377049 | S17: =IF(K17="TRUE 1",IF(I17="NT",Inputs!$C$35,Inputs!$C$34), IF(K17="TRUE 2",IF(I17="NT",Inputs!$D$35,Inputs!$D$34), IF(K17="TRUE 3",IF(I17="NT",Inputs!$E$35,Inputs!$E$34), IF(K17="TRUE 4",IF(I17="NT",Inputs!$F$35,Inputs!$F$34), S16)))) -> 0 | T17: =IF(K17="TRUE 1",IF(I17="NT",MROUND(Inputs!$C$32*$T$3*(1/(1+N17*(2-1))),1),MROUND(Inputs!$C$30*$T$3*(1/(1+N17*(2-1))),1)), IF(K17="TRUE 2",IF(I17="NT",MROUND(Inputs!$D$32*$U$3*(1/(1+N17*(2-1))),1),MROUND(Inputs!$D$30*$U$3*(1/(1+N17*(2-1))),1)), IF(K17="TRUE 3",IF(I17="NT",MROUND(Inputs!$E$32*$V$3*(1/(1+N17*(2-1))),1),MROUND(Inputs!$E$30*$V$3*(1/(1+N17*(2-1))),1)), IF(K17="TRUE 4",IF(I17="NT",MROUND(Inputs!$F$32*$W$3*(1/(1+N17*(2-1))),1),MROUND(Inputs!$F$30*$W$3*(1/(1+N17*(2-1))),1)), MROUND(Inputs!$C$15*(1/(1+N17*(2-1)))*($T$3+$T$4),1))))) -> 6246 | U17: -6174 | V17: 0 | W17: =(V17/(1/(1+N17*(2-1))))*S17/LEFT(Inputs!$C$18,1)/5280 -> 0 | X17: 0 | Y17: =((X17/60)*((Inputs!$C$13*V17*(1-N17))+(Inputs!$C$14*V17*N17))) -> 0 | Z17: =IF(V17>0,($N$5/60)*(((M17*$N$3/(1-$N$3))*(1-N17)*Inputs!$C$13)+((M17*$N$3/(1-$N$3))*N17*Inputs!$C$14)),0) -> 0 | AA17: 0 | AC17: 2019-01-01T06:00:00 | AF17: =IF(AND(AD17<>"",AE17<>""),MAX(INDIRECT(AD17):INDIRECT(AE17)),"") ->  | AJ17: =IF(K17="TRUE 1",IF(I17="NT",MROUND(Inputs!$C$32*$AJ$3*(1/(1+Q17*(2-1))),1),MROUND(Inputs!$C$30*$AJ$3*(1/(1+Q17*(2-1))),1)), IF(K17="TRUE 2",IF(I17="NT",MROUND(Inputs!$D$32*$AK$3*(1/(1+Q17*(2-1))),1),MROUND(Inputs!$D$30*$AK$3*(1/(1+Q17*(2-1))),1)), IF(K17="TRUE 3",IF(I17="NT",MROUND(Inputs!$E$32*$AL$3*(1/(1+Q17*(2-1))),1),MROUND(Inputs!$E$30*$AL$3*(1/(1+Q17*(2-1))),1)), IF(K17="TRUE 4",IF(I17="NT",MROUND(Inputs!$F$32*$AM$3*(1/(1+Q17*(2-1))),1),MROUND(Inputs!$F$30*$AM$3*(1/(1+Q17*(2-1))),1)), MROUND(Inputs!$C$15*(1/(1+Q17*(2-1)))*($AJ$3+$AJ$4),1))))) -> 6757 | AK17: -6635 | AL17: 0 | AM17: =(AL17/(1/(1+Q17*(2-1))))*S17/LEFT(Inputs!$C$18,1)/5280 -> 0 | AN17: 0 | AO17: =(AN17/60)*((Inputs!$C$13*AL17*(1-Q17))+(Inputs!$C$14*AL17*Q17)) -> 0 | AP17: =IF(AL17>0,($Q$5/60)*(((P17*$Q$3/(1-$Q$3))*(1-Q17)*Inputs!$C$13)+((P17*$Q$3/(1-$Q$3))*Q17*Inputs!$C$14)),0) -> 0 | AQ17: 0 | AS17: 2019-01-01T06:00:00 | AV17: =IF(AND(AT17<>"",AU17<>""),MAX(INDIRECT(AT17):INDIRECT(AU17)),"") -> 
A18: 2019-01-01 | B18: January | C18: 1 | D18: January-1-7 | E18: 3 | F18: Tuesday | G18: 07:00:00 | H18: 7 | I18: =INDEX(Lists!$R$3:$R$26,MATCH(Calculations!G18,Lists!$Q$3:$Q$26,0)) -> AM | J18: 55 | K18: =IF(INDEX(Inputs!$H$86:$H$253,MATCH(J18,Inputs!$D$86:$D$253,0)),"TRUE 4", IF(INDEX(Inputs!$G$86:$G$253,MATCH(J18,Inputs!$D$86:$D$253,0)),"TRUE 3", IF(INDEX(Inputs!$F$86:$F$253,MATCH(J18,Inputs!$D$86:$D$253,0)),"TRUE 2", IF(INDEX(Inputs!$E$86:$E$253,MATCH(J18,Inputs!$D$86:$D$253,0)),"TRUE 1", FALSE)))) -> FALSE | M18: ='Volume Import'!C9*'Volume Import'!$H$14*(1+'Volume Import'!$H$15)*(1-'Volume Import'!$H$16) -> 105 | N18: =IF(AND('Volume Import'!D9=0,'Volume Import'!C9=0),0, IF('Volume Import'!D9=0,INDEX('Volume Import'!$K$2:$Q$5,MATCH(I18,'Volume Import'!$R$2:$R$5,0),MATCH(F18,'Volume Import'!$K$1:$Q$1,0)), 'Volume Import'!D9/'Volume Import'!C9)) -> 0.06666666667 | P18: ='Volume Import'!E9*'Volume Import'!$I$14*(1+'Volume Import'!$I$15)*(1-'Volume Import'!$I$16) -> 141 | Q18: =IF('Volume Import'!F9=0,N18,'Volume Import'!F9/'Volume Import'!E9) -> 0.04964539007 | S18: =IF(K18="TRUE 1",IF(I18="NT",Inputs!$C$35,Inputs!$C$34), IF(K18="TRUE 2",IF(I18="NT",Inputs!$D$35,Inputs!$D$34), IF(K18="TRUE 3",IF(I18="NT",Inputs!$E$35,Inputs!$E$34), IF(K18="TRUE 4",IF(I18="NT",Inputs!$F$35,Inputs!$F$34), S17)))) -> 0 | T18: =IF(K18="TRUE 1",IF(I18="NT",MROUND(Inputs!$C$32*$T$3*(1/(1+N18*(2-1))),1),MROUND(Inputs!$C$30*$T$3*(1/(1+N18*(2-1))),1)), IF(K18="TRUE 2",IF(I18="NT",MROUND(Inputs!$D$32*$U$3*(1/(1+N18*(2-1))),1),MROUND(Inputs!$D$30*$U$3*(1/(1+N18*(2-1))),1)), IF(K18="TRUE 3",IF(I18="NT",MROUND(Inputs!$E$32*$V$3*(1/(1+N18*(2-1))),1),MROUND(Inputs!$E$30*$V$3*(1/(1+N18*(2-1))),1)), IF(K18="TRUE 4",IF(I18="NT",MROUND(Inputs!$F$32*$W$3*(1/(1+N18*(2-1))),1),MROUND(Inputs!$F$30*$W$3*(1/(1+N18*(2-1))),1)), MROUND(Inputs!$C$15*(1/(1+N18*(2-1)))*($T$3+$T$4),1))))) -> 6750 | U18: -6645 | V18: 0 | W18: =(V18/(1/(1+N18*(2-1))))*S18/LEFT(Inputs!$C$18,1)/5280 -> 0 | X18: 0 | Y18: =((X18/60)*((Inputs!$C$13*V18*(1-N18))+(Inputs!$C$14*V18*N18))) -> 0 | Z18: =IF(V18>0,($N$5/60)*(((M18*$N$3/(1-$N$3))*(1-N18)*Inputs!$C$13)+((M18*$N$3/(1-$N$3))*N18*Inputs!$C$14)),0) -> 0 | AA18: 0 | AC18: 2019-01-01T07:00:00 | AF18: =IF(AND(AD18<>"",AE18<>""),MAX(INDIRECT(AD18):INDIRECT(AE18)),"") ->  | AJ18: =IF(K18="TRUE 1",IF(I18="NT",MROUND(Inputs!$C$32*$AJ$3*(1/(1+Q18*(2-1))),1),MROUND(Inputs!$C$30*$AJ$3*(1/(1+Q18*(2-1))),1)), IF(K18="TRUE 2",IF(I18="NT",MROUND(Inputs!$D$32*$AK$3*(1/(1+Q18*(2-1))),1),MROUND(Inputs!$D$30*$AK$3*(1/(1+Q18*(2-1))),1)), IF(K18="TRUE 3",IF(I18="NT",MROUND(Inputs!$E$32*$AL$3*(1/(1+Q18*(2-1))),1),MROUND(Inputs!$E$30*$AL$3*(1/(1+Q18*(2-1))),1)), IF(K18="TRUE 4",IF(I18="NT",MROUND(Inputs!$F$32*$AM$3*(1/(1+Q18*(2-1))),1),MROUND(Inputs!$F$30*$AM$3*(1/(1+Q18*(2-1))),1)), MROUND(Inputs!$C$15*(1/(1+Q18*(2-1)))*($AJ$3+$AJ$4),1))))) -> 6859 | AK18: -6718 | AL18: 0 | AM18: =(AL18/(1/(1+Q18*(2-1))))*S18/LEFT(Inputs!$C$18,1)/5280 -> 0 | AN18: 0 | AO18: =(AN18/60)*((Inputs!$C$13*AL18*(1-Q18))+(Inputs!$C$14*AL18*Q18)) -> 0 | AP18: =IF(AL18>0,($Q$5/60)*(((P18*$Q$3/(1-$Q$3))*(1-Q18)*Inputs!$C$13)+((P18*$Q$3/(1-$Q$3))*Q18*Inputs!$C$14)),0) -> 0 | AQ18: 0 | AS18: 2019-01-01T07:00:00 | AV18: =IF(AND(AT18<>"",AU18<>""),MAX(INDIRECT(AT18):INDIRECT(AU18)),"") -> 
A19: 2019-01-01 | B19: January | C19: 1 | D19: January-1-8 | E19: 3 | F19: Tuesday | G19: 08:00:00 | H19: 8 | I19: =INDEX(Lists!$R$3:$R$26,MATCH(Calculations!G19,Lists!$Q$3:$Q$26,0)) -> AM | J19: 56 | K19: =IF(INDEX(Inputs!$H$86:$H$253,MATCH(J19,Inputs!$D$86:$D$253,0)),"TRUE 4", IF(INDEX(Inputs!$G$86:$G$253,MATCH(J19,Inputs!$D$86:$D$253,0)),"TRUE 3", IF(INDEX(Inputs!$F$86:$F$253,MATCH(J19,Inputs!$D$86:$D$253,0)),"TRUE 2", IF(INDEX(Inputs!$E$86:$E$253,MATCH(J19,Inputs!$D$86:$D$253,0)),"TRUE 1", FALSE)))) -> FALSE | M19: ='Volume Import'!C10*'Volume Import'!$H$14*(1+'Volume Import'!$H$15)*(1-'Volume Import'!$H$16) -> 190 | N19: =IF(AND('Volume Import'!D10=0,'Volume Import'!C10=0),0, IF('Volume Import'!D10=0,INDEX('Volume Import'!$K$2:$Q$5,MATCH(I19,'Volume Import'!$R$2:$R$5,0),MATCH(F19,'Volume Import'!$K$1:$Q$1,0)), 'Volume Import'!D10/'Volume Import'!C10)) -> 0.06842105263 | P19: ='Volume Import'!E10*'Volume Import'!$I$14*(1+'Volume Import'!$I$15)*(1-'Volume Import'!$I$16) -> 252 | Q19: =IF('Volume Import'!F10=0,N19,'Volume Import'!F10/'Volume Import'!E10) -> 0.04761904762 | S19: =IF(K19="TRUE 1",IF(I19="NT",Inputs!$C$35,Inputs!$C$34), IF(K19="TRUE 2",IF(I19="NT",Inputs!$D$35,Inputs!$D$34), IF(K19="TRUE 3",IF(I19="NT",Inputs!$E$35,Inputs!$E$34), IF(K19="TRUE 4",IF(I19="NT",Inputs!$F$35,Inputs!$F$34), S18)))) -> 0 | T19: =IF(K19="TRUE 1",IF(I19="NT",MROUND(Inputs!$C$32*$T$3*(1/(1+N19*(2-1))),1),MROUND(Inputs!$C$30*$T$3*(1/(1+N19*(2-1))),1)), IF(K19="TRUE 2",IF(I19="NT",MROUND(Inputs!$D$32*$U$3*(1/(1+N19*(2-1))),1),MROUND(Inputs!$D$30*$U$3*(1/(1+N19*(2-1))),1)), IF(K19="TRUE 3",IF(I19="NT",MROUND(Inputs!$E$32*$V$3*(1/(1+N19*(2-1))),1),MROUND(Inputs!$E$30*$V$3*(1/(1+N19*(2-1))),1)), IF(K19="TRUE 4",IF(I19="NT",MROUND(Inputs!$F$32*$W$3*(1/(1+N19*(2-1))),1),MROUND(Inputs!$F$30*$W$3*(1/(1+N19*(2-1))),1)), MROUND(Inputs!$C$15*(1/(1+N19*(2-1)))*($T$3+$T$4),1))))) -> 6739 | U19: -6549 | V19: 0 | W19: =(V19/(1/(1+N19*(2-1))))*S19/LEFT(Inputs!$C$18,1)/5280 -> 0 | X19: 0 | Y19: =((X19/60)*((Inputs!$C$13*V19*(1-N19))+(Inputs!$C$14*V19*N19))) -> 0 | Z19: =IF(V19>0,($N$5/60)*(((M19*$N$3/(1-$N$3))*(1-N19)*Inputs!$C$13)+((M19*$N$3/(1-$N$3))*N19*Inputs!$C$14)),0) -> 0 | AA19: 0 | AC19: 2019-01-01T08:00:00 | AF19: =IF(AND(AD19<>"",AE19<>""),MAX(INDIRECT(AD19):INDIRECT(AE19)),"") ->  | AJ19: =IF(K19="TRUE 1",IF(I19="NT",MROUND(Inputs!$C$32*$AJ$3*(1/(1+Q19*(2-1))),1),MROUND(Inputs!$C$30*$AJ$3*(1/(1+Q19*(2-1))),1)), IF(K19="TRUE 2",IF(I19="NT",MROUND(Inputs!$D$32*$AK$3*(1/(1+Q19*(2-1))),1),MROUND(Inputs!$D$30*$AK$3*(1/(1+Q19*(2-1))),1)), IF(K19="TRUE 3",IF(I19="NT",MROUND(Inputs!$E$32*$AL$3*(1/(1+Q19*(2-1))),1),MROUND(Inputs!$E$30*$AL$3*(1/(1+Q19*(2-1))),1)), IF(K19="TRUE 4",IF(I19="NT",MROUND(Inputs!$F$32*$AM$3*(1/(1+Q19*(2-1))),1),MROUND(Inputs!$F$30*$AM$3*(1/(1+Q19*(2-1))),1)), MROUND(Inputs!$C$15*(1/(1+Q19*(2-1)))*($AJ$3+$AJ$4),1))))) -> 6873 | AK19: -6621 | AL19: 0 | AM19: =(AL19/(1/(1+Q19*(2-1))))*S19/LEFT(Inputs!$C$18,1)/5280 -> 0 | AN19: 0 | AO19: =(AN19/60)*((Inputs!$C$13*AL19*(1-Q19))+(Inputs!$C$14*AL19*Q19)) -> 0 | AP19: =IF(AL19>0,($Q$5/60)*(((P19*$Q$3/(1-$Q$3))*(1-Q19)*Inputs!$C$13)+((P19*$Q$3/(1-$Q$3))*Q19*Inputs!$C$14)),0) -> 0 | AQ19: 0 | AS19: 2019-01-01T08:00:00 | AV19: =IF(AND(AT19<>"",AU19<>""),MAX(INDIRECT(AT19):INDIRECT(AU19)),"") -> 
A20: 2019-01-01 | B20: January | C20: 1 | D20: January-1-9 | E20: 3 | F20: Tuesday | G20: 09:00:00 | H20: 9 | I20: =INDEX(Lists!$R$3:$R$26,MATCH(Calculations!G20,Lists!$Q$3:$Q$26,0)) -> MD | J20: 57 | K20: =IF(INDEX(Inputs!$H$86:$H$253,MATCH(J20,Inputs!$D$86:$D$253,0)),"TRUE 4", IF(INDEX(Inputs!$G$86:$G$253,MATCH(J20,Inputs!$D$86:$D$253,0)),"TRUE 3", IF(INDEX(Inputs!$F$86:$F$253,MATCH(J20,Inputs!$D$86:$D$253,0)),"TRUE 2", IF(INDEX(Inputs!$E$86:$E$253,MATCH(J20,Inputs!$D$86:$D$253,0)),"TRUE 1", FALSE)))) -> TRUE 1 | M20: ='Volume Import'!C11*'Volume Import'!$H$14*(1+'Volume Import'!$H$15)*(1-'Volume Import'!$H$16) -> 271 | N20: =IF(AND('Volume Import'!D11=0,'Volume Import'!C11=0),0, IF('Volume Import'!D11=0,INDEX('Volume Import'!$K$2:$Q$5,MATCH(I20,'Volume Import'!$R$2:$R$5,0),MATCH(F20,'Volume Import'!$K$1:$Q$1,0)), 'Volume Import'!D11/'Volume Import'!C11)) -> 0.0442804428 | P20: ='Volume Import'!E11*'Volume Import'!$I$14*(1+'Volume Import'!$I$15)*(1-'Volume Import'!$I$16) -> 338 | Q20: =IF('Volume Import'!F11=0,N20,'Volume Import'!F11/'Volume Import'!E11) -> 0.02366863905 | S20: =IF(K20="TRUE 1",IF(I20="NT",Inputs!$C$35,Inputs!$C$34), IF(K20="TRUE 2",IF(I20="NT",Inputs!$D$35,Inputs!$D$34), IF(K20="TRUE 3",IF(I20="NT",Inputs!$E$35,Inputs!$E$34), IF(K20="TRUE 4",IF(I20="NT",Inputs!$F$35,Inputs!$F$34), S19)))) -> 54.62255796 | T20: =IF(K20="TRUE 1",IF(I20="NT",MROUND(Inputs!$C$32*$T$3*(1/(1+N20*(2-1))),1),MROUND(Inputs!$C$30*$T$3*(1/(1+N20*(2-1))),1)), IF(K20="TRUE 2",IF(I20="NT",MROUND(Inputs!$D$32*$U$3*(1/(1+N20*(2-1))),1),MROUND(Inputs!$D$30*$U$3*(1/(1+N20*(2-1))),1)), IF(K20="TRUE 3",IF(I20="NT",MROUND(Inputs!$E$32*$V$3*(1/(1+N20*(2-1))),1),MROUND(Inputs!$E$30*$V$3*(1/(1+N20*(2-1))),1)), IF(K20="TRUE 4",IF(I20="NT",MROUND(Inputs!$F$32*$W$3*(1/(1+N20*(2-1))),1),MROUND(Inputs!$F$30*$W$3*(1/(1+N20*(2-1))),1)), MROUND(Inputs!$C$15*(1/(1+N20*(2-1)))*($T$3+$T$4),1))))) -> 2777 | U20: -2506 | V20: 0 | W20: =(V20/(1/(1+N20*(2-1))))*S20/LEFT(Inputs!$C$18,1)/5280 -> 0 | X20: 0 | Y20: =((X20/60)*((Inputs!$C$13*V20*(1-N20))+(Inputs!$C$14*V20*N20))) -> 0 | Z20: =IF(V20>0,($N$5/60)*(((M20*$N$3/(1-$N$3))*(1-N20)*Inputs!$C$13)+((M20*$N$3/(1-$N$3))*N20*Inputs!$C$14)),0) -> 0 | AA20: 0 | AC20: 2019-01-01T09:00:00 | AF20: =IF(AND(AD20<>"",AE20<>""),MAX(INDIRECT(AD20):INDIRECT(AE20)),"") ->  | AJ20: =IF(K20="TRUE 1",IF(I20="NT",MROUND(Inputs!$C$32*$AJ$3*(1/(1+Q20*(2-1))),1),MROUND(Inputs!$C$30*$AJ$3*(1/(1+Q20*(2-1))),1)), IF(K20="TRUE 2",IF(I20="NT",MROUND(Inputs!$D$32*$AK$3*(1/(1+Q20*(2-1))),1),MROUND(Inputs!$D$30*$AK$3*(1/(1+Q20*(2-1))),1)), IF(K20="TRUE 3",IF(I20="NT",MROUND(Inputs!$E$32*$AL$3*(1/(1+Q20*(2-1))),1),MROUND(Inputs!$E$30*$AL$3*(1/(1+Q20*(2-1))),1)), IF(K20="TRUE 4",IF(I20="NT",MROUND(Inputs!$F$32*$AM$3*(1/(1+Q20*(2-1))),1),MROUND(Inputs!$F$30*$AM$3*(1/(1+Q20*(2-1))),1)), MROUND(Inputs!$C$15*(1/(1+Q20*(2-1)))*($AJ$3+$AJ$4),1))))) -> 2833 | AK20: -2495 | AL20: 0 | AM20: =(AL20/(1/(1+Q20*(2-1))))*S20/LEFT(Inputs!$C$18,1)/5280 -> 0 | AN20: 0 | AO20: =(AN20/60)*((Inputs!$C$13*AL20*(1-Q20))+(Inputs!$C$14*AL20*Q20)) -> 0 | AP20: =IF(AL20>0,($Q$5/60)*(((P20*$Q$3/(1-$Q$3))*(1-Q20)*Inputs!$C$13)+((P20*$Q$3/(1-$Q$3))*Q20*Inputs!$C$14)),0) -> 0 | AQ20: 0 | AS20: 2019-01-01T09:00:00 | AV20: =IF(AND(AT20<>"",AU20<>""),MAX(INDIRECT(AT20):INDIRECT(AU20)),"") -> 
A21: =A$11 -> 2019-01-01 | B21: January | C21: 1 | D21: January-1-10 | E21: 3 | F21: Tuesday | G21: 10:00:00 | H21: 10 | I21: =INDEX(Lists!$R$3:$R$26,MATCH(Calculations!G21,Lists!$Q$3:$Q$26,0)) -> MD | J21: 58 | K21: =IF(INDEX(Inputs!$H$86:$H$253,MATCH(J21,Inputs!$D$86:$D$253,0)),"TRUE 4", IF(INDEX(Inputs!$G$86:$G$253,MATCH(J21,Inputs!$D$86:$D$253,0)),"TRUE 3", IF(INDEX(Inputs!$F$86:$F$253,MATCH(J21,Inputs!$D$86:$D$253,0)),"TRUE 2", IF(INDEX(Inputs!$E$86:$E$253,MATCH(J21,Inputs!$D$86:$D$253,0)),"TRUE 1", FALSE)))) -> TRUE 1 | M21: ='Volume Import'!C12*'Volume Import'!$H$14*(1+'Volume Import'!$H$15)*(1-'Volume Import'!$H$16) -> 399 | N21: =IF(AND('Volume Import'!D12=0,'Volume Import'!C12=0),0, IF('Volume Import'!D12=0,INDEX('Volume Import'!$K$2:$Q$5,MATCH(I21,'Volume Import'!$R$2:$R$5,0),MATCH(F21,'Volume Import'!$K$1:$Q$1,0)), 'Volume Import'!D12/'Volume Import'!C12)) -> 0.0350877193 | P21: ='Volume Import'!E12*'Volume Import'!$I$14*(1+'Volume Import'!$I$15)*(1-'Volume Import'!$I$16) -> 408 | Q21: =IF('Volume Import'!F12=0,N21,'Volume Import'!F12/'Volume Import'!E12) -> 0.02941176471 | S21: =IF(K21="TRUE 1",IF(I21="NT",Inputs!$C$35,Inputs!$C$34), IF(K21="TRUE 2",IF(I21="NT",Inputs!$D$35,Inputs!$D$34), IF(K21="TRUE 3",IF(I21="NT",Inputs!$E$35,Inputs!$E$34), IF(K21="TRUE 4",IF(I21="NT",Inputs!$F$35,Inputs!$F$34), S20)))) -> 54.62255796 | T21: =IF(K21="TRUE 1",IF(I21="NT",MROUND(Inputs!$C$32*$T$3*(1/(1+N21*(2-1))),1),MROUND(Inputs!$C$30*$T$3*(1/(1+N21*(2-1))),1)), IF(K21="TRUE 2",IF(I21="NT",MROUND(Inputs!$D$32*$U$3*(1/(1+N21*(2-1))),1),MROUND(Inputs!$D$30*$U$3*(1/(1+N21*(2-1))),1)), IF(K21="TRUE 3",IF(I21="NT",MROUND(Inputs!$E$32*$V$3*(1/(1+N21*(2-1))),1),MROUND(Inputs!$E$30*$V$3*(1/(1+N21*(2-1))),1)), IF(K21="TRUE 4",IF(I21="NT",MROUND(Inputs!$F$32*$W$3*(1/(1+N21*(2-1))),1),MROUND(Inputs!$F$30*$W$3*(1/(1+N21*(2-1))),1)), MROUND(Inputs!$C$15*(1/(1+N21*(2-1)))*($T$3+$T$4),1))))) -> 2802 | U21: -2403 | V21: 0 | W21: =(V21/(1/(1+N21*(2-1))))*S21/LEFT(Inputs!$C$18,1)/5280 -> 0 | X21: 0 | Y21: =((X21/60)*((Inputs!$C$13*V21*(1-N21))+(Inputs!$C$14*V21*N21))) -> 0 | Z21: =IF(V21>0,($N$5/60)*(((M21*$N$3/(1-$N$3))*(1-N21)*Inputs!$C$13)+((M21*$N$3/(1-$N$3))*N21*Inputs!$C$14)),0) -> 0 | AA21: 0 | AC21: 2019-01-01T10:00:00 | AF21: =IF(AND(AD21<>"",AE21<>""),MAX(INDIRECT(AD21):INDIRECT(AE21)),"") ->  | AJ21: =IF(K21="TRUE 1",IF(I21="NT",MROUND(Inputs!$C$32*$AJ$3*(1/(1+Q21*(2-1))),1),MROUND(Inputs!$C$30*$AJ$3*(1/(1+Q21*(2-1))),1)), IF(K21="TRUE 2",IF(I21="NT",MROUND(Inputs!$D$32*$AK$3*(1/(1+Q21*(2-1))),1),MROUND(Inputs!$D$30*$AK$3*(1/(1+Q21*(2-1))),1)), IF(K21="TRUE 3",IF(I21="NT",MROUND(Inputs!$E$32*$AL$3*(1/(1+Q21*(2-1))),1),MROUND(Inputs!$E$30*$AL$3*(1/(1+Q21*(2-1))),1)), IF(K21="TRUE 4",IF(I21="NT",MROUND(Inputs!$F$32*$AM$3*(1/(1+Q21*(2-1))),1),MROUND(Inputs!$F$30*$AM$3*(1/(1+Q21*(2-1))),1)), MROUND(Inputs!$C$15*(1/(1+Q21*(2-1)))*($AJ$3+$AJ$4),1))))) -> 2817 | AK21: -2409 | AL21: 0 | AM21: =(AL21/(1/(1+Q21*(2-1))))*S21/LEFT(Inputs!$C$18,1)/5280 -> 0 | AN21: 0 | AO21: =(AN21/60)*((Inputs!$C$13*AL21*(1-Q21))+(Inputs!$C$14*AL21*Q21)) -> 0 | AP21: =IF(AL21>0,($Q$5/60)*(((P21*$Q$3/(1-$Q$3))*(1-Q21)*Inputs!$C$13)+((P21*$Q$3/(1-$Q$3))*Q21*Inputs!$C$14)),0) -> 0 | AQ21: 0 | AS21: 2019-01-01T10:00:00 | AV21: =IF(AND(AT21<>"",AU21<>""),MAX(INDIRECT(AT21):INDIRECT(AU21)),"") -> 
A22: 2019-01-01 | B22: January | C22: 1 | D22: January-1-11 | E22: 3 | F22: Tuesday | G22: 11:00:00 | H22: 11 | I22: =INDEX(Lists!$R$3:$R$26,MATCH(Calculations!G22,Lists!$Q$3:$Q$26,0)) -> MD | J22: 59 | K22: =IF(INDEX(Inputs!$H$86:$H$253,MATCH(J22,Inputs!$D$86:$D$253,0)),"TRUE 4", IF(INDEX(Inputs!$G$86:$G$253,MATCH(J22,Inputs!$D$86:$D$253,0)),"TRUE 3", IF(INDEX(Inputs!$F$86:$F$253,MATCH(J22,Inputs!$D$86:$D$253,0)),"TRUE 2", IF(INDEX(Inputs!$E$86:$E$253,MATCH(J22,Inputs!$D$86:$D$253,0)),"TRUE 1", FALSE)))) -> TRUE 1 | M22: ='Volume Import'!C13*'Volume Import'!$H$14*(1+'Volume Import'!$H$15)*(1-'Volume Import'!$H$16) -> 491 | N22: =IF(AND('Volume Import'!D13=0,'Volume Import'!C13=0),0, IF('Volume Import'!D13=0,INDEX('Volume Import'!$K$2:$Q$5,MATCH(I22,'Volume Import'!$R$2:$R$5,0),MATCH(F22,'Volume Import'!$K$1:$Q$1,0)), 'Volume Import'!D13/'Volume Import'!C13)) -> 0.02851323829 | P22: ='Volume Import'!E13*'Volume Import'!$I$14*(1+'Volume Import'!$I$15)*(1-'Volume Import'!$I$16) -> 554 | Q22: =IF('Volume Import'!F13=0,N22,'Volume Import'!F13/'Volume Import'!E13) -> 0.01624548736 | S22: =IF(K22="TRUE 1",IF(I22="NT",Inputs!$C$35,Inputs!$C$34), IF(K22="TRUE 2",IF(I22="NT",Inputs!$D$35,Inputs!$D$34), IF(K22="TRUE 3",IF(I22="NT",Inputs!$E$35,Inputs!$E$34), IF(K22="TRUE 4",IF(I22="NT",Inputs!$F$35,Inputs!$F$34), S21)))) -> 54.62255796 | T22: =IF(K22="TRUE 1",IF(I22="NT",MROUND(Inputs!$C$32*$T$3*(1/(1+N22*(2-1))),1),MROUND(Inputs!$C$30*$T$3*(1/(1+N22*(2-1))),1)), IF(K22="TRUE 2",IF(I22="NT",MROUND(Inputs!$D$32*$U$3*(1/(1+N22*(2-1))),1),MROUND(Inputs!$D$30*$U$3*(1/(1+N22*(2-1))),1)), IF(K22="TRUE 3",IF(I22="NT",MROUND(Inputs!$E$32*$V$3*(1/(1+N22*(2-1))),1),MROUND(Inputs!$E$30*$V$3*(1/(1+N22*(2-1))),1)), IF(K22="TRUE 4",IF(I22="NT",MROUND(Inputs!$F$32*$W$3*(1/(1+N22*(2-1))),1),MROUND(Inputs!$F$30*$W$3*(1/(1+N22*(2-1))),1)), MROUND(Inputs!$C$15*(1/(1+N22*(2-1)))*($T$3+$T$4),1))))) -> 2820 | U22: -2329 | V22: 0 | W22: =(V22/(1/(1+N22*(2-1))))*S22/LEFT(Inputs!$C$18,1)/5280 -> 0 | X22: 0 | Y22: =((X22/60)*((Inputs!$C$13*V22*(1-N22))+(Inputs!$C$14*V22*N22))) -> 0 | Z22: =IF(V22>0,($N$5/60)*(((M22*$N$3/(1-$N$3))*(1-N22)*Inputs!$C$13)+((M22*$N$3/(1-$N$3))*N22*Inputs!$C$14)),0) -> 0 | AA22: 0 | AC22: 2019-01-01T11:00:00 | AF22: =IF(AND(AD22<>"",AE22<>""),MAX(INDIRECT(AD22):INDIRECT(AE22)),"") ->  | AJ22: =IF(K22="TRUE 1",IF(I22="NT",MROUND(Inputs!$C$32*$AJ$3*(1/(1+Q22*(2-1))),1),MROUND(Inputs!$C$30*$AJ$3*(1/(1+Q22*(2-1))),1)), IF(K22="TRUE 2",IF(I22="NT",MROUND(Inputs!$D$32*$AK$3*(1/(1+Q22*(2-1))),1),MROUND(Inputs!$D$30*$AK$3*(1/(1+Q22*(2-1))),1)), IF(K22="TRUE 3",IF(I22="NT",MROUND(Inputs!$E$32*$AL$3*(1/(1+Q22*(2-1))),1),MROUND(Inputs!$E$30*$AL$3*(1/(1+Q22*(2-1))),1)), IF(K22="TRUE 4",IF(I22="NT",MROUND(Inputs!$F$32*$AM$3*(1/(1+Q22*(2-1))),1),MROUND(Inputs!$F$30*$AM$3*(1/(1+Q22*(2-1))),1)), MROUND(Inputs!$C$15*(1/(1+Q22*(2-1)))*($AJ$3+$AJ$4),1))))) -> 2854 | AK22: -2300 | AL22: 0 | AM22: =(AL22/(1/(1+Q22*(2-1))))*S22/LEFT(Inputs!$C$18,1)/5280 -> 0 | AN22: 0 | AO22: =(AN22/60)*((Inputs!$C$13*AL22*(1-Q22))+(Inputs!$C$14*AL22*Q22)) -> 0 | AP22: =IF(AL22>0,($Q$5/60)*(((P22*$Q$3/(1-$Q$3))*(1-Q22)*Inputs!$C$13)+((P22*$Q$3/(1-$Q$3))*Q22*Inputs!$C$14)),0) -> 0 | AQ22: 0 | AS22: 2019-01-01T11:00:00 | AV22: =IF(AND(AT22<>"",AU22<>""),MAX(INDIRECT(AT22):INDIRECT(AU22)),"") -> 
A23: 2019-01-01 | B23: January | C23: 1 | D23: January-1-12 | E23: 3 | F23: Tuesday | G23: 12:00:00 | H23: 12 | I23: =INDEX(Lists!$R$3:$R$26,MATCH(Calculations!G23,Lists!$Q$3:$Q$26,0)) -> MD | J23: 60 | K23: =IF(INDEX(Inputs!$H$86:$H$253,MATCH(J23,Inputs!$D$86:$D$253,0)),"TRUE 4", IF(INDEX(Inputs!$G$86:$G$253,MATCH(J23,Inputs!$D$86:$D$253,0)),"TRUE 3", IF(INDEX(Inputs!$F$86:$F$253,MATCH(J23,Inputs!$D$86:$D$253,0)),"TRUE 2", IF(INDEX(Inputs!$E$86:$E$253,MATCH(J23,Inputs!$D$86:$D$253,0)),"TRUE 1", FALSE)))) -> TRUE 1 | M23: ='Volume Import'!C14*'Volume Import'!$H$14*(1+'Volume Import'!$H$15)*(1-'Volume Import'!$H$16) -> 492 | N23: =IF(AND('Volume Import'!D14=0,'Volume Import'!C14=0),0, IF('Volume Import'!D14=0,INDEX('Volume Import'!$K$2:$Q$5,MATCH(I23,'Volume Import'!$R$2:$R$5,0),MATCH(F23,'Volume Import'!$K$1:$Q$1,0)), 'Volume Import'!D14/'Volume Import'!C14)) -> 0.0325203252 | P23: ='Volume Import'!E14*'Volume Import'!$I$14*(1+'Volume Import'!$I$15)*(1-'Volume Import'!$I$16) -> 540 | Q23: =IF('Volume Import'!F14=0,N23,'Volume Import'!F14/'Volume Import'!E14) -> 0.02037037037 | S23: =IF(K23="TRUE 1",IF(I23="NT",Inputs!$C$35,Inputs!$C$34), IF(K23="TRUE 2",IF(I23="NT",Inputs!$D$35,Inputs!$D$34), IF(K23="TRUE 3",IF(I23="NT",Inputs!$E$35,Inputs!$E$34), IF(K23="TRUE 4",IF(I23="NT",Inputs!$F$35,Inputs!$F$34), S22)))) -> 54.62255796 | T23: =IF(K23="TRUE 1",IF(I23="NT",MROUND(Inputs!$C$32*$T$3*(1/(1+N23*(2-1))),1),MROUND(Inputs!$C$30*$T$3*(1/(1+N23*(2-1))),1)), IF(K23="TRUE 2",IF(I23="NT",MROUND(Inputs!$D$32*$U$3*(1/(1+N23*(2-1))),1),MROUND(Inputs!$D$30*$U$3*(1/(1+N23*(2-1))),1)), IF(K23="TRUE 3",IF(I23="NT",MROUND(Inputs!$E$32*$V$3*(1/(1+N23*(2-1))),1),MROUND(Inputs!$E$30*$V$3*(1/(1+N23*(2-1))),1)), IF(K23="TRUE 4",IF(I23="NT",MROUND(Inputs!$F$32*$W$3*(1/(1+N23*(2-1))),1),MROUND(Inputs!$F$30*$W$3*(1/(1+N23*(2-1))),1)), MROUND(Inputs!$C$15*(1/(1+N23*(2-1)))*($T$3+$T$4),1))))) -> 2809 | U23: -2317 | V23: 0 | W23: =(V23/(1/(1+N23*(2-1))))*S23/LEFT(Inputs!$C$18,1)/5280 -> 0 | X23: 0 | Y23: =((X23/60)*((Inputs!$C$13*V23*(1-N23))+(Inputs!$C$14*V23*N23))) -> 0 | Z23: =IF(V23>0,($N$5/60)*(((M23*$N$3/(1-$N$3))*(1-N23)*Inputs!$C$13)+((M23*$N$3/(1-$N$3))*N23*Inputs!$C$14)),0) -> 0 | AA23: 0 | AC23: 2019-01-01T12:00:00 | AF23: =IF(AND(AD23<>"",AE23<>""),MAX(INDIRECT(AD23):INDIRECT(AE23)),"") ->  | AJ23: =IF(K23="TRUE 1",IF(I23="NT",MROUND(Inputs!$C$32*$AJ$3*(1/(1+Q23*(2-1))),1),MROUND(Inputs!$C$30*$AJ$3*(1/(1+Q23*(2-1))),1)), IF(K23="TRUE 2",IF(I23="NT",MROUND(Inputs!$D$32*$AK$3*(1/(1+Q23*(2-1))),1),MROUND(Inputs!$D$30*$AK$3*(1/(1+Q23*(2-1))),1)), IF(K23="TRUE 3",IF(I23="NT",MROUND(Inputs!$E$32*$AL$3*(1/(1+Q23*(2-1))),1),MROUND(Inputs!$E$30*$AL$3*(1/(1+Q23*(2-1))),1)), IF(K23="TRUE 4",IF(I23="NT",MROUND(Inputs!$F$32*$AM$3*(1/(1+Q23*(2-1))),1),MROUND(Inputs!$F$30*$AM$3*(1/(1+Q23*(2-1))),1)), MROUND(Inputs!$C$15*(1/(1+Q23*(2-1)))*($AJ$3+$AJ$4),1))))) -> 2842 | AK23: -2302 | AL23: 0 | AM23: =(AL23/(1/(1+Q23*(2-1))))*S23/LEFT(Inputs!$C$18,1)/5280 -> 0 | AN23: 0 | AO23: =(AN23/60)*((Inputs!$C$13*AL23*(1-Q23))+(Inputs!$C$14*AL23*Q23)) -> 0 | AP23: =IF(AL23>0,($Q$5/60)*(((P23*$Q$3/(1-$Q$3))*(1-Q23)*Inputs!$C$13)+((P23*$Q$3/(1-$Q$3))*Q23*Inputs!$C$14)),0) -> 0 | AQ23: 0 | AS23: 2019-01-01T12:00:00 | AV23: =IF(AND(AT23<>"",AU23<>""),MAX(INDIRECT(AT23):INDIRECT(AU23)),"") -> 
A24: 2019-01-01 | B24: January | C24: 1 | D24: January-1-13 | E24: 3 | F24: Tuesday | G24: 13:00:00 | H24: 13 | I24: =INDEX(Lists!$R$3:$R$26,MATCH(Calculations!G24,Lists!$Q$3:$Q$26,0)) -> MD | J24: 61 | K24: =IF(INDEX(Inputs!$H$86:$H$253,MATCH(J24,Inputs!$D$86:$D$253,0)),"TRUE 4", IF(INDEX(Inputs!$G$86:$G$253,MATCH(J24,Inputs!$D$86:$D$253,0)),"TRUE 3", IF(INDEX(Inputs!$F$86:$F$253,MATCH(J24,Inputs!$D$86:$D$253,0)),"TRUE 2", IF(INDEX(Inputs!$E$86:$E$253,MATCH(J24,Inputs!$D$86:$D$253,0)),"TRUE 1", FALSE)))) -> TRUE 1 | M24: ='Volume Import'!C15*'Volume Import'!$H$14*(1+'Volume Import'!$H$15)*(1-'Volume Import'!$H$16) -> 574 | N24: =IF(AND('Volume Import'!D15=0,'Volume Import'!C15=0),0, IF('Volume Import'!D15=0,INDEX('Volume Import'!$K$2:$Q$5,MATCH(I24,'Volume Import'!$R$2:$R$5,0),MATCH(F24,'Volume Import'!$K$1:$Q$1,0)), 'Volume Import'!D15/'Volume Import'!C15)) -> 0.02264808362 | P24: ='Volume Import'!E15*'Volume Import'!$I$14*(1+'Volume Import'!$I$15)*(1-'Volume Import'!$I$16) -> 552 | Q24: =IF('Volume Import'!F15=0,N24,'Volume Import'!F15/'Volume Import'!E15) -> 0.01268115942 | S24: =IF(K24="TRUE 1",IF(I24="NT",Inputs!$C$35,Inputs!$C$34), IF(K24="TRUE 2",IF(I24="NT",Inputs!$D$35,Inputs!$D$34), IF(K24="TRUE 3",IF(I24="NT",Inputs!$E$35,Inputs!$E$34), IF(K24="TRUE 4",IF(I24="NT",Inputs!$F$35,Inputs!$F$34), S23)))) -> 54.62255796 | T24: =IF(K24="TRUE 1",IF(I24="NT",MROUND(Inputs!$C$32*$T$3*(1/(1+N24*(2-1))),1),MROUND(Inputs!$C$30*$T$3*(1/(1+N24*(2-1))),1)), IF(K24="TRUE 2",IF(I24="NT",MROUND(Inputs!$D$32*$U$3*(1/(1+N24*(2-1))),1),MROUND(Inputs!$D$30*$U$3*(1/(1+N24*(2-1))),1)), IF(K24="TRUE 3",IF(I24="NT",MROUND(Inputs!$E$32*$V$3*(1/(1+N24*(2-1))),1),MROUND(Inputs!$E$30*$V$3*(1/(1+N24*(2-1))),1)), IF(K24="TRUE 4",IF(I24="NT",MROUND(Inputs!$F$32*$W$3*(1/(1+N24*(2-1))),1),MROUND(Inputs!$F$30*$W$3*(1/(1+N24*(2-1))),1)), MROUND(Inputs!$C$15*(1/(1+N24*(2-1)))*($T$3+$T$4),1))))) -> 2836 | U24: -2262 | V24: 0 | W24: =(V24/(1/(1+N24*(2-1))))*S24/LEFT(Inputs!$C$18,1)/5280 -> 0 | X24: 0 | Y24: =((X24/60)*((Inputs!$C$13*V24*(1-N24))+(Inputs!$C$14*V24*N24))) -> 0 | Z24: =IF(V24>0,($N$5/60)*(((M24*$N$3/(1-$N$3))*(1-N24)*Inputs!$C$13)+((M24*$N$3/(1-$N$3))*N24*Inputs!$C$14)),0) -> 0 | AA24: 0 | AC24: 2019-01-01T13:00:00 | AF24: =IF(AND(AD24<>"",AE24<>""),MAX(INDIRECT(AD24):INDIRECT(AE24)),"") ->  | AJ24: =IF(K24="TRUE 1",IF(I24="NT",MROUND(Inputs!$C$32*$AJ$3*(1/(1+Q24*(2-1))),1),MROUND(Inputs!$C$30*$AJ$3*(1/(1+Q24*(2-1))),1)), IF(K24="TRUE 2",IF(I24="NT",MROUND(Inputs!$D$32*$AK$3*(1/(1+Q24*(2-1))),1),MROUND(Inputs!$D$30*$AK$3*(1/(1+Q24*(2-1))),1)), IF(K24="TRUE 3",IF(I24="NT",MROUND(Inputs!$E$32*$AL$3*(1/(1+Q24*(2-1))),1),MROUND(Inputs!$E$30*$AL$3*(1/(1+Q24*(2-1))),1)), IF(K24="TRUE 4",IF(I24="NT",MROUND(Inputs!$F$32*$AM$3*(1/(1+Q24*(2-1))),1),MROUND(Inputs!$F$30*$AM$3*(1/(1+Q24*(2-1))),1)), MROUND(Inputs!$C$15*(1/(1+Q24*(2-1)))*($AJ$3+$AJ$4),1))))) -> 2864 | AK24: -2312 | AL24: 0 | AM24: =(AL24/(1/(1+Q24*(2-1))))*S24/LEFT(Inputs!$C$18,1)/5280 -> 0 | AN24: 0 | AO24: =(AN24/60)*((Inputs!$C$13*AL24*(1-Q24))+(Inputs!$C$14*AL24*Q24)) -> 0 | AP24: =IF(AL24>0,($Q$5/60)*(((P24*$Q$3/(1-$Q$3))*(1-Q24)*Inputs!$C$13)+((P24*$Q$3/(1-$Q$3))*Q24*Inputs!$C$14)),0) -> 0 | AQ24: 0 | AS24: 2019-01-01T13:00:00 | AV24: =IF(AND(AT24<>"",AU24<>""),MAX(INDIRECT(AT24):INDIRECT(AU24)),"") -> 
A25: 2019-01-01 | B25: January | C25: 1 | D25: January-1-14 | E25: 3 | F25: Tuesday | G25: 14:00:00 | H25: 14 | I25: =INDEX(Lists!$R$3:$R$26,MATCH(Calculations!G25,Lists!$Q$3:$Q$26,0)) -> MD | J25: 62 | K25: =IF(INDEX(Inputs!$H$86:$H$253,MATCH(J25,Inputs!$D$86:$D$253,0)),"TRUE 4", IF(INDEX(Inputs!$G$86:$G$253,MATCH(J25,Inputs!$D$86:$D$253,0)),"TRUE 3", IF(INDEX(Inputs!$F$86:$F$253,MATCH(J25,Inputs!$D$86:$D$253,0)),"TRUE 2", IF(INDEX(Inputs!$E$86:$E$253,MATCH(J25,Inputs!$D$86:$D$253,0)),"TRUE 1", FALSE)))) -> FALSE | M25: ='Volume Import'!C16*'Volume Import'!$H$14*(1+'Volume Import'!$H$15)*(1-'Volume Import'!$H$16) -> 589 | N25: =IF(AND('Volume Import'!D16=0,'Volume Import'!C16=0),0, IF('Volume Import'!D16=0,INDEX('Volume Import'!$K$2:$Q$5,MATCH(I25,'Volume Import'!$R$2:$R$5,0),MATCH(F25,'Volume Import'!$K$1:$Q$1,0)), 'Volume Import'!D16/'Volume Import'!C16)) -> 0.02716468591 | P25: ='Volume Import'!E16*'Volume Import'!$I$14*(1+'Volume Import'!$I$15)*(1-'Volume Import'!$I$16) -> 469 | Q25: =IF('Volume Import'!F16=0,N25,'Volume Import'!F16/'Volume Import'!E16) -> 0.03624733475 | S25: =IF(K25="TRUE 1",IF(I25="NT",Inputs!$C$35,Inputs!$C$34), IF(K25="TRUE 2",IF(I25="NT",Inputs!$D$35,Inputs!$D$34), IF(K25="TRUE 3",IF(I25="NT",Inputs!$E$35,Inputs!$E$34), IF(K25="TRUE 4",IF(I25="NT",Inputs!$F$35,Inputs!$F$34), S24)))) -> 54.62255796 | T25: =IF(K25="TRUE 1",IF(I25="NT",MROUND(Inputs!$C$32*$T$3*(1/(1+N25*(2-1))),1),MROUND(Inputs!$C$30*$T$3*(1/(1+N25*(2-1))),1)), IF(K25="TRUE 2",IF(I25="NT",MROUND(Inputs!$D$32*$U$3*(1/(1+N25*(2-1))),1),MROUND(Inputs!$D$30*$U$3*(1/(1+N25*(2-1))),1)), IF(K25="TRUE 3",IF(I25="NT",MROUND(Inputs!$E$32*$V$3*(1/(1+N25*(2-1))),1),MROUND(Inputs!$E$30*$V$3*(1/(1+N25*(2-1))),1)), IF(K25="TRUE 4",IF(I25="NT",MROUND(Inputs!$F$32*$W$3*(1/(1+N25*(2-1))),1),MROUND(Inputs!$F$30*$W$3*(1/(1+N25*(2-1))),1)), MROUND(Inputs!$C$15*(1/(1+N25*(2-1)))*($T$3+$T$4),1))))) -> 7010 | U25: -6421 | V25: 0 | W25: =(V25/(1/(1+N25*(2-1))))*S25/LEFT(Inputs!$C$18,1)/5280 -> 0 | X25: =V25/T25*60 -> 0 | Y25: =((X25/60)*((Inputs!$C$13*V25*(1-N25))+(Inputs!$C$14*V25*N25))) -> 0 | Z25: =IF(V25>0,($N$5/60)*(((M25*$N$3/(1-$N$3))*(1-N25)*Inputs!$C$13)+((M25*$N$3/(1-$N$3))*N25*Inputs!$C$14)),0) -> 0 | AA25: 0 | AC25: 2019-01-01T14:00:00 | AF25: =IF(AND(AD25<>"",AE25<>""),MAX(INDIRECT(AD25):INDIRECT(AE25)),"") ->  | AJ25: =IF(K25="TRUE 1",IF(I25="NT",MROUND(Inputs!$C$32*$AJ$3*(1/(1+Q25*(2-1))),1),MROUND(Inputs!$C$30*$AJ$3*(1/(1+Q25*(2-1))),1)), IF(K25="TRUE 2",IF(I25="NT",MROUND(Inputs!$D$32*$AK$3*(1/(1+Q25*(2-1))),1),MROUND(Inputs!$D$30*$AK$3*(1/(1+Q25*(2-1))),1)), IF(K25="TRUE 3",IF(I25="NT",MROUND(Inputs!$E$32*$AL$3*(1/(1+Q25*(2-1))),1),MROUND(Inputs!$E$30*$AL$3*(1/(1+Q25*(2-1))),1)), IF(K25="TRUE 4",IF(I25="NT",MROUND(Inputs!$F$32*$AM$3*(1/(1+Q25*(2-1))),1),MROUND(Inputs!$F$30*$AM$3*(1/(1+Q25*(2-1))),1)), MROUND(Inputs!$C$15*(1/(1+Q25*(2-1)))*($AJ$3+$AJ$4),1))))) -> 6948 | AK25: -6479 | AL25: 0 | AM25: =(AL25/(1/(1+Q25*(2-1))))*S25/LEFT(Inputs!$C$18,1)/5280 -> 0 | AN25: 0 | AO25: =(AN25/60)*((Inputs!$C$13*AL25*(1-Q25))+(Inputs!$C$14*AL25*Q25)) -> 0 | AP25: =IF(AL25>0,($Q$5/60)*(((P25*$Q$3/(1-$Q$3))*(1-Q25)*Inputs!$C$13)+((P25*$Q$3/(1-$Q$3))*Q25*Inputs!$C$14)),0) -> 0 | AQ25: 0 | AS25: 2019-01-01T14:00:00 | AV25: =IF(AND(AT25<>"",AU25<>""),MAX(INDIRECT(AT25):INDIRECT(AU25)),"") -> 
A26: 2019-01-01 | B26: January | C26: 1 | D26: January-1-15 | E26: 3 | F26: Tuesday | G26: 15:00:00 | H26: 15 | I26: =INDEX(Lists!$R$3:$R$26,MATCH(Calculations!G26,Lists!$Q$3:$Q$26,0)) -> PM | J26: 63 | K26: =IF(INDEX(Inputs!$H$86:$H$253,MATCH(J26,Inputs!$D$86:$D$253,0)),"TRUE 4", IF(INDEX(Inputs!$G$86:$G$253,MATCH(J26,Inputs!$D$86:$D$253,0)),"TRUE 3", IF(INDEX(Inputs!$F$86:$F$253,MATCH(J26,Inputs!$D$86:$D$253,0)),"TRUE 2", IF(INDEX(Inputs!$E$86:$E$253,MATCH(J26,Inputs!$D$86:$D$253,0)),"TRUE 1", FALSE)))) -> FALSE | M26: ='Volume Import'!C17*'Volume Import'!$H$14*(1+'Volume Import'!$H$15)*(1-'Volume Import'!$H$16) -> 599 | N26: =IF(AND('Volume Import'!D17=0,'Volume Import'!C17=0),0, IF('Volume Import'!D17=0,INDEX('Volume Import'!$K$2:$Q$5,MATCH(I26,'Volume Import'!$R$2:$R$5,0),MATCH(F26,'Volume Import'!$K$1:$Q$1,0)), 'Volume Import'!D17/'Volume Import'!C17)) -> 0.03839732888 | P26: ='Volume Import'!E17*'Volume Import'!$I$14*(1+'Volume Import'!$I$15)*(1-'Volume Import'!$I$16) -> 565 | Q26: =IF('Volume Import'!F17=0,N26,'Volume Import'!F17/'Volume Import'!E17) -> 0.02831858407 | S26: =IF(K26="TRUE 1",IF(I26="NT",Inputs!$C$35,Inputs!$C$34), IF(K26="TRUE 2",IF(I26="NT",Inputs!$D$35,Inputs!$D$34), IF(K26="TRUE 3",IF(I26="NT",Inputs!$E$35,Inputs!$E$34), IF(K26="TRUE 4",IF(I26="NT",Inputs!$F$35,Inputs!$F$34), S25)))) -> 54.62255796 | T26: =IF(K26="TRUE 1",IF(I26="NT",MROUND(Inputs!$C$32*$T$3*(1/(1+N26*(2-1))),1),MROUND(Inputs!$C$30*$T$3*(1/(1+N26*(2-1))),1)), IF(K26="TRUE 2",IF(I26="NT",MROUND(Inputs!$D$32*$U$3*(1/(1+N26*(2-1))),1),MROUND(Inputs!$D$30*$U$3*(1/(1+N26*(2-1))),1)), IF(K26="TRUE 3",IF(I26="NT",MROUND(Inputs!$E$32*$V$3*(1/(1+N26*(2-1))),1),MROUND(Inputs!$E$30*$V$3*(1/(1+N26*(2-1))),1)), IF(K26="TRUE 4",IF(I26="NT",MROUND(Inputs!$F$32*$W$3*(1/(1+N26*(2-1))),1),MROUND(Inputs!$F$30*$W$3*(1/(1+N26*(2-1))),1)), MROUND(Inputs!$C$15*(1/(1+N26*(2-1)))*($T$3+$T$4),1))))) -> 6934 | U26: -6335 | V26: 0 | W26: =(V26/(1/(1+N26*(2-1))))*S26/LEFT(Inputs!$C$18,1)/5280 -> 0 | X26: 0 | Y26: =((X26/60)*((Inputs!$C$13*V26*(1-N26))+(Inputs!$C$14*V26*N26))) -> 0 | Z26: =IF(V26>0,($N$5/60)*(((M26*$N$3/(1-$N$3))*(1-N26)*Inputs!$C$13)+((M26*$N$3/(1-$N$3))*N26*Inputs!$C$14)),0) -> 0 | AA26: 0 | AC26: 2019-01-01T15:00:00 | AF26: =IF(AND(AD26<>"",AE26<>""),MAX(INDIRECT(AD26):INDIRECT(AE26)),"") ->  | AJ26: =IF(K26="TRUE 1",IF(I26="NT",MROUND(Inputs!$C$32*$AJ$3*(1/(1+Q26*(2-1))),1),MROUND(Inputs!$C$30*$AJ$3*(1/(1+Q26*(2-1))),1)), IF(K26="TRUE 2",IF(I26="NT",MROUND(Inputs!$D$32*$AK$3*(1/(1+Q26*(2-1))),1),MROUND(Inputs!$D$30*$AK$3*(1/(1+Q26*(2-1))),1)), IF(K26="TRUE 3",IF(I26="NT",MROUND(Inputs!$E$32*$AL$3*(1/(1+Q26*(2-1))),1),MROUND(Inputs!$E$30*$AL$3*(1/(1+Q26*(2-1))),1)), IF(K26="TRUE 4",IF(I26="NT",MROUND(Inputs!$F$32*$AM$3*(1/(1+Q26*(2-1))),1),MROUND(Inputs!$F$30*$AM$3*(1/(1+Q26*(2-1))),1)), MROUND(Inputs!$C$15*(1/(1+Q26*(2-1)))*($AJ$3+$AJ$4),1))))) -> 7002 | AK26: -6437 | AL26: 0 | AM26: =(AL26/(1/(1+Q26*(2-1))))*S26/LEFT(Inputs!$C$18,1)/5280 -> 0 | AN26: 0 | AO26: =(AN26/60)*((Inputs!$C$13*AL26*(1-Q26))+(Inputs!$C$14*AL26*Q26)) -> 0 | AP26: =IF(AL26>0,($Q$5/60)*(((P26*$Q$3/(1-$Q$3))*(1-Q26)*Inputs!$C$13)+((P26*$Q$3/(1-$Q$3))*Q26*Inputs!$C$14)),0) -> 0 | AQ26: 0 | AS26: 2019-01-01T15:00:00 | AV26: =IF(AND(AT26<>"",AU26<>""),MAX(INDIRECT(AT26):INDIRECT(AU26)),"") -> 
A27: 2019-01-01 | B27: January | C27: 1 | D27: January-1-16 | E27: 3 | F27: Tuesday | G27: 16:00:00 | H27: 16 | I27: =INDEX(Lists!$R$3:$R$26,MATCH(Calculations!G27,Lists!$Q$3:$Q$26,0)) -> PM | J27: 64 | K27: =IF(INDEX(Inputs!$H$86:$H$253,MATCH(J27,Inputs!$D$86:$D$253,0)),"TRUE 4", IF(INDEX(Inputs!$G$86:$G$253,MATCH(J27,Inputs!$D$86:$D$253,0)),"TRUE 3", IF(INDEX(Inputs!$F$86:$F$253,MATCH(J27,Inputs!$D$86:$D$253,0)),"TRUE 2", IF(INDEX(Inputs!$E$86:$E$253,MATCH(J27,Inputs!$D$86:$D$253,0)),"TRUE 1", FALSE)))) -> FALSE | M27: ='Volume Import'!C18*'Volume Import'!$H$14*(1+'Volume Import'!$H$15)*(1-'Volume Import'!$H$16) -> 568 | N27: =IF(AND('Volume Import'!D18=0,'Volume Import'!C18=0),0, IF('Volume Import'!D18=0,INDEX('Volume Import'!$K$2:$Q$5,MATCH(I27,'Volume Import'!$R$2:$R$5,0),MATCH(F27,'Volume Import'!$K$1:$Q$1,0)), 'Volume Import'!D18/'Volume Import'!C18)) -> 0.02992957746 | P27: ='Volume Import'!E18*'Volume Import'!$I$14*(1+'Volume Import'!$I$15)*(1-'Volume Import'!$I$16) -> 483 | Q27: =IF('Volume Import'!F18=0,N27,'Volume Import'!F18/'Volume Import'!E18) -> 0.03105590062 | S27: =IF(K27="TRUE 1",IF(I27="NT",Inputs!$C$35,Inputs!$C$34), IF(K27="TRUE 2",IF(I27="NT",Inputs!$D$35,Inputs!$D$34), IF(K27="TRUE 3",IF(I27="NT",Inputs!$E$35,Inputs!$E$34), IF(K27="TRUE 4",IF(I27="NT",Inputs!$F$35,Inputs!$F$34), S26)))) -> 54.62255796 | T27: =IF(K27="TRUE 1",IF(I27="NT",MROUND(Inputs!$C$32*$T$3*(1/(1+N27*(2-1))),1),MROUND(Inputs!$C$30*$T$3*(1/(1+N27*(2-1))),1)), IF(K27="TRUE 2",IF(I27="NT",MROUND(Inputs!$D$32*$U$3*(1/(1+N27*(2-1))),1),MROUND(Inputs!$D$30*$U$3*(1/(1+N27*(2-1))),1)), IF(K27="TRUE 3",IF(I27="NT",MROUND(Inputs!$E$32*$V$3*(1/(1+N27*(2-1))),1),MROUND(Inputs!$E$30*$V$3*(1/(1+N27*(2-1))),1)), IF(K27="TRUE 4",IF(I27="NT",MROUND(Inputs!$F$32*$W$3*(1/(1+N27*(2-1))),1),MROUND(Inputs!$F$30*$W$3*(1/(1+N27*(2-1))),1)), MROUND(Inputs!$C$15*(1/(1+N27*(2-1)))*($T$3+$T$4),1))))) -> 6991 | U27: -6423 | V27: 0 | W27: =(V27/(1/(1+N27*(2-1))))*S27/LEFT(Inputs!$C$18,1)/5280 -> 0 | X27: 0 | Y27: =((X27/60)*((Inputs!$C$13*V27*(1-N27))+(Inputs!$C$14*V27*N27))) -> 0 | Z27: =IF(V27>0,($N$5/60)*(((M27*$N$3/(1-$N$3))*(1-N27)*Inputs!$C$13)+((M27*$N$3/(1-$N$3))*N27*Inputs!$C$14)),0) -> 0 | AA27: 0 | AC27: 2019-01-01T16:00:00 | AF27: =IF(AND(AD27<>"",AE27<>""),MAX(INDIRECT(AD27):INDIRECT(AE27)),"") ->  | AJ27: =IF(K27="TRUE 1",IF(I27="NT",MROUND(Inputs!$C$32*$AJ$3*(1/(1+Q27*(2-1))),1),MROUND(Inputs!$C$30*$AJ$3*(1/(1+Q27*(2-1))),1)), IF(K27="TRUE 2",IF(I27="NT",MROUND(Inputs!$D$32*$AK$3*(1/(1+Q27*(2-1))),1),MROUND(Inputs!$D$30*$AK$3*(1/(1+Q27*(2-1))),1)), IF(K27="TRUE 3",IF(I27="NT",MROUND(Inputs!$E$32*$AL$3*(1/(1+Q27*(2-1))),1),MROUND(Inputs!$E$30*$AL$3*(1/(1+Q27*(2-1))),1)), IF(K27="TRUE 4",IF(I27="NT",MROUND(Inputs!$F$32*$AM$3*(1/(1+Q27*(2-1))),1),MROUND(Inputs!$F$30*$AM$3*(1/(1+Q27*(2-1))),1)), MROUND(Inputs!$C$15*(1/(1+Q27*(2-1)))*($AJ$3+$AJ$4),1))))) -> 6983 | AK27: -6500 | AL27: 0 | AM27: =(AL27/(1/(1+Q27*(2-1))))*S27/LEFT(Inputs!$C$18,1)/5280 -> 0 | AN27: 0 | AO27: =(AN27/60)*((Inputs!$C$13*AL27*(1-Q27))+(Inputs!$C$14*AL27*Q27)) -> 0 | AP27: =IF(AL27>0,($Q$5/60)*(((P27*$Q$3/(1-$Q$3))*(1-Q27)*Inputs!$C$13)+((P27*$Q$3/(1-$Q$3))*Q27*Inputs!$C$14)),0) -> 0 | AQ27: 0 | AS27: 2019-01-01T16:00:00 | AV27: =IF(AND(AT27<>"",AU27<>""),MAX(INDIRECT(AT27):INDIRECT(AU27)),"") -> 
A28: 2019-01-01 | B28: January | C28: 1 | D28: January-1-17 | E28: 3 | F28: Tuesday | G28: 17:00:00 | H28: 17 | I28: =INDEX(Lists!$R$3:$R$26,MATCH(Calculations!G28,Lists!$Q$3:$Q$26,0)) -> PM | J28: 65 | K28: =IF(INDEX(Inputs!$H$86:$H$253,MATCH(J28,Inputs!$D$86:$D$253,0)),"TRUE 4", IF(INDEX(Inputs!$G$86:$G$253,MATCH(J28,Inputs!$D$86:$D$253,0)),"TRUE 3", IF(INDEX(Inputs!$F$86:$F$253,MATCH(J28,Inputs!$D$86:$D$253,0)),"TRUE 2", IF(INDEX(Inputs!$E$86:$E$253,MATCH(J28,Inputs!$D$86:$D$253,0)),"TRUE 1", FALSE)))) -> FALSE | M28: ='Volume Import'!C19*'Volume Import'!$H$14*(1+'Volume Import'!$H$15)*(1-'Volume Import'!$H$16) -> 469 | N28: =IF(AND('Volume Import'!D19=0,'Volume Import'!C19=0),0, IF('Volume Import'!D19=0,INDEX('Volume Import'!$K$2:$Q$5,MATCH(I28,'Volume Import'!$R$2:$R$5,0),MATCH(F28,'Volume Import'!$K$1:$Q$1,0)), 'Volume Import'!D19/'Volume Import'!C19)) -> 0.03411513859 | P28: ='Volume Import'!E19*'Volume Import'!$I$14*(1+'Volume Import'!$I$15)*(1-'Volume Import'!$I$16) -> 379 | Q28: =IF('Volume Import'!F19=0,N28,'Volume Import'!F19/'Volume Import'!E19) -> 0.02638522427 | S28: =IF(K28="TRUE 1",IF(I28="NT",Inputs!$C$35,Inputs!$C$34), IF(K28="TRUE 2",IF(I28="NT",Inputs!$D$35,Inputs!$D$34), IF(K28="TRUE 3",IF(I28="NT",Inputs!$E$35,Inputs!$E$34), IF(K28="TRUE 4",IF(I28="NT",Inputs!$F$35,Inputs!$F$34), S27)))) -> 54.62255796 | T28: =IF(K28="TRUE 1",IF(I28="NT",MROUND(Inputs!$C$32*$T$3*(1/(1+N28*(2-1))),1),MROUND(Inputs!$C$30*$T$3*(1/(1+N28*(2-1))),1)), IF(K28="TRUE 2",IF(I28="NT",MROUND(Inputs!$D$32*$U$3*(1/(1+N28*(2-1))),1),MROUND(Inputs!$D$30*$U$3*(1/(1+N28*(2-1))),1)), IF(K28="TRUE 3",IF(I28="NT",MROUND(Inputs!$E$32*$V$3*(1/(1+N28*(2-1))),1),MROUND(Inputs!$E$30*$V$3*(1/(1+N28*(2-1))),1)), IF(K28="TRUE 4",IF(I28="NT",MROUND(Inputs!$F$32*$W$3*(1/(1+N28*(2-1))),1),MROUND(Inputs!$F$30*$W$3*(1/(1+N28*(2-1))),1)), MROUND(Inputs!$C$15*(1/(1+N28*(2-1)))*($T$3+$T$4),1))))) -> 6962 | U28: -6493 | V28: =IF(V27+U28<0,0,V27+U28) -> 0 | W28: =(V28/(1/(1+N28*(2-1))))*S28/LEFT(Inputs!$C$18,1)/5280 -> 0 | X28: 0 | Y28: =((X28/60)*((Inputs!$C$13*V28*(1-N28))+(Inputs!$C$14*V28*N28))) -> 0 | Z28: =IF(V28>0,($N$5/60)*(((M28*$N$3/(1-$N$3))*(1-N28)*Inputs!$C$13)+((M28*$N$3/(1-$N$3))*N28*Inputs!$C$14)),0) -> 0 | AA28: 0 | AC28: 2019-01-01T17:00:00 | AF28: =IF(AND(AD28<>"",AE28<>""),MAX(INDIRECT(AD28):INDIRECT(AE28)),"") ->  | AJ28: =IF(K28="TRUE 1",IF(I28="NT",MROUND(Inputs!$C$32*$AJ$3*(1/(1+Q28*(2-1))),1),MROUND(Inputs!$C$30*$AJ$3*(1/(1+Q28*(2-1))),1)), IF(K28="TRUE 2",IF(I28="NT",MROUND(Inputs!$D$32*$AK$3*(1/(1+Q28*(2-1))),1),MROUND(Inputs!$D$30*$AK$3*(1/(1+Q28*(2-1))),1)), IF(K28="TRUE 3",IF(I28="NT",MROUND(Inputs!$E$32*$AL$3*(1/(1+Q28*(2-1))),1),MROUND(Inputs!$E$30*$AL$3*(1/(1+Q28*(2-1))),1)), IF(K28="TRUE 4",IF(I28="NT",MROUND(Inputs!$F$32*$AM$3*(1/(1+Q28*(2-1))),1),MROUND(Inputs!$F$30*$AM$3*(1/(1+Q28*(2-1))),1)), MROUND(Inputs!$C$15*(1/(1+Q28*(2-1)))*($AJ$3+$AJ$4),1))))) -> 7015 | AK28: -6636 | AL28: 0 | AM28: =(AL28/(1/(1+Q28*(2-1))))*S28/LEFT(Inputs!$C$18,1)/5280 -> 0 | AN28: 0 | AO28: =(AN28/60)*((Inputs!$C$13*AL28*(1-Q28))+(Inputs!$C$14*AL28*Q28)) -> 0 | AP28: =IF(AL28>0,($Q$5/60)*(((P28*$Q$3/(1-$Q$3))*(1-Q28)*Inputs!$C$13)+((P28*$Q$3/(1-$Q$3))*Q28*Inputs!$C$14)),0) -> 0 | AQ28: 0 | AS28: 2019-01-01T17:00:00 | AV28: =IF(AND(AT28<>"",AU28<>""),MAX(INDIRECT(AT28):INDIRECT(AU28)),"") -> 
A29: 2019-01-01 | B29: January | C29: 1 | D29: January-1-18 | E29: 3 | F29: Tuesday | G29: 18:00:00 | H29: 18 | I29: =INDEX(Lists!$R$3:$R$26,MATCH(Calculations!G29,Lists!$Q$3:$Q$26,0)) -> NT | J29: 66 | K29: =IF(INDEX(Inputs!$H$86:$H$253,MATCH(J29,Inputs!$D$86:$D$253,0)),"TRUE 4", IF(INDEX(Inputs!$G$86:$G$253,MATCH(J29,Inputs!$D$86:$D$253,0)),"TRUE 3", IF(INDEX(Inputs!$F$86:$F$253,MATCH(J29,Inputs!$D$86:$D$253,0)),"TRUE 2", IF(INDEX(Inputs!$E$86:$E$253,MATCH(J29,Inputs!$D$86:$D$253,0)),"TRUE 1", FALSE)))) -> FALSE | M29: ='Volume Import'!C20*'Volume Import'!$H$14*(1+'Volume Import'!$H$15)*(1-'Volume Import'!$H$16) -> 347 | N29: =IF(AND('Volume Import'!D20=0,'Volume Import'!C20=0),0, IF('Volume Import'!D20=0,INDEX('Volume Import'!$K$2:$Q$5,MATCH(I29,'Volume Import'!$R$2:$R$5,0),MATCH(F29,'Volume Import'!$K$1:$Q$1,0)), 'Volume Import'!D20/'Volume Import'!C20)) -> 0.03458213256 | P29: ='Volume Import'!E20*'Volume Import'!$I$14*(1+'Volume Import'!$I$15)*(1-'Volume Import'!$I$16) -> 291 | Q29: =IF('Volume Import'!F20=0,N29,'Volume Import'!F20/'Volume Import'!E20) -> 0.003436426117 | S29: =IF(K29="TRUE 1",IF(I29="NT",Inputs!$C$35,Inputs!$C$34), IF(K29="TRUE 2",IF(I29="NT",Inputs!$D$35,Inputs!$D$34), IF(K29="TRUE 3",IF(I29="NT",Inputs!$E$35,Inputs!$E$34), IF(K29="TRUE 4",IF(I29="NT",Inputs!$F$35,Inputs!$F$34), S28)))) -> 54.62255796 | T29: =IF(K29="TRUE 1",IF(I29="NT",MROUND(Inputs!$C$32*$T$3*(1/(1+N29*(2-1))),1),MROUND(Inputs!$C$30*$T$3*(1/(1+N29*(2-1))),1)), IF(K29="TRUE 2",IF(I29="NT",MROUND(Inputs!$D$32*$U$3*(1/(1+N29*(2-1))),1),MROUND(Inputs!$D$30*$U$3*(1/(1+N29*(2-1))),1)), IF(K29="TRUE 3",IF(I29="NT",MROUND(Inputs!$E$32*$V$3*(1/(1+N29*(2-1))),1),MROUND(Inputs!$E$30*$V$3*(1/(1+N29*(2-1))),1)), IF(K29="TRUE 4",IF(I29="NT",MROUND(Inputs!$F$32*$W$3*(1/(1+N29*(2-1))),1),MROUND(Inputs!$F$30*$W$3*(1/(1+N29*(2-1))),1)), MROUND(Inputs!$C$15*(1/(1+N29*(2-1)))*($T$3+$T$4),1))))) -> 6959 | U29: -6612 | V29: 0 | W29: =(V29/(1/(1+N29*(2-1))))*S29/LEFT(Inputs!$C$18,1)/5280 -> 0 | X29: 0 | Y29: =((X29/60)*((Inputs!$C$13*V29*(1-N29))+(Inputs!$C$14*V29*N29))) -> 0 | Z29: =IF(V29>0,($N$5/60)*(((M29*$N$3/(1-$N$3))*(1-N29)*Inputs!$C$13)+((M29*$N$3/(1-$N$3))*N29*Inputs!$C$14)),0) -> 0 | AA29: 0 | AC29: 2019-01-01T18:00:00 | AF29: =IF(AND(AD29<>"",AE29<>""),MAX(INDIRECT(AD29):INDIRECT(AE29)),"") ->  | AJ29: =IF(K29="TRUE 1",IF(I29="NT",MROUND(Inputs!$C$32*$AJ$3*(1/(1+Q29*(2-1))),1),MROUND(Inputs!$C$30*$AJ$3*(1/(1+Q29*(2-1))),1)), IF(K29="TRUE 2",IF(I29="NT",MROUND(Inputs!$D$32*$AK$3*(1/(1+Q29*(2-1))),1),MROUND(Inputs!$D$30*$AK$3*(1/(1+Q29*(2-1))),1)), IF(K29="TRUE 3",IF(I29="NT",MROUND(Inputs!$E$32*$AL$3*(1/(1+Q29*(2-1))),1),MROUND(Inputs!$E$30*$AL$3*(1/(1+Q29*(2-1))),1)), IF(K29="TRUE 4",IF(I29="NT",MROUND(Inputs!$F$32*$AM$3*(1/(1+Q29*(2-1))),1),MROUND(Inputs!$F$30*$AM$3*(1/(1+Q29*(2-1))),1)), MROUND(Inputs!$C$15*(1/(1+Q29*(2-1)))*($AJ$3+$AJ$4),1))))) -> 7175 | AK29: -6884 | AL29: 0 | AM29: =(AL29/(1/(1+Q29*(2-1))))*S29/LEFT(Inputs!$C$18,1)/5280 -> 0 | AN29: 0 | AO29: =(AN29/60)*((Inputs!$C$13*AL29*(1-Q29))+(Inputs!$C$14*AL29*Q29)) -> 0 | AP29: =IF(AL29>0,($Q$5/60)*(((P29*$Q$3/(1-$Q$3))*(1-Q29)*Inputs!$C$13)+((P29*$Q$3/(1-$Q$3))*Q29*Inputs!$C$14)),0) -> 0 | AQ29: 0 | AS29: 2019-01-01T18:00:00 | AV29: =IF(AND(AT29<>"",AU29<>""),MAX(INDIRECT(AT29):INDIRECT(AU29)),"") -> 
A30: 2019-01-01 | B30: January | C30: 1 | D30: January-1-19 | E30: 3 | F30: Tuesday | G30: 19:00:00 | H30: 19 | I30: =INDEX(Lists!$R$3:$R$26,MATCH(Calculations!G30,Lists!$Q$3:$Q$26,0)) -> NT | J30: 67 | K30: =IF(INDEX(Inputs!$H$86:$H$253,MATCH(J30,Inputs!$D$86:$D$253,0)),"TRUE 4", IF(INDEX(Inputs!$G$86:$G$253,MATCH(J30,Inputs!$D$86:$D$253,0)),"TRUE 3", IF(INDEX(Inputs!$F$86:$F$253,MATCH(J30,Inputs!$D$86:$D$253,0)),"TRUE 2", IF(INDEX(Inputs!$E$86:$E$253,MATCH(J30,Inputs!$D$86:$D$253,0)),"TRUE 1", FALSE)))) -> FALSE | M30: ='Volume Import'!C21*'Volume Import'!$H$14*(1+'Volume Import'!$H$15)*(1-'Volume Import'!$H$16) -> 268 | N30: =IF(AND('Volume Import'!D21=0,'Volume Import'!C21=0),0, IF('Volume Import'!D21=0,INDEX('Volume Import'!$K$2:$Q$5,MATCH(I30,'Volume Import'!$R$2:$R$5,0),MATCH(F30,'Volume Import'!$K$1:$Q$1,0)), 'Volume Import'!D21/'Volume Import'!C21)) -> 0.02985074627 | P30: ='Volume Import'!E21*'Volume Import'!$I$14*(1+'Volume Import'!$I$15)*(1-'Volume Import'!$I$16) -> 201 | Q30: =IF('Volume Import'!F21=0,N30,'Volume Import'!F21/'Volume Import'!E21) -> 0.01492537313 | S30: =IF(K30="TRUE 1",IF(I30="NT",Inputs!$C$35,Inputs!$C$34), IF(K30="TRUE 2",IF(I30="NT",Inputs!$D$35,Inputs!$D$34), IF(K30="TRUE 3",IF(I30="NT",Inputs!$E$35,Inputs!$E$34), IF(K30="TRUE 4",IF(I30="NT",Inputs!$F$35,Inputs!$F$34), S29)))) -> 54.62255796 | T30: =IF(K30="TRUE 1",IF(I30="NT",MROUND(Inputs!$C$32*$T$3*(1/(1+N30*(2-1))),1),MROUND(Inputs!$C$30*$T$3*(1/(1+N30*(2-1))),1)), IF(K30="TRUE 2",IF(I30="NT",MROUND(Inputs!$D$32*$U$3*(1/(1+N30*(2-1))),1),MROUND(Inputs!$D$30*$U$3*(1/(1+N30*(2-1))),1)), IF(K30="TRUE 3",IF(I30="NT",MROUND(Inputs!$E$32*$V$3*(1/(1+N30*(2-1))),1),MROUND(Inputs!$E$30*$V$3*(1/(1+N30*(2-1))),1)), IF(K30="TRUE 4",IF(I30="NT",MROUND(Inputs!$F$32*$W$3*(1/(1+N30*(2-1))),1),MROUND(Inputs!$F$30*$W$3*(1/(1+N30*(2-1))),1)), MROUND(Inputs!$C$15*(1/(1+N30*(2-1)))*($T$3+$T$4),1))))) -> 6991 | U30: -6723 | V30: 0 | W30: =(V30/(1/(1+N30*(2-1))))*S30/LEFT(Inputs!$C$18,1)/5280 -> 0 | X30: 0 | Y30: =((X30/60)*((Inputs!$C$13*V30*(1-N30))+(Inputs!$C$14*V30*N30))) -> 0 | Z30: =IF(V30>0,($N$5/60)*(((M30*$N$3/(1-$N$3))*(1-N30)*Inputs!$C$13)+((M30*$N$3/(1-$N$3))*N30*Inputs!$C$14)),0) -> 0 | AA30: 0 | AC30: 2019-01-01T19:00:00 | AF30: =IF(AND(AD30<>"",AE30<>""),MAX(INDIRECT(AD30):INDIRECT(AE30)),"") ->  | AJ30: =IF(K30="TRUE 1",IF(I30="NT",MROUND(Inputs!$C$32*$AJ$3*(1/(1+Q30*(2-1))),1),MROUND(Inputs!$C$30*$AJ$3*(1/(1+Q30*(2-1))),1)), IF(K30="TRUE 2",IF(I30="NT",MROUND(Inputs!$D$32*$AK$3*(1/(1+Q30*(2-1))),1),MROUND(Inputs!$D$30*$AK$3*(1/(1+Q30*(2-1))),1)), IF(K30="TRUE 3",IF(I30="NT",MROUND(Inputs!$E$32*$AL$3*(1/(1+Q30*(2-1))),1),MROUND(Inputs!$E$30*$AL$3*(1/(1+Q30*(2-1))),1)), IF(K30="TRUE 4",IF(I30="NT",MROUND(Inputs!$F$32*$AM$3*(1/(1+Q30*(2-1))),1),MROUND(Inputs!$F$30*$AM$3*(1/(1+Q30*(2-1))),1)), MROUND(Inputs!$C$15*(1/(1+Q30*(2-1)))*($AJ$3+$AJ$4),1))))) -> 7094 | AK30: -6893 | AL30: 0 | AM30: =(AL30/(1/(1+Q30*(2-1))))*S30/LEFT(Inputs!$C$18,1)/5280 -> 0 | AN30: 0 | AO30: =(AN30/60)*((Inputs!$C$13*AL30*(1-Q30))+(Inputs!$C$14*AL30*Q30)) -> 0 | AP30: =IF(AL30>0,($Q$5/60)*(((P30*$Q$3/(1-$Q$3))*(1-Q30)*Inputs!$C$13)+((P30*$Q$3/(1-$Q$3))*Q30*Inputs!$C$14)),0) -> 0 | AQ30: 0 | AS30: 2019-01-01T19:00:00 | AV30: =IF(AND(AT30<>"",AU30<>""),MAX(INDIRECT(AT30):INDIRECT(AU30)),"") -> 
A31: 2019-01-01 | B31: January | C31: 1 | D31: January-1-20 | E31: 3 | F31: Tuesday | G31: 20:00:00 | H31: 20 | I31: =INDEX(Lists!$R$3:$R$26,MATCH(Calculations!G31,Lists!$Q$3:$Q$26,0)) -> NT | J31: 68 | K31: =IF(INDEX(Inputs!$H$86:$H$253,MATCH(J31,Inputs!$D$86:$D$253,0)),"TRUE 4", IF(INDEX(Inputs!$G$86:$G$253,MATCH(J31,Inputs!$D$86:$D$253,0)),"TRUE 3", IF(INDEX(Inputs!$F$86:$F$253,MATCH(J31,Inputs!$D$86:$D$253,0)),"TRUE 2", IF(INDEX(Inputs!$E$86:$E$253,MATCH(J31,Inputs!$D$86:$D$253,0)),"TRUE 1", FALSE)))) -> FALSE | M31: ='Volume Import'!C22*'Volume Import'!$H$14*(1+'Volume Import'!$H$15)*(1-'Volume Import'!$H$16) -> 160 | N31: =IF(AND('Volume Import'!D22=0,'Volume Import'!C22=0),0, IF('Volume Import'!D22=0,INDEX('Volume Import'!$K$2:$Q$5,MATCH(I31,'Volume Import'!$R$2:$R$5,0),MATCH(F31,'Volume Import'!$K$1:$Q$1,0)), 'Volume Import'!D22/'Volume Import'!C22)) -> 0.01875 | P31: ='Volume Import'!E22*'Volume Import'!$I$14*(1+'Volume Import'!$I$15)*(1-'Volume Import'!$I$16) -> 157 | Q31: =IF('Volume Import'!F22=0,N31,'Volume Import'!F22/'Volume Import'!E22) -> 0.01910828025 | S31: =IF(K31="TRUE 1",IF(I31="NT",Inputs!$C$35,Inputs!$C$34), IF(K31="TRUE 2",IF(I31="NT",Inputs!$D$35,Inputs!$D$34), IF(K31="TRUE 3",IF(I31="NT",Inputs!$E$35,Inputs!$E$34), IF(K31="TRUE 4",IF(I31="NT",Inputs!$F$35,Inputs!$F$34), S30)))) -> 54.62255796 | T31: =IF(K31="TRUE 1",IF(I31="NT",MROUND(Inputs!$C$32*$T$3*(1/(1+N31*(2-1))),1),MROUND(Inputs!$C$30*$T$3*(1/(1+N31*(2-1))),1)), IF(K31="TRUE 2",IF(I31="NT",MROUND(Inputs!$D$32*$U$3*(1/(1+N31*(2-1))),1),MROUND(Inputs!$D$30*$U$3*(1/(1+N31*(2-1))),1)), IF(K31="TRUE 3",IF(I31="NT",MROUND(Inputs!$E$32*$V$3*(1/(1+N31*(2-1))),1),MROUND(Inputs!$E$30*$V$3*(1/(1+N31*(2-1))),1)), IF(K31="TRUE 4",IF(I31="NT",MROUND(Inputs!$F$32*$W$3*(1/(1+N31*(2-1))),1),MROUND(Inputs!$F$30*$W$3*(1/(1+N31*(2-1))),1)), MROUND(Inputs!$C$15*(1/(1+N31*(2-1)))*($T$3+$T$4),1))))) -> 7067 | U31: -6907 | V31: 0 | W31: =(V31/(1/(1+N31*(2-1))))*S31/LEFT(Inputs!$C$18,1)/5280 -> 0 | X31: 0 | Y31: =((X31/60)*((Inputs!$C$13*V31*(1-N31))+(Inputs!$C$14*V31*N31))) -> 0 | Z31: =IF(V31>0,($N$5/60)*(((M31*$N$3/(1-$N$3))*(1-N31)*Inputs!$C$13)+((M31*$N$3/(1-$N$3))*N31*Inputs!$C$14)),0) -> 0 | AA31: 0 | AC31: 2019-01-01T20:00:00 | AF31: =IF(AND(AD31<>"",AE31<>""),MAX(INDIRECT(AD31):INDIRECT(AE31)),"") ->  | AJ31: =IF(K31="TRUE 1",IF(I31="NT",MROUND(Inputs!$C$32*$AJ$3*(1/(1+Q31*(2-1))),1),MROUND(Inputs!$C$30*$AJ$3*(1/(1+Q31*(2-1))),1)), IF(K31="TRUE 2",IF(I31="NT",MROUND(Inputs!$D$32*$AK$3*(1/(1+Q31*(2-1))),1),MROUND(Inputs!$D$30*$AK$3*(1/(1+Q31*(2-1))),1)), IF(K31="TRUE 3",IF(I31="NT",MROUND(Inputs!$E$32*$AL$3*(1/(1+Q31*(2-1))),1),MROUND(Inputs!$E$30*$AL$3*(1/(1+Q31*(2-1))),1)), IF(K31="TRUE 4",IF(I31="NT",MROUND(Inputs!$F$32*$AM$3*(1/(1+Q31*(2-1))),1),MROUND(Inputs!$F$30*$AM$3*(1/(1+Q31*(2-1))),1)), MROUND(Inputs!$C$15*(1/(1+Q31*(2-1)))*($AJ$3+$AJ$4),1))))) -> 7065 | AK31: -6908 | AL31: 0 | AM31: =(AL31/(1/(1+Q31*(2-1))))*S31/LEFT(Inputs!$C$18,1)/5280 -> 0 | AN31: 0 | AO31: =(AN31/60)*((Inputs!$C$13*AL31*(1-Q31))+(Inputs!$C$14*AL31*Q31)) -> 0 | AP31: =IF(AL31>0,($Q$5/60)*(((P31*$Q$3/(1-$Q$3))*(1-Q31)*Inputs!$C$13)+((P31*$Q$3/(1-$Q$3))*Q31*Inputs!$C$14)),0) -> 0 | AQ31: 0 | AS31: 2019-01-01T20:00:00 | AV31: =IF(AND(AT31<>"",AU31<>""),MAX(INDIRECT(AT31):INDIRECT(AU31)),"") -> 
A32: 2019-01-01 | B32: January | C32: 1 | D32: January-1-21 | E32: 3 | F32: Tuesday | G32: 21:00:00 | H32: 21 | I32: =INDEX(Lists!$R$3:$R$26,MATCH(Calculations!G32,Lists!$Q$3:$Q$26,0)) -> NT | J32: 69 | K32: =IF(INDEX(Inputs!$H$86:$H$253,MATCH(J32,Inputs!$D$86:$D$253,0)),"TRUE 4", IF(INDEX(Inputs!$G$86:$G$253,MATCH(J32,Inputs!$D$86:$D$253,0)),"TRUE 3", IF(INDEX(Inputs!$F$86:$F$253,MATCH(J32,Inputs!$D$86:$D$253,0)),"TRUE 2", IF(INDEX(Inputs!$E$86:$E$253,MATCH(J32,Inputs!$D$86:$D$253,0)),"TRUE 1", FALSE)))) -> FALSE | M32: ='Volume Import'!C23*'Volume Import'!$H$14*(1+'Volume Import'!$H$15)*(1-'Volume Import'!$H$16) -> 127 | N32: =IF(AND('Volume Import'!D23=0,'Volume Import'!C23=0),0, IF('Volume Import'!D23=0,INDEX('Volume Import'!$K$2:$Q$5,MATCH(I32,'Volume Import'!$R$2:$R$5,0),MATCH(F32,'Volume Import'!$K$1:$Q$1,0)), 'Volume Import'!D23/'Volume Import'!C23)) -> 0.03937007874 | P32: ='Volume Import'!E23*'Volume Import'!$I$14*(1+'Volume Import'!$I$15)*(1-'Volume Import'!$I$16) -> 116 | Q32: =IF('Volume Import'!F23=0,N32,'Volume Import'!F23/'Volume Import'!E23) -> 0.02586206897 | S32: =IF(K32="TRUE 1",IF(I32="NT",Inputs!$C$35,Inputs!$C$34), IF(K32="TRUE 2",IF(I32="NT",Inputs!$D$35,Inputs!$D$34), IF(K32="TRUE 3",IF(I32="NT",Inputs!$E$35,Inputs!$E$34), IF(K32="TRUE 4",IF(I32="NT",Inputs!$F$35,Inputs!$F$34), S31)))) -> 54.62255796 | T32: =IF(K32="TRUE 1",IF(I32="NT",MROUND(Inputs!$C$32*$T$3*(1/(1+N32*(2-1))),1),MROUND(Inputs!$C$30*$T$3*(1/(1+N32*(2-1))),1)), IF(K32="TRUE 2",IF(I32="NT",MROUND(Inputs!$D$32*$U$3*(1/(1+N32*(2-1))),1),MROUND(Inputs!$D$30*$U$3*(1/(1+N32*(2-1))),1)), IF(K32="TRUE 3",IF(I32="NT",MROUND(Inputs!$E$32*$V$3*(1/(1+N32*(2-1))),1),MROUND(Inputs!$E$30*$V$3*(1/(1+N32*(2-1))),1)), IF(K32="TRUE 4",IF(I32="NT",MROUND(Inputs!$F$32*$W$3*(1/(1+N32*(2-1))),1),MROUND(Inputs!$F$30*$W$3*(1/(1+N32*(2-1))),1)), MROUND(Inputs!$C$15*(1/(1+N32*(2-1)))*($T$3+$T$4),1))))) -> 6927 | U32: -6800 | V32: 0 | W32: =(V32/(1/(1+N32*(2-1))))*S32/LEFT(Inputs!$C$18,1)/5280 -> 0 | X32: 0 | Y32: =((X32/60)*((Inputs!$C$13*V32*(1-N32))+(Inputs!$C$14*V32*N32))) -> 0 | Z32: =IF(V32>0,($N$5/60)*(((M32*$N$3/(1-$N$3))*(1-N32)*Inputs!$C$13)+((M32*$N$3/(1-$N$3))*N32*Inputs!$C$14)),0) -> 0 | AA32: 0 | AC32: 2019-01-01T21:00:00 | AF32: =IF(AND(AD32<>"",AE32<>""),MAX(INDIRECT(AD32):INDIRECT(AE32)),"") ->  | AJ32: =IF(K32="TRUE 1",IF(I32="NT",MROUND(Inputs!$C$32*$AJ$3*(1/(1+Q32*(2-1))),1),MROUND(Inputs!$C$30*$AJ$3*(1/(1+Q32*(2-1))),1)), IF(K32="TRUE 2",IF(I32="NT",MROUND(Inputs!$D$32*$AK$3*(1/(1+Q32*(2-1))),1),MROUND(Inputs!$D$30*$AK$3*(1/(1+Q32*(2-1))),1)), IF(K32="TRUE 3",IF(I32="NT",MROUND(Inputs!$E$32*$AL$3*(1/(1+Q32*(2-1))),1),MROUND(Inputs!$E$30*$AL$3*(1/(1+Q32*(2-1))),1)), IF(K32="TRUE 4",IF(I32="NT",MROUND(Inputs!$F$32*$AM$3*(1/(1+Q32*(2-1))),1),MROUND(Inputs!$F$30*$AM$3*(1/(1+Q32*(2-1))),1)), MROUND(Inputs!$C$15*(1/(1+Q32*(2-1)))*($AJ$3+$AJ$4),1))))) -> 7018 | AK32: -6902 | AL32: 0 | AM32: =(AL32/(1/(1+Q32*(2-1))))*S32/LEFT(Inputs!$C$18,1)/5280 -> 0 | AN32: 0 | AO32: =(AN32/60)*((Inputs!$C$13*AL32*(1-Q32))+(Inputs!$C$14*AL32*Q32)) -> 0 | AP32: =IF(AL32>0,($Q$5/60)*(((P32*$Q$3/(1-$Q$3))*(1-Q32)*Inputs!$C$13)+((P32*$Q$3/(1-$Q$3))*Q32*Inputs!$C$14)),0) -> 0 | AQ32: 0 | AS32: 2019-01-01T21:00:00 | AV32: =IF(AND(AT32<>"",AU32<>""),MAX(INDIRECT(AT32):INDIRECT(AU32)),"") -> 
A33: 2019-01-01 | B33: January | C33: 1 | D33: January-1-22 | E33: 3 | F33: Tuesday | G33: 22:00:00 | H33: 22 | I33: =INDEX(Lists!$R$3:$R$26,MATCH(Calculations!G33,Lists!$Q$3:$Q$26,0)) -> NT | J33: 70 | K33: =IF(INDEX(Inputs!$H$86:$H$253,MATCH(J33,Inputs!$D$86:$D$253,0)),"TRUE 4", IF(INDEX(Inputs!$G$86:$G$253,MATCH(J33,Inputs!$D$86:$D$253,0)),"TRUE 3", IF(INDEX(Inputs!$F$86:$F$253,MATCH(J33,Inputs!$D$86:$D$253,0)),"TRUE 2", IF(INDEX(Inputs!$E$86:$E$253,MATCH(J33,Inputs!$D$86:$D$253,0)),"TRUE 1", FALSE)))) -> FALSE | M33: ='Volume Import'!C24*'Volume Import'!$H$14*(1+'Volume Import'!$H$15)*(1-'Volume Import'!$H$16) -> 101 | N33: =IF(AND('Volume Import'!D24=0,'Volume Import'!C24=0),0, IF('Volume Import'!D24=0,INDEX('Volume Import'!$K$2:$Q$5,MATCH(I33,'Volume Import'!$R$2:$R$5,0),MATCH(F33,'Volume Import'!$K$1:$Q$1,0)), 'Volume Import'!D24/'Volume Import'!C24)) -> 0.0198019802 | P33: ='Volume Import'!E24*'Volume Import'!$I$14*(1+'Volume Import'!$I$15)*(1-'Volume Import'!$I$16) -> 66 | Q33: =IF('Volume Import'!F24=0,N33,'Volume Import'!F24/'Volume Import'!E24) -> 0.01515151515 | S33: =IF(K33="TRUE 1",IF(I33="NT",Inputs!$C$35,Inputs!$C$34), IF(K33="TRUE 2",IF(I33="NT",Inputs!$D$35,Inputs!$D$34), IF(K33="TRUE 3",IF(I33="NT",Inputs!$E$35,Inputs!$E$34), IF(K33="TRUE 4",IF(I33="NT",Inputs!$F$35,Inputs!$F$34), S32)))) -> 54.62255796 | T33: =IF(K33="TRUE 1",IF(I33="NT",MROUND(Inputs!$C$32*$T$3*(1/(1+N33*(2-1))),1),MROUND(Inputs!$C$30*$T$3*(1/(1+N33*(2-1))),1)), IF(K33="TRUE 2",IF(I33="NT",MROUND(Inputs!$D$32*$U$3*(1/(1+N33*(2-1))),1),MROUND(Inputs!$D$30*$U$3*(1/(1+N33*(2-1))),1)), IF(K33="TRUE 3",IF(I33="NT",MROUND(Inputs!$E$32*$V$3*(1/(1+N33*(2-1))),1),MROUND(Inputs!$E$30*$V$3*(1/(1+N33*(2-1))),1)), IF(K33="TRUE 4",IF(I33="NT",MROUND(Inputs!$F$32*$W$3*(1/(1+N33*(2-1))),1),MROUND(Inputs!$F$30*$W$3*(1/(1+N33*(2-1))),1)), MROUND(Inputs!$C$15*(1/(1+N33*(2-1)))*($T$3+$T$4),1))))) -> 7060 | U33: -6959 | V33: 0 | W33: =(V33/(1/(1+N33*(2-1))))*S33/LEFT(Inputs!$C$18,1)/5280 -> 0 | X33: 0 | Y33: =((X33/60)*((Inputs!$C$13*V33*(1-N33))+(Inputs!$C$14*V33*N33))) -> 0 | Z33: =IF(V33>0,($N$5/60)*(((M33*$N$3/(1-$N$3))*(1-N33)*Inputs!$C$13)+((M33*$N$3/(1-$N$3))*N33*Inputs!$C$14)),0) -> 0 | AA33: 0 | AC33: 2019-01-01T22:00:00 | AF33: =IF(AND(AD33<>"",AE33<>""),MAX(INDIRECT(AD33):INDIRECT(AE33)),"") ->  | AJ33: =IF(K33="TRUE 1",IF(I33="NT",MROUND(Inputs!$C$32*$AJ$3*(1/(1+Q33*(2-1))),1),MROUND(Inputs!$C$30*$AJ$3*(1/(1+Q33*(2-1))),1)), IF(K33="TRUE 2",IF(I33="NT",MROUND(Inputs!$D$32*$AK$3*(1/(1+Q33*(2-1))),1),MROUND(Inputs!$D$30*$AK$3*(1/(1+Q33*(2-1))),1)), IF(K33="TRUE 3",IF(I33="NT",MROUND(Inputs!$E$32*$AL$3*(1/(1+Q33*(2-1))),1),MROUND(Inputs!$E$30*$AL$3*(1/(1+Q33*(2-1))),1)), IF(K33="TRUE 4",IF(I33="NT",MROUND(Inputs!$F$32*$AM$3*(1/(1+Q33*(2-1))),1),MROUND(Inputs!$F$30*$AM$3*(1/(1+Q33*(2-1))),1)), MROUND(Inputs!$C$15*(1/(1+Q33*(2-1)))*($AJ$3+$AJ$4),1))))) -> 7093 | AK33: -7027 | AL33: 0 | AM33: =(AL33/(1/(1+Q33*(2-1))))*S33/LEFT(Inputs!$C$18,1)/5280 -> 0 | AN33: 0 | AO33: =(AN33/60)*((Inputs!$C$13*AL33*(1-Q33))+(Inputs!$C$14*AL33*Q33)) -> 0 | AP33: =IF(AL33>0,($Q$5/60)*(((P33*$Q$3/(1-$Q$3))*(1-Q33)*Inputs!$C$13)+((P33*$Q$3/(1-$Q$3))*Q33*Inputs!$C$14)),0) -> 0 | AQ33: 0 | AS33: 2019-01-01T22:00:00 | AV33: =IF(AND(AT33<>"",AU33<>""),MAX(INDIRECT(AT33):INDIRECT(AU33)),"") -> 
A34: 2019-01-01 | B34: January | C34: 1 | D34: January-1-23 | E34: 3 | F34: Tuesday | G34: 23:00:00 | H34: 23 | I34: =INDEX(Lists!$R$3:$R$26,MATCH(Calculations!G34,Lists!$Q$3:$Q$26,0)) -> NT | J34: 71 | K34: =IF(INDEX(Inputs!$H$86:$H$253,MATCH(J34,Inputs!$D$86:$D$253,0)),"TRUE 4", IF(INDEX(Inputs!$G$86:$G$253,MATCH(J34,Inputs!$D$86:$D$253,0)),"TRUE 3", IF(INDEX(Inputs!$F$86:$F$253,MATCH(J34,Inputs!$D$86:$D$253,0)),"TRUE 2", IF(INDEX(Inputs!$E$86:$E$253,MATCH(J34,Inputs!$D$86:$D$253,0)),"TRUE 1", FALSE)))) -> FALSE | M34: ='Volume Import'!C25*'Volume Import'!$H$14*(1+'Volume Import'!$H$15)*(1-'Volume Import'!$H$16) -> 61 | N34: =IF(AND('Volume Import'!D25=0,'Volume Import'!C25=0),0, IF('Volume Import'!D25=0,INDEX('Volume Import'!$K$2:$Q$5,MATCH(I34,'Volume Import'!$R$2:$R$5,0),MATCH(F34,'Volume Import'!$K$1:$Q$1,0)), 'Volume Import'!D25/'Volume Import'!C25)) -> 0.03278688525 | P34: ='Volume Import'!E25*'Volume Import'!$I$14*(1+'Volume Import'!$I$15)*(1-'Volume Import'!$I$16) -> 38 | Q34: =IF('Volume Import'!F25=0,N34,'Volume Import'!F25/'Volume Import'!E25) -> 0.1052631579 | S34: =IF(K34="TRUE 1",IF(I34="NT",Inputs!$C$35,Inputs!$C$34), IF(K34="TRUE 2",IF(I34="NT",Inputs!$D$35,Inputs!$D$34), IF(K34="TRUE 3",IF(I34="NT",Inputs!$E$35,Inputs!$E$34), IF(K34="TRUE 4",IF(I34="NT",Inputs!$F$35,Inputs!$F$34), S33)))) -> 54.62255796 | T34: =IF(K34="TRUE 1",IF(I34="NT",MROUND(Inputs!$C$32*$T$3*(1/(1+N34*(2-1))),1),MROUND(Inputs!$C$30*$T$3*(1/(1+N34*(2-1))),1)), IF(K34="TRUE 2",IF(I34="NT",MROUND(Inputs!$D$32*$U$3*(1/(1+N34*(2-1))),1),MROUND(Inputs!$D$30*$U$3*(1/(1+N34*(2-1))),1)), IF(K34="TRUE 3",IF(I34="NT",MROUND(Inputs!$E$32*$V$3*(1/(1+N34*(2-1))),1),MROUND(Inputs!$E$30*$V$3*(1/(1+N34*(2-1))),1)), IF(K34="TRUE 4",IF(I34="NT",MROUND(Inputs!$F$32*$W$3*(1/(1+N34*(2-1))),1),MROUND(Inputs!$F$30*$W$3*(1/(1+N34*(2-1))),1)), MROUND(Inputs!$C$15*(1/(1+N34*(2-1)))*($T$3+$T$4),1))))) -> 6971 | U34: -6910 | V34: 0 | W34: =(V34/(1/(1+N34*(2-1))))*S34/LEFT(Inputs!$C$18,1)/5280 -> 0 | X34: 0 | Y34: =((X34/60)*((Inputs!$C$13*V34*(1-N34))+(Inputs!$C$14*V34*N34))) -> 0 | Z34: =IF(V34>0,($N$5/60)*(((M34*$N$3/(1-$N$3))*(1-N34)*Inputs!$C$13)+((M34*$N$3/(1-$N$3))*N34*Inputs!$C$14)),0) -> 0 | AA34: 0 | AC34: 2019-01-01T23:00:00 | AF34: =IF(AND(AD34<>"",AE34<>""),MAX(INDIRECT(AD34):INDIRECT(AE34)),"") ->  | AJ34: =IF(K34="TRUE 1",IF(I34="NT",MROUND(Inputs!$C$32*$AJ$3*(1/(1+Q34*(2-1))),1),MROUND(Inputs!$C$30*$AJ$3*(1/(1+Q34*(2-1))),1)), IF(K34="TRUE 2",IF(I34="NT",MROUND(Inputs!$D$32*$AK$3*(1/(1+Q34*(2-1))),1),MROUND(Inputs!$D$30*$AK$3*(1/(1+Q34*(2-1))),1)), IF(K34="TRUE 3",IF(I34="NT",MROUND(Inputs!$E$32*$AL$3*(1/(1+Q34*(2-1))),1),MROUND(Inputs!$E$30*$AL$3*(1/(1+Q34*(2-1))),1)), IF(K34="TRUE 4",IF(I34="NT",MROUND(Inputs!$F$32*$AM$3*(1/(1+Q34*(2-1))),1),MROUND(Inputs!$F$30*$AM$3*(1/(1+Q34*(2-1))),1)), MROUND(Inputs!$C$15*(1/(1+Q34*(2-1)))*($AJ$3+$AJ$4),1))))) -> 6514 | AK34: -6476 | AL34: 0 | AM34: =(AL34/(1/(1+Q34*(2-1))))*S34/LEFT(Inputs!$C$18,1)/5280 -> 0 | AN34: 0 | AO34: =(AN34/60)*((Inputs!$C$13*AL34*(1-Q34))+(Inputs!$C$14*AL34*Q34)) -> 0 | AP34: =IF(AL34>0,($Q$5/60)*(((P34*$Q$3/(1-$Q$3))*(1-Q34)*Inputs!$C$13)+((P34*$Q$3/(1-$Q$3))*Q34*Inputs!$C$14)),0) -> 0 | AQ34: 0 | AS34: 2019-01-01T23:00:00 | AV34: =IF(AND(AT34<>"",AU34<>""),MAX(INDIRECT(AT34):INDIRECT(AU34)),"") -> 
A35: =A11+1 -> 2019-01-02 | B35: January | C35: 2 | D35: January-2-0 | E35: 4 | F35: Wednesday | G35: 00:00:00 | H35: 0 | I35: =INDEX(Lists!$R$3:$R$26,MATCH(Calculations!G35,Lists!$Q$3:$Q$26,0)) -> NT | J35: 72 | K35: =IF(INDEX(Inputs!$H$86:$H$253,MATCH(J35,Inputs!$D$86:$D$253,0)),"TRUE 4", IF(INDEX(Inputs!$G$86:$G$253,MATCH(J35,Inputs!$D$86:$D$253,0)),"TRUE 3", IF(INDEX(Inputs!$F$86:$F$253,MATCH(J35,Inputs!$D$86:$D$253,0)),"TRUE 2", IF(INDEX(Inputs!$E$86:$E$253,MATCH(J35,Inputs!$D$86:$D$253,0)),"TRUE 1", FALSE)))) -> FALSE | M35: ='Volume Import'!C26*'Volume Import'!$H$14*(1+'Volume Import'!$H$15)*(1-'Volume Import'!$H$16) -> 37 | N35: =IF(AND('Volume Import'!D26=0,'Volume Import'!C26=0),0, IF('Volume Import'!D26=0,INDEX('Volume Import'!$K$2:$Q$5,MATCH(I35,'Volume Import'!$R$2:$R$5,0),MATCH(F35,'Volume Import'!$K$1:$Q$1,0)), 'Volume Import'!D26/'Volume Import'!C26)) -> 0.08108108108 | P35: ='Volume Import'!E26*'Volume Import'!$I$14*(1+'Volume Import'!$I$15)*(1-'Volume Import'!$I$16) -> 26 | Q35: =IF('Volume Import'!F26=0,N35,'Volume Import'!F26/'Volume Import'!E26) -> 0.3461538462 | S35: =IF(K35="TRUE 1",IF(I35="NT",Inputs!$C$35,Inputs!$C$34), IF(K35="TRUE 2",IF(I35="NT",Inputs!$D$35,Inputs!$D$34), IF(K35="TRUE 3",IF(I35="NT",Inputs!$E$35,Inputs!$E$34), IF(K35="TRUE 4",IF(I35="NT",Inputs!$F$35,Inputs!$F$34), S34)))) -> 54.62255796 | T35: =IF(K35="TRUE 1",IF(I35="NT",MROUND(Inputs!$C$32*$T$3*(1/(1+N35*(2-1))),1),MROUND(Inputs!$C$30*$T$3*(1/(1+N35*(2-1))),1)), IF(K35="TRUE 2",IF(I35="NT",MROUND(Inputs!$D$32*$U$3*(1/(1+N35*(2-1))),1),MROUND(Inputs!$D$30*$U$3*(1/(1+N35*(2-1))),1)), IF(K35="TRUE 3",IF(I35="NT",MROUND(Inputs!$E$32*$V$3*(1/(1+N35*(2-1))),1),MROUND(Inputs!$E$30*$V$3*(1/(1+N35*(2-1))),1)), IF(K35="TRUE 4",IF(I35="NT",MROUND(Inputs!$F$32*$W$3*(1/(1+N35*(2-1))),1),MROUND(Inputs!$F$30*$W$3*(1/(1+N35*(2-1))),1)), MROUND(Inputs!$C$15*(1/(1+N35*(2-1)))*($T$3+$T$4),1))))) -> 6660 | U35: -6623 | V35: 0 | W35: =(V35/(1/(1+N35*(2-1))))*S35/LEFT(Inputs!$C$18,1)/5280 -> 0 | X35: 0 | Y35: =((X35/60)*((Inputs!$C$13*V35*(1-N35))+(Inputs!$C$14*V35*N35))) -> 0 | Z35: =IF(V35>0,($N$5/60)*(((M35*$N$3/(1-$N$3))*(1-N35)*Inputs!$C$13)+((M35*$N$3/(1-$N$3))*N35*Inputs!$C$14)),0) -> 0 | AA35: 0 | AC35: 2019-01-02 | AF35: =IF(AND(AD35<>"",AE35<>""),MAX(INDIRECT(AD35):INDIRECT(AE35)),"") ->  | AJ35: =IF(K35="TRUE 1",IF(I35="NT",MROUND(Inputs!$C$32*$AJ$3*(1/(1+Q35*(2-1))),1),MROUND(Inputs!$C$30*$AJ$3*(1/(1+Q35*(2-1))),1)), IF(K35="TRUE 2",IF(I35="NT",MROUND(Inputs!$D$32*$AK$3*(1/(1+Q35*(2-1))),1),MROUND(Inputs!$D$30*$AK$3*(1/(1+Q35*(2-1))),1)), IF(K35="TRUE 3",IF(I35="NT",MROUND(Inputs!$E$32*$AL$3*(1/(1+Q35*(2-1))),1),MROUND(Inputs!$E$30*$AL$3*(1/(1+Q35*(2-1))),1)), IF(K35="TRUE 4",IF(I35="NT",MROUND(Inputs!$F$32*$AM$3*(1/(1+Q35*(2-1))),1),MROUND(Inputs!$F$30*$AM$3*(1/(1+Q35*(2-1))),1)), MROUND(Inputs!$C$15*(1/(1+Q35*(2-1)))*($AJ$3+$AJ$4),1))))) -> 5349 | AK35: -5323 | AL35: 0 | AM35: =(AL35/(1/(1+Q35*(2-1))))*S35/LEFT(Inputs!$C$18,1)/5280 -> 0 | AN35: 0 | AO35: =(AN35/60)*((Inputs!$C$13*AL35*(1-Q35))+(Inputs!$C$14*AL35*Q35)) -> 0 | AP35: =IF(AL35>0,($Q$5/60)*(((P35*$Q$3/(1-$Q$3))*(1-Q35)*Inputs!$C$13)+((P35*$Q$3/(1-$Q$3))*Q35*Inputs!$C$14)),0) -> 0 | AQ35: 0 | AS35: 2019-01-02 | AV35: =IF(AND(AT35<>"",AU35<>""),MAX(INDIRECT(AT35):INDIRECT(AU35)),"") -> 
A36: =A12+1 -> 2019-01-02 | B36: January | C36: 2 | D36: January-2-1 | E36: 4 | F36: Wednesday | G36: 01:00:00 | H36: 1 | I36: =INDEX(Lists!$R$3:$R$26,MATCH(Calculations!G36,Lists!$Q$3:$Q$26,0)) -> NT | J36: 73 | K36: =IF(INDEX(Inputs!$H$86:$H$253,MATCH(J36,Inputs!$D$86:$D$253,0)),"TRUE 4", IF(INDEX(Inputs!$G$86:$G$253,MATCH(J36,Inputs!$D$86:$D$253,0)),"TRUE 3", IF(INDEX(Inputs!$F$86:$F$253,MATCH(J36,Inputs!$D$86:$D$253,0)),"TRUE 2", IF(INDEX(Inputs!$E$86:$E$253,MATCH(J36,Inputs!$D$86:$D$253,0)),"TRUE 1", FALSE)))) -> FALSE | M36: ='Volume Import'!C27*'Volume Import'!$H$14*(1+'Volume Import'!$H$15)*(1-'Volume Import'!$H$16) -> 22 | N36: =IF(AND('Volume Import'!D27=0,'Volume Import'!C27=0),0, IF('Volume Import'!D27=0,INDEX('Volume Import'!$K$2:$Q$5,MATCH(I36,'Volume Import'!$R$2:$R$5,0),MATCH(F36,'Volume Import'!$K$1:$Q$1,0)), 'Volume Import'!D27/'Volume Import'!C27)) -> 0.1818181818 | P36: ='Volume Import'!E27*'Volume Import'!$I$14*(1+'Volume Import'!$I$15)*(1-'Volume Import'!$I$16) -> 30 | Q36: =IF('Volume Import'!F27=0,N36,'Volume Import'!F27/'Volume Import'!E27) -> 0.1666666667 | S36: =IF(K36="TRUE 1",IF(I36="NT",Inputs!$C$35,Inputs!$C$34), IF(K36="TRUE 2",IF(I36="NT",Inputs!$D$35,Inputs!$D$34), IF(K36="TRUE 3",IF(I36="NT",Inputs!$E$35,Inputs!$E$34), IF(K36="TRUE 4",IF(I36="NT",Inputs!$F$35,Inputs!$F$34), S35)))) -> 54.62255796 | T36: =IF(K36="TRUE 1",IF(I36="NT",MROUND(Inputs!$C$32*$T$3*(1/(1+N36*(2-1))),1),MROUND(Inputs!$C$30*$T$3*(1/(1+N36*(2-1))),1)), IF(K36="TRUE 2",IF(I36="NT",MROUND(Inputs!$D$32*$U$3*(1/(1+N36*(2-1))),1),MROUND(Inputs!$D$30*$U$3*(1/(1+N36*(2-1))),1)), IF(K36="TRUE 3",IF(I36="NT",MROUND(Inputs!$E$32*$V$3*(1/(1+N36*(2-1))),1),MROUND(Inputs!$E$30*$V$3*(1/(1+N36*(2-1))),1)), IF(K36="TRUE 4",IF(I36="NT",MROUND(Inputs!$F$32*$W$3*(1/(1+N36*(2-1))),1),MROUND(Inputs!$F$30*$W$3*(1/(1+N36*(2-1))),1)), MROUND(Inputs!$C$15*(1/(1+N36*(2-1)))*($T$3+$T$4),1))))) -> 6092 | U36: -6070 | V36: 0 | W36: =(V36/(1/(1+N36*(2-1))))*S36/LEFT(Inputs!$C$18,1)/5280 -> 0 | X36: 0 | Y36: =((X36/60)*((Inputs!$C$13*V36*(1-N36))+(Inputs!$C$14*V36*N36))) -> 0 | Z36: =IF(V36>0,($N$5/60)*(((M36*$N$3/(1-$N$3))*(1-N36)*Inputs!$C$13)+((M36*$N$3/(1-$N$3))*N36*Inputs!$C$14)),0) -> 0 | AA36: 0 | AC36: 2019-01-02T01:00:00 | AF36: =IF(AND(AD36<>"",AE36<>""),MAX(INDIRECT(AD36):INDIRECT(AE36)),"") ->  | AJ36: =IF(K36="TRUE 1",IF(I36="NT",MROUND(Inputs!$C$32*$AJ$3*(1/(1+Q36*(2-1))),1),MROUND(Inputs!$C$30*$AJ$3*(1/(1+Q36*(2-1))),1)), IF(K36="TRUE 2",IF(I36="NT",MROUND(Inputs!$D$32*$AK$3*(1/(1+Q36*(2-1))),1),MROUND(Inputs!$D$30*$AK$3*(1/(1+Q36*(2-1))),1)), IF(K36="TRUE 3",IF(I36="NT",MROUND(Inputs!$E$32*$AL$3*(1/(1+Q36*(2-1))),1),MROUND(Inputs!$E$30*$AL$3*(1/(1+Q36*(2-1))),1)), IF(K36="TRUE 4",IF(I36="NT",MROUND(Inputs!$F$32*$AM$3*(1/(1+Q36*(2-1))),1),MROUND(Inputs!$F$30*$AM$3*(1/(1+Q36*(2-1))),1)), MROUND(Inputs!$C$15*(1/(1+Q36*(2-1)))*($AJ$3+$AJ$4),1))))) -> 6171 | AK36: -6141 | AL36: 0 | AM36: =(AL36/(1/(1+Q36*(2-1))))*S36/LEFT(Inputs!$C$18,1)/5280 -> 0 | AN36: 0 | AO36: =(AN36/60)*((Inputs!$C$13*AL36*(1-Q36))+(Inputs!$C$14*AL36*Q36)) -> 0 | AP36: =IF(AL36>0,($Q$5/60)*(((P36*$Q$3/(1-$Q$3))*(1-Q36)*Inputs!$C$13)+((P36*$Q$3/(1-$Q$3))*Q36*Inputs!$C$14)),0) -> 0 | AQ36: 0 | AS36: 2019-01-02T01:00:00 | AV36: =IF(AND(AT36<>"",AU36<>""),MAX(INDIRECT(AT36):INDIRECT(AU36)),"") -> 
A37: 2019-01-02 | B37: January | C37: 2 | D37: January-2-2 | E37: 4 | F37: Wednesday | G37: 02:00:00 | H37: 2 | I37: =INDEX(Lists!$R$3:$R$26,MATCH(Calculations!G37,Lists!$Q$3:$Q$26,0)) -> NT | J37: 74 | K37: =IF(INDEX(Inputs!$H$86:$H$253,MATCH(J37,Inputs!$D$86:$D$253,0)),"TRUE 4", IF(INDEX(Inputs!$G$86:$G$253,MATCH(J37,Inputs!$D$86:$D$253,0)),"TRUE 3", IF(INDEX(Inputs!$F$86:$F$253,MATCH(J37,Inputs!$D$86:$D$253,0)),"TRUE 2", IF(INDEX(Inputs!$E$86:$E$253,MATCH(J37,Inputs!$D$86:$D$253,0)),"TRUE 1", FALSE)))) -> FALSE | M37: ='Volume Import'!C28*'Volume Import'!$H$14*(1+'Volume Import'!$H$15)*(1-'Volume Import'!$H$16) -> 19 | N37: =IF(AND('Volume Import'!D28=0,'Volume Import'!C28=0),0, IF('Volume Import'!D28=0,INDEX('Volume Import'!$K$2:$Q$5,MATCH(I37,'Volume Import'!$R$2:$R$5,0),MATCH(F37,'Volume Import'!$K$1:$Q$1,0)), 'Volume Import'!D28/'Volume Import'!C28)) -> 0.2631578947 | P37: ='Volume Import'!E28*'Volume Import'!$I$14*(1+'Volume Import'!$I$15)*(1-'Volume Import'!$I$16) -> 47 | Q37: =IF('Volume Import'!F28=0,N37,'Volume Import'!F28/'Volume Import'!E28) -> 0.1489361702 | S37: =IF(K37="TRUE 1",IF(I37="NT",Inputs!$C$35,Inputs!$C$34), IF(K37="TRUE 2",IF(I37="NT",Inputs!$D$35,Inputs!$D$34), IF(K37="TRUE 3",IF(I37="NT",Inputs!$E$35,Inputs!$E$34), IF(K37="TRUE 4",IF(I37="NT",Inputs!$F$35,Inputs!$F$34), S36)))) -> 54.62255796 | T37: =IF(K37="TRUE 1",IF(I37="NT",MROUND(Inputs!$C$32*$T$3*(1/(1+N37*(2-1))),1),MROUND(Inputs!$C$30*$T$3*(1/(1+N37*(2-1))),1)), IF(K37="TRUE 2",IF(I37="NT",MROUND(Inputs!$D$32*$U$3*(1/(1+N37*(2-1))),1),MROUND(Inputs!$D$30*$U$3*(1/(1+N37*(2-1))),1)), IF(K37="TRUE 3",IF(I37="NT",MROUND(Inputs!$E$32*$V$3*(1/(1+N37*(2-1))),1),MROUND(Inputs!$E$30*$V$3*(1/(1+N37*(2-1))),1)), IF(K37="TRUE 4",IF(I37="NT",MROUND(Inputs!$F$32*$W$3*(1/(1+N37*(2-1))),1),MROUND(Inputs!$F$30*$W$3*(1/(1+N37*(2-1))),1)), MROUND(Inputs!$C$15*(1/(1+N37*(2-1)))*($T$3+$T$4),1))))) -> 5700 | U37: -5681 | V37: 0 | W37: =(V37/(1/(1+N37*(2-1))))*S37/LEFT(Inputs!$C$18,1)/5280 -> 0 | X37: 0 | Y37: =((X37/60)*((Inputs!$C$13*V37*(1-N37))+(Inputs!$C$14*V37*N37))) -> 0 | Z37: =IF(V37>0,($N$5/60)*(((M37*$N$3/(1-$N$3))*(1-N37)*Inputs!$C$13)+((M37*$N$3/(1-$N$3))*N37*Inputs!$C$14)),0) -> 0 | AA37: 0 | AC37: 2019-01-02T02:00:00 | AF37: =IF(AND(AD37<>"",AE37<>""),MAX(INDIRECT(AD37):INDIRECT(AE37)),"") ->  | AJ37: =IF(K37="TRUE 1",IF(I37="NT",MROUND(Inputs!$C$32*$AJ$3*(1/(1+Q37*(2-1))),1),MROUND(Inputs!$C$30*$AJ$3*(1/(1+Q37*(2-1))),1)), IF(K37="TRUE 2",IF(I37="NT",MROUND(Inputs!$D$32*$AK$3*(1/(1+Q37*(2-1))),1),MROUND(Inputs!$D$30*$AK$3*(1/(1+Q37*(2-1))),1)), IF(K37="TRUE 3",IF(I37="NT",MROUND(Inputs!$E$32*$AL$3*(1/(1+Q37*(2-1))),1),MROUND(Inputs!$E$30*$AL$3*(1/(1+Q37*(2-1))),1)), IF(K37="TRUE 4",IF(I37="NT",MROUND(Inputs!$F$32*$AM$3*(1/(1+Q37*(2-1))),1),MROUND(Inputs!$F$30*$AM$3*(1/(1+Q37*(2-1))),1)), MROUND(Inputs!$C$15*(1/(1+Q37*(2-1)))*($AJ$3+$AJ$4),1))))) -> 6267 | AK37: -6220 | AL37: 0 | AM37: =(AL37/(1/(1+Q37*(2-1))))*S37/LEFT(Inputs!$C$18,1)/5280 -> 0 | AN37: 0 | AO37: =(AN37/60)*((Inputs!$C$13*AL37*(1-Q37))+(Inputs!$C$14*AL37*Q37)) -> 0 | AP37: =IF(AL37>0,($Q$5/60)*(((P37*$Q$3/(1-$Q$3))*(1-Q37)*Inputs!$C$13)+((P37*$Q$3/(1-$Q$3))*Q37*Inputs!$C$14)),0) -> 0 | AQ37: 0 | AS37: 2019-01-02T02:00:00 | AV37: =IF(AND(AT37<>"",AU37<>""),MAX(INDIRECT(AT37):INDIRECT(AU37)),"") -> 
A38: 2019-01-02 | B38: January | C38: 2 | D38: January-2-3 | E38: 4 | F38: Wednesday | G38: 03:00:00 | H38: 3 | I38: =INDEX(Lists!$R$3:$R$26,MATCH(Calculations!G38,Lists!$Q$3:$Q$26,0)) -> NT | J38: 75 | K38: =IF(INDEX(Inputs!$H$86:$H$253,MATCH(J38,Inputs!$D$86:$D$253,0)),"TRUE 4", IF(INDEX(Inputs!$G$86:$G$253,MATCH(J38,Inputs!$D$86:$D$253,0)),"TRUE 3", IF(INDEX(Inputs!$F$86:$F$253,MATCH(J38,Inputs!$D$86:$D$253,0)),"TRUE 2", IF(INDEX(Inputs!$E$86:$E$253,MATCH(J38,Inputs!$D$86:$D$253,0)),"TRUE 1", FALSE)))) -> FALSE | M38: ='Volume Import'!C29*'Volume Import'!$H$14*(1+'Volume Import'!$H$15)*(1-'Volume Import'!$H$16) -> 25 | N38: =IF(AND('Volume Import'!D29=0,'Volume Import'!C29=0),0, IF('Volume Import'!D29=0,INDEX('Volume Import'!$K$2:$Q$5,MATCH(I38,'Volume Import'!$R$2:$R$5,0),MATCH(F38,'Volume Import'!$K$1:$Q$1,0)), 'Volume Import'!D29/'Volume Import'!C29)) -> 0.24 | P38: ='Volume Import'!E29*'Volume Import'!$I$14*(1+'Volume Import'!$I$15)*(1-'Volume Import'!$I$16) -> 63 | Q38: =IF('Volume Import'!F29=0,N38,'Volume Import'!F29/'Volume Import'!E29) -> 0.1587301587 | S38: =IF(K38="TRUE 1",IF(I38="NT",Inputs!$C$35,Inputs!$C$34), IF(K38="TRUE 2",IF(I38="NT",Inputs!$D$35,Inputs!$D$34), IF(K38="TRUE 3",IF(I38="NT",Inputs!$E$35,Inputs!$E$34), IF(K38="TRUE 4",IF(I38="NT",Inputs!$F$35,Inputs!$F$34), S37)))) -> 54.62255796 | T38: =IF(K38="TRUE 1",IF(I38="NT",MROUND(Inputs!$C$32*$T$3*(1/(1+N38*(2-1))),1),MROUND(Inputs!$C$30*$T$3*(1/(1+N38*(2-1))),1)), IF(K38="TRUE 2",IF(I38="NT",MROUND(Inputs!$D$32*$U$3*(1/(1+N38*(2-1))),1),MROUND(Inputs!$D$30*$U$3*(1/(1+N38*(2-1))),1)), IF(K38="TRUE 3",IF(I38="NT",MROUND(Inputs!$E$32*$V$3*(1/(1+N38*(2-1))),1),MROUND(Inputs!$E$30*$V$3*(1/(1+N38*(2-1))),1)), IF(K38="TRUE 4",IF(I38="NT",MROUND(Inputs!$F$32*$W$3*(1/(1+N38*(2-1))),1),MROUND(Inputs!$F$30*$W$3*(1/(1+N38*(2-1))),1)), MROUND(Inputs!$C$15*(1/(1+N38*(2-1)))*($T$3+$T$4),1))))) -> 5806 | U38: -5781 | V38: 0 | W38: =(V38/(1/(1+N38*(2-1))))*S38/LEFT(Inputs!$C$18,1)/5280 -> 0 | X38: 0 | Y38: =((X38/60)*((Inputs!$C$13*V38*(1-N38))+(Inputs!$C$14*V38*N38))) -> 0 | Z38: =IF(V38>0,($N$5/60)*(((M38*$N$3/(1-$N$3))*(1-N38)*Inputs!$C$13)+((M38*$N$3/(1-$N$3))*N38*Inputs!$C$14)),0) -> 0 | AA38: 0 | AC38: 2019-01-02T03:00:00 | AF38: =IF(AND(AD38<>"",AE38<>""),MAX(INDIRECT(AD38):INDIRECT(AE38)),"") ->  | AJ38: =IF(K38="TRUE 1",IF(I38="NT",MROUND(Inputs!$C$32*$AJ$3*(1/(1+Q38*(2-1))),1),MROUND(Inputs!$C$30*$AJ$3*(1/(1+Q38*(2-1))),1)), IF(K38="TRUE 2",IF(I38="NT",MROUND(Inputs!$D$32*$AK$3*(1/(1+Q38*(2-1))),1),MROUND(Inputs!$D$30*$AK$3*(1/(1+Q38*(2-1))),1)), IF(K38="TRUE 3",IF(I38="NT",MROUND(Inputs!$E$32*$AL$3*(1/(1+Q38*(2-1))),1),MROUND(Inputs!$E$30*$AL$3*(1/(1+Q38*(2-1))),1)), IF(K38="TRUE 4",IF(I38="NT",MROUND(Inputs!$F$32*$AM$3*(1/(1+Q38*(2-1))),1),MROUND(Inputs!$F$30*$AM$3*(1/(1+Q38*(2-1))),1)), MROUND(Inputs!$C$15*(1/(1+Q38*(2-1)))*($AJ$3+$AJ$4),1))))) -> 6214 | AK38: -6151 | AL38: 0 | AM38: =(AL38/(1/(1+Q38*(2-1))))*S38/LEFT(Inputs!$C$18,1)/5280 -> 0 | AN38: 0 | AO38: =(AN38/60)*((Inputs!$C$13*AL38*(1-Q38))+(Inputs!$C$14*AL38*Q38)) -> 0 | AP38: =IF(AL38>0,($Q$5/60)*(((P38*$Q$3/(1-$Q$3))*(1-Q38)*Inputs!$C$13)+((P38*$Q$3/(1-$Q$3))*Q38*Inputs!$C$14)),0) -> 0 | AQ38: 0 | AS38: 2019-01-02T03:00:00 | AV38: =IF(AND(AT38<>"",AU38<>""),MAX(INDIRECT(AT38):INDIRECT(AU38)),"") -> 
A39: 2019-01-02 | B39: January | C39: 2 | D39: January-2-4 | E39: 4 | F39: Wednesday | G39: 04:00:00 | H39: 4 | I39: =INDEX(Lists!$R$3:$R$26,MATCH(Calculations!G39,Lists!$Q$3:$Q$26,0)) -> NT | J39: 76 | K39: =IF(INDEX(Inputs!$H$86:$H$253,MATCH(J39,Inputs!$D$86:$D$253,0)),"TRUE 4", IF(INDEX(Inputs!$G$86:$G$253,MATCH(J39,Inputs!$D$86:$D$253,0)),"TRUE 3", IF(INDEX(Inputs!$F$86:$F$253,MATCH(J39,Inputs!$D$86:$D$253,0)),"TRUE 2", IF(INDEX(Inputs!$E$86:$E$253,MATCH(J39,Inputs!$D$86:$D$253,0)),"TRUE 1", FALSE)))) -> FALSE | M39: ='Volume Import'!C30*'Volume Import'!$H$14*(1+'Volume Import'!$H$15)*(1-'Volume Import'!$H$16) -> 42 | N39: =IF(AND('Volume Import'!D30=0,'Volume Import'!C30=0),0, IF('Volume Import'!D30=0,INDEX('Volume Import'!$K$2:$Q$5,MATCH(I39,'Volume Import'!$R$2:$R$5,0),MATCH(F39,'Volume Import'!$K$1:$Q$1,0)), 'Volume Import'!D30/'Volume Import'!C30)) -> 0.3333333333 | P39: ='Volume Import'!E30*'Volume Import'!$I$14*(1+'Volume Import'!$I$15)*(1-'Volume Import'!$I$16) -> 258 | Q39: =IF('Volume Import'!F30=0,N39,'Volume Import'!F30/'Volume Import'!E30) -> 0.0503875969 | S39: =IF(K39="TRUE 1",IF(I39="NT",Inputs!$C$35,Inputs!$C$34), IF(K39="TRUE 2",IF(I39="NT",Inputs!$D$35,Inputs!$D$34), IF(K39="TRUE 3",IF(I39="NT",Inputs!$E$35,Inputs!$E$34), IF(K39="TRUE 4",IF(I39="NT",Inputs!$F$35,Inputs!$F$34), S38)))) -> 54.62255796 | T39: =IF(K39="TRUE 1",IF(I39="NT",MROUND(Inputs!$C$32*$T$3*(1/(1+N39*(2-1))),1),MROUND(Inputs!$C$30*$T$3*(1/(1+N39*(2-1))),1)), IF(K39="TRUE 2",IF(I39="NT",MROUND(Inputs!$D$32*$U$3*(1/(1+N39*(2-1))),1),MROUND(Inputs!$D$30*$U$3*(1/(1+N39*(2-1))),1)), IF(K39="TRUE 3",IF(I39="NT",MROUND(Inputs!$E$32*$V$3*(1/(1+N39*(2-1))),1),MROUND(Inputs!$E$30*$V$3*(1/(1+N39*(2-1))),1)), IF(K39="TRUE 4",IF(I39="NT",MROUND(Inputs!$F$32*$W$3*(1/(1+N39*(2-1))),1),MROUND(Inputs!$F$30*$W$3*(1/(1+N39*(2-1))),1)), MROUND(Inputs!$C$15*(1/(1+N39*(2-1)))*($T$3+$T$4),1))))) -> 5400 | U39: -5358 | V39: 0 | W39: =(V39/(1/(1+N39*(2-1))))*S39/LEFT(Inputs!$C$18,1)/5280 -> 0 | X39: 0 | Y39: =((X39/60)*((Inputs!$C$13*V39*(1-N39))+(Inputs!$C$14*V39*N39))) -> 0 | Z39: =IF(V39>0,($N$5/60)*(((M39*$N$3/(1-$N$3))*(1-N39)*Inputs!$C$13)+((M39*$N$3/(1-$N$3))*N39*Inputs!$C$14)),0) -> 0 | AA39: 0 | AC39: 2019-01-02T04:00:00 | AF39: =IF(AND(AD39<>"",AE39<>""),MAX(INDIRECT(AD39):INDIRECT(AE39)),"") ->  | AJ39: =IF(K39="TRUE 1",IF(I39="NT",MROUND(Inputs!$C$32*$AJ$3*(1/(1+Q39*(2-1))),1),MROUND(Inputs!$C$30*$AJ$3*(1/(1+Q39*(2-1))),1)), IF(K39="TRUE 2",IF(I39="NT",MROUND(Inputs!$D$32*$AK$3*(1/(1+Q39*(2-1))),1),MROUND(Inputs!$D$30*$AK$3*(1/(1+Q39*(2-1))),1)), IF(K39="TRUE 3",IF(I39="NT",MROUND(Inputs!$E$32*$AL$3*(1/(1+Q39*(2-1))),1),MROUND(Inputs!$E$30*$AL$3*(1/(1+Q39*(2-1))),1)), IF(K39="TRUE 4",IF(I39="NT",MROUND(Inputs!$F$32*$AM$3*(1/(1+Q39*(2-1))),1),MROUND(Inputs!$F$30*$AM$3*(1/(1+Q39*(2-1))),1)), MROUND(Inputs!$C$15*(1/(1+Q39*(2-1)))*($AJ$3+$AJ$4),1))))) -> 6855 | AK39: -6597 | AL39: 0 | AM39: =(AL39/(1/(1+Q39*(2-1))))*S39/LEFT(Inputs!$C$18,1)/5280 -> 0 | AN39: 0 | AO39: =(AN39/60)*((Inputs!$C$13*AL39*(1-Q39))+(Inputs!$C$14*AL39*Q39)) -> 0 | AP39: =IF(AL39>0,($Q$5/60)*(((P39*$Q$3/(1-$Q$3))*(1-Q39)*Inputs!$C$13)+((P39*$Q$3/(1-$Q$3))*Q39*Inputs!$C$14)),0) -> 0 | AQ39: 0 | AS39: 2019-01-02T04:00:00 | AV39: =IF(AND(AT39<>"",AU39<>""),MAX(INDIRECT(AT39):INDIRECT(AU39)),"") -> 
A40: 2019-01-02 | B40: January | C40: 2 | D40: January-2-5 | E40: 4 | F40: Wednesday | G40: 05:00:00 | H40: 5 | I40: =INDEX(Lists!$R$3:$R$26,MATCH(Calculations!G40,Lists!$Q$3:$Q$26,0)) -> NT | J40: 77 | K40: =IF(INDEX(Inputs!$H$86:$H$253,MATCH(J40,Inputs!$D$86:$D$253,0)),"TRUE 4", IF(INDEX(Inputs!$G$86:$G$253,MATCH(J40,Inputs!$D$86:$D$253,0)),"TRUE 3", IF(INDEX(Inputs!$F$86:$F$253,MATCH(J40,Inputs!$D$86:$D$253,0)),"TRUE 2", IF(INDEX(Inputs!$E$86:$E$253,MATCH(J40,Inputs!$D$86:$D$253,0)),"TRUE 1", FALSE)))) -> FALSE | M40: ='Volume Import'!C31*'Volume Import'!$H$14*(1+'Volume Import'!$H$15)*(1-'Volume Import'!$H$16) -> 106 | N40: =IF(AND('Volume Import'!D31=0,'Volume Import'!C31=0),0, IF('Volume Import'!D31=0,INDEX('Volume Import'!$K$2:$Q$5,MATCH(I40,'Volume Import'!$R$2:$R$5,0),MATCH(F40,'Volume Import'!$K$1:$Q$1,0)), 'Volume Import'!D31/'Volume Import'!C31)) -> 0.2264150943 | P40: ='Volume Import'!E31*'Volume Import'!$I$14*(1+'Volume Import'!$I$15)*(1-'Volume Import'!$I$16) -> 459 | Q40: =IF('Volume Import'!F31=0,N40,'Volume Import'!F31/'Volume Import'!E31) -> 0.02396514161 | S40: =IF(K40="TRUE 1",IF(I40="NT",Inputs!$C$35,Inputs!$C$34), IF(K40="TRUE 2",IF(I40="NT",Inputs!$D$35,Inputs!$D$34), IF(K40="TRUE 3",IF(I40="NT",Inputs!$E$35,Inputs!$E$34), IF(K40="TRUE 4",IF(I40="NT",Inputs!$F$35,Inputs!$F$34), S39)))) -> 54.62255796 | T40: =IF(K40="TRUE 1",IF(I40="NT",MROUND(Inputs!$C$32*$T$3*(1/(1+N40*(2-1))),1),MROUND(Inputs!$C$30*$T$3*(1/(1+N40*(2-1))),1)), IF(K40="TRUE 2",IF(I40="NT",MROUND(Inputs!$D$32*$U$3*(1/(1+N40*(2-1))),1),MROUND(Inputs!$D$30*$U$3*(1/(1+N40*(2-1))),1)), IF(K40="TRUE 3",IF(I40="NT",MROUND(Inputs!$E$32*$V$3*(1/(1+N40*(2-1))),1),MROUND(Inputs!$E$30*$V$3*(1/(1+N40*(2-1))),1)), IF(K40="TRUE 4",IF(I40="NT",MROUND(Inputs!$F$32*$W$3*(1/(1+N40*(2-1))),1),MROUND(Inputs!$F$30*$W$3*(1/(1+N40*(2-1))),1)), MROUND(Inputs!$C$15*(1/(1+N40*(2-1)))*($T$3+$T$4),1))))) -> 5871 | U40: -5765 | V40: 0 | W40: =(V40/(1/(1+N40*(2-1))))*S40/LEFT(Inputs!$C$18,1)/5280 -> 0 | X40: 0 | Y40: =((X40/60)*((Inputs!$C$13*V40*(1-N40))+(Inputs!$C$14*V40*N40))) -> 0 | Z40: =IF(V40>0,($N$5/60)*(((M40*$N$3/(1-$N$3))*(1-N40)*Inputs!$C$13)+((M40*$N$3/(1-$N$3))*N40*Inputs!$C$14)),0) -> 0 | AA40: 0 | AC40: 2019-01-02T05:00:00 | AF40: =IF(AND(AD40<>"",AE40<>""),MAX(INDIRECT(AD40):INDIRECT(AE40)),"") ->  | AJ40: =IF(K40="TRUE 1",IF(I40="NT",MROUND(Inputs!$C$32*$AJ$3*(1/(1+Q40*(2-1))),1),MROUND(Inputs!$C$30*$AJ$3*(1/(1+Q40*(2-1))),1)), IF(K40="TRUE 2",IF(I40="NT",MROUND(Inputs!$D$32*$AK$3*(1/(1+Q40*(2-1))),1),MROUND(Inputs!$D$30*$AK$3*(1/(1+Q40*(2-1))),1)), IF(K40="TRUE 3",IF(I40="NT",MROUND(Inputs!$E$32*$AL$3*(1/(1+Q40*(2-1))),1),MROUND(Inputs!$E$30*$AL$3*(1/(1+Q40*(2-1))),1)), IF(K40="TRUE 4",IF(I40="NT",MROUND(Inputs!$F$32*$AM$3*(1/(1+Q40*(2-1))),1),MROUND(Inputs!$F$30*$AM$3*(1/(1+Q40*(2-1))),1)), MROUND(Inputs!$C$15*(1/(1+Q40*(2-1)))*($AJ$3+$AJ$4),1))))) -> 7031 | AK40: -6572 | AL40: 0 | AM40: =(AL40/(1/(1+Q40*(2-1))))*S40/LEFT(Inputs!$C$18,1)/5280 -> 0 | AN40: 0 | AO40: =(AN40/60)*((Inputs!$C$13*AL40*(1-Q40))+(Inputs!$C$14*AL40*Q40)) -> 0 | AP40: =IF(AL40>0,($Q$5/60)*(((P40*$Q$3/(1-$Q$3))*(1-Q40)*Inputs!$C$13)+((P40*$Q$3/(1-$Q$3))*Q40*Inputs!$C$14)),0) -> 0 | AQ40: 0 | AS40: 2019-01-02T05:00:00 | AV40: =IF(AND(AT40<>"",AU40<>""),MAX(INDIRECT(AT40):INDIRECT(AU40)),"") -> 
A41: 2019-01-02 | B41: January | C41: 2 | D41: January-2-6 | E41: 4 | F41: Wednesday | G41: 06:00:00 | H41: 6 | I41: =INDEX(Lists!$R$3:$R$26,MATCH(Calculations!G41,Lists!$Q$3:$Q$26,0)) -> AM | J41: 78 | K41: =IF(INDEX(Inputs!$H$86:$H$253,MATCH(J41,Inputs!$D$86:$D$253,0)),"TRUE 4", IF(INDEX(Inputs!$G$86:$G$253,MATCH(J41,Inputs!$D$86:$D$253,0)),"TRUE 3", IF(INDEX(Inputs!$F$86:$F$253,MATCH(J41,Inputs!$D$86:$D$253,0)),"TRUE 2", IF(INDEX(Inputs!$E$86:$E$253,MATCH(J41,Inputs!$D$86:$D$253,0)),"TRUE 1", FALSE)))) -> FALSE | M41: ='Volume Import'!C32*'Volume Import'!$H$14*(1+'Volume Import'!$H$15)*(1-'Volume Import'!$H$16) -> 274 | N41: =IF(AND('Volume Import'!D32=0,'Volume Import'!C32=0),0, IF('Volume Import'!D32=0,INDEX('Volume Import'!$K$2:$Q$5,MATCH(I41,'Volume Import'!$R$2:$R$5,0),MATCH(F41,'Volume Import'!$K$1:$Q$1,0)), 'Volume Import'!D32/'Volume Import'!C32)) -> 0.1386861314 | P41: ='Volume Import'!E32*'Volume Import'!$I$14*(1+'Volume Import'!$I$15)*(1-'Volume Import'!$I$16) -> 971 | Q41: =IF('Volume Import'!F32=0,N41,'Volume Import'!F32/'Volume Import'!E32) -> 0.03913491246 | S41: =IF(K41="TRUE 1",IF(I41="NT",Inputs!$C$35,Inputs!$C$34), IF(K41="TRUE 2",IF(I41="NT",Inputs!$D$35,Inputs!$D$34), IF(K41="TRUE 3",IF(I41="NT",Inputs!$E$35,Inputs!$E$34), IF(K41="TRUE 4",IF(I41="NT",Inputs!$F$35,Inputs!$F$34), S40)))) -> 54.62255796 | T41: =IF(K41="TRUE 1",IF(I41="NT",MROUND(Inputs!$C$32*$T$3*(1/(1+N41*(2-1))),1),MROUND(Inputs!$C$30*$T$3*(1/(1+N41*(2-1))),1)), IF(K41="TRUE 2",IF(I41="NT",MROUND(Inputs!$D$32*$U$3*(1/(1+N41*(2-1))),1),MROUND(Inputs!$D$30*$U$3*(1/(1+N41*(2-1))),1)), IF(K41="TRUE 3",IF(I41="NT",MROUND(Inputs!$E$32*$V$3*(1/(1+N41*(2-1))),1),MROUND(Inputs!$E$30*$V$3*(1/(1+N41*(2-1))),1)), IF(K41="TRUE 4",IF(I41="NT",MROUND(Inputs!$F$32*$W$3*(1/(1+N41*(2-1))),1),MROUND(Inputs!$F$30*$W$3*(1/(1+N41*(2-1))),1)), MROUND(Inputs!$C$15*(1/(1+N41*(2-1)))*($T$3+$T$4),1))))) -> 6323 | U41: -6049 | V41: 0 | W41: =(V41/(1/(1+N41*(2-1))))*S41/LEFT(Inputs!$C$18,1)/5280 -> 0 | X41: 0 | Y41: =((X41/60)*((Inputs!$C$13*V41*(1-N41))+(Inputs!$C$14*V41*N41))) -> 0 | Z41: =IF(V41>0,($N$5/60)*(((M41*$N$3/(1-$N$3))*(1-N41)*Inputs!$C$13)+((M41*$N$3/(1-$N$3))*N41*Inputs!$C$14)),0) -> 0 | AA41: 0 | AC41: 2019-01-02T06:00:00 | AF41: =IF(AND(AD41<>"",AE41<>""),MAX(INDIRECT(AD41):INDIRECT(AE41)),"") ->  | AJ41: =IF(K41="TRUE 1",IF(I41="NT",MROUND(Inputs!$C$32*$AJ$3*(1/(1+Q41*(2-1))),1),MROUND(Inputs!$C$30*$AJ$3*(1/(1+Q41*(2-1))),1)), IF(K41="TRUE 2",IF(I41="NT",MROUND(Inputs!$D$32*$AK$3*(1/(1+Q41*(2-1))),1),MROUND(Inputs!$D$30*$AK$3*(1/(1+Q41*(2-1))),1)), IF(K41="TRUE 3",IF(I41="NT",MROUND(Inputs!$E$32*$AL$3*(1/(1+Q41*(2-1))),1),MROUND(Inputs!$E$30*$AL$3*(1/(1+Q41*(2-1))),1)), IF(K41="TRUE 4",IF(I41="NT",MROUND(Inputs!$F$32*$AM$3*(1/(1+Q41*(2-1))),1),MROUND(Inputs!$F$30*$AM$3*(1/(1+Q41*(2-1))),1)), MROUND(Inputs!$C$15*(1/(1+Q41*(2-1)))*($AJ$3+$AJ$4),1))))) -> 6929 | AK41: -5958 | AL41: 0 | AM41: =(AL41/(1/(1+Q41*(2-1))))*S41/LEFT(Inputs!$C$18,1)/5280 -> 0 | AN41: 0 | AO41: =(AN41/60)*((Inputs!$C$13*AL41*(1-Q41))+(Inputs!$C$14*AL41*Q41)) -> 0 | AP41: =IF(AL41>0,($Q$5/60)*(((P41*$Q$3/(1-$Q$3))*(1-Q41)*Inputs!$C$13)+((P41*$Q$3/(1-$Q$3))*Q41*Inputs!$C$14)),0) -> 0 | AQ41: 0 | AS41: 2019-01-02T06:00:00 | AV41: =IF(AND(AT41<>"",AU41<>""),MAX(INDIRECT(AT41):INDIRECT(AU41)),"") -> 
A42: 2019-01-02 | B42: January | C42: 2 | D42: January-2-7 | E42: 4 | F42: Wednesday | G42: 07:00:00 | H42: 7 | I42: =INDEX(Lists!$R$3:$R$26,MATCH(Calculations!G42,Lists!$Q$3:$Q$26,0)) -> AM | J42: 79 | K42: =IF(INDEX(Inputs!$H$86:$H$253,MATCH(J42,Inputs!$D$86:$D$253,0)),"TRUE 4", IF(INDEX(Inputs!$G$86:$G$253,MATCH(J42,Inputs!$D$86:$D$253,0)),"TRUE 3", IF(INDEX(Inputs!$F$86:$F$253,MATCH(J42,Inputs!$D$86:$D$253,0)),"TRUE 2", IF(INDEX(Inputs!$E$86:$E$253,MATCH(J42,Inputs!$D$86:$D$253,0)),"TRUE 1", FALSE)))) -> FALSE | M42: ='Volume Import'!C33*'Volume Import'!$H$14*(1+'Volume Import'!$H$15)*(1-'Volume Import'!$H$16) -> 402 | N42: =IF(AND('Volume Import'!D33=0,'Volume Import'!C33=0),0, IF('Volume Import'!D33=0,INDEX('Volume Import'!$K$2:$Q$5,MATCH(I42,'Volume Import'!$R$2:$R$5,0),MATCH(F42,'Volume Import'!$K$1:$Q$1,0)), 'Volume Import'!D33/'Volume Import'!C33)) -> 0.1517412935 | P42: ='Volume Import'!E33*'Volume Import'!$I$14*(1+'Volume Import'!$I$15)*(1-'Volume Import'!$I$16) -> 1286 | Q42: =IF('Volume Import'!F33=0,N42,'Volume Import'!F33/'Volume Import'!E33) -> 0.02255054432 | S42: =IF(K42="TRUE 1",IF(I42="NT",Inputs!$C$35,Inputs!$C$34), IF(K42="TRUE 2",IF(I42="NT",Inputs!$D$35,Inputs!$D$34), IF(K42="TRUE 3",IF(I42="NT",Inputs!$E$35,Inputs!$E$34), IF(K42="TRUE 4",IF(I42="NT",Inputs!$F$35,Inputs!$F$34), S41)))) -> 54.62255796 | T42: =IF(K42="TRUE 1",IF(I42="NT",MROUND(Inputs!$C$32*$T$3*(1/(1+N42*(2-1))),1),MROUND(Inputs!$C$30*$T$3*(1/(1+N42*(2-1))),1)), IF(K42="TRUE 2",IF(I42="NT",MROUND(Inputs!$D$32*$U$3*(1/(1+N42*(2-1))),1),MROUND(Inputs!$D$30*$U$3*(1/(1+N42*(2-1))),1)), IF(K42="TRUE 3",IF(I42="NT",MROUND(Inputs!$E$32*$V$3*(1/(1+N42*(2-1))),1),MROUND(Inputs!$E$30*$V$3*(1/(1+N42*(2-1))),1)), IF(K42="TRUE 4",IF(I42="NT",MROUND(Inputs!$F$32*$W$3*(1/(1+N42*(2-1))),1),MROUND(Inputs!$F$30*$W$3*(1/(1+N42*(2-1))),1)), MROUND(Inputs!$C$15*(1/(1+N42*(2-1)))*($T$3+$T$4),1))))) -> 6251 | U42: -5849 | V42: 0 | W42: =(V42/(1/(1+N42*(2-1))))*S42/LEFT(Inputs!$C$18,1)/5280 -> 0 | X42: 0 | Y42: =((X42/60)*((Inputs!$C$13*V42*(1-N42))+(Inputs!$C$14*V42*N42))) -> 0 | Z42: =IF(V42>0,($N$5/60)*(((M42*$N$3/(1-$N$3))*(1-N42)*Inputs!$C$13)+((M42*$N$3/(1-$N$3))*N42*Inputs!$C$14)),0) -> 0 | AA42: 0 | AC42: 2019-01-02T07:00:00 | AF42: =IF(AND(AD42<>"",AE42<>""),MAX(INDIRECT(AD42):INDIRECT(AE42)),"") ->  | AJ42: =IF(K42="TRUE 1",IF(I42="NT",MROUND(Inputs!$C$32*$AJ$3*(1/(1+Q42*(2-1))),1),MROUND(Inputs!$C$30*$AJ$3*(1/(1+Q42*(2-1))),1)), IF(K42="TRUE 2",IF(I42="NT",MROUND(Inputs!$D$32*$AK$3*(1/(1+Q42*(2-1))),1),MROUND(Inputs!$D$30*$AK$3*(1/(1+Q42*(2-1))),1)), IF(K42="TRUE 3",IF(I42="NT",MROUND(Inputs!$E$32*$AL$3*(1/(1+Q42*(2-1))),1),MROUND(Inputs!$E$30*$AL$3*(1/(1+Q42*(2-1))),1)), IF(K42="TRUE 4",IF(I42="NT",MROUND(Inputs!$F$32*$AM$3*(1/(1+Q42*(2-1))),1),MROUND(Inputs!$F$30*$AM$3*(1/(1+Q42*(2-1))),1)), MROUND(Inputs!$C$15*(1/(1+Q42*(2-1)))*($AJ$3+$AJ$4),1))))) -> 7041 | AK42: -5755 | AL42: 0 | AM42: =(AL42/(1/(1+Q42*(2-1))))*S42/LEFT(Inputs!$C$18,1)/5280 -> 0 | AN42: 0 | AO42: =(AN42/60)*((Inputs!$C$13*AL42*(1-Q42))+(Inputs!$C$14*AL42*Q42)) -> 0 | AP42: =IF(AL42>0,($Q$5/60)*(((P42*$Q$3/(1-$Q$3))*(1-Q42)*Inputs!$C$13)+((P42*$Q$3/(1-$Q$3))*Q42*Inputs!$C$14)),0) -> 0 | AQ42: 0 | AS42: 2019-01-02T07:00:00 | AV42: =IF(AND(AT42<>"",AU42<>""),MAX(INDIRECT(AT42):INDIRECT(AU42)),"") -> 
A43: 2019-01-02 | B43: January | C43: 2 | D43: January-2-8 | E43: 4 | F43: Wednesday | G43: 08:00:00 | H43: 8 | I43: =INDEX(Lists!$R$3:$R$26,MATCH(Calculations!G43,Lists!$Q$3:$Q$26,0)) -> AM | J43: 80 | K43: =IF(INDEX(Inputs!$H$86:$H$253,MATCH(J43,Inputs!$D$86:$D$253,0)),"TRUE 4", IF(INDEX(Inputs!$G$86:$G$253,MATCH(J43,Inputs!$D$86:$D$253,0)),"TRUE 3", IF(INDEX(Inputs!$F$86:$F$253,MATCH(J43,Inputs!$D$86:$D$253,0)),"TRUE 2", IF(INDEX(Inputs!$E$86:$E$253,MATCH(J43,Inputs!$D$86:$D$253,0)),"TRUE 1", FALSE)))) -> FALSE | M43: ='Volume Import'!C34*'Volume Import'!$H$14*(1+'Volume Import'!$H$15)*(1-'Volume Import'!$H$16) -> 392 | N43: =IF(AND('Volume Import'!D34=0,'Volume Import'!C34=0),0, IF('Volume Import'!D34=0,INDEX('Volume Import'!$K$2:$Q$5,MATCH(I43,'Volume Import'!$R$2:$R$5,0),MATCH(F43,'Volume Import'!$K$1:$Q$1,0)), 'Volume Import'!D34/'Volume Import'!C34)) -> 0.1505102041 | P43: ='Volume Import'!E34*'Volume Import'!$I$14*(1+'Volume Import'!$I$15)*(1-'Volume Import'!$I$16) -> 774 | Q43: =IF('Volume Import'!F34=0,N43,'Volume Import'!F34/'Volume Import'!E34) -> 0.06201550388 | S43: =IF(K43="TRUE 1",IF(I43="NT",Inputs!$C$35,Inputs!$C$34), IF(K43="TRUE 2",IF(I43="NT",Inputs!$D$35,Inputs!$D$34), IF(K43="TRUE 3",IF(I43="NT",Inputs!$E$35,Inputs!$E$34), IF(K43="TRUE 4",IF(I43="NT",Inputs!$F$35,Inputs!$F$34), S42)))) -> 54.62255796 | T43: =IF(K43="TRUE 1",IF(I43="NT",MROUND(Inputs!$C$32*$T$3*(1/(1+N43*(2-1))),1),MROUND(Inputs!$C$30*$T$3*(1/(1+N43*(2-1))),1)), IF(K43="TRUE 2",IF(I43="NT",MROUND(Inputs!$D$32*$U$3*(1/(1+N43*(2-1))),1),MROUND(Inputs!$D$30*$U$3*(1/(1+N43*(2-1))),1)), IF(K43="TRUE 3",IF(I43="NT",MROUND(Inputs!$E$32*$V$3*(1/(1+N43*(2-1))),1),MROUND(Inputs!$E$30*$V$3*(1/(1+N43*(2-1))),1)), IF(K43="TRUE 4",IF(I43="NT",MROUND(Inputs!$F$32*$W$3*(1/(1+N43*(2-1))),1),MROUND(Inputs!$F$30*$W$3*(1/(1+N43*(2-1))),1)), MROUND(Inputs!$C$15*(1/(1+N43*(2-1)))*($T$3+$T$4),1))))) -> 6258 | U43: -5866 | V43: 0 | W43: =(V43/(1/(1+N43*(2-1))))*S43/LEFT(Inputs!$C$18,1)/5280 -> 0 | X43: 0 | Y43: =((X43/60)*((Inputs!$C$13*V43*(1-N43))+(Inputs!$C$14*V43*N43))) -> 0 | Z43: =IF(V43>0,($N$5/60)*(((M43*$N$3/(1-$N$3))*(1-N43)*Inputs!$C$13)+((M43*$N$3/(1-$N$3))*N43*Inputs!$C$14)),0) -> 0 | AA43: 0 | AC43: 2019-01-02T08:00:00 | AF43: =IF(AND(AD43<>"",AE43<>""),MAX(INDIRECT(AD43):INDIRECT(AE43)),"") ->  | AJ43: =IF(K43="TRUE 1",IF(I43="NT",MROUND(Inputs!$C$32*$AJ$3*(1/(1+Q43*(2-1))),1),MROUND(Inputs!$C$30*$AJ$3*(1/(1+Q43*(2-1))),1)), IF(K43="TRUE 2",IF(I43="NT",MROUND(Inputs!$D$32*$AK$3*(1/(1+Q43*(2-1))),1),MROUND(Inputs!$D$30*$AK$3*(1/(1+Q43*(2-1))),1)), IF(K43="TRUE 3",IF(I43="NT",MROUND(Inputs!$E$32*$AL$3*(1/(1+Q43*(2-1))),1),MROUND(Inputs!$E$30*$AL$3*(1/(1+Q43*(2-1))),1)), IF(K43="TRUE 4",IF(I43="NT",MROUND(Inputs!$F$32*$AM$3*(1/(1+Q43*(2-1))),1),MROUND(Inputs!$F$30*$AM$3*(1/(1+Q43*(2-1))),1)), MROUND(Inputs!$C$15*(1/(1+Q43*(2-1)))*($AJ$3+$AJ$4),1))))) -> 6780 | AK43: -6006 | AL43: 0 | AM43: =(AL43/(1/(1+Q43*(2-1))))*S43/LEFT(Inputs!$C$18,1)/5280 -> 0 | AN43: 0 | AO43: =(AN43/60)*((Inputs!$C$13*AL43*(1-Q43))+(Inputs!$C$14*AL43*Q43)) -> 0 | AP43: =IF(AL43>0,($Q$5/60)*(((P43*$Q$3/(1-$Q$3))*(1-Q43)*Inputs!$C$13)+((P43*$Q$3/(1-$Q$3))*Q43*Inputs!$C$14)),0) -> 0 | AQ43: 0 | AS43: 2019-01-02T08:00:00 | AV43: =IF(AND(AT43<>"",AU43<>""),MAX(INDIRECT(AT43):INDIRECT(AU43)),"") -> 
A44: 2019-01-02 | B44: January | C44: 2 | D44: January-2-9 | E44: 4 | F44: Wednesday | G44: 09:00:00 | H44: 9 | I44: =INDEX(Lists!$R$3:$R$26,MATCH(Calculations!G44,Lists!$Q$3:$Q$26,0)) -> MD | J44: 81 | K44: =IF(INDEX(Inputs!$H$86:$H$253,MATCH(J44,Inputs!$D$86:$D$253,0)),"TRUE 4", IF(INDEX(Inputs!$G$86:$G$253,MATCH(J44,Inputs!$D$86:$D$253,0)),"TRUE 3", IF(INDEX(Inputs!$F$86:$F$253,MATCH(J44,Inputs!$D$86:$D$253,0)),"TRUE 2", IF(INDEX(Inputs!$E$86:$E$253,MATCH(J44,Inputs!$D$86:$D$253,0)),"TRUE 1", FALSE)))) -> TRUE 1 | M44: ='Volume Import'!C35*'Volume Import'!$H$14*(1+'Volume Import'!$H$15)*(1-'Volume Import'!$H$16) -> 392 | N44: =IF(AND('Volume Import'!D35=0,'Volume Import'!C35=0),0, IF('Volume Import'!D35=0,INDEX('Volume Import'!$K$2:$Q$5,MATCH(I44,'Volume Import'!$R$2:$R$5,0),MATCH(F44,'Volume Import'!$K$1:$Q$1,0)), 'Volume Import'!D35/'Volume Import'!C35)) -> 0.1173469388 | P44: ='Volume Import'!E35*'Volume Import'!$I$14*(1+'Volume Import'!$I$15)*(1-'Volume Import'!$I$16) -> 628 | Q44: =IF('Volume Import'!F35=0,N44,'Volume Import'!F35/'Volume Import'!E35) -> 0.05732484076 | S44: =IF(K44="TRUE 1",IF(I44="NT",Inputs!$C$35,Inputs!$C$34), IF(K44="TRUE 2",IF(I44="NT",Inputs!$D$35,Inputs!$D$34), IF(K44="TRUE 3",IF(I44="NT",Inputs!$E$35,Inputs!$E$34), IF(K44="TRUE 4",IF(I44="NT",Inputs!$F$35,Inputs!$F$34), S43)))) -> 54.62255796 | T44: =IF(K44="TRUE 1",IF(I44="NT",MROUND(Inputs!$C$32*$T$3*(1/(1+N44*(2-1))),1),MROUND(Inputs!$C$30*$T$3*(1/(1+N44*(2-1))),1)), IF(K44="TRUE 2",IF(I44="NT",MROUND(Inputs!$D$32*$U$3*(1/(1+N44*(2-1))),1),MROUND(Inputs!$D$30*$U$3*(1/(1+N44*(2-1))),1)), IF(K44="TRUE 3",IF(I44="NT",MROUND(Inputs!$E$32*$V$3*(1/(1+N44*(2-1))),1),MROUND(Inputs!$E$30*$V$3*(1/(1+N44*(2-1))),1)), IF(K44="TRUE 4",IF(I44="NT",MROUND(Inputs!$F$32*$W$3*(1/(1+N44*(2-1))),1),MROUND(Inputs!$F$30*$W$3*(1/(1+N44*(2-1))),1)), MROUND(Inputs!$C$15*(1/(1+N44*(2-1)))*($T$3+$T$4),1))))) -> 2595 | U44: -2203 | V44: 0 | W44: =(V44/(1/(1+N44*(2-1))))*S44/LEFT(Inputs!$C$18,1)/5280 -> 0 | X44: 0 | Y44: =((X44/60)*((Inputs!$C$13*V44*(1-N44))+(Inputs!$C$14*V44*N44))) -> 0 | Z44: =IF(V44>0,($N$5/60)*(((M44*$N$3/(1-$N$3))*(1-N44)*Inputs!$C$13)+((M44*$N$3/(1-$N$3))*N44*Inputs!$C$14)),0) -> 0 | AA44: 0 | AC44: 2019-01-02T09:00:00 | AF44: =IF(AND(AD44<>"",AE44<>""),MAX(INDIRECT(AD44):INDIRECT(AE44)),"") ->  | AJ44: =IF(K44="TRUE 1",IF(I44="NT",MROUND(Inputs!$C$32*$AJ$3*(1/(1+Q44*(2-1))),1),MROUND(Inputs!$C$30*$AJ$3*(1/(1+Q44*(2-1))),1)), IF(K44="TRUE 2",IF(I44="NT",MROUND(Inputs!$D$32*$AK$3*(1/(1+Q44*(2-1))),1),MROUND(Inputs!$D$30*$AK$3*(1/(1+Q44*(2-1))),1)), IF(K44="TRUE 3",IF(I44="NT",MROUND(Inputs!$E$32*$AL$3*(1/(1+Q44*(2-1))),1),MROUND(Inputs!$E$30*$AL$3*(1/(1+Q44*(2-1))),1)), IF(K44="TRUE 4",IF(I44="NT",MROUND(Inputs!$F$32*$AM$3*(1/(1+Q44*(2-1))),1),MROUND(Inputs!$F$30*$AM$3*(1/(1+Q44*(2-1))),1)), MROUND(Inputs!$C$15*(1/(1+Q44*(2-1)))*($AJ$3+$AJ$4),1))))) -> 2743 | AK44: -2115 | AL44: 0 | AM44: =(AL44/(1/(1+Q44*(2-1))))*S44/LEFT(Inputs!$C$18,1)/5280 -> 0 | AN44: 0 | AO44: =(AN44/60)*((Inputs!$C$13*AL44*(1-Q44))+(Inputs!$C$14*AL44*Q44)) -> 0 | AP44: =IF(AL44>0,($Q$5/60)*(((P44*$Q$3/(1-$Q$3))*(1-Q44)*Inputs!$C$13)+((P44*$Q$3/(1-$Q$3))*Q44*Inputs!$C$14)),0) -> 0 | AQ44: 0 | AS44: 2019-01-02T09:00:00 | AV44: =IF(AND(AT44<>"",AU44<>""),MAX(INDIRECT(AT44):INDIRECT(AU44)),"") -> 
A45: 2019-01-02 | B45: January | C45: 2 | D45: January-2-10 | E45: 4 | F45: Wednesday | G45: 10:00:00 | H45: 10 | I45: =INDEX(Lists!$R$3:$R$26,MATCH(Calculations!G45,Lists!$Q$3:$Q$26,0)) -> MD | J45: 82 | K45: =IF(INDEX(Inputs!$H$86:$H$253,MATCH(J45,Inputs!$D$86:$D$253,0)),"TRUE 4", IF(INDEX(Inputs!$G$86:$G$253,MATCH(J45,Inputs!$D$86:$D$253,0)),"TRUE 3", IF(INDEX(Inputs!$F$86:$F$253,MATCH(J45,Inputs!$D$86:$D$253,0)),"TRUE 2", IF(INDEX(Inputs!$E$86:$E$253,MATCH(J45,Inputs!$D$86:$D$253,0)),"TRUE 1", FALSE)))) -> TRUE 1 | M45: ='Volume Import'!C36*'Volume Import'!$H$14*(1+'Volume Import'!$H$15)*(1-'Volume Import'!$H$16) -> 403 | N45: =IF(AND('Volume Import'!D36=0,'Volume Import'!C36=0),0, IF('Volume Import'!D36=0,INDEX('Volume Import'!$K$2:$Q$5,MATCH(I45,'Volume Import'!$R$2:$R$5,0),MATCH(F45,'Volume Import'!$K$1:$Q$1,0)), 'Volume Import'!D36/'Volume Import'!C36)) -> 0.1066997519 | P45: ='Volume Import'!E36*'Volume Import'!$I$14*(1+'Volume Import'!$I$15)*(1-'Volume Import'!$I$16) -> 610 | Q45: =IF('Volume Import'!F36=0,N45,'Volume Import'!F36/'Volume Import'!E36) -> 0.0737704918 | S45: =IF(K45="TRUE 1",IF(I45="NT",Inputs!$C$35,Inputs!$C$34), IF(K45="TRUE 2",IF(I45="NT",Inputs!$D$35,Inputs!$D$34), IF(K45="TRUE 3",IF(I45="NT",Inputs!$E$35,Inputs!$E$34), IF(K45="TRUE 4",IF(I45="NT",Inputs!$F$35,Inputs!$F$34), S44)))) -> 54.62255796 | T45: =IF(K45="TRUE 1",IF(I45="NT",MROUND(Inputs!$C$32*$T$3*(1/(1+N45*(2-1))),1),MROUND(Inputs!$C$30*$T$3*(1/(1+N45*(2-1))),1)), IF(K45="TRUE 2",IF(I45="NT",MROUND(Inputs!$D$32*$U$3*(1/(1+N45*(2-1))),1),MROUND(Inputs!$D$30*$U$3*(1/(1+N45*(2-1))),1)), IF(K45="TRUE 3",IF(I45="NT",MROUND(Inputs!$E$32*$V$3*(1/(1+N45*(2-1))),1),MROUND(Inputs!$E$30*$V$3*(1/(1+N45*(2-1))),1)), IF(K45="TRUE 4",IF(I45="NT",MROUND(Inputs!$F$32*$W$3*(1/(1+N45*(2-1))),1),MROUND(Inputs!$F$30*$W$3*(1/(1+N45*(2-1))),1)), MROUND(Inputs!$C$15*(1/(1+N45*(2-1)))*($T$3+$T$4),1))))) -> 2620 | U45: -2217 | V45: 0 | W45: =(V45/(1/(1+N45*(2-1))))*S45/LEFT(Inputs!$C$18,1)/5280 -> 0 | X45: 0 | Y45: =((X45/60)*((Inputs!$C$13*V45*(1-N45))+(Inputs!$C$14*V45*N45))) -> 0 | Z45: =IF(V45>0,($N$5/60)*(((M45*$N$3/(1-$N$3))*(1-N45)*Inputs!$C$13)+((M45*$N$3/(1-$N$3))*N45*Inputs!$C$14)),0) -> 0 | AA45: 0 | AC45: 2019-01-02T10:00:00 | AF45: =IF(AND(AD45<>"",AE45<>""),MAX(INDIRECT(AD45):INDIRECT(AE45)),"") ->  | AJ45: =IF(K45="TRUE 1",IF(I45="NT",MROUND(Inputs!$C$32*$AJ$3*(1/(1+Q45*(2-1))),1),MROUND(Inputs!$C$30*$AJ$3*(1/(1+Q45*(2-1))),1)), IF(K45="TRUE 2",IF(I45="NT",MROUND(Inputs!$D$32*$AK$3*(1/(1+Q45*(2-1))),1),MROUND(Inputs!$D$30*$AK$3*(1/(1+Q45*(2-1))),1)), IF(K45="TRUE 3",IF(I45="NT",MROUND(Inputs!$E$32*$AL$3*(1/(1+Q45*(2-1))),1),MROUND(Inputs!$E$30*$AL$3*(1/(1+Q45*(2-1))),1)), IF(K45="TRUE 4",IF(I45="NT",MROUND(Inputs!$F$32*$AM$3*(1/(1+Q45*(2-1))),1),MROUND(Inputs!$F$30*$AM$3*(1/(1+Q45*(2-1))),1)), MROUND(Inputs!$C$15*(1/(1+Q45*(2-1)))*($AJ$3+$AJ$4),1))))) -> 2701 | AK45: -2091 | AL45: 0 | AM45: =(AL45/(1/(1+Q45*(2-1))))*S45/LEFT(Inputs!$C$18,1)/5280 -> 0 | AN45: 0 | AO45: =(AN45/60)*((Inputs!$C$13*AL45*(1-Q45))+(Inputs!$C$14*AL45*Q45)) -> 0 | AP45: =IF(AL45>0,($Q$5/60)*(((P45*$Q$3/(1-$Q$3))*(1-Q45)*Inputs!$C$13)+((P45*$Q$3/(1-$Q$3))*Q45*Inputs!$C$14)),0) -> 0 | AQ45: 0 | AS45: 2019-01-02T10:00:00 | AV45: =IF(AND(AT45<>"",AU45<>""),MAX(INDIRECT(AT45):INDIRECT(AU45)),"") -> 
A46: 2019-01-02 | B46: January | C46: 2 | D46: January-2-11 | E46: 4 | F46: Wednesday | G46: 11:00:00 | H46: 11 | I46: =INDEX(Lists!$R$3:$R$26,MATCH(Calculations!G46,Lists!$Q$3:$Q$26,0)) -> MD | J46: 83 | K46: =IF(INDEX(Inputs!$H$86:$H$253,MATCH(J46,Inputs!$D$86:$D$253,0)),"TRUE 4", IF(INDEX(Inputs!$G$86:$G$253,MATCH(J46,Inputs!$D$86:$D$253,0)),"TRUE 3", IF(INDEX(Inputs!$F$86:$F$253,MATCH(J46,Inputs!$D$86:$D$253,0)),"TRUE 2", IF(INDEX(Inputs!$E$86:$E$253,MATCH(J46,Inputs!$D$86:$D$253,0)),"TRUE 1", FALSE)))) -> TRUE 1 | M46: ='Volume Import'!C37*'Volume Import'!$H$14*(1+'Volume Import'!$H$15)*(1-'Volume Import'!$H$16) -> 553 | N46: =IF(AND('Volume Import'!D37=0,'Volume Import'!C37=0),0, IF('Volume Import'!D37=0,INDEX('Volume Import'!$K$2:$Q$5,MATCH(I46,'Volume Import'!$R$2:$R$5,0),MATCH(F46,'Volume Import'!$K$1:$Q$1,0)), 'Volume Import'!D37/'Volume Import'!C37)) -> 0.07414104882 | P46: ='Volume Import'!E37*'Volume Import'!$I$14*(1+'Volume Import'!$I$15)*(1-'Volume Import'!$I$16) -> 624 | Q46: =IF('Volume Import'!F37=0,N46,'Volume Import'!F37/'Volume Import'!E37) -> 0.06570512821 | S46: =IF(K46="TRUE 1",IF(I46="NT",Inputs!$C$35,Inputs!$C$34), IF(K46="TRUE 2",IF(I46="NT",Inputs!$D$35,Inputs!$D$34), IF(K46="TRUE 3",IF(I46="NT",Inputs!$E$35,Inputs!$E$34), IF(K46="TRUE 4",IF(I46="NT",Inputs!$F$35,Inputs!$F$34), S45)))) -> 54.62255796 | T46: =IF(K46="TRUE 1",IF(I46="NT",MROUND(Inputs!$C$32*$T$3*(1/(1+N46*(2-1))),1),MROUND(Inputs!$C$30*$T$3*(1/(1+N46*(2-1))),1)), IF(K46="TRUE 2",IF(I46="NT",MROUND(Inputs!$D$32*$U$3*(1/(1+N46*(2-1))),1),MROUND(Inputs!$D$30*$U$3*(1/(1+N46*(2-1))),1)), IF(K46="TRUE 3",IF(I46="NT",MROUND(Inputs!$E$32*$V$3*(1/(1+N46*(2-1))),1),MROUND(Inputs!$E$30*$V$3*(1/(1+N46*(2-1))),1)), IF(K46="TRUE 4",IF(I46="NT",MROUND(Inputs!$F$32*$W$3*(1/(1+N46*(2-1))),1),MROUND(Inputs!$F$30*$W$3*(1/(1+N46*(2-1))),1)), MROUND(Inputs!$C$15*(1/(1+N46*(2-1)))*($T$3+$T$4),1))))) -> 2700 | U46: -2147 | V46: 0 | W46: =(V46/(1/(1+N46*(2-1))))*S46/LEFT(Inputs!$C$18,1)/5280 -> 0 | X46: 0 | Y46: =((X46/60)*((Inputs!$C$13*V46*(1-N46))+(Inputs!$C$14*V46*N46))) -> 0 | Z46: =IF(V46>0,($N$5/60)*(((M46*$N$3/(1-$N$3))*(1-N46)*Inputs!$C$13)+((M46*$N$3/(1-$N$3))*N46*Inputs!$C$14)),0) -> 0 | AA46: 0 | AC46: 2019-01-02T11:00:00 | AF46: =IF(AND(AD46<>"",AE46<>""),MAX(INDIRECT(AD46):INDIRECT(AE46)),"") ->  | AJ46: =IF(K46="TRUE 1",IF(I46="NT",MROUND(Inputs!$C$32*$AJ$3*(1/(1+Q46*(2-1))),1),MROUND(Inputs!$C$30*$AJ$3*(1/(1+Q46*(2-1))),1)), IF(K46="TRUE 2",IF(I46="NT",MROUND(Inputs!$D$32*$AK$3*(1/(1+Q46*(2-1))),1),MROUND(Inputs!$D$30*$AK$3*(1/(1+Q46*(2-1))),1)), IF(K46="TRUE 3",IF(I46="NT",MROUND(Inputs!$E$32*$AL$3*(1/(1+Q46*(2-1))),1),MROUND(Inputs!$E$30*$AL$3*(1/(1+Q46*(2-1))),1)), IF(K46="TRUE 4",IF(I46="NT",MROUND(Inputs!$F$32*$AM$3*(1/(1+Q46*(2-1))),1),MROUND(Inputs!$F$30*$AM$3*(1/(1+Q46*(2-1))),1)), MROUND(Inputs!$C$15*(1/(1+Q46*(2-1)))*($AJ$3+$AJ$4),1))))) -> 2721 | AK46: -2097 | AL46: 0 | AM46: =(AL46/(1/(1+Q46*(2-1))))*S46/LEFT(Inputs!$C$18,1)/5280 -> 0 | AN46: 0 | AO46: =(AN46/60)*((Inputs!$C$13*AL46*(1-Q46))+(Inputs!$C$14*AL46*Q46)) -> 0 | AP46: =IF(AL46>0,($Q$5/60)*(((P46*$Q$3/(1-$Q$3))*(1-Q46)*Inputs!$C$13)+((P46*$Q$3/(1-$Q$3))*Q46*Inputs!$C$14)),0) -> 0 | AQ46: 0 | AS46: 2019-01-02T11:00:00 | AV46: =IF(AND(AT46<>"",AU46<>""),MAX(INDIRECT(AT46):INDIRECT(AU46)),"") -> 
A47: 2019-01-02 | B47: January | C47: 2 | D47: January-2-12 | E47: 4 | F47: Wednesday | G47: 12:00:00 | H47: 12 | I47: =INDEX(Lists!$R$3:$R$26,MATCH(Calculations!G47,Lists!$Q$3:$Q$26,0)) -> MD | J47: 84 | K47: =IF(INDEX(Inputs!$H$86:$H$253,MATCH(J47,Inputs!$D$86:$D$253,0)),"TRUE 4", IF(INDEX(Inputs!$G$86:$G$253,MATCH(J47,Inputs!$D$86:$D$253,0)),"TRUE 3", IF(INDEX(Inputs!$F$86:$F$253,MATCH(J47,Inputs!$D$86:$D$253,0)),"TRUE 2", IF(INDEX(Inputs!$E$86:$E$253,MATCH(J47,Inputs!$D$86:$D$253,0)),"TRUE 1", FALSE)))) -> TRUE 1 | M47: ='Volume Import'!C38*'Volume Import'!$H$14*(1+'Volume Import'!$H$15)*(1-'Volume Import'!$H$16) -> 598 | N47: =IF(AND('Volume Import'!D38=0,'Volume Import'!C38=0),0, IF('Volume Import'!D38=0,INDEX('Volume Import'!$K$2:$Q$5,MATCH(I47,'Volume Import'!$R$2:$R$5,0),MATCH(F47,'Volume Import'!$K$1:$Q$1,0)), 'Volume Import'!D38/'Volume Import'!C38)) -> 0.0635451505 | P47: ='Volume Import'!E38*'Volume Import'!$I$14*(1+'Volume Import'!$I$15)*(1-'Volume Import'!$I$16) -> 652 | Q47: =IF('Volume Import'!F38=0,N47,'Volume Import'!F38/'Volume Import'!E38) -> 0.05981595092 | S47: =IF(K47="TRUE 1",IF(I47="NT",Inputs!$C$35,Inputs!$C$34), IF(K47="TRUE 2",IF(I47="NT",Inputs!$D$35,Inputs!$D$34), IF(K47="TRUE 3",IF(I47="NT",Inputs!$E$35,Inputs!$E$34), IF(K47="TRUE 4",IF(I47="NT",Inputs!$F$35,Inputs!$F$34), S46)))) -> 54.62255796 | T47: =IF(K47="TRUE 1",IF(I47="NT",MROUND(Inputs!$C$32*$T$3*(1/(1+N47*(2-1))),1),MROUND(Inputs!$C$30*$T$3*(1/(1+N47*(2-1))),1)), IF(K47="TRUE 2",IF(I47="NT",MROUND(Inputs!$D$32*$U$3*(1/(1+N47*(2-1))),1),MROUND(Inputs!$D$30*$U$3*(1/(1+N47*(2-1))),1)), IF(K47="TRUE 3",IF(I47="NT",MROUND(Inputs!$E$32*$V$3*(1/(1+N47*(2-1))),1),MROUND(Inputs!$E$30*$V$3*(1/(1+N47*(2-1))),1)), IF(K47="TRUE 4",IF(I47="NT",MROUND(Inputs!$F$32*$W$3*(1/(1+N47*(2-1))),1),MROUND(Inputs!$F$30*$W$3*(1/(1+N47*(2-1))),1)), MROUND(Inputs!$C$15*(1/(1+N47*(2-1)))*($T$3+$T$4),1))))) -> 2727 | U47: -2129 | V47: 0 | W47: =(V47/(1/(1+N47*(2-1))))*S47/LEFT(Inputs!$C$18,1)/5280 -> 0 | X47: 0 | Y47: =((X47/60)*((Inputs!$C$13*V47*(1-N47))+(Inputs!$C$14*V47*N47))) -> 0 | Z47: =IF(V47>0,($N$5/60)*(((M47*$N$3/(1-$N$3))*(1-N47)*Inputs!$C$13)+((M47*$N$3/(1-$N$3))*N47*Inputs!$C$14)),0) -> 0 | AA47: 0 | AC47: 2019-01-02T12:00:00 | AF47: =IF(AND(AD47<>"",AE47<>""),MAX(INDIRECT(AD47):INDIRECT(AE47)),"") ->  | AJ47: =IF(K47="TRUE 1",IF(I47="NT",MROUND(Inputs!$C$32*$AJ$3*(1/(1+Q47*(2-1))),1),MROUND(Inputs!$C$30*$AJ$3*(1/(1+Q47*(2-1))),1)), IF(K47="TRUE 2",IF(I47="NT",MROUND(Inputs!$D$32*$AK$3*(1/(1+Q47*(2-1))),1),MROUND(Inputs!$D$30*$AK$3*(1/(1+Q47*(2-1))),1)), IF(K47="TRUE 3",IF(I47="NT",MROUND(Inputs!$E$32*$AL$3*(1/(1+Q47*(2-1))),1),MROUND(Inputs!$E$30*$AL$3*(1/(1+Q47*(2-1))),1)), IF(K47="TRUE 4",IF(I47="NT",MROUND(Inputs!$F$32*$AM$3*(1/(1+Q47*(2-1))),1),MROUND(Inputs!$F$30*$AM$3*(1/(1+Q47*(2-1))),1)), MROUND(Inputs!$C$15*(1/(1+Q47*(2-1)))*($AJ$3+$AJ$4),1))))) -> 2736 | AK47: -2084 | AL47: 0 | AM47: =(AL47/(1/(1+Q47*(2-1))))*S47/LEFT(Inputs!$C$18,1)/5280 -> 0 | AN47: 0 | AO47: =(AN47/60)*((Inputs!$C$13*AL47*(1-Q47))+(Inputs!$C$14*AL47*Q47)) -> 0 | AP47: =IF(AL47>0,($Q$5/60)*(((P47*$Q$3/(1-$Q$3))*(1-Q47)*Inputs!$C$13)+((P47*$Q$3/(1-$Q$3))*Q47*Inputs!$C$14)),0) -> 0 | AQ47: 0 | AS47: 2019-01-02T12:00:00 | AV47: =IF(AND(AT47<>"",AU47<>""),MAX(INDIRECT(AT47):INDIRECT(AU47)),"") -> 
A48: 2019-01-02 | B48: January | C48: 2 | D48: January-2-13 | E48: 4 | F48: Wednesday | G48: 13:00:00 | H48: 13 | I48: =INDEX(Lists!$R$3:$R$26,MATCH(Calculations!G48,Lists!$Q$3:$Q$26,0)) -> MD | J48: 85 | K48: =IF(INDEX(Inputs!$H$86:$H$253,MATCH(J48,Inputs!$D$86:$D$253,0)),"TRUE 4", IF(INDEX(Inputs!$G$86:$G$253,MATCH(J48,Inputs!$D$86:$D$253,0)),"TRUE 3", IF(INDEX(Inputs!$F$86:$F$253,MATCH(J48,Inputs!$D$86:$D$253,0)),"TRUE 2", IF(INDEX(Inputs!$E$86:$E$253,MATCH(J48,Inputs!$D$86:$D$253,0)),"TRUE 1", FALSE)))) -> TRUE 1 | M48: ='Volume Import'!C39*'Volume Import'!$H$14*(1+'Volume Import'!$H$15)*(1-'Volume Import'!$H$16) -> 665 | N48: =IF(AND('Volume Import'!D39=0,'Volume Import'!C39=0),0, IF('Volume Import'!D39=0,INDEX('Volume Import'!$K$2:$Q$5,MATCH(I48,'Volume Import'!$R$2:$R$5,0),MATCH(F48,'Volume Import'!$K$1:$Q$1,0)), 'Volume Import'!D39/'Volume Import'!C39)) -> 0.07368421053 | P48: ='Volume Import'!E39*'Volume Import'!$I$14*(1+'Volume Import'!$I$15)*(1-'Volume Import'!$I$16) -> 570 | Q48: =IF('Volume Import'!F39=0,N48,'Volume Import'!F39/'Volume Import'!E39) -> 0.05789473684 | S48: =IF(K48="TRUE 1",IF(I48="NT",Inputs!$C$35,Inputs!$C$34), IF(K48="TRUE 2",IF(I48="NT",Inputs!$D$35,Inputs!$D$34), IF(K48="TRUE 3",IF(I48="NT",Inputs!$E$35,Inputs!$E$34), IF(K48="TRUE 4",IF(I48="NT",Inputs!$F$35,Inputs!$F$34), S47)))) -> 54.62255796 | T48: =IF(K48="TRUE 1",IF(I48="NT",MROUND(Inputs!$C$32*$T$3*(1/(1+N48*(2-1))),1),MROUND(Inputs!$C$30*$T$3*(1/(1+N48*(2-1))),1)), IF(K48="TRUE 2",IF(I48="NT",MROUND(Inputs!$D$32*$U$3*(1/(1+N48*(2-1))),1),MROUND(Inputs!$D$30*$U$3*(1/(1+N48*(2-1))),1)), IF(K48="TRUE 3",IF(I48="NT",MROUND(Inputs!$E$32*$V$3*(1/(1+N48*(2-1))),1),MROUND(Inputs!$E$30*$V$3*(1/(1+N48*(2-1))),1)), IF(K48="TRUE 4",IF(I48="NT",MROUND(Inputs!$F$32*$W$3*(1/(1+N48*(2-1))),1),MROUND(Inputs!$F$30*$W$3*(1/(1+N48*(2-1))),1)), MROUND(Inputs!$C$15*(1/(1+N48*(2-1)))*($T$3+$T$4),1))))) -> 2701 | U48: -2036 | V48: 0 | W48: =(V48/(1/(1+N48*(2-1))))*S48/LEFT(Inputs!$C$18,1)/5280 -> 0 | X48: 0 | Y48: =((X48/60)*((Inputs!$C$13*V48*(1-N48))+(Inputs!$C$14*V48*N48))) -> 0 | Z48: =IF(V48>0,($N$5/60)*(((M48*$N$3/(1-$N$3))*(1-N48)*Inputs!$C$13)+((M48*$N$3/(1-$N$3))*N48*Inputs!$C$14)),0) -> 0 | AA48: 0 | AC48: 2019-01-02T13:00:00 | AF48: =IF(AND(AD48<>"",AE48<>""),MAX(INDIRECT(AD48):INDIRECT(AE48)),"") ->  | AJ48: =IF(K48="TRUE 1",IF(I48="NT",MROUND(Inputs!$C$32*$AJ$3*(1/(1+Q48*(2-1))),1),MROUND(Inputs!$C$30*$AJ$3*(1/(1+Q48*(2-1))),1)), IF(K48="TRUE 2",IF(I48="NT",MROUND(Inputs!$D$32*$AK$3*(1/(1+Q48*(2-1))),1),MROUND(Inputs!$D$30*$AK$3*(1/(1+Q48*(2-1))),1)), IF(K48="TRUE 3",IF(I48="NT",MROUND(Inputs!$E$32*$AL$3*(1/(1+Q48*(2-1))),1),MROUND(Inputs!$E$30*$AL$3*(1/(1+Q48*(2-1))),1)), IF(K48="TRUE 4",IF(I48="NT",MROUND(Inputs!$F$32*$AM$3*(1/(1+Q48*(2-1))),1),MROUND(Inputs!$F$30*$AM$3*(1/(1+Q48*(2-1))),1)), MROUND(Inputs!$C$15*(1/(1+Q48*(2-1)))*($AJ$3+$AJ$4),1))))) -> 2741 | AK48: -2171 | AL48: 0 | AM48: =(AL48/(1/(1+Q48*(2-1))))*S48/LEFT(Inputs!$C$18,1)/5280 -> 0 | AN48: 0 | AO48: =(AN48/60)*((Inputs!$C$13*AL48*(1-Q48))+(Inputs!$C$14*AL48*Q48)) -> 0 | AP48: =IF(AL48>0,($Q$5/60)*(((P48*$Q$3/(1-$Q$3))*(1-Q48)*Inputs!$C$13)+((P48*$Q$3/(1-$Q$3))*Q48*Inputs!$C$14)),0) -> 0 | AQ48: 0 | AS48: 2019-01-02T13:00:00 | AV48: =IF(AND(AT48<>"",AU48<>""),MAX(INDIRECT(AT48):INDIRECT(AU48)),"") -> 
A49: 2019-01-02 | B49: January | C49: 2 | D49: January-2-14 | E49: 4 | F49: Wednesday | G49: 14:00:00 | H49: 14 | I49: =INDEX(Lists!$R$3:$R$26,MATCH(Calculations!G49,Lists!$Q$3:$Q$26,0)) -> MD | J49: 86 | K49: =IF(INDEX(Inputs!$H$86:$H$253,MATCH(J49,Inputs!$D$86:$D$253,0)),"TRUE 4", IF(INDEX(Inputs!$G$86:$G$253,MATCH(J49,Inputs!$D$86:$D$253,0)),"TRUE 3", IF(INDEX(Inputs!$F$86:$F$253,MATCH(J49,Inputs!$D$86:$D$253,0)),"TRUE 2", IF(INDEX(Inputs!$E$86:$E$253,MATCH(J49,Inputs!$D$86:$D$253,0)),"TRUE 1", FALSE)))) -> FALSE | M49: ='Volume Import'!C40*'Volume Import'!$H$14*(1+'Volume Import'!$H$15)*(1-'Volume Import'!$H$16) -> 798 | N49: =IF(AND('Volume Import'!D40=0,'Volume Import'!C40=0),0, IF('Volume Import'!D40=0,INDEX('Volume Import'!$K$2:$Q$5,MATCH(I49,'Volume Import'!$R$2:$R$5,0),MATCH(F49,'Volume Import'!$K$1:$Q$1,0)), 'Volume Import'!D40/'Volume Import'!C40)) -> 0.06390977444 | P49: ='Volume Import'!E40*'Volume Import'!$I$14*(1+'Volume Import'!$I$15)*(1-'Volume Import'!$I$16) -> 576 | Q49: =IF('Volume Import'!F40=0,N49,'Volume Import'!F40/'Volume Import'!E40) -> 0.06076388889 | S49: =IF(K49="TRUE 1",IF(I49="NT",Inputs!$C$35,Inputs!$C$34), IF(K49="TRUE 2",IF(I49="NT",Inputs!$D$35,Inputs!$D$34), IF(K49="TRUE 3",IF(I49="NT",Inputs!$E$35,Inputs!$E$34), IF(K49="TRUE 4",IF(I49="NT",Inputs!$F$35,Inputs!$F$34), S48)))) -> 54.62255796 | T49: =IF(K49="TRUE 1",IF(I49="NT",MROUND(Inputs!$C$32*$T$3*(1/(1+N49*(2-1))),1),MROUND(Inputs!$C$30*$T$3*(1/(1+N49*(2-1))),1)), IF(K49="TRUE 2",IF(I49="NT",MROUND(Inputs!$D$32*$U$3*(1/(1+N49*(2-1))),1),MROUND(Inputs!$D$30*$U$3*(1/(1+N49*(2-1))),1)), IF(K49="TRUE 3",IF(I49="NT",MROUND(Inputs!$E$32*$V$3*(1/(1+N49*(2-1))),1),MROUND(Inputs!$E$30*$V$3*(1/(1+N49*(2-1))),1)), IF(K49="TRUE 4",IF(I49="NT",MROUND(Inputs!$F$32*$W$3*(1/(1+N49*(2-1))),1),MROUND(Inputs!$F$30*$W$3*(1/(1+N49*(2-1))),1)), MROUND(Inputs!$C$15*(1/(1+N49*(2-1)))*($T$3+$T$4),1))))) -> 6767 | U49: -5969 | V49: 0 | W49: =(V49/(1/(1+N49*(2-1))))*S49/LEFT(Inputs!$C$18,1)/5280 -> 0 | X49: 0 | Y49: =((X49/60)*((Inputs!$C$13*V49*(1-N49))+(Inputs!$C$14*V49*N49))) -> 0 | Z49: =IF(V49>0,($N$5/60)*(((M49*$N$3/(1-$N$3))*(1-N49)*Inputs!$C$13)+((M49*$N$3/(1-$N$3))*N49*Inputs!$C$14)),0) -> 0 | AA49: 0 | AC49: 2019-01-02T14:00:00 | AF49: =IF(AND(AD49<>"",AE49<>""),MAX(INDIRECT(AD49):INDIRECT(AE49)),"") ->  | AJ49: =IF(K49="TRUE 1",IF(I49="NT",MROUND(Inputs!$C$32*$AJ$3*(1/(1+Q49*(2-1))),1),MROUND(Inputs!$C$30*$AJ$3*(1/(1+Q49*(2-1))),1)), IF(K49="TRUE 2",IF(I49="NT",MROUND(Inputs!$D$32*$AK$3*(1/(1+Q49*(2-1))),1),MROUND(Inputs!$D$30*$AK$3*(1/(1+Q49*(2-1))),1)), IF(K49="TRUE 3",IF(I49="NT",MROUND(Inputs!$E$32*$AL$3*(1/(1+Q49*(2-1))),1),MROUND(Inputs!$E$30*$AL$3*(1/(1+Q49*(2-1))),1)), IF(K49="TRUE 4",IF(I49="NT",MROUND(Inputs!$F$32*$AM$3*(1/(1+Q49*(2-1))),1),MROUND(Inputs!$F$30*$AM$3*(1/(1+Q49*(2-1))),1)), MROUND(Inputs!$C$15*(1/(1+Q49*(2-1)))*($AJ$3+$AJ$4),1))))) -> 6788 | AK49: -6212 | AL49: 0 | AM49: =(AL49/(1/(1+Q49*(2-1))))*S49/LEFT(Inputs!$C$18,1)/5280 -> 0 | AN49: 0 | AO49: =(AN49/60)*((Inputs!$C$13*AL49*(1-Q49))+(Inputs!$C$14*AL49*Q49)) -> 0 | AP49: =IF(AL49>0,($Q$5/60)*(((P49*$Q$3/(1-$Q$3))*(1-Q49)*Inputs!$C$13)+((P49*$Q$3/(1-$Q$3))*Q49*Inputs!$C$14)),0) -> 0 | AQ49: 0 | AS49: 2019-01-02T14:00:00 | AV49: =IF(AND(AT49<>"",AU49<>""),MAX(INDIRECT(AT49):INDIRECT(AU49)),"") -> 
A50: 2019-01-02 | B50: January | C50: 2 | D50: January-2-15 | E50: 4 | F50: Wednesday | G50: 15:00:00 | H50: 15 | I50: =INDEX(Lists!$R$3:$R$26,MATCH(Calculations!G50,Lists!$Q$3:$Q$26,0)) -> PM | J50: 87 | K50: =IF(INDEX(Inputs!$H$86:$H$253,MATCH(J50,Inputs!$D$86:$D$253,0)),"TRUE 4", IF(INDEX(Inputs!$G$86:$G$253,MATCH(J50,Inputs!$D$86:$D$253,0)),"TRUE 3", IF(INDEX(Inputs!$F$86:$F$253,MATCH(J50,Inputs!$D$86:$D$253,0)),"TRUE 2", IF(INDEX(Inputs!$E$86:$E$253,MATCH(J50,Inputs!$D$86:$D$253,0)),"TRUE 1", FALSE)))) -> FALSE | M50: ='Volume Import'!C41*'Volume Import'!$H$14*(1+'Volume Import'!$H$15)*(1-'Volume Import'!$H$16) -> 1160 | N50: =IF(AND('Volume Import'!D41=0,'Volume Import'!C41=0),0, IF('Volume Import'!D41=0,INDEX('Volume Import'!$K$2:$Q$5,MATCH(I50,'Volume Import'!$R$2:$R$5,0),MATCH(F50,'Volume Import'!$K$1:$Q$1,0)), 'Volume Import'!D41/'Volume Import'!C41)) -> 0.05603448276 | P50: ='Volume Import'!E41*'Volume Import'!$I$14*(1+'Volume Import'!$I$15)*(1-'Volume Import'!$I$16) -> 647 | Q50: =IF('Volume Import'!F41=0,N50,'Volume Import'!F41/'Volume Import'!E41) -> 0.06955177743 | S50: =IF(K50="TRUE 1",IF(I50="NT",Inputs!$C$35,Inputs!$C$34), IF(K50="TRUE 2",IF(I50="NT",Inputs!$D$35,Inputs!$D$34), IF(K50="TRUE 3",IF(I50="NT",Inputs!$E$35,Inputs!$E$34), IF(K50="TRUE 4",IF(I50="NT",Inputs!$F$35,Inputs!$F$34), S49)))) -> 54.62255796 | T50: =IF(K50="TRUE 1",IF(I50="NT",MROUND(Inputs!$C$32*$T$3*(1/(1+N50*(2-1))),1),MROUND(Inputs!$C$30*$T$3*(1/(1+N50*(2-1))),1)), IF(K50="TRUE 2",IF(I50="NT",MROUND(Inputs!$D$32*$U$3*(1/(1+N50*(2-1))),1),MROUND(Inputs!$D$30*$U$3*(1/(1+N50*(2-1))),1)), IF(K50="TRUE 3",IF(I50="NT",MROUND(Inputs!$E$32*$V$3*(1/(1+N50*(2-1))),1),MROUND(Inputs!$E$30*$V$3*(1/(1+N50*(2-1))),1)), IF(K50="TRUE 4",IF(I50="NT",MROUND(Inputs!$F$32*$W$3*(1/(1+N50*(2-1))),1),MROUND(Inputs!$F$30*$W$3*(1/(1+N50*(2-1))),1)), MROUND(Inputs!$C$15*(1/(1+N50*(2-1)))*($T$3+$T$4),1))))) -> 6818 | U50: -5658 | V50: 0 | W50: =(V50/(1/(1+N50*(2-1))))*S50/LEFT(Inputs!$C$18,1)/5280 -> 0 | X50: 0 | Y50: =((X50/60)*((Inputs!$C$13*V50*(1-N50))+(Inputs!$C$14*V50*N50))) -> 0 | Z50: =IF(V50>0,($N$5/60)*(((M50*$N$3/(1-$N$3))*(1-N50)*Inputs!$C$13)+((M50*$N$3/(1-$N$3))*N50*Inputs!$C$14)),0) -> 0 | AA50: 0 | AC50: 2019-01-02T15:00:00 | AF50: =IF(AND(AD50<>"",AE50<>""),MAX(INDIRECT(AD50):INDIRECT(AE50)),"") ->  | AJ50: =IF(K50="TRUE 1",IF(I50="NT",MROUND(Inputs!$C$32*$AJ$3*(1/(1+Q50*(2-1))),1),MROUND(Inputs!$C$30*$AJ$3*(1/(1+Q50*(2-1))),1)), IF(K50="TRUE 2",IF(I50="NT",MROUND(Inputs!$D$32*$AK$3*(1/(1+Q50*(2-1))),1),MROUND(Inputs!$D$30*$AK$3*(1/(1+Q50*(2-1))),1)), IF(K50="TRUE 3",IF(I50="NT",MROUND(Inputs!$E$32*$AL$3*(1/(1+Q50*(2-1))),1),MROUND(Inputs!$E$30*$AL$3*(1/(1+Q50*(2-1))),1)), IF(K50="TRUE 4",IF(I50="NT",MROUND(Inputs!$F$32*$AM$3*(1/(1+Q50*(2-1))),1),MROUND(Inputs!$F$30*$AM$3*(1/(1+Q50*(2-1))),1)), MROUND(Inputs!$C$15*(1/(1+Q50*(2-1)))*($AJ$3+$AJ$4),1))))) -> 6732 | AK50: -6085 | AL50: 0 | AM50: =(AL50/(1/(1+Q50*(2-1))))*S50/LEFT(Inputs!$C$18,1)/5280 -> 0 | AN50: 0 | AO50: =(AN50/60)*((Inputs!$C$13*AL50*(1-Q50))+(Inputs!$C$14*AL50*Q50)) -> 0 | AP50: =IF(AL50>0,($Q$5/60)*(((P50*$Q$3/(1-$Q$3))*(1-Q50)*Inputs!$C$13)+((P50*$Q$3/(1-$Q$3))*Q50*Inputs!$C$14)),0) -> 0 | AQ50: 0 | AS50: 2019-01-02T15:00:00 | AV50: =IF(AND(AT50<>"",AU50<>""),MAX(INDIRECT(AT50):INDIRECT(AU50)),"") -> 
A51: 2019-01-02 | B51: January | C51: 2 | D51: January-2-16 | E51: 4 | F51: Wednesday | G51: 16:00:00 | H51: 16 | I51: =INDEX(Lists!$R$3:$R$26,MATCH(Calculations!G51,Lists!$Q$3:$Q$26,0)) -> PM | J51: 88 | K51: =IF(INDEX(Inputs!$H$86:$H$253,MATCH(J51,Inputs!$D$86:$D$253,0)),"TRUE 4", IF(INDEX(Inputs!$G$86:$G$253,MATCH(J51,Inputs!$D$86:$D$253,0)),"TRUE 3", IF(INDEX(Inputs!$F$86:$F$253,MATCH(J51,Inputs!$D$86:$D$253,0)),"TRUE 2", IF(INDEX(Inputs!$E$86:$E$253,MATCH(J51,Inputs!$D$86:$D$253,0)),"TRUE 1", FALSE)))) -> FALSE | M51: ='Volume Import'!C42*'Volume Import'!$H$14*(1+'Volume Import'!$H$15)*(1-'Volume Import'!$H$16) -> 1307 | N51: =IF(AND('Volume Import'!D42=0,'Volume Import'!C42=0),0, IF('Volume Import'!D42=0,INDEX('Volume Import'!$K$2:$Q$5,MATCH(I51,'Volume Import'!$R$2:$R$5,0),MATCH(F51,'Volume Import'!$K$1:$Q$1,0)), 'Volume Import'!D42/'Volume Import'!C42)) -> 0.03749043611 | P51: ='Volume Import'!E42*'Volume Import'!$I$14*(1+'Volume Import'!$I$15)*(1-'Volume Import'!$I$16) -> 593 | Q51: =IF('Volume Import'!F42=0,N51,'Volume Import'!F42/'Volume Import'!E42) -> 0.06576728499 | S51: =IF(K51="TRUE 1",IF(I51="NT",Inputs!$C$35,Inputs!$C$34), IF(K51="TRUE 2",IF(I51="NT",Inputs!$D$35,Inputs!$D$34), IF(K51="TRUE 3",IF(I51="NT",Inputs!$E$35,Inputs!$E$34), IF(K51="TRUE 4",IF(I51="NT",Inputs!$F$35,Inputs!$F$34), S50)))) -> 54.62255796 | T51: =IF(K51="TRUE 1",IF(I51="NT",MROUND(Inputs!$C$32*$T$3*(1/(1+N51*(2-1))),1),MROUND(Inputs!$C$30*$T$3*(1/(1+N51*(2-1))),1)), IF(K51="TRUE 2",IF(I51="NT",MROUND(Inputs!$D$32*$U$3*(1/(1+N51*(2-1))),1),MROUND(Inputs!$D$30*$U$3*(1/(1+N51*(2-1))),1)), IF(K51="TRUE 3",IF(I51="NT",MROUND(Inputs!$E$32*$V$3*(1/(1+N51*(2-1))),1),MROUND(Inputs!$E$30*$V$3*(1/(1+N51*(2-1))),1)), IF(K51="TRUE 4",IF(I51="NT",MROUND(Inputs!$F$32*$W$3*(1/(1+N51*(2-1))),1),MROUND(Inputs!$F$30*$W$3*(1/(1+N51*(2-1))),1)), MROUND(Inputs!$C$15*(1/(1+N51*(2-1)))*($T$3+$T$4),1))))) -> 6940 | U51: -5633 | V51: 0 | W51: =(V51/(1/(1+N51*(2-1))))*S51/LEFT(Inputs!$C$18,1)/5280 -> 0 | X51: 0 | Y51: =((X51/60)*((Inputs!$C$13*V51*(1-N51))+(Inputs!$C$14*V51*N51))) -> 0 | Z51: =IF(V51>0,($N$5/60)*(((M51*$N$3/(1-$N$3))*(1-N51)*Inputs!$C$13)+((M51*$N$3/(1-$N$3))*N51*Inputs!$C$14)),0) -> 0 | AA51: 0 | AC51: 2019-01-02T16:00:00 | AF51: =IF(AND(AD51<>"",AE51<>""),MAX(INDIRECT(AD51):INDIRECT(AE51)),"") ->  | AJ51: =IF(K51="TRUE 1",IF(I51="NT",MROUND(Inputs!$C$32*$AJ$3*(1/(1+Q51*(2-1))),1),MROUND(Inputs!$C$30*$AJ$3*(1/(1+Q51*(2-1))),1)), IF(K51="TRUE 2",IF(I51="NT",MROUND(Inputs!$D$32*$AK$3*(1/(1+Q51*(2-1))),1),MROUND(Inputs!$D$30*$AK$3*(1/(1+Q51*(2-1))),1)), IF(K51="TRUE 3",IF(I51="NT",MROUND(Inputs!$E$32*$AL$3*(1/(1+Q51*(2-1))),1),MROUND(Inputs!$E$30*$AL$3*(1/(1+Q51*(2-1))),1)), IF(K51="TRUE 4",IF(I51="NT",MROUND(Inputs!$F$32*$AM$3*(1/(1+Q51*(2-1))),1),MROUND(Inputs!$F$30*$AM$3*(1/(1+Q51*(2-1))),1)), MROUND(Inputs!$C$15*(1/(1+Q51*(2-1)))*($AJ$3+$AJ$4),1))))) -> 6756 | AK51: -6163 | AL51: 0 | AM51: =(AL51/(1/(1+Q51*(2-1))))*S51/LEFT(Inputs!$C$18,1)/5280 -> 0 | AN51: 0 | AO51: =(AN51/60)*((Inputs!$C$13*AL51*(1-Q51))+(Inputs!$C$14*AL51*Q51)) -> 0 | AP51: =IF(AL51>0,($Q$5/60)*(((P51*$Q$3/(1-$Q$3))*(1-Q51)*Inputs!$C$13)+((P51*$Q$3/(1-$Q$3))*Q51*Inputs!$C$14)),0) -> 0 | AQ51: 0 | AS51: 2019-01-02T16:00:00 | AV51: =IF(AND(AT51<>"",AU51<>""),MAX(INDIRECT(AT51):INDIRECT(AU51)),"") -> 
A52: 2019-01-02 | B52: January | C52: 2 | D52: January-2-17 | E52: 4 | F52: Wednesday | G52: 17:00:00 | H52: 17 | I52: =INDEX(Lists!$R$3:$R$26,MATCH(Calculations!G52,Lists!$Q$3:$Q$26,0)) -> PM | J52: 89 | K52: =IF(INDEX(Inputs!$H$86:$H$253,MATCH(J52,Inputs!$D$86:$D$253,0)),"TRUE 4", IF(INDEX(Inputs!$G$86:$G$253,MATCH(J52,Inputs!$D$86:$D$253,0)),"TRUE 3", IF(INDEX(Inputs!$F$86:$F$253,MATCH(J52,Inputs!$D$86:$D$253,0)),"TRUE 2", IF(INDEX(Inputs!$E$86:$E$253,MATCH(J52,Inputs!$D$86:$D$253,0)),"TRUE 1", FALSE)))) -> FALSE | M52: ='Volume Import'!C43*'Volume Import'!$H$14*(1+'Volume Import'!$H$15)*(1-'Volume Import'!$H$16) -> 1103 | N52: =IF(AND('Volume Import'!D43=0,'Volume Import'!C43=0),0, IF('Volume Import'!D43=0,INDEX('Volume Import'!$K$2:$Q$5,MATCH(I52,'Volume Import'!$R$2:$R$5,0),MATCH(F52,'Volume Import'!$K$1:$Q$1,0)), 'Volume Import'!D43/'Volume Import'!C43)) -> 0.03082502267 | P52: ='Volume Import'!E43*'Volume Import'!$I$14*(1+'Volume Import'!$I$15)*(1-'Volume Import'!$I$16) -> 466 | Q52: =IF('Volume Import'!F43=0,N52,'Volume Import'!F43/'Volume Import'!E43) -> 0.02789699571 | S52: =IF(K52="TRUE 1",IF(I52="NT",Inputs!$C$35,Inputs!$C$34), IF(K52="TRUE 2",IF(I52="NT",Inputs!$D$35,Inputs!$D$34), IF(K52="TRUE 3",IF(I52="NT",Inputs!$E$35,Inputs!$E$34), IF(K52="TRUE 4",IF(I52="NT",Inputs!$F$35,Inputs!$F$34), S51)))) -> 54.62255796 | T52: =IF(K52="TRUE 1",IF(I52="NT",MROUND(Inputs!$C$32*$T$3*(1/(1+N52*(2-1))),1),MROUND(Inputs!$C$30*$T$3*(1/(1+N52*(2-1))),1)), IF(K52="TRUE 2",IF(I52="NT",MROUND(Inputs!$D$32*$U$3*(1/(1+N52*(2-1))),1),MROUND(Inputs!$D$30*$U$3*(1/(1+N52*(2-1))),1)), IF(K52="TRUE 3",IF(I52="NT",MROUND(Inputs!$E$32*$V$3*(1/(1+N52*(2-1))),1),MROUND(Inputs!$E$30*$V$3*(1/(1+N52*(2-1))),1)), IF(K52="TRUE 4",IF(I52="NT",MROUND(Inputs!$F$32*$W$3*(1/(1+N52*(2-1))),1),MROUND(Inputs!$F$30*$W$3*(1/(1+N52*(2-1))),1)), MROUND(Inputs!$C$15*(1/(1+N52*(2-1)))*($T$3+$T$4),1))))) -> 6985 | U52: -5882 | V52: 0 | W52: =(V52/(1/(1+N52*(2-1))))*S52/LEFT(Inputs!$C$18,1)/5280 -> 0 | X52: 0 | Y52: =((X52/60)*((Inputs!$C$13*V52*(1-N52))+(Inputs!$C$14*V52*N52))) -> 0 | Z52: =IF(V52>0,($N$5/60)*(((M52*$N$3/(1-$N$3))*(1-N52)*Inputs!$C$13)+((M52*$N$3/(1-$N$3))*N52*Inputs!$C$14)),0) -> 0 | AA52: 0 | AC52: 2019-01-02T17:00:00 | AF52: =IF(AND(AD52<>"",AE52<>""),MAX(INDIRECT(AD52):INDIRECT(AE52)),"") ->  | AJ52: =IF(K52="TRUE 1",IF(I52="NT",MROUND(Inputs!$C$32*$AJ$3*(1/(1+Q52*(2-1))),1),MROUND(Inputs!$C$30*$AJ$3*(1/(1+Q52*(2-1))),1)), IF(K52="TRUE 2",IF(I52="NT",MROUND(Inputs!$D$32*$AK$3*(1/(1+Q52*(2-1))),1),MROUND(Inputs!$D$30*$AK$3*(1/(1+Q52*(2-1))),1)), IF(K52="TRUE 3",IF(I52="NT",MROUND(Inputs!$E$32*$AL$3*(1/(1+Q52*(2-1))),1),MROUND(Inputs!$E$30*$AL$3*(1/(1+Q52*(2-1))),1)), IF(K52="TRUE 4",IF(I52="NT",MROUND(Inputs!$F$32*$AM$3*(1/(1+Q52*(2-1))),1),MROUND(Inputs!$F$30*$AM$3*(1/(1+Q52*(2-1))),1)), MROUND(Inputs!$C$15*(1/(1+Q52*(2-1)))*($AJ$3+$AJ$4),1))))) -> 7005 | AK52: -6539 | AL52: 0 | AM52: =(AL52/(1/(1+Q52*(2-1))))*S52/LEFT(Inputs!$C$18,1)/5280 -> 0 | AN52: 0 | AO52: =(AN52/60)*((Inputs!$C$13*AL52*(1-Q52))+(Inputs!$C$14*AL52*Q52)) -> 0 | AP52: =IF(AL52>0,($Q$5/60)*(((P52*$Q$3/(1-$Q$3))*(1-Q52)*Inputs!$C$13)+((P52*$Q$3/(1-$Q$3))*Q52*Inputs!$C$14)),0) -> 0 | AQ52: 0 | AS52: 2019-01-02T17:00:00 | AV52: =IF(AND(AT52<>"",AU52<>""),MAX(INDIRECT(AT52):INDIRECT(AU52)),"") -> 
A53: 2019-01-02 | B53: January | C53: 2 | D53: January-2-18 | E53: 4 | F53: Wednesday | G53: 18:00:00 | H53: 18 | I53: =INDEX(Lists!$R$3:$R$26,MATCH(Calculations!G53,Lists!$Q$3:$Q$26,0)) -> NT | J53: 90 | K53: =IF(INDEX(Inputs!$H$86:$H$253,MATCH(J53,Inputs!$D$86:$D$253,0)),"TRUE 4", IF(INDEX(Inputs!$G$86:$G$253,MATCH(J53,Inputs!$D$86:$D$253,0)),"TRUE 3", IF(INDEX(Inputs!$F$86:$F$253,MATCH(J53,Inputs!$D$86:$D$253,0)),"TRUE 2", IF(INDEX(Inputs!$E$86:$E$253,MATCH(J53,Inputs!$D$86:$D$253,0)),"TRUE 1", FALSE)))) -> FALSE | M53: ='Volume Import'!C44*'Volume Import'!$H$14*(1+'Volume Import'!$H$15)*(1-'Volume Import'!$H$16) -> 626 | N53: =IF(AND('Volume Import'!D44=0,'Volume Import'!C44=0),0, IF('Volume Import'!D44=0,INDEX('Volume Import'!$K$2:$Q$5,MATCH(I53,'Volume Import'!$R$2:$R$5,0),MATCH(F53,'Volume Import'!$K$1:$Q$1,0)), 'Volume Import'!D44/'Volume Import'!C44)) -> 0.04952076677 | P53: ='Volume Import'!E44*'Volume Import'!$I$14*(1+'Volume Import'!$I$15)*(1-'Volume Import'!$I$16) -> 347 | Q53: =IF('Volume Import'!F44=0,N53,'Volume Import'!F44/'Volume Import'!E44) -> 0.04899135447 | S53: =IF(K53="TRUE 1",IF(I53="NT",Inputs!$C$35,Inputs!$C$34), IF(K53="TRUE 2",IF(I53="NT",Inputs!$D$35,Inputs!$D$34), IF(K53="TRUE 3",IF(I53="NT",Inputs!$E$35,Inputs!$E$34), IF(K53="TRUE 4",IF(I53="NT",Inputs!$F$35,Inputs!$F$34), S52)))) -> 54.62255796 | T53: =IF(K53="TRUE 1",IF(I53="NT",MROUND(Inputs!$C$32*$T$3*(1/(1+N53*(2-1))),1),MROUND(Inputs!$C$30*$T$3*(1/(1+N53*(2-1))),1)), IF(K53="TRUE 2",IF(I53="NT",MROUND(Inputs!$D$32*$U$3*(1/(1+N53*(2-1))),1),MROUND(Inputs!$D$30*$U$3*(1/(1+N53*(2-1))),1)), IF(K53="TRUE 3",IF(I53="NT",MROUND(Inputs!$E$32*$V$3*(1/(1+N53*(2-1))),1),MROUND(Inputs!$E$30*$V$3*(1/(1+N53*(2-1))),1)), IF(K53="TRUE 4",IF(I53="NT",MROUND(Inputs!$F$32*$W$3*(1/(1+N53*(2-1))),1),MROUND(Inputs!$F$30*$W$3*(1/(1+N53*(2-1))),1)), MROUND(Inputs!$C$15*(1/(1+N53*(2-1)))*($T$3+$T$4),1))))) -> 6860 | U53: -6234 | V53: 0 | W53: =(V53/(1/(1+N53*(2-1))))*S53/LEFT(Inputs!$C$18,1)/5280 -> 0 | X53: 0 | Y53: =((X53/60)*((Inputs!$C$13*V53*(1-N53))+(Inputs!$C$14*V53*N53))) -> 0 | Z53: =IF(V53>0,($N$5/60)*(((M53*$N$3/(1-$N$3))*(1-N53)*Inputs!$C$13)+((M53*$N$3/(1-$N$3))*N53*Inputs!$C$14)),0) -> 0 | AA53: 0 | AC53: 2019-01-02T18:00:00 | AF53: =IF(AND(AD53<>"",AE53<>""),MAX(INDIRECT(AD53):INDIRECT(AE53)),"") ->  | AJ53: =IF(K53="TRUE 1",IF(I53="NT",MROUND(Inputs!$C$32*$AJ$3*(1/(1+Q53*(2-1))),1),MROUND(Inputs!$C$30*$AJ$3*(1/(1+Q53*(2-1))),1)), IF(K53="TRUE 2",IF(I53="NT",MROUND(Inputs!$D$32*$AK$3*(1/(1+Q53*(2-1))),1),MROUND(Inputs!$D$30*$AK$3*(1/(1+Q53*(2-1))),1)), IF(K53="TRUE 3",IF(I53="NT",MROUND(Inputs!$E$32*$AL$3*(1/(1+Q53*(2-1))),1),MROUND(Inputs!$E$30*$AL$3*(1/(1+Q53*(2-1))),1)), IF(K53="TRUE 4",IF(I53="NT",MROUND(Inputs!$F$32*$AM$3*(1/(1+Q53*(2-1))),1),MROUND(Inputs!$F$30*$AM$3*(1/(1+Q53*(2-1))),1)), MROUND(Inputs!$C$15*(1/(1+Q53*(2-1)))*($AJ$3+$AJ$4),1))))) -> 6864 | AK53: -6517 | AL53: 0 | AM53: =(AL53/(1/(1+Q53*(2-1))))*S53/LEFT(Inputs!$C$18,1)/5280 -> 0 | AN53: 0 | AO53: =(AN53/60)*((Inputs!$C$13*AL53*(1-Q53))+(Inputs!$C$14*AL53*Q53)) -> 0 | AP53: =IF(AL53>0,($Q$5/60)*(((P53*$Q$3/(1-$Q$3))*(1-Q53)*Inputs!$C$13)+((P53*$Q$3/(1-$Q$3))*Q53*Inputs!$C$14)),0) -> 0 | AQ53: 0 | AS53: 2019-01-02T18:00:00 | AV53: =IF(AND(AT53<>"",AU53<>""),MAX(INDIRECT(AT53):INDIRECT(AU53)),"") -> 
A54: 2019-01-02 | B54: January | C54: 2 | D54: January-2-19 | E54: 4 | F54: Wednesday | G54: 19:00:00 | H54: 19 | I54: =INDEX(Lists!$R$3:$R$26,MATCH(Calculations!G54,Lists!$Q$3:$Q$26,0)) -> NT | J54: 91 | K54: =IF(INDEX(Inputs!$H$86:$H$253,MATCH(J54,Inputs!$D$86:$D$253,0)),"TRUE 4", IF(INDEX(Inputs!$G$86:$G$253,MATCH(J54,Inputs!$D$86:$D$253,0)),"TRUE 3", IF(INDEX(Inputs!$F$86:$F$253,MATCH(J54,Inputs!$D$86:$D$253,0)),"TRUE 2", IF(INDEX(Inputs!$E$86:$E$253,MATCH(J54,Inputs!$D$86:$D$253,0)),"TRUE 1", FALSE)))) -> FALSE | M54: ='Volume Import'!C45*'Volume Import'!$H$14*(1+'Volume Import'!$H$15)*(1-'Volume Import'!$H$16) -> 428 | N54: =IF(AND('Volume Import'!D45=0,'Volume Import'!C45=0),0, IF('Volume Import'!D45=0,INDEX('Volume Import'!$K$2:$Q$5,MATCH(I54,'Volume Import'!$R$2:$R$5,0),MATCH(F54,'Volume Import'!$K$1:$Q$1,0)), 'Volume Import'!D45/'Volume Import'!C45)) -> 0.03738317757 | P54: ='Volume Import'!E45*'Volume Import'!$I$14*(1+'Volume Import'!$I$15)*(1-'Volume Import'!$I$16) -> 236 | Q54: =IF('Volume Import'!F45=0,N54,'Volume Import'!F45/'Volume Import'!E45) -> 0.05508474576 | S54: =IF(K54="TRUE 1",IF(I54="NT",Inputs!$C$35,Inputs!$C$34), IF(K54="TRUE 2",IF(I54="NT",Inputs!$D$35,Inputs!$D$34), IF(K54="TRUE 3",IF(I54="NT",Inputs!$E$35,Inputs!$E$34), IF(K54="TRUE 4",IF(I54="NT",Inputs!$F$35,Inputs!$F$34), S53)))) -> 54.62255796 | T54: =IF(K54="TRUE 1",IF(I54="NT",MROUND(Inputs!$C$32*$T$3*(1/(1+N54*(2-1))),1),MROUND(Inputs!$C$30*$T$3*(1/(1+N54*(2-1))),1)), IF(K54="TRUE 2",IF(I54="NT",MROUND(Inputs!$D$32*$U$3*(1/(1+N54*(2-1))),1),MROUND(Inputs!$D$30*$U$3*(1/(1+N54*(2-1))),1)), IF(K54="TRUE 3",IF(I54="NT",MROUND(Inputs!$E$32*$V$3*(1/(1+N54*(2-1))),1),MROUND(Inputs!$E$30*$V$3*(1/(1+N54*(2-1))),1)), IF(K54="TRUE 4",IF(I54="NT",MROUND(Inputs!$F$32*$W$3*(1/(1+N54*(2-1))),1),MROUND(Inputs!$F$30*$W$3*(1/(1+N54*(2-1))),1)), MROUND(Inputs!$C$15*(1/(1+N54*(2-1)))*($T$3+$T$4),1))))) -> 6941 | U54: -6513 | V54: 0 | W54: =(V54/(1/(1+N54*(2-1))))*S54/LEFT(Inputs!$C$18,1)/5280 -> 0 | X54: 0 | Y54: =((X54/60)*((Inputs!$C$13*V54*(1-N54))+(Inputs!$C$14*V54*N54))) -> 0 | Z54: =IF(V54>0,($N$5/60)*(((M54*$N$3/(1-$N$3))*(1-N54)*Inputs!$C$13)+((M54*$N$3/(1-$N$3))*N54*Inputs!$C$14)),0) -> 0 | AA54: 0 | AC54: 2019-01-02T19:00:00 | AF54: =IF(AND(AD54<>"",AE54<>""),MAX(INDIRECT(AD54):INDIRECT(AE54)),"") ->  | AJ54: =IF(K54="TRUE 1",IF(I54="NT",MROUND(Inputs!$C$32*$AJ$3*(1/(1+Q54*(2-1))),1),MROUND(Inputs!$C$30*$AJ$3*(1/(1+Q54*(2-1))),1)), IF(K54="TRUE 2",IF(I54="NT",MROUND(Inputs!$D$32*$AK$3*(1/(1+Q54*(2-1))),1),MROUND(Inputs!$D$30*$AK$3*(1/(1+Q54*(2-1))),1)), IF(K54="TRUE 3",IF(I54="NT",MROUND(Inputs!$E$32*$AL$3*(1/(1+Q54*(2-1))),1),MROUND(Inputs!$E$30*$AL$3*(1/(1+Q54*(2-1))),1)), IF(K54="TRUE 4",IF(I54="NT",MROUND(Inputs!$F$32*$AM$3*(1/(1+Q54*(2-1))),1),MROUND(Inputs!$F$30*$AM$3*(1/(1+Q54*(2-1))),1)), MROUND(Inputs!$C$15*(1/(1+Q54*(2-1)))*($AJ$3+$AJ$4),1))))) -> 6824 | AK54: -6588 | AL54: 0 | AM54: =(AL54/(1/(1+Q54*(2-1))))*S54/LEFT(Inputs!$C$18,1)/5280 -> 0 | AN54: 0 | AO54: =(AN54/60)*((Inputs!$C$13*AL54*(1-Q54))+(Inputs!$C$14*AL54*Q54)) -> 0 | AP54: =IF(AL54>0,($Q$5/60)*(((P54*$Q$3/(1-$Q$3))*(1-Q54)*Inputs!$C$13)+((P54*$Q$3/(1-$Q$3))*Q54*Inputs!$C$14)),0) -> 0 | AQ54: 0 | AS54: 2019-01-02T19:00:00 | AV54: =IF(AND(AT54<>"",AU54<>""),MAX(INDIRECT(AT54):INDIRECT(AU54)),"") -> 
A55: 2019-01-02 | B55: January | C55: 2 | D55: January-2-20 | E55: 4 | F55: Wednesday | G55: 20:00:00 | H55: 20 | I55: =INDEX(Lists!$R$3:$R$26,MATCH(Calculations!G55,Lists!$Q$3:$Q$26,0)) -> NT | J55: 92 | K55: =IF(INDEX(Inputs!$H$86:$H$253,MATCH(J55,Inputs!$D$86:$D$253,0)),"TRUE 4", IF(INDEX(Inputs!$G$86:$G$253,MATCH(J55,Inputs!$D$86:$D$253,0)),"TRUE 3", IF(INDEX(Inputs!$F$86:$F$253,MATCH(J55,Inputs!$D$86:$D$253,0)),"TRUE 2", IF(INDEX(Inputs!$E$86:$E$253,MATCH(J55,Inputs!$D$86:$D$253,0)),"TRUE 1", FALSE)))) -> FALSE | M55: ='Volume Import'!C46*'Volume Import'!$H$14*(1+'Volume Import'!$H$15)*(1-'Volume Import'!$H$16) -> 278 | N55: =IF(AND('Volume Import'!D46=0,'Volume Import'!C46=0),0, IF('Volume Import'!D46=0,INDEX('Volume Import'!$K$2:$Q$5,MATCH(I55,'Volume Import'!$R$2:$R$5,0),MATCH(F55,'Volume Import'!$K$1:$Q$1,0)), 'Volume Import'!D46/'Volume Import'!C46)) -> 0.03597122302 | P55: ='Volume Import'!E46*'Volume Import'!$I$14*(1+'Volume Import'!$I$15)*(1-'Volume Import'!$I$16) -> 155 | Q55: =IF('Volume Import'!F46=0,N55,'Volume Import'!F46/'Volume Import'!E46) -> 0.04516129032 | S55: =IF(K55="TRUE 1",IF(I55="NT",Inputs!$C$35,Inputs!$C$34), IF(K55="TRUE 2",IF(I55="NT",Inputs!$D$35,Inputs!$D$34), IF(K55="TRUE 3",IF(I55="NT",Inputs!$E$35,Inputs!$E$34), IF(K55="TRUE 4",IF(I55="NT",Inputs!$F$35,Inputs!$F$34), S54)))) -> 54.62255796 | T55: =IF(K55="TRUE 1",IF(I55="NT",MROUND(Inputs!$C$32*$T$3*(1/(1+N55*(2-1))),1),MROUND(Inputs!$C$30*$T$3*(1/(1+N55*(2-1))),1)), IF(K55="TRUE 2",IF(I55="NT",MROUND(Inputs!$D$32*$U$3*(1/(1+N55*(2-1))),1),MROUND(Inputs!$D$30*$U$3*(1/(1+N55*(2-1))),1)), IF(K55="TRUE 3",IF(I55="NT",MROUND(Inputs!$E$32*$V$3*(1/(1+N55*(2-1))),1),MROUND(Inputs!$E$30*$V$3*(1/(1+N55*(2-1))),1)), IF(K55="TRUE 4",IF(I55="NT",MROUND(Inputs!$F$32*$W$3*(1/(1+N55*(2-1))),1),MROUND(Inputs!$F$30*$W$3*(1/(1+N55*(2-1))),1)), MROUND(Inputs!$C$15*(1/(1+N55*(2-1)))*($T$3+$T$4),1))))) -> 6950 | U55: -6672 | V55: 0 | W55: =(V55/(1/(1+N55*(2-1))))*S55/LEFT(Inputs!$C$18,1)/5280 -> 0 | X55: 0 | Y55: =((X55/60)*((Inputs!$C$13*V55*(1-N55))+(Inputs!$C$14*V55*N55))) -> 0 | Z55: =IF(V55>0,($N$5/60)*(((M55*$N$3/(1-$N$3))*(1-N55)*Inputs!$C$13)+((M55*$N$3/(1-$N$3))*N55*Inputs!$C$14)),0) -> 0 | AA55: 0 | AC55: 2019-01-02T20:00:00 | AF55: =IF(AND(AD55<>"",AE55<>""),MAX(INDIRECT(AD55):INDIRECT(AE55)),"") ->  | AJ55: =IF(K55="TRUE 1",IF(I55="NT",MROUND(Inputs!$C$32*$AJ$3*(1/(1+Q55*(2-1))),1),MROUND(Inputs!$C$30*$AJ$3*(1/(1+Q55*(2-1))),1)), IF(K55="TRUE 2",IF(I55="NT",MROUND(Inputs!$D$32*$AK$3*(1/(1+Q55*(2-1))),1),MROUND(Inputs!$D$30*$AK$3*(1/(1+Q55*(2-1))),1)), IF(K55="TRUE 3",IF(I55="NT",MROUND(Inputs!$E$32*$AL$3*(1/(1+Q55*(2-1))),1),MROUND(Inputs!$E$30*$AL$3*(1/(1+Q55*(2-1))),1)), IF(K55="TRUE 4",IF(I55="NT",MROUND(Inputs!$F$32*$AM$3*(1/(1+Q55*(2-1))),1),MROUND(Inputs!$F$30*$AM$3*(1/(1+Q55*(2-1))),1)), MROUND(Inputs!$C$15*(1/(1+Q55*(2-1)))*($AJ$3+$AJ$4),1))))) -> 6889 | AK55: -6734 | AL55: 0 | AM55: =(AL55/(1/(1+Q55*(2-1))))*S55/LEFT(Inputs!$C$18,1)/5280 -> 0 | AN55: 0 | AO55: =(AN55/60)*((Inputs!$C$13*AL55*(1-Q55))+(Inputs!$C$14*AL55*Q55)) -> 0 | AP55: =IF(AL55>0,($Q$5/60)*(((P55*$Q$3/(1-$Q$3))*(1-Q55)*Inputs!$C$13)+((P55*$Q$3/(1-$Q$3))*Q55*Inputs!$C$14)),0) -> 0 | AQ55: 0 | AS55: 2019-01-02T20:00:00 | AV55: =IF(AND(AT55<>"",AU55<>""),MAX(INDIRECT(AT55):INDIRECT(AU55)),"") -> 
A56: 2019-01-02 | B56: January | C56: 2 | D56: January-2-21 | E56: 4 | F56: Wednesday | G56: 21:00:00 | H56: 21 | I56: =INDEX(Lists!$R$3:$R$26,MATCH(Calculations!G56,Lists!$Q$3:$Q$26,0)) -> NT | J56: 93 | K56: =IF(INDEX(Inputs!$H$86:$H$253,MATCH(J56,Inputs!$D$86:$D$253,0)),"TRUE 4", IF(INDEX(Inputs!$G$86:$G$253,MATCH(J56,Inputs!$D$86:$D$253,0)),"TRUE 3", IF(INDEX(Inputs!$F$86:$F$253,MATCH(J56,Inputs!$D$86:$D$253,0)),"TRUE 2", IF(INDEX(Inputs!$E$86:$E$253,MATCH(J56,Inputs!$D$86:$D$253,0)),"TRUE 1", FALSE)))) -> FALSE | M56: ='Volume Import'!C47*'Volume Import'!$H$14*(1+'Volume Import'!$H$15)*(1-'Volume Import'!$H$16) -> 181 | N56: =IF(AND('Volume Import'!D47=0,'Volume Import'!C47=0),0, IF('Volume Import'!D47=0,INDEX('Volume Import'!$K$2:$Q$5,MATCH(I56,'Volume Import'!$R$2:$R$5,0),MATCH(F56,'Volume Import'!$K$1:$Q$1,0)), 'Volume Import'!D47/'Volume Import'!C47)) -> 0.03314917127 | P56: ='Volume Import'!E47*'Volume Import'!$I$14*(1+'Volume Import'!$I$15)*(1-'Volume Import'!$I$16) -> 134 | Q56: =IF('Volume Import'!F47=0,N56,'Volume Import'!F47/'Volume Import'!E47) -> 0.03731343284 | S56: =IF(K56="TRUE 1",IF(I56="NT",Inputs!$C$35,Inputs!$C$34), IF(K56="TRUE 2",IF(I56="NT",Inputs!$D$35,Inputs!$D$34), IF(K56="TRUE 3",IF(I56="NT",Inputs!$E$35,Inputs!$E$34), IF(K56="TRUE 4",IF(I56="NT",Inputs!$F$35,Inputs!$F$34), S55)))) -> 54.62255796 | T56: =IF(K56="TRUE 1",IF(I56="NT",MROUND(Inputs!$C$32*$T$3*(1/(1+N56*(2-1))),1),MROUND(Inputs!$C$30*$T$3*(1/(1+N56*(2-1))),1)), IF(K56="TRUE 2",IF(I56="NT",MROUND(Inputs!$D$32*$U$3*(1/(1+N56*(2-1))),1),MROUND(Inputs!$D$30*$U$3*(1/(1+N56*(2-1))),1)), IF(K56="TRUE 3",IF(I56="NT",MROUND(Inputs!$E$32*$V$3*(1/(1+N56*(2-1))),1),MROUND(Inputs!$E$30*$V$3*(1/(1+N56*(2-1))),1)), IF(K56="TRUE 4",IF(I56="NT",MROUND(Inputs!$F$32*$W$3*(1/(1+N56*(2-1))),1),MROUND(Inputs!$F$30*$W$3*(1/(1+N56*(2-1))),1)), MROUND(Inputs!$C$15*(1/(1+N56*(2-1)))*($T$3+$T$4),1))))) -> 6969 | U56: -6788 | V56: 0 | W56: =(V56/(1/(1+N56*(2-1))))*S56/LEFT(Inputs!$C$18,1)/5280 -> 0 | X56: 0 | Y56: =((X56/60)*((Inputs!$C$13*V56*(1-N56))+(Inputs!$C$14*V56*N56))) -> 0 | Z56: =IF(V56>0,($N$5/60)*(((M56*$N$3/(1-$N$3))*(1-N56)*Inputs!$C$13)+((M56*$N$3/(1-$N$3))*N56*Inputs!$C$14)),0) -> 0 | AA56: 0 | AC56: 2019-01-02T21:00:00 | AF56: =IF(AND(AD56<>"",AE56<>""),MAX(INDIRECT(AD56):INDIRECT(AE56)),"") ->  | AJ56: =IF(K56="TRUE 1",IF(I56="NT",MROUND(Inputs!$C$32*$AJ$3*(1/(1+Q56*(2-1))),1),MROUND(Inputs!$C$30*$AJ$3*(1/(1+Q56*(2-1))),1)), IF(K56="TRUE 2",IF(I56="NT",MROUND(Inputs!$D$32*$AK$3*(1/(1+Q56*(2-1))),1),MROUND(Inputs!$D$30*$AK$3*(1/(1+Q56*(2-1))),1)), IF(K56="TRUE 3",IF(I56="NT",MROUND(Inputs!$E$32*$AL$3*(1/(1+Q56*(2-1))),1),MROUND(Inputs!$E$30*$AL$3*(1/(1+Q56*(2-1))),1)), IF(K56="TRUE 4",IF(I56="NT",MROUND(Inputs!$F$32*$AM$3*(1/(1+Q56*(2-1))),1),MROUND(Inputs!$F$30*$AM$3*(1/(1+Q56*(2-1))),1)), MROUND(Inputs!$C$15*(1/(1+Q56*(2-1)))*($AJ$3+$AJ$4),1))))) -> 6941 | AK56: -6807 | AL56: 0 | AM56: =(AL56/(1/(1+Q56*(2-1))))*S56/LEFT(Inputs!$C$18,1)/5280 -> 0 | AN56: 0 | AO56: =(AN56/60)*((Inputs!$C$13*AL56*(1-Q56))+(Inputs!$C$14*AL56*Q56)) -> 0 | AP56: =IF(AL56>0,($Q$5/60)*(((P56*$Q$3/(1-$Q$3))*(1-Q56)*Inputs!$C$13)+((P56*$Q$3/(1-$Q$3))*Q56*Inputs!$C$14)),0) -> 0 | AQ56: 0 | AS56: 2019-01-02T21:00:00 | AV56: =IF(AND(AT56<>"",AU56<>""),MAX(INDIRECT(AT56):INDIRECT(AU56)),"") -> 
A57: 2019-01-02 | B57: January | C57: 2 | D57: January-2-22 | E57: 4 | F57: Wednesday | G57: 22:00:00 | H57: 22 | I57: =INDEX(Lists!$R$3:$R$26,MATCH(Calculations!G57,Lists!$Q$3:$Q$26,0)) -> NT | J57: 94 | K57: =IF(INDEX(Inputs!$H$86:$H$253,MATCH(J57,Inputs!$D$86:$D$253,0)),"TRUE 4", IF(INDEX(Inputs!$G$86:$G$253,MATCH(J57,Inputs!$D$86:$D$253,0)),"TRUE 3", IF(INDEX(Inputs!$F$86:$F$253,MATCH(J57,Inputs!$D$86:$D$253,0)),"TRUE 2", IF(INDEX(Inputs!$E$86:$E$253,MATCH(J57,Inputs!$D$86:$D$253,0)),"TRUE 1", FALSE)))) -> FALSE | M57: ='Volume Import'!C48*'Volume Import'!$H$14*(1+'Volume Import'!$H$15)*(1-'Volume Import'!$H$16) -> 142 | N57: =IF(AND('Volume Import'!D48=0,'Volume Import'!C48=0),0, IF('Volume Import'!D48=0,INDEX('Volume Import'!$K$2:$Q$5,MATCH(I57,'Volume Import'!$R$2:$R$5,0),MATCH(F57,'Volume Import'!$K$1:$Q$1,0)), 'Volume Import'!D48/'Volume Import'!C48)) -> 0.04225352113 | P57: ='Volume Import'!E48*'Volume Import'!$I$14*(1+'Volume Import'!$I$15)*(1-'Volume Import'!$I$16) -> 68 | Q57: =IF('Volume Import'!F48=0,N57,'Volume Import'!F48/'Volume Import'!E48) -> 0.04411764706 | S57: =IF(K57="TRUE 1",IF(I57="NT",Inputs!$C$35,Inputs!$C$34), IF(K57="TRUE 2",IF(I57="NT",Inputs!$D$35,Inputs!$D$34), IF(K57="TRUE 3",IF(I57="NT",Inputs!$E$35,Inputs!$E$34), IF(K57="TRUE 4",IF(I57="NT",Inputs!$F$35,Inputs!$F$34), S56)))) -> 54.62255796 | T57: =IF(K57="TRUE 1",IF(I57="NT",MROUND(Inputs!$C$32*$T$3*(1/(1+N57*(2-1))),1),MROUND(Inputs!$C$30*$T$3*(1/(1+N57*(2-1))),1)), IF(K57="TRUE 2",IF(I57="NT",MROUND(Inputs!$D$32*$U$3*(1/(1+N57*(2-1))),1),MROUND(Inputs!$D$30*$U$3*(1/(1+N57*(2-1))),1)), IF(K57="TRUE 3",IF(I57="NT",MROUND(Inputs!$E$32*$V$3*(1/(1+N57*(2-1))),1),MROUND(Inputs!$E$30*$V$3*(1/(1+N57*(2-1))),1)), IF(K57="TRUE 4",IF(I57="NT",MROUND(Inputs!$F$32*$W$3*(1/(1+N57*(2-1))),1),MROUND(Inputs!$F$30*$W$3*(1/(1+N57*(2-1))),1)), MROUND(Inputs!$C$15*(1/(1+N57*(2-1)))*($T$3+$T$4),1))))) -> 6908 | U57: -6766 | V57: 0 | W57: =(V57/(1/(1+N57*(2-1))))*S57/LEFT(Inputs!$C$18,1)/5280 -> 0 | X57: 0 | Y57: =((X57/60)*((Inputs!$C$13*V57*(1-N57))+(Inputs!$C$14*V57*N57))) -> 0 | Z57: =IF(V57>0,($N$5/60)*(((M57*$N$3/(1-$N$3))*(1-N57)*Inputs!$C$13)+((M57*$N$3/(1-$N$3))*N57*Inputs!$C$14)),0) -> 0 | AA57: 0 | AC57: 2019-01-02T22:00:00 | AF57: =IF(AND(AD57<>"",AE57<>""),MAX(INDIRECT(AD57):INDIRECT(AE57)),"") ->  | AJ57: =IF(K57="TRUE 1",IF(I57="NT",MROUND(Inputs!$C$32*$AJ$3*(1/(1+Q57*(2-1))),1),MROUND(Inputs!$C$30*$AJ$3*(1/(1+Q57*(2-1))),1)), IF(K57="TRUE 2",IF(I57="NT",MROUND(Inputs!$D$32*$AK$3*(1/(1+Q57*(2-1))),1),MROUND(Inputs!$D$30*$AK$3*(1/(1+Q57*(2-1))),1)), IF(K57="TRUE 3",IF(I57="NT",MROUND(Inputs!$E$32*$AL$3*(1/(1+Q57*(2-1))),1),MROUND(Inputs!$E$30*$AL$3*(1/(1+Q57*(2-1))),1)), IF(K57="TRUE 4",IF(I57="NT",MROUND(Inputs!$F$32*$AM$3*(1/(1+Q57*(2-1))),1),MROUND(Inputs!$F$30*$AM$3*(1/(1+Q57*(2-1))),1)), MROUND(Inputs!$C$15*(1/(1+Q57*(2-1)))*($AJ$3+$AJ$4),1))))) -> 6896 | AK57: -6828 | AL57: 0 | AM57: =(AL57/(1/(1+Q57*(2-1))))*S57/LEFT(Inputs!$C$18,1)/5280 -> 0 | AN57: 0 | AO57: =(AN57/60)*((Inputs!$C$13*AL57*(1-Q57))+(Inputs!$C$14*AL57*Q57)) -> 0 | AP57: =IF(AL57>0,($Q$5/60)*(((P57*$Q$3/(1-$Q$3))*(1-Q57)*Inputs!$C$13)+((P57*$Q$3/(1-$Q$3))*Q57*Inputs!$C$14)),0) -> 0 | AQ57: 0 | AS57: 2019-01-02T22:00:00 | AV57: =IF(AND(AT57<>"",AU57<>""),MAX(INDIRECT(AT57):INDIRECT(AU57)),"") -> 
A58: 2019-01-02 | B58: January | C58: 2 | D58: January-2-23 | E58: 4 | F58: Wednesday | G58: 23:00:00 | H58: 23 | I58: =INDEX(Lists!$R$3:$R$26,MATCH(Calculations!G58,Lists!$Q$3:$Q$26,0)) -> NT | J58: 95 | K58: =IF(INDEX(Inputs!$H$86:$H$253,MATCH(J58,Inputs!$D$86:$D$253,0)),"TRUE 4", IF(INDEX(Inputs!$G$86:$G$253,MATCH(J58,Inputs!$D$86:$D$253,0)),"TRUE 3", IF(INDEX(Inputs!$F$86:$F$253,MATCH(J58,Inputs!$D$86:$D$253,0)),"TRUE 2", IF(INDEX(Inputs!$E$86:$E$253,MATCH(J58,Inputs!$D$86:$D$253,0)),"TRUE 1", FALSE)))) -> FALSE | M58: ='Volume Import'!C49*'Volume Import'!$H$14*(1+'Volume Import'!$H$15)*(1-'Volume Import'!$H$16) -> 90 | N58: =IF(AND('Volume Import'!D49=0,'Volume Import'!C49=0),0, IF('Volume Import'!D49=0,INDEX('Volume Import'!$K$2:$Q$5,MATCH(I58,'Volume Import'!$R$2:$R$5,0),MATCH(F58,'Volume Import'!$K$1:$Q$1,0)), 'Volume Import'!D49/'Volume Import'!C49)) -> 0.07777777778 | P58: ='Volume Import'!E49*'Volume Import'!$I$14*(1+'Volume Import'!$I$15)*(1-'Volume Import'!$I$16) -> 34 | Q58: =IF('Volume Import'!F49=0,N58,'Volume Import'!F49/'Volume Import'!E49) -> 0.02941176471 | S58: =IF(K58="TRUE 1",IF(I58="NT",Inputs!$C$35,Inputs!$C$34), IF(K58="TRUE 2",IF(I58="NT",Inputs!$D$35,Inputs!$D$34), IF(K58="TRUE 3",IF(I58="NT",Inputs!$E$35,Inputs!$E$34), IF(K58="TRUE 4",IF(I58="NT",Inputs!$F$35,Inputs!$F$34), S57)))) -> 54.62255796 | T58: =IF(K58="TRUE 1",IF(I58="NT",MROUND(Inputs!$C$32*$T$3*(1/(1+N58*(2-1))),1),MROUND(Inputs!$C$30*$T$3*(1/(1+N58*(2-1))),1)), IF(K58="TRUE 2",IF(I58="NT",MROUND(Inputs!$D$32*$U$3*(1/(1+N58*(2-1))),1),MROUND(Inputs!$D$30*$U$3*(1/(1+N58*(2-1))),1)), IF(K58="TRUE 3",IF(I58="NT",MROUND(Inputs!$E$32*$V$3*(1/(1+N58*(2-1))),1),MROUND(Inputs!$E$30*$V$3*(1/(1+N58*(2-1))),1)), IF(K58="TRUE 4",IF(I58="NT",MROUND(Inputs!$F$32*$W$3*(1/(1+N58*(2-1))),1),MROUND(Inputs!$F$30*$W$3*(1/(1+N58*(2-1))),1)), MROUND(Inputs!$C$15*(1/(1+N58*(2-1)))*($T$3+$T$4),1))))) -> 6680 | U58: -6590 | V58: 0 | W58: =(V58/(1/(1+N58*(2-1))))*S58/LEFT(Inputs!$C$18,1)/5280 -> 0 | X58: 0 | Y58: =((X58/60)*((Inputs!$C$13*V58*(1-N58))+(Inputs!$C$14*V58*N58))) -> 0 | Z58: =IF(V58>0,($N$5/60)*(((M58*$N$3/(1-$N$3))*(1-N58)*Inputs!$C$13)+((M58*$N$3/(1-$N$3))*N58*Inputs!$C$14)),0) -> 0 | AA58: 0 | AC58: 2019-01-02T23:00:00 | AF58: =IF(AND(AD58<>"",AE58<>""),MAX(INDIRECT(AD58):INDIRECT(AE58)),"") ->  | AJ58: =IF(K58="TRUE 1",IF(I58="NT",MROUND(Inputs!$C$32*$AJ$3*(1/(1+Q58*(2-1))),1),MROUND(Inputs!$C$30*$AJ$3*(1/(1+Q58*(2-1))),1)), IF(K58="TRUE 2",IF(I58="NT",MROUND(Inputs!$D$32*$AK$3*(1/(1+Q58*(2-1))),1),MROUND(Inputs!$D$30*$AK$3*(1/(1+Q58*(2-1))),1)), IF(K58="TRUE 3",IF(I58="NT",MROUND(Inputs!$E$32*$AL$3*(1/(1+Q58*(2-1))),1),MROUND(Inputs!$E$30*$AL$3*(1/(1+Q58*(2-1))),1)), IF(K58="TRUE 4",IF(I58="NT",MROUND(Inputs!$F$32*$AM$3*(1/(1+Q58*(2-1))),1),MROUND(Inputs!$F$30*$AM$3*(1/(1+Q58*(2-1))),1)), MROUND(Inputs!$C$15*(1/(1+Q58*(2-1)))*($AJ$3+$AJ$4),1))))) -> 6994 | AK58: -6960 | AL58: 0 | AM58: =(AL58/(1/(1+Q58*(2-1))))*S58/LEFT(Inputs!$C$18,1)/5280 -> 0 | AN58: 0 | AO58: =(AN58/60)*((Inputs!$C$13*AL58*(1-Q58))+(Inputs!$C$14*AL58*Q58)) -> 0 | AP58: =IF(AL58>0,($Q$5/60)*(((P58*$Q$3/(1-$Q$3))*(1-Q58)*Inputs!$C$13)+((P58*$Q$3/(1-$Q$3))*Q58*Inputs!$C$14)),0) -> 0 | AQ58: 0 | AS58: 2019-01-02T23:00:00 | AV58: =IF(AND(AT58<>"",AU58<>""),MAX(INDIRECT(AT58):INDIRECT(AU58)),"") -> 
A59: 2019-01-03 | B59: January | C59: 3 | D59: January-3-0 | E59: 5 | F59: Thursday | G59: 00:00:00 | H59: 0 | I59: =INDEX(Lists!$R$3:$R$26,MATCH(Calculations!G59,Lists!$Q$3:$Q$26,0)) -> NT | J59: 96 | K59: =IF(INDEX(Inputs!$H$86:$H$253,MATCH(J59,Inputs!$D$86:$D$253,0)),"TRUE 4", IF(INDEX(Inputs!$G$86:$G$253,MATCH(J59,Inputs!$D$86:$D$253,0)),"TRUE 3", IF(INDEX(Inputs!$F$86:$F$253,MATCH(J59,Inputs!$D$86:$D$253,0)),"TRUE 2", IF(INDEX(Inputs!$E$86:$E$253,MATCH(J59,Inputs!$D$86:$D$253,0)),"TRUE 1", FALSE)))) -> FALSE | M59: ='Volume Import'!C50*'Volume Import'!$H$14*(1+'Volume Import'!$H$15)*(1-'Volume Import'!$H$16) -> 60 | N59: =IF(AND('Volume Import'!D50=0,'Volume Import'!C50=0),0, IF('Volume Import'!D50=0,INDEX('Volume Import'!$K$2:$Q$5,MATCH(I59,'Volume Import'!$R$2:$R$5,0),MATCH(F59,'Volume Import'!$K$1:$Q$1,0)), 'Volume Import'!D50/'Volume Import'!C50)) -> 0.06666666667 | P59: ='Volume Import'!E50*'Volume Import'!$I$14*(1+'Volume Import'!$I$15)*(1-'Volume Import'!$I$16) -> 30 | Q59: =IF('Volume Import'!F50=0,N59,'Volume Import'!F50/'Volume Import'!E50) -> 0.1 | S59: =IF(K59="TRUE 1",IF(I59="NT",Inputs!$C$35,Inputs!$C$34), IF(K59="TRUE 2",IF(I59="NT",Inputs!$D$35,Inputs!$D$34), IF(K59="TRUE 3",IF(I59="NT",Inputs!$E$35,Inputs!$E$34), IF(K59="TRUE 4",IF(I59="NT",Inputs!$F$35,Inputs!$F$34), S58)))) -> 54.62255796 | T59: =IF(K59="TRUE 1",IF(I59="NT",MROUND(Inputs!$C$32*$T$3*(1/(1+N59*(2-1))),1),MROUND(Inputs!$C$30*$T$3*(1/(1+N59*(2-1))),1)), IF(K59="TRUE 2",IF(I59="NT",MROUND(Inputs!$D$32*$U$3*(1/(1+N59*(2-1))),1),MROUND(Inputs!$D$30*$U$3*(1/(1+N59*(2-1))),1)), IF(K59="TRUE 3",IF(I59="NT",MROUND(Inputs!$E$32*$V$3*(1/(1+N59*(2-1))),1),MROUND(Inputs!$E$30*$V$3*(1/(1+N59*(2-1))),1)), IF(K59="TRUE 4",IF(I59="NT",MROUND(Inputs!$F$32*$W$3*(1/(1+N59*(2-1))),1),MROUND(Inputs!$F$30*$W$3*(1/(1+N59*(2-1))),1)), MROUND(Inputs!$C$15*(1/(1+N59*(2-1)))*($T$3+$T$4),1))))) -> 6750 | U59: -6690 | V59: 0 | W59: =(V59/(1/(1+N59*(2-1))))*S59/LEFT(Inputs!$C$18,1)/5280 -> 0 | X59: 0 | Y59: =((X59/60)*((Inputs!$C$13*V59*(1-N59))+(Inputs!$C$14*V59*N59))) -> 0 | Z59: =IF(V59>0,($N$5/60)*(((M59*$N$3/(1-$N$3))*(1-N59)*Inputs!$C$13)+((M59*$N$3/(1-$N$3))*N59*Inputs!$C$14)),0) -> 0 | AA59: 0 | AC59: 2019-01-03 | AF59: =IF(AND(AD59<>"",AE59<>""),MAX(INDIRECT(AD59):INDIRECT(AE59)),"") ->  | AJ59: =IF(K59="TRUE 1",IF(I59="NT",MROUND(Inputs!$C$32*$AJ$3*(1/(1+Q59*(2-1))),1),MROUND(Inputs!$C$30*$AJ$3*(1/(1+Q59*(2-1))),1)), IF(K59="TRUE 2",IF(I59="NT",MROUND(Inputs!$D$32*$AK$3*(1/(1+Q59*(2-1))),1),MROUND(Inputs!$D$30*$AK$3*(1/(1+Q59*(2-1))),1)), IF(K59="TRUE 3",IF(I59="NT",MROUND(Inputs!$E$32*$AL$3*(1/(1+Q59*(2-1))),1),MROUND(Inputs!$E$30*$AL$3*(1/(1+Q59*(2-1))),1)), IF(K59="TRUE 4",IF(I59="NT",MROUND(Inputs!$F$32*$AM$3*(1/(1+Q59*(2-1))),1),MROUND(Inputs!$F$30*$AM$3*(1/(1+Q59*(2-1))),1)), MROUND(Inputs!$C$15*(1/(1+Q59*(2-1)))*($AJ$3+$AJ$4),1))))) -> 6545 | AK59: -6515 | AL59: 0 | AM59: =(AL59/(1/(1+Q59*(2-1))))*S59/LEFT(Inputs!$C$18,1)/5280 -> 0 | AN59: 0 | AO59: =(AN59/60)*((Inputs!$C$13*AL59*(1-Q59))+(Inputs!$C$14*AL59*Q59)) -> 0 | AP59: =IF(AL59>0,($Q$5/60)*(((P59*$Q$3/(1-$Q$3))*(1-Q59)*Inputs!$C$13)+((P59*$Q$3/(1-$Q$3))*Q59*Inputs!$C$14)),0) -> 0 | AQ59: 0 | AS59: 2019-01-03 | AV59: =IF(AND(AT59<>"",AU59<>""),MAX(INDIRECT(AT59):INDIRECT(AU59)),"") -> 
A60: 2019-01-03 | B60: January | C60: 3 | D60: January-3-1 | E60: 5 | F60: Thursday | G60: 01:00:00 | H60: 1 | I60: =INDEX(Lists!$R$3:$R$26,MATCH(Calculations!G60,Lists!$Q$3:$Q$26,0)) -> NT | J60: 97 | K60: =IF(INDEX(Inputs!$H$86:$H$253,MATCH(J60,Inputs!$D$86:$D$253,0)),"TRUE 4", IF(INDEX(Inputs!$G$86:$G$253,MATCH(J60,Inputs!$D$86:$D$253,0)),"TRUE 3", IF(INDEX(Inputs!$F$86:$F$253,MATCH(J60,Inputs!$D$86:$D$253,0)),"TRUE 2", IF(INDEX(Inputs!$E$86:$E$253,MATCH(J60,Inputs!$D$86:$D$253,0)),"TRUE 1", FALSE)))) -> FALSE | M60: ='Volume Import'!C51*'Volume Import'!$H$14*(1+'Volume Import'!$H$15)*(1-'Volume Import'!$H$16) -> 35 | N60: =IF(AND('Volume Import'!D51=0,'Volume Import'!C51=0),0, IF('Volume Import'!D51=0,INDEX('Volume Import'!$K$2:$Q$5,MATCH(I60,'Volume Import'!$R$2:$R$5,0),MATCH(F60,'Volume Import'!$K$1:$Q$1,0)), 'Volume Import'!D51/'Volume Import'!C51)) -> 0.05714285714 | P60: ='Volume Import'!E51*'Volume Import'!$I$14*(1+'Volume Import'!$I$15)*(1-'Volume Import'!$I$16) -> 36 | Q60: =IF('Volume Import'!F51=0,N60,'Volume Import'!F51/'Volume Import'!E51) -> 0.1666666667 | S60: =IF(K60="TRUE 1",IF(I60="NT",Inputs!$C$35,Inputs!$C$34), IF(K60="TRUE 2",IF(I60="NT",Inputs!$D$35,Inputs!$D$34), IF(K60="TRUE 3",IF(I60="NT",Inputs!$E$35,Inputs!$E$34), IF(K60="TRUE 4",IF(I60="NT",Inputs!$F$35,Inputs!$F$34), S59)))) -> 54.62255796 | T60: =IF(K60="TRUE 1",IF(I60="NT",MROUND(Inputs!$C$32*$T$3*(1/(1+N60*(2-1))),1),MROUND(Inputs!$C$30*$T$3*(1/(1+N60*(2-1))),1)), IF(K60="TRUE 2",IF(I60="NT",MROUND(Inputs!$D$32*$U$3*(1/(1+N60*(2-1))),1),MROUND(Inputs!$D$30*$U$3*(1/(1+N60*(2-1))),1)), IF(K60="TRUE 3",IF(I60="NT",MROUND(Inputs!$E$32*$V$3*(1/(1+N60*(2-1))),1),MROUND(Inputs!$E$30*$V$3*(1/(1+N60*(2-1))),1)), IF(K60="TRUE 4",IF(I60="NT",MROUND(Inputs!$F$32*$W$3*(1/(1+N60*(2-1))),1),MROUND(Inputs!$F$30*$W$3*(1/(1+N60*(2-1))),1)), MROUND(Inputs!$C$15*(1/(1+N60*(2-1)))*($T$3+$T$4),1))))) -> 6811 | U60: -6776 | V60: 0 | W60: =(V60/(1/(1+N60*(2-1))))*S60/LEFT(Inputs!$C$18,1)/5280 -> 0 | X60: 0 | Y60: =((X60/60)*((Inputs!$C$13*V60*(1-N60))+(Inputs!$C$14*V60*N60))) -> 0 | Z60: =IF(V60>0,($N$5/60)*(((M60*$N$3/(1-$N$3))*(1-N60)*Inputs!$C$13)+((M60*$N$3/(1-$N$3))*N60*Inputs!$C$14)),0) -> 0 | AA60: 0 | AC60: 2019-01-03T01:00:00 | AF60: =IF(AND(AD60<>"",AE60<>""),MAX(INDIRECT(AD60):INDIRECT(AE60)),"") ->  | AJ60: =IF(K60="TRUE 1",IF(I60="NT",MROUND(Inputs!$C$32*$AJ$3*(1/(1+Q60*(2-1))),1),MROUND(Inputs!$C$30*$AJ$3*(1/(1+Q60*(2-1))),1)), IF(K60="TRUE 2",IF(I60="NT",MROUND(Inputs!$D$32*$AK$3*(1/(1+Q60*(2-1))),1),MROUND(Inputs!$D$30*$AK$3*(1/(1+Q60*(2-1))),1)), IF(K60="TRUE 3",IF(I60="NT",MROUND(Inputs!$E$32*$AL$3*(1/(1+Q60*(2-1))),1),MROUND(Inputs!$E$30*$AL$3*(1/(1+Q60*(2-1))),1)), IF(K60="TRUE 4",IF(I60="NT",MROUND(Inputs!$F$32*$AM$3*(1/(1+Q60*(2-1))),1),MROUND(Inputs!$F$30*$AM$3*(1/(1+Q60*(2-1))),1)), MROUND(Inputs!$C$15*(1/(1+Q60*(2-1)))*($AJ$3+$AJ$4),1))))) -> 6171 | AK60: -6135 | AL60: 0 | AM60: =(AL60/(1/(1+Q60*(2-1))))*S60/LEFT(Inputs!$C$18,1)/5280 -> 0 | AN60: 0 | AO60: =(AN60/60)*((Inputs!$C$13*AL60*(1-Q60))+(Inputs!$C$14*AL60*Q60)) -> 0 | AP60: =IF(AL60>0,($Q$5/60)*(((P60*$Q$3/(1-$Q$3))*(1-Q60)*Inputs!$C$13)+((P60*$Q$3/(1-$Q$3))*Q60*Inputs!$C$14)),0) -> 0 | AQ60: 0 | AS60: 2019-01-03T01:00:00 | AV60: =IF(AND(AT60<>"",AU60<>""),MAX(INDIRECT(AT60):INDIRECT(AU60)),"") -> 
A61: 2019-01-03 | B61: January | C61: 3 | D61: January-3-2 | E61: 5 | F61: Thursday | G61: 02:00:00 | H61: 2 | I61: =INDEX(Lists!$R$3:$R$26,MATCH(Calculations!G61,Lists!$Q$3:$Q$26,0)) -> NT | J61: 98 | K61: =IF(INDEX(Inputs!$H$86:$H$253,MATCH(J61,Inputs!$D$86:$D$253,0)),"TRUE 4", IF(INDEX(Inputs!$G$86:$G$253,MATCH(J61,Inputs!$D$86:$D$253,0)),"TRUE 3", IF(INDEX(Inputs!$F$86:$F$253,MATCH(J61,Inputs!$D$86:$D$253,0)),"TRUE 2", IF(INDEX(Inputs!$E$86:$E$253,MATCH(J61,Inputs!$D$86:$D$253,0)),"TRUE 1", FALSE)))) -> FALSE | M61: ='Volume Import'!C52*'Volume Import'!$H$14*(1+'Volume Import'!$H$15)*(1-'Volume Import'!$H$16) -> 50 | N61: =IF(AND('Volume Import'!D52=0,'Volume Import'!C52=0),0, IF('Volume Import'!D52=0,INDEX('Volume Import'!$K$2:$Q$5,MATCH(I61,'Volume Import'!$R$2:$R$5,0),MATCH(F61,'Volume Import'!$K$1:$Q$1,0)), 'Volume Import'!D52/'Volume Import'!C52)) -> 0.2 | P61: ='Volume Import'!E52*'Volume Import'!$I$14*(1+'Volume Import'!$I$15)*(1-'Volume Import'!$I$16) -> 30 | Q61: =IF('Volume Import'!F52=0,N61,'Volume Import'!F52/'Volume Import'!E52) -> 0.1333333333 | S61: =IF(K61="TRUE 1",IF(I61="NT",Inputs!$C$35,Inputs!$C$34), IF(K61="TRUE 2",IF(I61="NT",Inputs!$D$35,Inputs!$D$34), IF(K61="TRUE 3",IF(I61="NT",Inputs!$E$35,Inputs!$E$34), IF(K61="TRUE 4",IF(I61="NT",Inputs!$F$35,Inputs!$F$34), S60)))) -> 54.62255796 | T61: =IF(K61="TRUE 1",IF(I61="NT",MROUND(Inputs!$C$32*$T$3*(1/(1+N61*(2-1))),1),MROUND(Inputs!$C$30*$T$3*(1/(1+N61*(2-1))),1)), IF(K61="TRUE 2",IF(I61="NT",MROUND(Inputs!$D$32*$U$3*(1/(1+N61*(2-1))),1),MROUND(Inputs!$D$30*$U$3*(1/(1+N61*(2-1))),1)), IF(K61="TRUE 3",IF(I61="NT",MROUND(Inputs!$E$32*$V$3*(1/(1+N61*(2-1))),1),MROUND(Inputs!$E$30*$V$3*(1/(1+N61*(2-1))),1)), IF(K61="TRUE 4",IF(I61="NT",MROUND(Inputs!$F$32*$W$3*(1/(1+N61*(2-1))),1),MROUND(Inputs!$F$30*$W$3*(1/(1+N61*(2-1))),1)), MROUND(Inputs!$C$15*(1/(1+N61*(2-1)))*($T$3+$T$4),1))))) -> 6000 | U61: -5950 | V61: 0 | W61: =(V61/(1/(1+N61*(2-1))))*S61/LEFT(Inputs!$C$18,1)/5280 -> 0 | X61: 0 | Y61: =((X61/60)*((Inputs!$C$13*V61*(1-N61))+(Inputs!$C$14*V61*N61))) -> 0 | Z61: =IF(V61>0,($N$5/60)*(((M61*$N$3/(1-$N$3))*(1-N61)*Inputs!$C$13)+((M61*$N$3/(1-$N$3))*N61*Inputs!$C$14)),0) -> 0 | AA61: 0 | AC61: 2019-01-03T02:00:00 | AF61: =IF(AND(AD61<>"",AE61<>""),MAX(INDIRECT(AD61):INDIRECT(AE61)),"") ->  | AJ61: =IF(K61="TRUE 1",IF(I61="NT",MROUND(Inputs!$C$32*$AJ$3*(1/(1+Q61*(2-1))),1),MROUND(Inputs!$C$30*$AJ$3*(1/(1+Q61*(2-1))),1)), IF(K61="TRUE 2",IF(I61="NT",MROUND(Inputs!$D$32*$AK$3*(1/(1+Q61*(2-1))),1),MROUND(Inputs!$D$30*$AK$3*(1/(1+Q61*(2-1))),1)), IF(K61="TRUE 3",IF(I61="NT",MROUND(Inputs!$E$32*$AL$3*(1/(1+Q61*(2-1))),1),MROUND(Inputs!$E$30*$AL$3*(1/(1+Q61*(2-1))),1)), IF(K61="TRUE 4",IF(I61="NT",MROUND(Inputs!$F$32*$AM$3*(1/(1+Q61*(2-1))),1),MROUND(Inputs!$F$30*$AM$3*(1/(1+Q61*(2-1))),1)), MROUND(Inputs!$C$15*(1/(1+Q61*(2-1)))*($AJ$3+$AJ$4),1))))) -> 6353 | AK61: -6323 | AL61: 0 | AM61: =(AL61/(1/(1+Q61*(2-1))))*S61/LEFT(Inputs!$C$18,1)/5280 -> 0 | AN61: 0 | AO61: =(AN61/60)*((Inputs!$C$13*AL61*(1-Q61))+(Inputs!$C$14*AL61*Q61)) -> 0 | AP61: =IF(AL61>0,($Q$5/60)*(((P61*$Q$3/(1-$Q$3))*(1-Q61)*Inputs!$C$13)+((P61*$Q$3/(1-$Q$3))*Q61*Inputs!$C$14)),0) -> 0 | AQ61: 0 | AS61: 2019-01-03T02:00:00 | AV61: =IF(AND(AT61<>"",AU61<>""),MAX(INDIRECT(AT61):INDIRECT(AU61)),"") -> 
A62: 2019-01-03 | B62: January | C62: 3 | D62: January-3-3 | E62: 5 | F62: Thursday | G62: 03:00:00 | H62: 3 | I62: =INDEX(Lists!$R$3:$R$26,MATCH(Calculations!G62,Lists!$Q$3:$Q$26,0)) -> NT | J62: 99 | K62: =IF(INDEX(Inputs!$H$86:$H$253,MATCH(J62,Inputs!$D$86:$D$253,0)),"TRUE 4", IF(INDEX(Inputs!$G$86:$G$253,MATCH(J62,Inputs!$D$86:$D$253,0)),"TRUE 3", IF(INDEX(Inputs!$F$86:$F$253,MATCH(J62,Inputs!$D$86:$D$253,0)),"TRUE 2", IF(INDEX(Inputs!$E$86:$E$253,MATCH(J62,Inputs!$D$86:$D$253,0)),"TRUE 1", FALSE)))) -> FALSE | M62: ='Volume Import'!C53*'Volume Import'!$H$14*(1+'Volume Import'!$H$15)*(1-'Volume Import'!$H$16) -> 32 | N62: =IF(AND('Volume Import'!D53=0,'Volume Import'!C53=0),0, IF('Volume Import'!D53=0,INDEX('Volume Import'!$K$2:$Q$5,MATCH(I62,'Volume Import'!$R$2:$R$5,0),MATCH(F62,'Volume Import'!$K$1:$Q$1,0)), 'Volume Import'!D53/'Volume Import'!C53)) -> 0.46875 | P62: ='Volume Import'!E53*'Volume Import'!$I$14*(1+'Volume Import'!$I$15)*(1-'Volume Import'!$I$16) -> 55 | Q62: =IF('Volume Import'!F53=0,N62,'Volume Import'!F53/'Volume Import'!E53) -> 0.1090909091 | S62: =IF(K62="TRUE 1",IF(I62="NT",Inputs!$C$35,Inputs!$C$34), IF(K62="TRUE 2",IF(I62="NT",Inputs!$D$35,Inputs!$D$34), IF(K62="TRUE 3",IF(I62="NT",Inputs!$E$35,Inputs!$E$34), IF(K62="TRUE 4",IF(I62="NT",Inputs!$F$35,Inputs!$F$34), S61)))) -> 54.62255796 | T62: =IF(K62="TRUE 1",IF(I62="NT",MROUND(Inputs!$C$32*$T$3*(1/(1+N62*(2-1))),1),MROUND(Inputs!$C$30*$T$3*(1/(1+N62*(2-1))),1)), IF(K62="TRUE 2",IF(I62="NT",MROUND(Inputs!$D$32*$U$3*(1/(1+N62*(2-1))),1),MROUND(Inputs!$D$30*$U$3*(1/(1+N62*(2-1))),1)), IF(K62="TRUE 3",IF(I62="NT",MROUND(Inputs!$E$32*$V$3*(1/(1+N62*(2-1))),1),MROUND(Inputs!$E$30*$V$3*(1/(1+N62*(2-1))),1)), IF(K62="TRUE 4",IF(I62="NT",MROUND(Inputs!$F$32*$W$3*(1/(1+N62*(2-1))),1),MROUND(Inputs!$F$30*$W$3*(1/(1+N62*(2-1))),1)), MROUND(Inputs!$C$15*(1/(1+N62*(2-1)))*($T$3+$T$4),1))))) -> 4902 | U62: -4870 | V62: 0 | W62: =(V62/(1/(1+N62*(2-1))))*S62/LEFT(Inputs!$C$18,1)/5280 -> 0 | X62: 0 | Y62: =((X62/60)*((Inputs!$C$13*V62*(1-N62))+(Inputs!$C$14*V62*N62))) -> 0 | Z62: =IF(V62>0,($N$5/60)*(((M62*$N$3/(1-$N$3))*(1-N62)*Inputs!$C$13)+((M62*$N$3/(1-$N$3))*N62*Inputs!$C$14)),0) -> 0 | AA62: 0 | AC62: 2019-01-03T03:00:00 | AF62: =IF(AND(AD62<>"",AE62<>""),MAX(INDIRECT(AD62):INDIRECT(AE62)),"") ->  | AJ62: =IF(K62="TRUE 1",IF(I62="NT",MROUND(Inputs!$C$32*$AJ$3*(1/(1+Q62*(2-1))),1),MROUND(Inputs!$C$30*$AJ$3*(1/(1+Q62*(2-1))),1)), IF(K62="TRUE 2",IF(I62="NT",MROUND(Inputs!$D$32*$AK$3*(1/(1+Q62*(2-1))),1),MROUND(Inputs!$D$30*$AK$3*(1/(1+Q62*(2-1))),1)), IF(K62="TRUE 3",IF(I62="NT",MROUND(Inputs!$E$32*$AL$3*(1/(1+Q62*(2-1))),1),MROUND(Inputs!$E$30*$AL$3*(1/(1+Q62*(2-1))),1)), IF(K62="TRUE 4",IF(I62="NT",MROUND(Inputs!$F$32*$AM$3*(1/(1+Q62*(2-1))),1),MROUND(Inputs!$F$30*$AM$3*(1/(1+Q62*(2-1))),1)), MROUND(Inputs!$C$15*(1/(1+Q62*(2-1)))*($AJ$3+$AJ$4),1))))) -> 6492 | AK62: -6437 | AL62: 0 | AM62: =(AL62/(1/(1+Q62*(2-1))))*S62/LEFT(Inputs!$C$18,1)/5280 -> 0 | AN62: 0 | AO62: =(AN62/60)*((Inputs!$C$13*AL62*(1-Q62))+(Inputs!$C$14*AL62*Q62)) -> 0 | AP62: =IF(AL62>0,($Q$5/60)*(((P62*$Q$3/(1-$Q$3))*(1-Q62)*Inputs!$C$13)+((P62*$Q$3/(1-$Q$3))*Q62*Inputs!$C$14)),0) -> 0 | AQ62: 0 | AS62: 2019-01-03T03:00:00 | AV62: =IF(AND(AT62<>"",AU62<>""),MAX(INDIRECT(AT62):INDIRECT(AU62)),"") -> 
... 77 more rows

Sheet Queue Miles
B1: =Inputs!B6&": " -> Region: | C1: =Inputs!C6 -> Northwest | P1: Growth | R1: 0 | U1: --- | V1: 0.001 | W1: 2 | X1: 3 | Y1: 4 | Z1: 5 | AB1: Growth | AD1: 0 | AG1: This output contains queue miles for every hour of every day for both directions. Essentially, this shows the queue length at the end of each hour. Hours with queues present are highlighted based on the color scale. Growth/diversion are only editable cells and updates will be reflected on every tab throughout tool.
B2: =Inputs!B7&": " -> County: | C2: =Inputs!C7 -> Sauk | P2: Diversion | R2: 0 | U2: N/A | V2: 0-2 mi | W2: 2-3 mi | X2: 3-4 mi | Y2: 4-5 mi | Z2: 5+ mi | AB2: Diversion | AD2: 0
B3: =Inputs!B8&": " -> Construction ID: | C3: =Inputs!C8 -> 0000-00-00 | P3: ="Factors For "&Calculations!$U$8 -> Factors For NB | AB3: ="Factors For "&Calculations!$AK$8 -> Factors For SB
B4: =Inputs!B9&": " -> Highway: | C4: =Inputs!C9 -> I-90 | AU4: =CONCATENATE("User: ",Inputs!$C$2) -> User: | AV4: =Inputs!$C$3 -> 00:00:00
C5: =Calculations!$U$8&" Queue Miles" -> NB Queue Miles | AA5: =Calculations!$AK$8&" Queue Miles" -> SB Queue Miles
C6: 0 | D6: 1 | E6: 2 | F6: 3 | G6: 4 | H6: 5 | I6: 6 | J6: 7 | K6: 8 | L6: 9 | M6: 10 | N6: 11 | O6: 12 | P6: 13 | Q6: 14 | R6: 15 | S6: 16 | T6: 17 | U6: 18 | V6: 19 | W6: 20 | X6: 21 | Y6: 22 | Z6: 23 | AA6: 0 | AB6: 1 | AC6: 2 | AD6: 3 | AE6: 4 | AF6: 5 | AG6: 6 | AH6: 7 | AI6: 8 | AJ6: 9 | AK6: 10 | AL6: 11 | AM6: 12 | AN6: 13 | AO6: 14 | AP6: 15 | AQ6: 16 | AR6: 17 | AS6: 18 | AT6: 19 | AU6: 20 | AV6: 21 | AW6: 22 | AX6: 23
B7: January
A8: =INDEX(Calculations!$F$11:$F$8770,MATCH('Queue Miles'!B7&"-"&'Queue Miles'!B8&"-"&'Queue Miles'!C$6,Calculations!$D$11:$D$8770,0)) -> Tuesday | B8: 1 | C8: =IF(INDEX(Calculations!$M$11:$M$8770,MATCH('Queue Miles'!B7&"-"&'Queue Miles'!$B8&"-"&'Queue Miles'!C$6,Calculations!$D$11:$D$8770,0))=0,"---", INDEX(Calculations!$W$11:$W$8770,MATCH('Queue Miles'!B7&"-"&'Queue Miles'!$B8&"-"&'Queue Miles'!C$6,Calculations!$D$11:$D$8770,0))) -> 0 | D8: =IF(INDEX(Calculations!$M$11:$M$8770,MATCH('Queue Miles'!B7&"-"&'Queue Miles'!$B8&"-"&'Queue Miles'!D$6,Calculations!$D$11:$D$8770,0))=0,"---", INDEX(Calculations!$W$11:$W$8770,MATCH('Queue Miles'!B7&"-"&'Queue Miles'!$B8&"-"&'Queue Miles'!D$6,Calculations!$D$11:$D$8770,0))) -> 0 | E8: =IF(INDEX(Calculations!$M$11:$M$8770,MATCH('Queue Miles'!B7&"-"&'Queue Miles'!$B8&"-"&'Queue Miles'!E$6,Calculations!$D$11:$D$8770,0))=0,"---", INDEX(Calculations!$W$11:$W$8770,MATCH('Queue Miles'!B7&"-"&'Queue Miles'!$B8&"-"&'Queue Miles'!E$6,Calculations!$D$11:$D$8770,0))) -> 0 | F8: =IF(INDEX(Calculations!$M$11:$M$8770,MATCH('Queue Miles'!B7&"-"&'Queue Miles'!$B8&"-"&'Queue Miles'!F$6,Calculations!$D$11:$D$8770,0))=0,"---", INDEX(Calculations!$W$11:$W$8770,MATCH('Queue Miles'!B7&"-"&'Queue Miles'!$B8&"-"&'Queue Miles'!F$6,Calculations!$D$11:$D$8770,0))) -> 0 | G8: =IF(INDEX(Calculations!$M$11:$M$8770,MATCH('Queue Miles'!B7&"-"&'Queue Miles'!$B8&"-"&'Queue Miles'!G$6,Calculations!$D$11:$D$8770,0))=0,"---", INDEX(Calculations!$W$11:$W$8770,MATCH('Queue Miles'!B7&"-"&'Queue Miles'!$B8&"-"&'Queue Miles'!G$6,Calculations!$D$11:$D$8770,0))) -> 0 | H8: =IF(INDEX(Calculations!$M$11:$M$8770,MATCH('Queue Miles'!B7&"-"&'Queue Miles'!$B8&"-"&'Queue Miles'!H$6,Calculations!$D$11:$D$8770,0))=0,"---", INDEX(Calculations!$W$11:$W$8770,MATCH('Queue Miles'!B7&"-"&'Queue Miles'!$B8&"-"&'Queue Miles'!H$6,Calculations!$D$11:$D$8770,0))) -> 0 | I8: =IF(INDEX(Calculations!$M$11:$M$8770,MATCH('Queue Miles'!B7&"-"&'Queue Miles'!$B8&"-"&'Queue Miles'!I$6,Calculations!$D$11:$D$8770,0))=0,"---", INDEX(Calculations!$W$11:$W$8770,MATCH('Queue Miles'!B7&"-"&'Queue Miles'!$B8&"-"&'Queue Miles'!I$6,Calculations!$D$11:$D$8770,0))) -> 0 | J8: =IF(INDEX(Calculations!$M$11:$M$8770,MATCH('Queue Miles'!B7&"-"&'Queue Miles'!$B8&"-"&'Queue Miles'!J$6,Calculations!$D$11:$D$8770,0))=0,"---", INDEX(Calculations!$W$11:$W$8770,MATCH('Queue Miles'!B7&"-"&'Queue Miles'!$B8&"-"&'Queue Miles'!J$6,Calculations!$D$11:$D$8770,0))) -> 0 | K8: =IF(INDEX(Calculations!$M$11:$M$8770,MATCH('Queue Miles'!B7&"-"&'Queue Miles'!$B8&"-"&'Queue Miles'!K$6,Calculations!$D$11:$D$8770,0))=0,"---", INDEX(Calculations!$W$11:$W$8770,MATCH('Queue Miles'!B7&"-"&'Queue Miles'!$B8&"-"&'Queue Miles'!K$6,Calculations!$D$11:$D$8770,0))) -> 0 | L8: =IF(INDEX(Calculations!$M$11:$M$8770,MATCH('Queue Miles'!B7&"-"&'Queue Miles'!$B8&"-"&'Queue Miles'!L$6,Calculations!$D$11:$D$8770,0))=0,"---", INDEX(Calculations!$W$11:$W$8770,MATCH('Queue Miles'!B7&"-"&'Queue Miles'!$B8&"-"&'Queue Miles'!L$6,Calculations!$D$11:$D$8770,0))) -> 0 | M8: =IF(INDEX(Calculations!$M$11:$M$8770,MATCH('Queue Miles'!B7&"-"&'Queue Miles'!$B8&"-"&'Queue Miles'!M$6,Calculations!$D$11:$D$8770,0))=0,"---", INDEX(Calculations!$W$11:$W$8770,MATCH('Queue Miles'!B7&"-"&'Queue Miles'!$B8&"-"&'Queue Miles'!M$6,Calculations!$D$11:$D$8770,0))) -> 0 | N8: =IF(INDEX(Calculations!$M$11:$M$8770,MATCH('Queue Miles'!B7&"-"&'Queue Miles'!$B8&"-"&'Queue Miles'!N$6,Calculations!$D$11:$D$8770,0))=0,"---", INDEX(Calculations!$W$11:$W$8770,MATCH('Queue Miles'!B7&"-"&'Queue Miles'!$B8&"-"&'Queue Miles'!N$6,Calculations!$D$11:$D$8770,0))) -> 0 | O8: =IF(INDEX(Calculations!$M$11:$M$8770,MATCH('Queue Miles'!B7&"-"&'Queue Miles'!$B8&"-"&'Queue Miles'!O$6,Calculations!$D$11:$D$8770,0))=0,"---", INDEX(Calculations!$W$11:$W$8770,MATCH('Queue Miles'!B7&"-"&'Queue Miles'!$B8&"-"&'Queue Miles'!O$6,Calculations!$D$11:$D$8770,0))) -> 0 | P8: =IF(INDEX(Calculations!$M$11:$M$8770,MATCH('Queue Miles'!B7&"-"&'Queue Miles'!$B8&"-"&'Queue Miles'!P$6,Calculations!$D$11:$D$8770,0))=0,"---", INDEX(Calculations!$W$11:$W$8770,MATCH('Queue Miles'!B7&"-"&'Queue Miles'!$B8&"-"&'Queue Miles'!P$6,Calculations!$D$11:$D$8770,0))) -> 0 | Q8: =IF(INDEX(Calculations!$M$11:$M$8770,MATCH('Queue Miles'!B7&"-"&'Queue Miles'!$B8&"-"&'Queue Miles'!Q$6,Calculations!$D$11:$D$8770,0))=0,"---", INDEX(Calculations!$W$11:$W$8770,MATCH('Queue Miles'!B7&"-"&'Queue Miles'!$B8&"-"&'Queue Miles'!Q$6,Calculations!$D$11:$D$8770,0))) -> 0 | R8: =IF(INDEX(Calculations!$M$11:$M$8770,MATCH('Queue Miles'!B7&"-"&'Queue Miles'!$B8&"-"&'Queue Miles'!R$6,Calculations!$D$11:$D$8770,0))=0,"---", INDEX(Calculations!$W$11:$W$8770,MATCH('Queue Miles'!B7&"-"&'Queue Miles'!$B8&"-"&'Queue Miles'!R$6,Calculations!$D$11:$D$8770,0))) -> 0 | S8: =IF(INDEX(Calculations!$M$11:$M$8770,MATCH('Queue Miles'!B7&"-"&'Queue Miles'!$B8&"-"&'Queue Miles'!S$6,Calculations!$D$11:$D$8770,0))=0,"---", INDEX(Calculations!$W$11:$W$8770,MATCH('Queue Miles'!B7&"-"&'Queue Miles'!$B8&"-"&'Queue Miles'!S$6,Calculations!$D$11:$D$8770,0))) -> 0 | T8: =IF(INDEX(Calculations!$M$11:$M$8770,MATCH('Queue Miles'!B7&"-"&'Queue Miles'!$B8&"-"&'Queue Miles'!T$6,Calculations!$D$11:$D$8770,0))=0,"---", INDEX(Calculations!$W$11:$W$8770,MATCH('Queue Miles'!B7&"-"&'Queue Miles'!$B8&"-"&'Queue Miles'!T$6,Calculations!$D$11:$D$8770,0))) -> 0 | U8: =IF(INDEX(Calculations!$M$11:$M$8770,MATCH('Queue Miles'!B7&"-"&'Queue Miles'!$B8&"-"&'Queue Miles'!U$6,Calculations!$D$11:$D$8770,0))=0,"---", INDEX(Calculations!$W$11:$W$8770,MATCH('Queue Miles'!B7&"-"&'Queue Miles'!$B8&"-"&'Queue Miles'!U$6,Calculations!$D$11:$D$8770,0))) -> 0 | V8: =IF(INDEX(Calculations!$M$11:$M$8770,MATCH('Queue Miles'!B7&"-"&'Queue Miles'!$B8&"-"&'Queue Miles'!V$6,Calculations!$D$11:$D$8770,0))=0,"---", INDEX(Calculations!$W$11:$W$8770,MATCH('Queue Miles'!B7&"-"&'Queue Miles'!$B8&"-"&'Queue Miles'!V$6,Calculations!$D$11:$D$8770,0))) -> 0 | W8: =IF(INDEX(Calculations!$M$11:$M$8770,MATCH('Queue Miles'!B7&"-"&'Queue Miles'!$B8&"-"&'Queue Miles'!W$6,Calculations!$D$11:$D$8770,0))=0,"---", INDEX(Calculations!$W$11:$W$8770,MATCH('Queue Miles'!B7&"-"&'Queue Miles'!$B8&"-"&'Queue Miles'!W$6,Calculations!$D$11:$D$8770,0))) -> 0 | X8: =IF(INDEX(Calculations!$M$11:$M$8770,MATCH('Queue Miles'!B7&"-"&'Queue Miles'!$B8&"-"&'Queue Miles'!X$6,Calculations!$D$11:$D$8770,0))=0,"---", INDEX(Calculations!$W$11:$W$8770,MATCH('Queue Miles'!B7&"-"&'Queue Miles'!$B8&"-"&'Queue Miles'!X$6,Calculations!$D$11:$D$8770,0))) -> 0 | Y8: =IF(INDEX(Calculations!$M$11:$M$8770,MATCH('Queue Miles'!B7&"-"&'Queue Miles'!$B8&"-"&'Queue Miles'!Y$6,Calculations!$D$11:$D$8770,0))=0,"---", INDEX(Calculations!$W$11:$W$8770,MATCH('Queue Miles'!B7&"-"&'Queue Miles'!$B8&"-"&'Queue Miles'!Y$6,Calculations!$D$11:$D$8770,0))) -> 0 | Z8: =IF(INDEX(Calculations!$M$11:$M$8770,MATCH('Queue Miles'!B7&"-"&'Queue Miles'!$B8&"-"&'Queue Miles'!Z$6,Calculations!$D$11:$D$8770,0))=0,"---", INDEX(Calculations!$W$11:$W$8770,MATCH('Queue Miles'!B7&"-"&'Queue Miles'!$B8&"-"&'Queue Miles'!Z$6,Calculations!$D$11:$D$8770,0))) -> 0 | AA8: =IF(INDEX(Calculations!$P$11:$P$8770,MATCH('Queue Miles'!B7&"-"&'Queue Miles'!$B8&"-"&'Queue Miles'!AA$6,Calculations!$D$11:$D$8770,0))=0,"---", INDEX(Calculations!$AM$11:$AM$8770,MATCH('Queue Miles'!B7&"-"&'Queue Miles'!$B8&"-"&'Queue Miles'!AA$6,Calculations!$D$11:$D$8770,0))) -> 0 | AB8: =IF(INDEX(Calculations!$P$11:$P$8770,MATCH('Queue Miles'!B7&"-"&'Queue Miles'!$B8&"-"&'Queue Miles'!AB$6,Calculations!$D$11:$D$8770,0))=0,"---", INDEX(Calculations!$AM$11:$AM$8770,MATCH('Queue Miles'!B7&"-"&'Queue Miles'!$B8&"-"&'Queue Miles'!AB$6,Calculations!$D$11:$D$8770,0))) -> 0 | AC8: =IF(INDEX(Calculations!$P$11:$P$8770,MATCH('Queue Miles'!B7&"-"&'Queue Miles'!$B8&"-"&'Queue Miles'!AC$6,Calculations!$D$11:$D$8770,0))=0,"---", INDEX(Calculations!$AM$11:$AM$8770,MATCH('Queue Miles'!B7&"-"&'Queue Miles'!$B8&"-"&'Queue Miles'!AC$6,Calculations!$D$11:$D$8770,0))) -> 0 | AD8: =IF(INDEX(Calculations!$P$11:$P$8770,MATCH('Queue Miles'!B7&"-"&'Queue Miles'!$B8&"-"&'Queue Miles'!AD$6,Calculations!$D$11:$D$8770,0))=0,"---", INDEX(Calculations!$AM$11:$AM$8770,MATCH('Queue Miles'!B7&"-"&'Queue Miles'!$B8&"-"&'Queue Miles'!AD$6,Calculations!$D$11:$D$8770,0))) -> 0 | AE8: =IF(INDEX(Calculations!$P$11:$P$8770,MATCH('Queue Miles'!B7&"-"&'Queue Miles'!$B8&"-"&'Queue Miles'!AE$6,Calculations!$D$11:$D$8770,0))=0,"---", INDEX(Calculations!$AM$11:$AM$8770,MATCH('Queue Miles'!B7&"-"&'Queue Miles'!$B8&"-"&'Queue Miles'!AE$6,Calculations!$D$11:$D$8770,0))) -> 0 | AF8: =IF(INDEX(Calculations!$P$11:$P$8770,MATCH('Queue Miles'!B7&"-"&'Queue Miles'!$B8&"-"&'Queue Miles'!AF$6,Calculations!$D$11:$D$8770,0))=0,"---", INDEX(Calculations!$AM$11:$AM$8770,MATCH('Queue Miles'!B7&"-"&'Queue Miles'!$B8&"-"&'Queue Miles'!AF$6,Calculations!$D$11:$D$8770,0))) -> 0 | AG8: =IF(INDEX(Calculations!$P$11:$P$8770,MATCH('Queue Miles'!B7&"-"&'Queue Miles'!$B8&"-"&'Queue Miles'!AG$6,Calculations!$D$11:$D$8770,0))=0,"---", INDEX(Calculations!$AM$11:$AM$8770,MATCH('Queue Miles'!B7&"-"&'Queue Miles'!$B8&"-"&'Queue Miles'!AG$6,Calculations!$D$11:$D$8770,0))) -> 0 | AH8: =IF(INDEX(Calculations!$P$11:$P$8770,MATCH('Queue Miles'!B7&"-"&'Queue Miles'!$B8&"-"&'Queue Miles'!AH$6,Calculations!$D$11:$D$8770,0))=0,"---", INDEX(Calculations!$AM$11:$AM$8770,MATCH('Queue Miles'!B7&"-"&'Queue Miles'!$B8&"-"&'Queue Miles'!AH$6,Calculations!$D$11:$D$8770,0))) -> 0 | AI8: =IF(INDEX(Calculations!$P$11:$P$8770,MATCH('Queue Miles'!B7&"-"&'Queue Miles'!$B8&"-"&'Queue Miles'!AI$6,Calculations!$D$11:$D$8770,0))=0,"---", INDEX(Calculations!$AM$11:$AM$8770,MATCH('Queue Miles'!B7&"-"&'Queue Miles'!$B8&"-"&'Queue Miles'!AI$6,Calculations!$D$11:$D$8770,0))) -> 0 | AJ8: =IF(INDEX(Calculations!$P$11:$P$8770,MATCH('Queue Miles'!B7&"-"&'Queue Miles'!$B8&"-"&'Queue Miles'!AJ$6,Calculations!$D$11:$D$8770,0))=0,"---", INDEX(Calculations!$AM$11:$AM$8770,MATCH('Queue Miles'!B7&"-"&'Queue Miles'!$B8&"-"&'Queue Miles'!AJ$6,Calculations!$D$11:$D$8770,0))) -> 0 | AK8: =IF(INDEX(Calculations!$P$11:$P$8770,MATCH('Queue Miles'!B7&"-"&'Queue Miles'!$B8&"-"&'Queue Miles'!AK$6,Calculations!$D$11:$D$8770,0))=0,"---", INDEX(Calculations!$AM$11:$AM$8770,MATCH('Queue Miles'!B7&"-"&'Queue Miles'!$B8&"-"&'Queue Miles'!AK$6,Calculations!$D$11:$D$8770,0))) -> 0 | AL8: =IF(INDEX(Calculations!$P$11:$P$8770,MATCH('Queue Miles'!B7&"-"&'Queue Miles'!$B8&"-"&'Queue Miles'!AL$6,Calculations!$D$11:$D$8770,0))=0,"---", INDEX(Calculations!$AM$11:$AM$8770,MATCH('Queue Miles'!B7&"-"&'Queue Miles'!$B8&"-"&'Queue Miles'!AL$6,Calculations!$D$11:$D$8770,0))) -> 0 | AM8: =IF(INDEX(Calculations!$P$11:$P$8770,MATCH('Queue Miles'!B7&"-"&'Queue Miles'!$B8&"-"&'Queue Miles'!AM$6,Calculations!$D$11:$D$8770,0))=0,"---", INDEX(Calculations!$AM$11:$AM$8770,MATCH('Queue Miles'!B7&"-"&'Queue Miles'!$B8&"-"&'Queue Miles'!AM$6,Calculations!$D$11:$D$8770,0))) -> 0 | AN8: =IF(INDEX(Calculations!$P$11:$P$8770,MATCH('Queue Miles'!B7&"-"&'Queue Miles'!$B8&"-"&'Queue Miles'!AN$6,Calculations!$D$11:$D$8770,0))=0,"---", INDEX(Calculations!$AM$11:$AM$8770,MATCH('Queue Miles'!B7&"-"&'Queue Miles'!$B8&"-"&'Queue Miles'!AN$6,Calculations!$D$11:$D$8770,0))) -> 0 | AO8: =IF(INDEX(Calculations!$P$11:$P$8770,MATCH('Queue Miles'!B7&"-"&'Queue Miles'!$B8&"-"&'Queue Miles'!AO$6,Calculations!$D$11:$D$8770,0))=0,"---", INDEX(Calculations!$AM$11:$AM$8770,MATCH('Queue Miles'!B7&"-"&'Queue Miles'!$B8&"-"&'Queue Miles'!AO$6,Calculations!$D$11:$D$8770,0))) -> 0 | AP8: =IF(INDEX(Calculations!$P$11:$P$8770,MATCH('Queue Miles'!B7&"-"&'Queue Miles'!$B8&"-"&'Queue Miles'!AP$6,Calculations!$D$11:$D$8770,0))=0,"---", INDEX(Calculations!$AM$11:$AM$8770,MATCH('Queue Miles'!B7&"-"&'Queue Miles'!$B8&"-"&'Queue Miles'!AP$6,Calculations!$D$11:$D$8770,0))) -> 0 | AQ8: =IF(INDEX(Calculations!$P$11:$P$8770,MATCH('Queue Miles'!B7&"-"&'Queue Miles'!$B8&"-"&'Queue Miles'!AQ$6,Calculations!$D$11:$D$8770,0))=0,"---", INDEX(Calculations!$AM$11:$AM$8770,MATCH('Queue Miles'!B7&"-"&'Queue Miles'!$B8&"-"&'Queue Miles'!AQ$6,Calculations!$D$11:$D$8770,0))) -> 0 | AR8: =IF(INDEX(Calculations!$P$11:$P$8770,MATCH('Queue Miles'!B7&"-"&'Queue Miles'!$B8&"-"&'Queue Miles'!AR$6,Calculations!$D$11:$D$8770,0))=0,"---", INDEX(Calculations!$AM$11:$AM$8770,MATCH('Queue Miles'!B7&"-"&'Queue Miles'!$B8&"-"&'Queue Miles'!AR$6,Calculations!$D$11:$D$8770,0))) -> 0 | AS8: =IF(INDEX(Calculations!$P$11:$P$8770,MATCH('Queue Miles'!B7&"-"&'Queue Miles'!$B8&"-"&'Queue Miles'!AS$6,Calculations!$D$11:$D$8770,0))=0,"---", INDEX(Calculations!$AM$11:$AM$8770,MATCH('Queue Miles'!B7&"-"&'Queue Miles'!$B8&"-"&'Queue Miles'!AS$6,Calculations!$D$11:$D$8770,0))) -> 0 | AT8: =IF(INDEX(Calculations!$P$11:$P$8770,MATCH('Queue Miles'!B7&"-"&'Queue Miles'!$B8&"-"&'Queue Miles'!AT$6,Calculations!$D$11:$D$8770,0))=0,"---", INDEX(Calculations!$AM$11:$AM$8770,MATCH('Queue Miles'!B7&"-"&'Queue Miles'!$B8&"-"&'Queue Miles'!AT$6,Calculations!$D$11:$D$8770,0))) -> 0 | AU8: =IF(INDEX(Calculations!$P$11:$P$8770,MATCH('Queue Miles'!B7&"-"&'Queue Miles'!$B8&"-"&'Queue Miles'!AU$6,Calculations!$D$11:$D$8770,0))=0,"---", INDEX(Calculations!$AM$11:$AM$8770,MATCH('Queue Miles'!B7&"-"&'Queue Miles'!$B8&"-"&'Queue Miles'!AU$6,Calculations!$D$11:$D$8770,0))) -> 0 | AV8: =IF(INDEX(Calculations!$P$11:$P$8770,MATCH('Queue Miles'!B7&"-"&'Queue Miles'!$B8&"-"&'Queue Miles'!AV$6,Calculations!$D$11:$D$8770,0))=0,"---", INDEX(Calculations!$AM$11:$AM$8770,MATCH('Queue Miles'!B7&"-"&'Queue Miles'!$B8&"-"&'Queue Miles'!AV$6,Calculations!$D$11:$D$8770,0))) -> 0 | AW8: =IF(INDEX(Calculations!$P$11:$P$8770,MATCH('Queue Miles'!B7&"-"&'Queue Miles'!$B8&"-"&'Queue Miles'!AW$6,Calculations!$D$11:$D$8770,0))=0,"---", INDEX(Calculations!$AM$11:$AM$8770,MATCH('Queue Miles'!B7&"-"&'Queue Miles'!$B8&"-"&'Queue Miles'!AW$6,Calculations!$D$11:$D$8770,0))) -> 0 | AX8: =IF(INDEX(Calculations!$P$11:$P$8770,MATCH('Queue Miles'!B7&"-"&'Queue Miles'!$B8&"-"&'Queue Miles'!AX$6,Calculations!$D$11:$D$8770,0))=0,"---", INDEX(Calculations!$AM$11:$AM$8770,MATCH('Queue Miles'!B7&"-"&'Queue Miles'!$B8&"-"&'Queue Miles'!AX$6,Calculations!$D$11:$D$8770,0))) -> 0
A9: =INDEX(Calculations!$F$11:$F$8770,MATCH('Queue Miles'!B7&"-"&'Queue Miles'!B9&"-"&'Queue Miles'!C$6,Calculations!$D$11:$D$8770,0)) -> Wednesday | B9: 2 | C9: =IF(INDEX(Calculations!$M$11:$M$8770,MATCH('Queue Miles'!B7&"-"&'Queue Miles'!$B9&"-"&'Queue Miles'!C$6,Calculations!$D$11:$D$8770,0))=0,"---", INDEX(Calculations!$W$11:$W$8770,MATCH('Queue Miles'!B7&"-"&'Queue Miles'!$B9&"-"&'Queue Miles'!C$6,Calculations!$D$11:$D$8770,0))) -> 0 | D9: =IF(INDEX(Calculations!$M$11:$M$8770,MATCH('Queue Miles'!B7&"-"&'Queue Miles'!$B9&"-"&'Queue Miles'!D$6,Calculations!$D$11:$D$8770,0))=0,"---", INDEX(Calculations!$W$11:$W$8770,MATCH('Queue Miles'!B7&"-"&'Queue Miles'!$B9&"-"&'Queue Miles'!D$6,Calculations!$D$11:$D$8770,0))) -> 0 | E9: =IF(INDEX(Calculations!$M$11:$M$8770,MATCH('Queue Miles'!B7&"-"&'Queue Miles'!$B9&"-"&'Queue Miles'!E$6,Calculations!$D$11:$D$8770,0))=0,"---", INDEX(Calculations!$W$11:$W$8770,MATCH('Queue Miles'!B7&"-"&'Queue Miles'!$B9&"-"&'Queue Miles'!E$6,Calculations!$D$11:$D$8770,0))) -> 0 | F9: =IF(INDEX(Calculations!$M$11:$M$8770,MATCH('Queue Miles'!B7&"-"&'Queue Miles'!$B9&"-"&'Queue Miles'!F$6,Calculations!$D$11:$D$8770,0))=0,"---", INDEX(Calculations!$W$11:$W$8770,MATCH('Queue Miles'!B7&"-"&'Queue Miles'!$B9&"-"&'Queue Miles'!F$6,Calculations!$D$11:$D$8770,0))) -> 0 | G9: =IF(INDEX(Calculations!$M$11:$M$8770,MATCH('Queue Miles'!B7&"-"&'Queue Miles'!$B9&"-"&'Queue Miles'!G$6,Calculations!$D$11:$D$8770,0))=0,"---", INDEX(Calculations!$W$11:$W$8770,MATCH('Queue Miles'!B7&"-"&'Queue Miles'!$B9&"-"&'Queue Miles'!G$6,Calculations!$D$11:$D$8770,0))) -> 0 | H9: =IF(INDEX(Calculations!$M$11:$M$8770,MATCH('Queue Miles'!B7&"-"&'Queue Miles'!$B9&"-"&'Queue Miles'!H$6,Calculations!$D$11:$D$8770,0))=0,"---", INDEX(Calculations!$W$11:$W$8770,MATCH('Queue Miles'!B7&"-"&'Queue Miles'!$B9&"-"&'Queue Miles'!H$6,Calculations!$D$11:$D$8770,0))) -> 0 | I9: =IF(INDEX(Calculations!$M$11:$M$8770,MATCH('Queue Miles'!B7&"-"&'Queue Miles'!$B9&"-"&'Queue Miles'!I$6,Calculations!$D$11:$D$8770,0))=0,"---", INDEX(Calculations!$W$11:$W$8770,MATCH('Queue Miles'!B7&"-"&'Queue Miles'!$B9&"-"&'Queue Miles'!I$6,Calculations!$D$11:$D$8770,0))) -> 0 | J9: =IF(INDEX(Calculations!$M$11:$M$8770,MATCH('Queue Miles'!B7&"-"&'Queue Miles'!$B9&"-"&'Queue Miles'!J$6,Calculations!$D$11:$D$8770,0))=0,"---", INDEX(Calculations!$W$11:$W$8770,MATCH('Queue Miles'!B7&"-"&'Queue Miles'!$B9&"-"&'Queue Miles'!J$6,Calculations!$D$11:$D$8770,0))) -> 0 | K9: =IF(INDEX(Calculations!$M$11:$M$8770,MATCH('Queue Miles'!B7&"-"&'Queue Miles'!$B9&"-"&'Queue Miles'!K$6,Calculations!$D$11:$D$8770,0))=0,"---", INDEX(Calculations!$W$11:$W$8770,MATCH('Queue Miles'!B7&"-"&'Queue Miles'!$B9&"-"&'Queue Miles'!K$6,Calculations!$D$11:$D$8770,0))) -> 0 | L9: =IF(INDEX(Calculations!$M$11:$M$8770,MATCH('Queue Miles'!B7&"-"&'Queue Miles'!$B9&"-"&'Queue Miles'!L$6,Calculations!$D$11:$D$8770,0))=0,"---", INDEX(Calculations!$W$11:$W$8770,MATCH('Queue Miles'!B7&"-"&'Queue Miles'!$B9&"-"&'Queue Miles'!L$6,Calculations!$D$11:$D$8770,0))) -> 0 | M9: =IF(INDEX(Calculations!$M$11:$M$8770,MATCH('Queue Miles'!B7&"-"&'Queue Miles'!$B9&"-"&'Queue Miles'!M$6,Calculations!$D$11:$D$8770,0))=0,"---", INDEX(Calculations!$W$11:$W$8770,MATCH('Queue Miles'!B7&"-"&'Queue Miles'!$B9&"-"&'Queue Miles'!M$6,Calculations!$D$11:$D$8770,0))) -> 0 | N9: =IF(INDEX(Calculations!$M$11:$M$8770,MATCH('Queue Miles'!B7&"-"&'Queue Miles'!$B9&"-"&'Queue Miles'!N$6,Calculations!$D$11:$D$8770,0))=0,"---", INDEX(Calculations!$W$11:$W$8770,MATCH('Queue Miles'!B7&"-"&'Queue Miles'!$B9&"-"&'Queue Miles'!N$6,Calculations!$D$11:$D$8770,0))) -> 0 | O9: =IF(INDEX(Calculations!$M$11:$M$8770,MATCH('Queue Miles'!B7&"-"&'Queue Miles'!$B9&"-"&'Queue Miles'!O$6,Calculations!$D$11:$D$8770,0))=0,"---", INDEX(Calculations!$W$11:$W$8770,MATCH('Queue Miles'!B7&"-"&'Queue Miles'!$B9&"-"&'Queue Miles'!O$6,Calculations!$D$11:$D$8770,0))) -> 0 | P9: =IF(INDEX(Calculations!$M$11:$M$8770,MATCH('Queue Miles'!B7&"-"&'Queue Miles'!$B9&"-"&'Queue Miles'!P$6,Calculations!$D$11:$D$8770,0))=0,"---", INDEX(Calculations!$W$11:$W$8770,MATCH('Queue Miles'!B7&"-"&'Queue Miles'!$B9&"-"&'Queue Miles'!P$6,Calculations!$D$11:$D$8770,0))) -> 0 | Q9: =IF(INDEX(Calculations!$M$11:$M$8770,MATCH('Queue Miles'!B7&"-"&'Queue Miles'!$B9&"-"&'Queue Miles'!Q$6,Calculations!$D$11:$D$8770,0))=0,"---", INDEX(Calculations!$W$11:$W$8770,MATCH('Queue Miles'!B7&"-"&'Queue Miles'!$B9&"-"&'Queue Miles'!Q$6,Calculations!$D$11:$D$8770,0))) -> 0 | R9: =IF(INDEX(Calculations!$M$11:$M$8770,MATCH('Queue Miles'!B7&"-"&'Queue Miles'!$B9&"-"&'Queue Miles'!R$6,Calculations!$D$11:$D$8770,0))=0,"---", INDEX(Calculations!$W$11:$W$8770,MATCH('Queue Miles'!B7&"-"&'Queue Miles'!$B9&"-"&'Queue Miles'!R$6,Calculations!$D$11:$D$8770,0))) -> 0 | S9: =IF(INDEX(Calculations!$M$11:$M$8770,MATCH('Queue Miles'!B7&"-"&'Queue Miles'!$B9&"-"&'Queue Miles'!S$6,Calculations!$D$11:$D$8770,0))=0,"---", INDEX(Calculations!$W$11:$W$8770,MATCH('Queue Miles'!B7&"-"&'Queue Miles'!$B9&"-"&'Queue Miles'!S$6,Calculations!$D$11:$D$8770,0))) -> 0 | T9: =IF(INDEX(Calculations!$M$11:$M$8770,MATCH('Queue Miles'!B7&"-"&'Queue Miles'!$B9&"-"&'Queue Miles'!T$6,Calculations!$D$11:$D$8770,0))=0,"---", INDEX(Calculations!$W$11:$W$8770,MATCH('Queue Miles'!B7&"-"&'Queue Miles'!$B9&"-"&'Queue Miles'!T$6,Calculations!$D$11:$D$8770,0))) -> 0 | U9: =IF(INDEX(Calculations!$M$11:$M$8770,MATCH('Queue Miles'!B7&"-"&'Queue Miles'!$B9&"-"&'Queue Miles'!U$6,Calculations!$D$11:$D$8770,0))=0,"---", INDEX(Calculations!$W$11:$W$8770,MATCH('Queue Miles'!B7&"-"&'Queue Miles'!$B9&"-"&'Queue Miles'!U$6,Calculations!$D$11:$D$8770,0))) -> 0 | V9: =IF(INDEX(Calculations!$M$11:$M$8770,MATCH('Queue Miles'!B7&"-"&'Queue Miles'!$B9&"-"&'Queue Miles'!V$6,Calculations!$D$11:$D$8770,0))=0,"---", INDEX(Calculations!$W$11:$W$8770,MATCH('Queue Miles'!B7&"-"&'Queue Miles'!$B9&"-"&'Queue Miles'!V$6,Calculations!$D$11:$D$8770,0))) -> 0 | W9: =IF(INDEX(Calculations!$M$11:$M$8770,MATCH('Queue Miles'!B7&"-"&'Queue Miles'!$B9&"-"&'Queue Miles'!W$6,Calculations!$D$11:$D$8770,0))=0,"---", INDEX(Calculations!$W$11:$W$8770,MATCH('Queue Miles'!B7&"-"&'Queue Miles'!$B9&"-"&'Queue Miles'!W$6,Calculations!$D$11:$D$8770,0))) -> 0 | X9: =IF(INDEX(Calculations!$M$11:$M$8770,MATCH('Queue Miles'!B7&"-"&'Queue Miles'!$B9&"-"&'Queue Miles'!X$6,Calculations!$D$11:$D$8770,0))=0,"---", INDEX(Calculations!$W$11:$W$8770,MATCH('Queue Miles'!B7&"-"&'Queue Miles'!$B9&"-"&'Queue Miles'!X$6,Calculations!$D$11:$D$8770,0))) -> 0 | Y9: =IF(INDEX(Calculations!$M$11:$M$8770,MATCH('Queue Miles'!B7&"-"&'Queue Miles'!$B9&"-"&'Queue Miles'!Y$6,Calculations!$D$11:$D$8770,0))=0,"---", INDEX(Calculations!$W$11:$W$8770,MATCH('Queue Miles'!B7&"-"&'Queue Miles'!$B9&"-"&'Queue Miles'!Y$6,Calculations!$D$11:$D$8770,0))) -> 0 | Z9: =IF(INDEX(Calculations!$M$11:$M$8770,MATCH('Queue Miles'!B7&"-"&'Queue Miles'!$B9&"-"&'Queue Miles'!Z$6,Calculations!$D$11:$D$8770,0))=0,"---", INDEX(Calculations!$W$11:$W$8770,MATCH('Queue Miles'!B7&"-"&'Queue Miles'!$B9&"-"&'Queue Miles'!Z$6,Calculations!$D$11:$D$8770,0))) -> 0 | AA9: =IF(INDEX(Calculations!$P$11:$P$8770,MATCH('Queue Miles'!B7&"-"&'Queue Miles'!$B9&"-"&'Queue Miles'!AA$6,Calculations!$D$11:$D$8770,0))=0,"---", INDEX(Calculations!$AM$11:$AM$8770,MATCH('Queue Miles'!B7&"-"&'Queue Miles'!$B9&"-"&'Queue Miles'!AA$6,Calculations!$D$11:$D$8770,0))) -> 0 | AB9: =IF(INDEX(Calculations!$P$11:$P$8770,MATCH('Queue Miles'!B7&"-"&'Queue Miles'!$B9&"-"&'Queue Miles'!AB$6,Calculations!$D$11:$D$8770,0))=0,"---", INDEX(Calculations!$AM$11:$AM$8770,MATCH('Queue Miles'!B7&"-"&'Queue Miles'!$B9&"-"&'Queue Miles'!AB$6,Calculations!$D$11:$D$8770,0))) -> 0 | AC9: =IF(INDEX(Calculations!$P$11:$P$8770,MATCH('Queue Miles'!B7&"-"&'Queue Miles'!$B9&"-"&'Queue Miles'!AC$6,Calculations!$D$11:$D$8770,0))=0,"---", INDEX(Calculations!$AM$11:$AM$8770,MATCH('Queue Miles'!B7&"-"&'Queue Miles'!$B9&"-"&'Queue Miles'!AC$6,Calculations!$D$11:$D$8770,0))) -> 0 | AD9: =IF(INDEX(Calculations!$P$11:$P$8770,MATCH('Queue Miles'!B7&"-"&'Queue Miles'!$B9&"-"&'Queue Miles'!AD$6,Calculations!$D$11:$D$8770,0))=0,"---", INDEX(Calculations!$AM$11:$AM$8770,MATCH('Queue Miles'!B7&"-"&'Queue Miles'!$B9&"-"&'Queue Miles'!AD$6,Calculations!$D$11:$D$8770,0))) -> 0 | AE9: =IF(INDEX(Calculations!$P$11:$P$8770,MATCH('Queue Miles'!B7&"-"&'Queue Miles'!$B9&"-"&'Queue Miles'!AE$6,Calculations!$D$11:$D$8770,0))=0,"---", INDEX(Calculations!$AM$11:$AM$8770,MATCH('Queue Miles'!B7&"-"&'Queue Miles'!$B9&"-"&'Queue Miles'!AE$6,Calculations!$D$11:$D$8770,0))) -> 0 | AF9: =IF(INDEX(Calculations!$P$11:$P$8770,MATCH('Queue Miles'!B7&"-"&'Queue Miles'!$B9&"-"&'Queue Miles'!AF$6,Calculations!$D$11:$D$8770,0))=0,"---", INDEX(Calculations!$AM$11:$AM$8770,MATCH('Queue Miles'!B7&"-"&'Queue Miles'!$B9&"-"&'Queue Miles'!AF$6,Calculations!$D$11:$D$8770,0))) -> 0 | AG9: =IF(INDEX(Calculations!$P$11:$P$8770,MATCH('Queue Miles'!B7&"-"&'Queue Miles'!$B9&"-"&'Queue Miles'!AG$6,Calculations!$D$11:$D$8770,0))=0,"---", INDEX(Calculations!$AM$11:$AM$8770,MATCH('Queue Miles'!B7&"-"&'Queue Miles'!$B9&"-"&'Queue Miles'!AG$6,Calculations!$D$11:$D$8770,0))) -> 0 | AH9: =IF(INDEX(Calculations!$P$11:$P$8770,MATCH('Queue Miles'!B7&"-"&'Queue Miles'!$B9&"-"&'Queue Miles'!AH$6,Calculations!$D$11:$D$8770,0))=0,"---", INDEX(Calculations!$AM$11:$AM$8770,MATCH('Queue Miles'!B7&"-"&'Queue Miles'!$B9&"-"&'Queue Miles'!AH$6,Calculations!$D$11:$D$8770,0))) -> 0 | AI9: =IF(INDEX(Calculations!$P$11:$P$8770,MATCH('Queue Miles'!B7&"-"&'Queue Miles'!$B9&"-"&'Queue Miles'!AI$6,Calculations!$D$11:$D$8770,0))=0,"---", INDEX(Calculations!$AM$11:$AM$8770,MATCH('Queue Miles'!B7&"-"&'Queue Miles'!$B9&"-"&'Queue Miles'!AI$6,Calculations!$D$11:$D$8770,0))) -> 0 | AJ9: =IF(INDEX(Calculations!$P$11:$P$8770,MATCH('Queue Miles'!B7&"-"&'Queue Miles'!$B9&"-"&'Queue Miles'!AJ$6,Calculations!$D$11:$D$8770,0))=0,"---", INDEX(Calculations!$AM$11:$AM$8770,MATCH('Queue Miles'!B7&"-"&'Queue Miles'!$B9&"-"&'Queue Miles'!AJ$6,Calculations!$D$11:$D$8770,0))) -> 0 | AK9: =IF(INDEX(Calculations!$P$11:$P$8770,MATCH('Queue Miles'!B7&"-"&'Queue Miles'!$B9&"-"&'Queue Miles'!AK$6,Calculations!$D$11:$D$8770,0))=0,"---", INDEX(Calculations!$AM$11:$AM$8770,MATCH('Queue Miles'!B7&"-"&'Queue Miles'!$B9&"-"&'Queue Miles'!AK$6,Calculations!$D$11:$D$8770,0))) -> 0 | AL9: =IF(INDEX(Calculations!$P$11:$P$8770,MATCH('Queue Miles'!B7&"-"&'Queue Miles'!$B9&"-"&'Queue Miles'!AL$6,Calculations!$D$11:$D$8770,0))=0,"---", INDEX(Calculations!$AM$11:$AM$8770,MATCH('Queue Miles'!B7&"-"&'Queue Miles'!$B9&"-"&'Queue Miles'!AL$6,Calculations!$D$11:$D$8770,0))) -> 0 | AM9: =IF(INDEX(Calculations!$P$11:$P$8770,MATCH('Queue Miles'!B7&"-"&'Queue Miles'!$B9&"-"&'Queue Miles'!AM$6,Calculations!$D$11:$D$8770,0))=0,"---", INDEX(Calculations!$AM$11:$AM$8770,MATCH('Queue Miles'!B7&"-"&'Queue Miles'!$B9&"-"&'Queue Miles'!AM$6,Calculations!$D$11:$D$8770,0))) -> 0 | AN9: =IF(INDEX(Calculations!$P$11:$P$8770,MATCH('Queue Miles'!B7&"-"&'Queue Miles'!$B9&"-"&'Queue Miles'!AN$6,Calculations!$D$11:$D$8770,0))=0,"---", INDEX(Calculations!$AM$11:$AM$8770,MATCH('Queue Miles'!B7&"-"&'Queue Miles'!$B9&"-"&'Queue Miles'!AN$6,Calculations!$D$11:$D$8770,0))) -> 0 | AO9: =IF(INDEX(Calculations!$P$11:$P$8770,MATCH('Queue Miles'!B7&"-"&'Queue Miles'!$B9&"-"&'Queue Miles'!AO$6,Calculations!$D$11:$D$8770,0))=0,"---", INDEX(Calculations!$AM$11:$AM$8770,MATCH('Queue Miles'!B7&"-"&'Queue Miles'!$B9&"-"&'Queue Miles'!AO$6,Calculations!$D$11:$D$8770,0))) -> 0 | AP9: =IF(INDEX(Calculations!$P$11:$P$8770,MATCH('Queue Miles'!B7&"-"&'Queue Miles'!$B9&"-"&'Queue Miles'!AP$6,Calculations!$D$11:$D$8770,0))=0,"---", INDEX(Calculations!$AM$11:$AM$8770,MATCH('Queue Miles'!B7&"-"&'Queue Miles'!$B9&"-"&'Queue Miles'!AP$6,Calculations!$D$11:$D$8770,0))) -> 0 | AQ9: =IF(INDEX(Calculations!$P$11:$P$8770,MATCH('Queue Miles'!B7&"-"&'Queue Miles'!$B9&"-"&'Queue Miles'!AQ$6,Calculations!$D$11:$D$8770,0))=0,"---", INDEX(Calculations!$AM$11:$AM$8770,MATCH('Queue Miles'!B7&"-"&'Queue Miles'!$B9&"-"&'Queue Miles'!AQ$6,Calculations!$D$11:$D$8770,0))) -> 0 | AR9: =IF(INDEX(Calculations!$P$11:$P$8770,MATCH('Queue Miles'!B7&"-"&'Queue Miles'!$B9&"-"&'Queue Miles'!AR$6,Calculations!$D$11:$D$8770,0))=0,"---", INDEX(Calculations!$AM$11:$AM$8770,MATCH('Queue Miles'!B7&"-"&'Queue Miles'!$B9&"-"&'Queue Miles'!AR$6,Calculations!$D$11:$D$8770,0))) -> 0 | AS9: =IF(INDEX(Calculations!$P$11:$P$8770,MATCH('Queue Miles'!B7&"-"&'Queue Miles'!$B9&"-"&'Queue Miles'!AS$6,Calculations!$D$11:$D$8770,0))=0,"---", INDEX(Calculations!$AM$11:$AM$8770,MATCH('Queue Miles'!B7&"-"&'Queue Miles'!$B9&"-"&'Queue Miles'!AS$6,Calculations!$D$11:$D$8770,0))) -> 0 | AT9: =IF(INDEX(Calculations!$P$11:$P$8770,MATCH('Queue Miles'!B7&"-"&'Queue Miles'!$B9&"-"&'Queue Miles'!AT$6,Calculations!$D$11:$D$8770,0))=0,"---", INDEX(Calculations!$AM$11:$AM$8770,MATCH('Queue Miles'!B7&"-"&'Queue Miles'!$B9&"-"&'Queue Miles'!AT$6,Calculations!$D$11:$D$8770,0))) -> 0 | AU9: =IF(INDEX(Calculations!$P$11:$P$8770,MATCH('Queue Miles'!B7&"-"&'Queue Miles'!$B9&"-"&'Queue Miles'!AU$6,Calculations!$D$11:$D$8770,0))=0,"---", INDEX(Calculations!$AM$11:$AM$8770,MATCH('Queue Miles'!B7&"-"&'Queue Miles'!$B9&"-"&'Queue Miles'!AU$6,Calculations!$D$11:$D$8770,0))) -> 0 | AV9: =IF(INDEX(Calculations!$P$11:$P$8770,MATCH('Queue Miles'!B7&"-"&'Queue Miles'!$B9&"-"&'Queue Miles'!AV$6,Calculations!$D$11:$D$8770,0))=0,"---", INDEX(Calculations!$AM$11:$AM$8770,MATCH('Queue Miles'!B7&"-"&'Queue Miles'!$B9&"-"&'Queue Miles'!AV$6,Calculations!$D$11:$D$8770,0))) -> 0 | AW9: =IF(INDEX(Calculations!$P$11:$P$8770,MATCH('Queue Miles'!B7&"-"&'Queue Miles'!$B9&"-"&'Queue Miles'!AW$6,Calculations!$D$11:$D$8770,0))=0,"---", INDEX(Calculations!$AM$11:$AM$8770,MATCH('Queue Miles'!B7&"-"&'Queue Miles'!$B9&"-"&'Queue Miles'!AW$6,Calculations!$D$11:$D$8770,0))) -> 0 | AX9: =IF(INDEX(Calculations!$P$11:$P$8770,MATCH('Queue Miles'!B7&"-"&'Queue Miles'!$B9&"-"&'Queue Miles'!AX$6,Calculations!$D$11:$D$8770,0))=0,"---", INDEX(Calculations!$AM$11:$AM$8770,MATCH('Queue Miles'!B7&"-"&'Queue Miles'!$B9&"-"&'Queue Miles'!AX$6,Calculations!$D$11:$D$8770,0))) -> 0
A10: =INDEX(Calculations!$F$11:$F$8770,MATCH('Queue Miles'!B7&"-"&'Queue Miles'!B10&"-"&'Queue Miles'!C$6,Calculations!$D$11:$D$8770,0)) -> Thursday | B10: 3 | C10: =IF(INDEX(Calculations!$M$11:$M$8770,MATCH('Queue Miles'!B7&"-"&'Queue Miles'!$B10&"-"&'Queue Miles'!C$6,Calculations!$D$11:$D$8770,0))=0,"---", INDEX(Calculations!$W$11:$W$8770,MATCH('Queue Miles'!B7&"-"&'Queue Miles'!$B10&"-"&'Queue Miles'!C$6,Calculations!$D$11:$D$8770,0))) -> 0 | D10: =IF(INDEX(Calculations!$M$11:$M$8770,MATCH('Queue Miles'!B7&"-"&'Queue Miles'!$B10&"-"&'Queue Miles'!D$6,Calculations!$D$11:$D$8770,0))=0,"---", INDEX(Calculations!$W$11:$W$8770,MATCH('Queue Miles'!B7&"-"&'Queue Miles'!$B10&"-"&'Queue Miles'!D$6,Calculations!$D$11:$D$8770,0))) -> 0 | E10: =IF(INDEX(Calculations!$M$11:$M$8770,MATCH('Queue Miles'!B7&"-"&'Queue Miles'!$B10&"-"&'Queue Miles'!E$6,Calculations!$D$11:$D$8770,0))=0,"---", INDEX(Calculations!$W$11:$W$8770,MATCH('Queue Miles'!B7&"-"&'Queue Miles'!$B10&"-"&'Queue Miles'!E$6,Calculations!$D$11:$D$8770,0))) -> 0 | F10: =IF(INDEX(Calculations!$M$11:$M$8770,MATCH('Queue Miles'!B7&"-"&'Queue Miles'!$B10&"-"&'Queue Miles'!F$6,Calculations!$D$11:$D$8770,0))=0,"---", INDEX(Calculations!$W$11:$W$8770,MATCH('Queue Miles'!B7&"-"&'Queue Miles'!$B10&"-"&'Queue Miles'!F$6,Calculations!$D$11:$D$8770,0))) -> 0 | G10: =IF(INDEX(Calculations!$M$11:$M$8770,MATCH('Queue Miles'!B7&"-"&'Queue Miles'!$B10&"-"&'Queue Miles'!G$6,Calculations!$D$11:$D$8770,0))=0,"---", INDEX(Calculations!$W$11:$W$8770,MATCH('Queue Miles'!B7&"-"&'Queue Miles'!$B10&"-"&'Queue Miles'!G$6,Calculations!$D$11:$D$8770,0))) -> 0 | H10: =IF(INDEX(Calculations!$M$11:$M$8770,MATCH('Queue Miles'!B7&"-"&'Queue Miles'!$B10&"-"&'Queue Miles'!H$6,Calculations!$D$11:$D$8770,0))=0,"---", INDEX(Calculations!$W$11:$W$8770,MATCH('Queue Miles'!B7&"-"&'Queue Miles'!$B10&"-"&'Queue Miles'!H$6,Calculations!$D$11:$D$8770,0))) -> 0 | I10: =IF(INDEX(Calculations!$M$11:$M$8770,MATCH('Queue Miles'!B7&"-"&'Queue Miles'!$B10&"-"&'Queue Miles'!I$6,Calculations!$D$11:$D$8770,0))=0,"---", INDEX(Calculations!$W$11:$W$8770,MATCH('Queue Miles'!B7&"-"&'Queue Miles'!$B10&"-"&'Queue Miles'!I$6,Calculations!$D$11:$D$8770,0))) -> 0 | J10: =IF(INDEX(Calculations!$M$11:$M$8770,MATCH('Queue Miles'!B7&"-"&'Queue Miles'!$B10&"-"&'Queue Miles'!J$6,Calculations!$D$11:$D$8770,0))=0,"---", INDEX(Calculations!$W$11:$W$8770,MATCH('Queue Miles'!B7&"-"&'Queue Miles'!$B10&"-"&'Queue Miles'!J$6,Calculations!$D$11:$D$8770,0))) -> 0 | K10: =IF(INDEX(Calculations!$M$11:$M$8770,MATCH('Queue Miles'!B7&"-"&'Queue Miles'!$B10&"-"&'Queue Miles'!K$6,Calculations!$D$11:$D$8770,0))=0,"---", INDEX(Calculations!$W$11:$W$8770,MATCH('Queue Miles'!B7&"-"&'Queue Miles'!$B10&"-"&'Queue Miles'!K$6,Calculations!$D$11:$D$8770,0))) -> 0 | L10: =IF(INDEX(Calculations!$M$11:$M$8770,MATCH('Queue Miles'!B7&"-"&'Queue Miles'!$B10&"-"&'Queue Miles'!L$6,Calculations!$D$11:$D$8770,0))=0,"---", INDEX(Calculations!$W$11:$W$8770,MATCH('Queue Miles'!B7&"-"&'Queue Miles'!$B10&"-"&'Queue Miles'!L$6,Calculations!$D$11:$D$8770,0))) -> 0 | M10: =IF(INDEX(Calculations!$M$11:$M$8770,MATCH('Queue Miles'!B7&"-"&'Queue Miles'!$B10&"-"&'Queue Miles'!M$6,Calculations!$D$11:$D$8770,0))=0,"---", INDEX(Calculations!$W$11:$W$8770,MATCH('Queue Miles'!B7&"-"&'Queue Miles'!$B10&"-"&'Queue Miles'!M$6,Calculations!$D$11:$D$8770,0))) -> 0 | N10: =IF(INDEX(Calculations!$M$11:$M$8770,MATCH('Queue Miles'!B7&"-"&'Queue Miles'!$B10&"-"&'Queue Miles'!N$6,Calculations!$D$11:$D$8770,0))=0,"---", INDEX(Calculations!$W$11:$W$8770,MATCH('Queue Miles'!B7&"-"&'Queue Miles'!$B10&"-"&'Queue Miles'!N$6,Calculations!$D$11:$D$8770,0))) -> 0 | O10: =IF(INDEX(Calculations!$M$11:$M$8770,MATCH('Queue Miles'!B7&"-"&'Queue Miles'!$B10&"-"&'Queue Miles'!O$6,Calculations!$D$11:$D$8770,0))=0,"---", INDEX(Calculations!$W$11:$W$8770,MATCH('Queue Miles'!B7&"-"&'Queue Miles'!$B10&"-"&'Queue Miles'!O$6,Calculations!$D$11:$D$8770,0))) -> 0 | P10: =IF(INDEX(Calculations!$M$11:$M$8770,MATCH('Queue Miles'!B7&"-"&'Queue Miles'!$B10&"-"&'Queue Miles'!P$6,Calculations!$D$11:$D$8770,0))=0,"---", INDEX(Calculations!$W$11:$W$8770,MATCH('Queue Miles'!B7&"-"&'Queue Miles'!$B10&"-"&'Queue Miles'!P$6,Calculations!$D$11:$D$8770,0))) -> 0 | Q10: =IF(INDEX(Calculations!$M$11:$M$8770,MATCH('Queue Miles'!B7&"-"&'Queue Miles'!$B10&"-"&'Queue Miles'!Q$6,Calculations!$D$11:$D$8770,0))=0,"---", INDEX(Calculations!$W$11:$W$8770,MATCH('Queue Miles'!B7&"-"&'Queue Miles'!$B10&"-"&'Queue Miles'!Q$6,Calculations!$D$11:$D$8770,0))) -> 0 | R10: =IF(INDEX(Calculations!$M$11:$M$8770,MATCH('Queue Miles'!B7&"-"&'Queue Miles'!$B10&"-"&'Queue Miles'!R$6,Calculations!$D$11:$D$8770,0))=0,"---", INDEX(Calculations!$W$11:$W$8770,MATCH('Queue Miles'!B7&"-"&'Queue Miles'!$B10&"-"&'Queue Miles'!R$6,Calculations!$D$11:$D$8770,0))) -> 0 | S10: =IF(INDEX(Calculations!$M$11:$M$8770,MATCH('Queue Miles'!B7&"-"&'Queue Miles'!$B10&"-"&'Queue Miles'!S$6,Calculations!$D$11:$D$8770,0))=0,"---", INDEX(Calculations!$W$11:$W$8770,MATCH('Queue Miles'!B7&"-"&'Queue Miles'!$B10&"-"&'Queue Miles'!S$6,Calculations!$D$11:$D$8770,0))) -> 0 | T10: =IF(INDEX(Calculations!$M$11:$M$8770,MATCH('Queue Miles'!B7&"-"&'Queue Miles'!$B10&"-"&'Queue Miles'!T$6,Calculations!$D$11:$D$8770,0))=0,"---", INDEX(Calculations!$W$11:$W$8770,MATCH('Queue Miles'!B7&"-"&'Queue Miles'!$B10&"-"&'Queue Miles'!T$6,Calculations!$D$11:$D$8770,0))) -> 0 | U10: =IF(INDEX(Calculations!$M$11:$M$8770,MATCH('Queue Miles'!B7&"-"&'Queue Miles'!$B10&"-"&'Queue Miles'!U$6,Calculations!$D$11:$D$8770,0))=0,"---", INDEX(Calculations!$W$11:$W$8770,MATCH('Queue Miles'!B7&"-"&'Queue Miles'!$B10&"-"&'Queue Miles'!U$6,Calculations!$D$11:$D$8770,0))) -> 0 | V10: =IF(INDEX(Calculations!$M$11:$M$8770,MATCH('Queue Miles'!B7&"-"&'Queue Miles'!$B10&"-"&'Queue Miles'!V$6,Calculations!$D$11:$D$8770,0))=0,"---", INDEX(Calculations!$W$11:$W$8770,MATCH('Queue Miles'!B7&"-"&'Queue Miles'!$B10&"-"&'Queue Miles'!V$6,Calculations!$D$11:$D$8770,0))) -> 0 | W10: =IF(INDEX(Calculations!$M$11:$M$8770,MATCH('Queue Miles'!B7&"-"&'Queue Miles'!$B10&"-"&'Queue Miles'!W$6,Calculations!$D$11:$D$8770,0))=0,"---", INDEX(Calculations!$W$11:$W$8770,MATCH('Queue Miles'!B7&"-"&'Queue Miles'!$B10&"-"&'Queue Miles'!W$6,Calculations!$D$11:$D$8770,0))) -> 0 | X10: =IF(INDEX(Calculations!$M$11:$M$8770,MATCH('Queue Miles'!B7&"-"&'Queue Miles'!$B10&"-"&'Queue Miles'!X$6,Calculations!$D$11:$D$8770,0))=0,"---", INDEX(Calculations!$W$11:$W$8770,MATCH('Queue Miles'!B7&"-"&'Queue Miles'!$B10&"-"&'Queue Miles'!X$6,Calculations!$D$11:$D$8770,0))) -> 0 | Y10: =IF(INDEX(Calculations!$M$11:$M$8770,MATCH('Queue Miles'!B7&"-"&'Queue Miles'!$B10&"-"&'Queue Miles'!Y$6,Calculations!$D$11:$D$8770,0))=0,"---", INDEX(Calculations!$W$11:$W$8770,MATCH('Queue Miles'!B7&"-"&'Queue Miles'!$B10&"-"&'Queue Miles'!Y$6,Calculations!$D$11:$D$8770,0))) -> 0 | Z10: =IF(INDEX(Calculations!$M$11:$M$8770,MATCH('Queue Miles'!B7&"-"&'Queue Miles'!$B10&"-"&'Queue Miles'!Z$6,Calculations!$D$11:$D$8770,0))=0,"---", INDEX(Calculations!$W$11:$W$8770,MATCH('Queue Miles'!B7&"-"&'Queue Miles'!$B10&"-"&'Queue Miles'!Z$6,Calculations!$D$11:$D$8770,0))) -> 0 | AA10: =IF(INDEX(Calculations!$P$11:$P$8770,MATCH('Queue Miles'!B7&"-"&'Queue Miles'!$B10&"-"&'Queue Miles'!AA$6,Calculations!$D$11:$D$8770,0))=0,"---", INDEX(Calculations!$AM$11:$AM$8770,MATCH('Queue Miles'!B7&"-"&'Queue Miles'!$B10&"-"&'Queue Miles'!AA$6,Calculations!$D$11:$D$8770,0))) -> 0 | AB10: =IF(INDEX(Calculations!$P$11:$P$8770,MATCH('Queue Miles'!B7&"-"&'Queue Miles'!$B10&"-"&'Queue Miles'!AB$6,Calculations!$D$11:$D$8770,0))=0,"---", INDEX(Calculations!$AM$11:$AM$8770,MATCH('Queue Miles'!B7&"-"&'Queue Miles'!$B10&"-"&'Queue Miles'!AB$6,Calculations!$D$11:$D$8770,0))) -> 0 | AC10: =IF(INDEX(Calculations!$P$11:$P$8770,MATCH('Queue Miles'!B7&"-"&'Queue Miles'!$B10&"-"&'Queue Miles'!AC$6,Calculations!$D$11:$D$8770,0))=0,"---", INDEX(Calculations!$AM$11:$AM$8770,MATCH('Queue Miles'!B7&"-"&'Queue Miles'!$B10&"-"&'Queue Miles'!AC$6,Calculations!$D$11:$D$8770,0))) -> 0 | AD10: =IF(INDEX(Calculations!$P$11:$P$8770,MATCH('Queue Miles'!B7&"-"&'Queue Miles'!$B10&"-"&'Queue Miles'!AD$6,Calculations!$D$11:$D$8770,0))=0,"---", INDEX(Calculations!$AM$11:$AM$8770,MATCH('Queue Miles'!B7&"-"&'Queue Miles'!$B10&"-"&'Queue Miles'!AD$6,Calculations!$D$11:$D$8770,0))) -> 0 | AE10: =IF(INDEX(Calculations!$P$11:$P$8770,MATCH('Queue Miles'!B7&"-"&'Queue Miles'!$B10&"-"&'Queue Miles'!AE$6,Calculations!$D$11:$D$8770,0))=0,"---", INDEX(Calculations!$AM$11:$AM$8770,MATCH('Queue Miles'!B7&"-"&'Queue Miles'!$B10&"-"&'Queue Miles'!AE$6,Calculations!$D$11:$D$8770,0))) -> 0 | AF10: =IF(INDEX(Calculations!$P$11:$P$8770,MATCH('Queue Miles'!B7&"-"&'Queue Miles'!$B10&"-"&'Queue Miles'!AF$6,Calculations!$D$11:$D$8770,0))=0,"---", INDEX(Calculations!$AM$11:$AM$8770,MATCH('Queue Miles'!B7&"-"&'Queue Miles'!$B10&"-"&'Queue Miles'!AF$6,Calculations!$D$11:$D$8770,0))) -> 0 | AG10: =IF(INDEX(Calculations!$P$11:$P$8770,MATCH('Queue Miles'!B7&"-"&'Queue Miles'!$B10&"-"&'Queue Miles'!AG$6,Calculations!$D$11:$D$8770,0))=0,"---", INDEX(Calculations!$AM$11:$AM$8770,MATCH('Queue Miles'!B7&"-"&'Queue Miles'!$B10&"-"&'Queue Miles'!AG$6,Calculations!$D$11:$D$8770,0))) -> 0 | AH10: =IF(INDEX(Calculations!$P$11:$P$8770,MATCH('Queue Miles'!B7&"-"&'Queue Miles'!$B10&"-"&'Queue Miles'!AH$6,Calculations!$D$11:$D$8770,0))=0,"---", INDEX(Calculations!$AM$11:$AM$8770,MATCH('Queue Miles'!B7&"-"&'Queue Miles'!$B10&"-"&'Queue Miles'!AH$6,Calculations!$D$11:$D$8770,0))) -> 0 | AI10: =IF(INDEX(Calculations!$P$11:$P$8770,MATCH('Queue Miles'!B7&"-"&'Queue Miles'!$B10&"-"&'Queue Miles'!AI$6,Calculations!$D$11:$D$8770,0))=0,"---", INDEX(Calculations!$AM$11:$AM$8770,MATCH('Queue Miles'!B7&"-"&'Queue Miles'!$B10&"-"&'Queue Miles'!AI$6,Calculations!$D$11:$D$8770,0))) -> 0 | AJ10: =IF(INDEX(Calculations!$P$11:$P$8770,MATCH('Queue Miles'!B7&"-"&'Queue Miles'!$B10&"-"&'Queue Miles'!AJ$6,Calculations!$D$11:$D$8770,0))=0,"---", INDEX(Calculations!$AM$11:$AM$8770,MATCH('Queue Miles'!B7&"-"&'Queue Miles'!$B10&"-"&'Queue Miles'!AJ$6,Calculations!$D$11:$D$8770,0))) -> 0 | AK10: =IF(INDEX(Calculations!$P$11:$P$8770,MATCH('Queue Miles'!B7&"-"&'Queue Miles'!$B10&"-"&'Queue Miles'!AK$6,Calculations!$D$11:$D$8770,0))=0,"---", INDEX(Calculations!$AM$11:$AM$8770,MATCH('Queue Miles'!B7&"-"&'Queue Miles'!$B10&"-"&'Queue Miles'!AK$6,Calculations!$D$11:$D$8770,0))) -> 0 | AL10: =IF(INDEX(Calculations!$P$11:$P$8770,MATCH('Queue Miles'!B7&"-"&'Queue Miles'!$B10&"-"&'Queue Miles'!AL$6,Calculations!$D$11:$D$8770,0))=0,"---", INDEX(Calculations!$AM$11:$AM$8770,MATCH('Queue Miles'!B7&"-"&'Queue Miles'!$B10&"-"&'Queue Miles'!AL$6,Calculations!$D$11:$D$8770,0))) -> 0 | AM10: =IF(INDEX(Calculations!$P$11:$P$8770,MATCH('Queue Miles'!B7&"-"&'Queue Miles'!$B10&"-"&'Queue Miles'!AM$6,Calculations!$D$11:$D$8770,0))=0,"---", INDEX(Calculations!$AM$11:$AM$8770,MATCH('Queue Miles'!B7&"-"&'Queue Miles'!$B10&"-"&'Queue Miles'!AM$6,Calculations!$D$11:$D$8770,0))) -> 0 | AN10: =IF(INDEX(Calculations!$P$11:$P$8770,MATCH('Queue Miles'!B7&"-"&'Queue Miles'!$B10&"-"&'Queue Miles'!AN$6,Calculations!$D$11:$D$8770,0))=0,"---", INDEX(Calculations!$AM$11:$AM$8770,MATCH('Queue Miles'!B7&"-"&'Queue Miles'!$B10&"-"&'Queue Miles'!AN$6,Calculations!$D$11:$D$8770,0))) -> 0 | AO10: =IF(INDEX(Calculations!$P$11:$P$8770,MATCH('Queue Miles'!B7&"-"&'Queue Miles'!$B10&"-"&'Queue Miles'!AO$6,Calculations!$D$11:$D$8770,0))=0,"---", INDEX(Calculations!$AM$11:$AM$8770,MATCH('Queue Miles'!B7&"-"&'Queue Miles'!$B10&"-"&'Queue Miles'!AO$6,Calculations!$D$11:$D$8770,0))) -> 0 | AP10: =IF(INDEX(Calculations!$P$11:$P$8770,MATCH('Queue Miles'!B7&"-"&'Queue Miles'!$B10&"-"&'Queue Miles'!AP$6,Calculations!$D$11:$D$8770,0))=0,"---", INDEX(Calculations!$AM$11:$AM$8770,MATCH('Queue Miles'!B7&"-"&'Queue Miles'!$B10&"-"&'Queue Miles'!AP$6,Calculations!$D$11:$D$8770,0))) -> 0 | AQ10: =IF(INDEX(Calculations!$P$11:$P$8770,MATCH('Queue Miles'!B7&"-"&'Queue Miles'!$B10&"-"&'Queue Miles'!AQ$6,Calculations!$D$11:$D$8770,0))=0,"---", INDEX(Calculations!$AM$11:$AM$8770,MATCH('Queue Miles'!B7&"-"&'Queue Miles'!$B10&"-"&'Queue Miles'!AQ$6,Calculations!$D$11:$D$8770,0))) -> 0 | AR10: =IF(INDEX(Calculations!$P$11:$P$8770,MATCH('Queue Miles'!B7&"-"&'Queue Miles'!$B10&"-"&'Queue Miles'!AR$6,Calculations!$D$11:$D$8770,0))=0,"---", INDEX(Calculations!$AM$11:$AM$8770,MATCH('Queue Miles'!B7&"-"&'Queue Miles'!$B10&"-"&'Queue Miles'!AR$6,Calculations!$D$11:$D$8770,0))) -> 0 | AS10: =IF(INDEX(Calculations!$P$11:$P$8770,MATCH('Queue Miles'!B7&"-"&'Queue Miles'!$B10&"-"&'Queue Miles'!AS$6,Calculations!$D$11:$D$8770,0))=0,"---", INDEX(Calculations!$AM$11:$AM$8770,MATCH('Queue Miles'!B7&"-"&'Queue Miles'!$B10&"-"&'Queue Miles'!AS$6,Calculations!$D$11:$D$8770,0))) -> 0 | AT10: =IF(INDEX(Calculations!$P$11:$P$8770,MATCH('Queue Miles'!B7&"-"&'Queue Miles'!$B10&"-"&'Queue Miles'!AT$6,Calculations!$D$11:$D$8770,0))=0,"---", INDEX(Calculations!$AM$11:$AM$8770,MATCH('Queue Miles'!B7&"-"&'Queue Miles'!$B10&"-"&'Queue Miles'!AT$6,Calculations!$D$11:$D$8770,0))) -> 0 | AU10: =IF(INDEX(Calculations!$P$11:$P$8770,MATCH('Queue Miles'!B7&"-"&'Queue Miles'!$B10&"-"&'Queue Miles'!AU$6,Calculations!$D$11:$D$8770,0))=0,"---", INDEX(Calculations!$AM$11:$AM$8770,MATCH('Queue Miles'!B7&"-"&'Queue Miles'!$B10&"-"&'Queue Miles'!AU$6,Calculations!$D$11:$D$8770,0))) -> 0 | AV10: =IF(INDEX(Calculations!$P$11:$P$8770,MATCH('Queue Miles'!B7&"-"&'Queue Miles'!$B10&"-"&'Queue Miles'!AV$6,Calculations!$D$11:$D$8770,0))=0,"---", INDEX(Calculations!$AM$11:$AM$8770,MATCH('Queue Miles'!B7&"-"&'Queue Miles'!$B10&"-"&'Queue Miles'!AV$6,Calculations!$D$11:$D$8770,0))) -> 0 | AW10: =IF(INDEX(Calculations!$P$11:$P$8770,MATCH('Queue Miles'!B7&"-"&'Queue Miles'!$B10&"-"&'Queue Miles'!AW$6,Calculations!$D$11:$D$8770,0))=0,"---", INDEX(Calculations!$AM$11:$AM$8770,MATCH('Queue Miles'!B7&"-"&'Queue Miles'!$B10&"-"&'Queue Miles'!AW$6,Calculations!$D$11:$D$8770,0))) -> 0 | AX10: =IF(INDEX(Calculations!$P$11:$P$8770,MATCH('Queue Miles'!B7&"-"&'Queue Miles'!$B10&"-"&'Queue Miles'!AX$6,Calculations!$D$11:$D$8770,0))=0,"---", INDEX(Calculations!$AM$11:$AM$8770,MATCH('Queue Miles'!B7&"-"&'Queue Miles'!$B10&"-"&'Queue Miles'!AX$6,Calculations!$D$11:$D$8770,0))) -> 0
A11: =INDEX(Calculations!$F$11:$F$8770,MATCH('Queue Miles'!B7&"-"&'Queue Miles'!B11&"-"&'Queue Miles'!C$6,Calculations!$D$11:$D$8770,0)) -> Friday | B11: 4 | C11: =IF(INDEX(Calculations!$M$11:$M$8770,MATCH('Queue Miles'!B7&"-"&'Queue Miles'!$B11&"-"&'Queue Miles'!C$6,Calculations!$D$11:$D$8770,0))=0,"---", INDEX(Calculations!$W$11:$W$8770,MATCH('Queue Miles'!B7&"-"&'Queue Miles'!$B11&"-"&'Queue Miles'!C$6,Calculations!$D$11:$D$8770,0))) -> 0 | D11: =IF(INDEX(Calculations!$M$11:$M$8770,MATCH('Queue Miles'!B7&"-"&'Queue Miles'!$B11&"-"&'Queue Miles'!D$6,Calculations!$D$11:$D$8770,0))=0,"---", INDEX(Calculations!$W$11:$W$8770,MATCH('Queue Miles'!B7&"-"&'Queue Miles'!$B11&"-"&'Queue Miles'!D$6,Calculations!$D$11:$D$8770,0))) -> 0 | E11: =IF(INDEX(Calculations!$M$11:$M$8770,MATCH('Queue Miles'!B7&"-"&'Queue Miles'!$B11&"-"&'Queue Miles'!E$6,Calculations!$D$11:$D$8770,0))=0,"---", INDEX(Calculations!$W$11:$W$8770,MATCH('Queue Miles'!B7&"-"&'Queue Miles'!$B11&"-"&'Queue Miles'!E$6,Calculations!$D$11:$D$8770,0))) -> 0 | F11: =IF(INDEX(Calculations!$M$11:$M$8770,MATCH('Queue Miles'!B7&"-"&'Queue Miles'!$B11&"-"&'Queue Miles'!F$6,Calculations!$D$11:$D$8770,0))=0,"---", INDEX(Calculations!$W$11:$W$8770,MATCH('Queue Miles'!B7&"-"&'Queue Miles'!$B11&"-"&'Queue Miles'!F$6,Calculations!$D$11:$D$8770,0))) -> 0 | G11: =IF(INDEX(Calculations!$M$11:$M$8770,MATCH('Queue Miles'!B7&"-"&'Queue Miles'!$B11&"-"&'Queue Miles'!G$6,Calculations!$D$11:$D$8770,0))=0,"---", INDEX(Calculations!$W$11:$W$8770,MATCH('Queue Miles'!B7&"-"&'Queue Miles'!$B11&"-"&'Queue Miles'!G$6,Calculations!$D$11:$D$8770,0))) -> 0 | H11: =IF(INDEX(Calculations!$M$11:$M$8770,MATCH('Queue Miles'!B7&"-"&'Queue Miles'!$B11&"-"&'Queue Miles'!H$6,Calculations!$D$11:$D$8770,0))=0,"---", INDEX(Calculations!$W$11:$W$8770,MATCH('Queue Miles'!B7&"-"&'Queue Miles'!$B11&"-"&'Queue Miles'!H$6,Calculations!$D$11:$D$8770,0))) -> 0 | I11: =IF(INDEX(Calculations!$M$11:$M$8770,MATCH('Queue Miles'!B7&"-"&'Queue Miles'!$B11&"-"&'Queue Miles'!I$6,Calculations!$D$11:$D$8770,0))=0,"---", INDEX(Calculations!$W$11:$W$8770,MATCH('Queue Miles'!B7&"-"&'Queue Miles'!$B11&"-"&'Queue Miles'!I$6,Calculations!$D$11:$D$8770,0))) -> 0 | J11: =IF(INDEX(Calculations!$M$11:$M$8770,MATCH('Queue Miles'!B7&"-"&'Queue Miles'!$B11&"-"&'Queue Miles'!J$6,Calculations!$D$11:$D$8770,0))=0,"---", INDEX(Calculations!$W$11:$W$8770,MATCH('Queue Miles'!B7&"-"&'Queue Miles'!$B11&"-"&'Queue Miles'!J$6,Calculations!$D$11:$D$8770,0))) -> 0 | K11: =IF(INDEX(Calculations!$M$11:$M$8770,MATCH('Queue Miles'!B7&"-"&'Queue Miles'!$B11&"-"&'Queue Miles'!K$6,Calculations!$D$11:$D$8770,0))=0,"---", INDEX(Calculations!$W$11:$W$8770,MATCH('Queue Miles'!B7&"-"&'Queue Miles'!$B11&"-"&'Queue Miles'!K$6,Calculations!$D$11:$D$8770,0))) -> 0 | L11: =IF(INDEX(Calculations!$M$11:$M$8770,MATCH('Queue Miles'!B7&"-"&'Queue Miles'!$B11&"-"&'Queue Miles'!L$6,Calculations!$D$11:$D$8770,0))=0,"---", INDEX(Calculations!$W$11:$W$8770,MATCH('Queue Miles'!B7&"-"&'Queue Miles'!$B11&"-"&'Queue Miles'!L$6,Calculations!$D$11:$D$8770,0))) -> 0 | M11: =IF(INDEX(Calculations!$M$11:$M$8770,MATCH('Queue Miles'!B7&"-"&'Queue Miles'!$B11&"-"&'Queue Miles'!M$6,Calculations!$D$11:$D$8770,0))=0,"---", INDEX(Calculations!$W$11:$W$8770,MATCH('Queue Miles'!B7&"-"&'Queue Miles'!$B11&"-"&'Queue Miles'!M$6,Calculations!$D$11:$D$8770,0))) -> 0 | N11: =IF(INDEX(Calculations!$M$11:$M$8770,MATCH('Queue Miles'!B7&"-"&'Queue Miles'!$B11&"-"&'Queue Miles'!N$6,Calculations!$D$11:$D$8770,0))=0,"---", INDEX(Calculations!$W$11:$W$8770,MATCH('Queue Miles'!B7&"-"&'Queue Miles'!$B11&"-"&'Queue Miles'!N$6,Calculations!$D$11:$D$8770,0))) -> 0 | O11: =IF(INDEX(Calculations!$M$11:$M$8770,MATCH('Queue Miles'!B7&"-"&'Queue Miles'!$B11&"-"&'Queue Miles'!O$6,Calculations!$D$11:$D$8770,0))=0,"---", INDEX(Calculations!$W$11:$W$8770,MATCH('Queue Miles'!B7&"-"&'Queue Miles'!$B11&"-"&'Queue Miles'!O$6,Calculations!$D$11:$D$8770,0))) -> 0 | P11: =IF(INDEX(Calculations!$M$11:$M$8770,MATCH('Queue Miles'!B7&"-"&'Queue Miles'!$B11&"-"&'Queue Miles'!P$6,Calculations!$D$11:$D$8770,0))=0,"---", INDEX(Calculations!$W$11:$W$8770,MATCH('Queue Miles'!B7&"-"&'Queue Miles'!$B11&"-"&'Queue Miles'!P$6,Calculations!$D$11:$D$8770,0))) -> 0 | Q11: =IF(INDEX(Calculations!$M$11:$M$8770,MATCH('Queue Miles'!B7&"-"&'Queue Miles'!$B11&"-"&'Queue Miles'!Q$6,Calculations!$D$11:$D$8770,0))=0,"---", INDEX(Calculations!$W$11:$W$8770,MATCH('Queue Miles'!B7&"-"&'Queue Miles'!$B11&"-"&'Queue Miles'!Q$6,Calculations!$D$11:$D$8770,0))) -> 0 | R11: =IF(INDEX(Calculations!$M$11:$M$8770,MATCH('Queue Miles'!B7&"-"&'Queue Miles'!$B11&"-"&'Queue Miles'!R$6,Calculations!$D$11:$D$8770,0))=0,"---", INDEX(Calculations!$W$11:$W$8770,MATCH('Queue Miles'!B7&"-"&'Queue Miles'!$B11&"-"&'Queue Miles'!R$6,Calculations!$D$11:$D$8770,0))) -> 0 | S11: =IF(INDEX(Calculations!$M$11:$M$8770,MATCH('Queue Miles'!B7&"-"&'Queue Miles'!$B11&"-"&'Queue Miles'!S$6,Calculations!$D$11:$D$8770,0))=0,"---", INDEX(Calculations!$W$11:$W$8770,MATCH('Queue Miles'!B7&"-"&'Queue Miles'!$B11&"-"&'Queue Miles'!S$6,Calculations!$D$11:$D$8770,0))) -> 0 | T11: =IF(INDEX(Calculations!$M$11:$M$8770,MATCH('Queue Miles'!B7&"-"&'Queue Miles'!$B11&"-"&'Queue Miles'!T$6,Calculations!$D$11:$D$8770,0))=0,"---", INDEX(Calculations!$W$11:$W$8770,MATCH('Queue Miles'!B7&"-"&'Queue Miles'!$B11&"-"&'Queue Miles'!T$6,Calculations!$D$11:$D$8770,0))) -> 0 | U11: =IF(INDEX(Calculations!$M$11:$M$8770,MATCH('Queue Miles'!B7&"-"&'Queue Miles'!$B11&"-"&'Queue Miles'!U$6,Calculations!$D$11:$D$8770,0))=0,"---", INDEX(Calculations!$W$11:$W$8770,MATCH('Queue Miles'!B7&"-"&'Queue Miles'!$B11&"-"&'Queue Miles'!U$6,Calculations!$D$11:$D$8770,0))) -> 0 | V11: =IF(INDEX(Calculations!$M$11:$M$8770,MATCH('Queue Miles'!B7&"-"&'Queue Miles'!$B11&"-"&'Queue Miles'!V$6,Calculations!$D$11:$D$8770,0))=0,"---", INDEX(Calculations!$W$11:$W$8770,MATCH('Queue Miles'!B7&"-"&'Queue Miles'!$B11&"-"&'Queue Miles'!V$6,Calculations!$D$11:$D$8770,0))) -> 0 | W11: =IF(INDEX(Calculations!$M$11:$M$8770,MATCH('Queue Miles'!B7&"-"&'Queue Miles'!$B11&"-"&'Queue Miles'!W$6,Calculations!$D$11:$D$8770,0))=0,"---", INDEX(Calculations!$W$11:$W$8770,MATCH('Queue Miles'!B7&"-"&'Queue Miles'!$B11&"-"&'Queue Miles'!W$6,Calculations!$D$11:$D$8770,0))) -> 0 | X11: =IF(INDEX(Calculations!$M$11:$M$8770,MATCH('Queue Miles'!B7&"-"&'Queue Miles'!$B11&"-"&'Queue Miles'!X$6,Calculations!$D$11:$D$8770,0))=0,"---", INDEX(Calculations!$W$11:$W$8770,MATCH('Queue Miles'!B7&"-"&'Queue Miles'!$B11&"-"&'Queue Miles'!X$6,Calculations!$D$11:$D$8770,0))) -> 0 | Y11: =IF(INDEX(Calculations!$M$11:$M$8770,MATCH('Queue Miles'!B7&"-"&'Queue Miles'!$B11&"-"&'Queue Miles'!Y$6,Calculations!$D$11:$D$8770,0))=0,"---", INDEX(Calculations!$W$11:$W$8770,MATCH('Queue Miles'!B7&"-"&'Queue Miles'!$B11&"-"&'Queue Miles'!Y$6,Calculations!$D$11:$D$8770,0))) -> 0 | Z11: =IF(INDEX(Calculations!$M$11:$M$8770,MATCH('Queue Miles'!B7&"-"&'Queue Miles'!$B11&"-"&'Queue Miles'!Z$6,Calculations!$D$11:$D$8770,0))=0,"---", INDEX(Calculations!$W$11:$W$8770,MATCH('Queue Miles'!B7&"-"&'Queue Miles'!$B11&"-"&'Queue Miles'!Z$6,Calculations!$D$11:$D$8770,0))) -> 0 | AA11: =IF(INDEX(Calculations!$P$11:$P$8770,MATCH('Queue Miles'!B7&"-"&'Queue Miles'!$B11&"-"&'Queue Miles'!AA$6,Calculations!$D$11:$D$8770,0))=0,"---", INDEX(Calculations!$AM$11:$AM$8770,MATCH('Queue Miles'!B7&"-"&'Queue Miles'!$B11&"-"&'Queue Miles'!AA$6,Calculations!$D$11:$D$8770,0))) -> 0 | AB11: =IF(INDEX(Calculations!$P$11:$P$8770,MATCH('Queue Miles'!B7&"-"&'Queue Miles'!$B11&"-"&'Queue Miles'!AB$6,Calculations!$D$11:$D$8770,0))=0,"---", INDEX(Calculations!$AM$11:$AM$8770,MATCH('Queue Miles'!B7&"-"&'Queue Miles'!$B11&"-"&'Queue Miles'!AB$6,Calculations!$D$11:$D$8770,0))) -> 0 | AC11: =IF(INDEX(Calculations!$P$11:$P$8770,MATCH('Queue Miles'!B7&"-"&'Queue Miles'!$B11&"-"&'Queue Miles'!AC$6,Calculations!$D$11:$D$8770,0))=0,"---", INDEX(Calculations!$AM$11:$AM$8770,MATCH('Queue Miles'!B7&"-"&'Queue Miles'!$B11&"-"&'Queue Miles'!AC$6,Calculations!$D$11:$D$8770,0))) -> 0 | AD11: =IF(INDEX(Calculations!$P$11:$P$8770,MATCH('Queue Miles'!B7&"-"&'Queue Miles'!$B11&"-"&'Queue Miles'!AD$6,Calculations!$D$11:$D$8770,0))=0,"---", INDEX(Calculations!$AM$11:$AM$8770,MATCH('Queue Miles'!B7&"-"&'Queue Miles'!$B11&"-"&'Queue Miles'!AD$6,Calculations!$D$11:$D$8770,0))) -> 0 | AE11: =IF(INDEX(Calculations!$P$11:$P$8770,MATCH('Queue Miles'!B7&"-"&'Queue Miles'!$B11&"-"&'Queue Miles'!AE$6,Calculations!$D$11:$D$8770,0))=0,"---", INDEX(Calculations!$AM$11:$AM$8770,MATCH('Queue Miles'!B7&"-"&'Queue Miles'!$B11&"-"&'Queue Miles'!AE$6,Calculations!$D$11:$D$8770,0))) -> 0 | AF11: =IF(INDEX(Calculations!$P$11:$P$8770,MATCH('Queue Miles'!B7&"-"&'Queue Miles'!$B11&"-"&'Queue Miles'!AF$6,Calculations!$D$11:$D$8770,0))=0,"---", INDEX(Calculations!$AM$11:$AM$8770,MATCH('Queue Miles'!B7&"-"&'Queue Miles'!$B11&"-"&'Queue Miles'!AF$6,Calculations!$D$11:$D$8770,0))) -> 0 | AG11: =IF(INDEX(Calculations!$P$11:$P$8770,MATCH('Queue Miles'!B7&"-"&'Queue Miles'!$B11&"-"&'Queue Miles'!AG$6,Calculations!$D$11:$D$8770,0))=0,"---", INDEX(Calculations!$AM$11:$AM$8770,MATCH('Queue Miles'!B7&"-"&'Queue Miles'!$B11&"-"&'Queue Miles'!AG$6,Calculations!$D$11:$D$8770,0))) -> 0 | AH11: =IF(INDEX(Calculations!$P$11:$P$8770,MATCH('Queue Miles'!B7&"-"&'Queue Miles'!$B11&"-"&'Queue Miles'!AH$6,Calculations!$D$11:$D$8770,0))=0,"---", INDEX(Calculations!$AM$11:$AM$8770,MATCH('Queue Miles'!B7&"-"&'Queue Miles'!$B11&"-"&'Queue Miles'!AH$6,Calculations!$D$11:$D$8770,0))) -> 0 | AI11: =IF(INDEX(Calculations!$P$11:$P$8770,MATCH('Queue Miles'!B7&"-"&'Queue Miles'!$B11&"-"&'Queue Miles'!AI$6,Calculations!$D$11:$D$8770,0))=0,"---", INDEX(Calculations!$AM$11:$AM$8770,MATCH('Queue Miles'!B7&"-"&'Queue Miles'!$B11&"-"&'Queue Miles'!AI$6,Calculations!$D$11:$D$8770,0))) -> 0 | AJ11: =IF(INDEX(Calculations!$P$11:$P$8770,MATCH('Queue Miles'!B7&"-"&'Queue Miles'!$B11&"-"&'Queue Miles'!AJ$6,Calculations!$D$11:$D$8770,0))=0,"---", INDEX(Calculations!$AM$11:$AM$8770,MATCH('Queue Miles'!B7&"-"&'Queue Miles'!$B11&"-"&'Queue Miles'!AJ$6,Calculations!$D$11:$D$8770,0))) -> 0 | AK11: =IF(INDEX(Calculations!$P$11:$P$8770,MATCH('Queue Miles'!B7&"-"&'Queue Miles'!$B11&"-"&'Queue Miles'!AK$6,Calculations!$D$11:$D$8770,0))=0,"---", INDEX(Calculations!$AM$11:$AM$8770,MATCH('Queue Miles'!B7&"-"&'Queue Miles'!$B11&"-"&'Queue Miles'!AK$6,Calculations!$D$11:$D$8770,0))) -> 0 | AL11: =IF(INDEX(Calculations!$P$11:$P$8770,MATCH('Queue Miles'!B7&"-"&'Queue Miles'!$B11&"-"&'Queue Miles'!AL$6,Calculations!$D$11:$D$8770,0))=0,"---", INDEX(Calculations!$AM$11:$AM$8770,MATCH('Queue Miles'!B7&"-"&'Queue Miles'!$B11&"-"&'Queue Miles'!AL$6,Calculations!$D$11:$D$8770,0))) -> 0 | AM11: =IF(INDEX(Calculations!$P$11:$P$8770,MATCH('Queue Miles'!B7&"-"&'Queue Miles'!$B11&"-"&'Queue Miles'!AM$6,Calculations!$D$11:$D$8770,0))=0,"---", INDEX(Calculations!$AM$11:$AM$8770,MATCH('Queue Miles'!B7&"-"&'Queue Miles'!$B11&"-"&'Queue Miles'!AM$6,Calculations!$D$11:$D$8770,0))) -> 0 | AN11: =IF(INDEX(Calculations!$P$11:$P$8770,MATCH('Queue Miles'!B7&"-"&'Queue Miles'!$B11&"-"&'Queue Miles'!AN$6,Calculations!$D$11:$D$8770,0))=0,"---", INDEX(Calculations!$AM$11:$AM$8770,MATCH('Queue Miles'!B7&"-"&'Queue Miles'!$B11&"-"&'Queue Miles'!AN$6,Calculations!$D$11:$D$8770,0))) -> 0 | AO11: =IF(INDEX(Calculations!$P$11:$P$8770,MATCH('Queue Miles'!B7&"-"&'Queue Miles'!$B11&"-"&'Queue Miles'!AO$6,Calculations!$D$11:$D$8770,0))=0,"---", INDEX(Calculations!$AM$11:$AM$8770,MATCH('Queue Miles'!B7&"-"&'Queue Miles'!$B11&"-"&'Queue Miles'!AO$6,Calculations!$D$11:$D$8770,0))) -> 0 | AP11: =IF(INDEX(Calculations!$P$11:$P$8770,MATCH('Queue Miles'!B7&"-"&'Queue Miles'!$B11&"-"&'Queue Miles'!AP$6,Calculations!$D$11:$D$8770,0))=0,"---", INDEX(Calculations!$AM$11:$AM$8770,MATCH('Queue Miles'!B7&"-"&'Queue Miles'!$B11&"-"&'Queue Miles'!AP$6,Calculations!$D$11:$D$8770,0))) -> 0 | AQ11: =IF(INDEX(Calculations!$P$11:$P$8770,MATCH('Queue Miles'!B7&"-"&'Queue Miles'!$B11&"-"&'Queue Miles'!AQ$6,Calculations!$D$11:$D$8770,0))=0,"---", INDEX(Calculations!$AM$11:$AM$8770,MATCH('Queue Miles'!B7&"-"&'Queue Miles'!$B11&"-"&'Queue Miles'!AQ$6,Calculations!$D$11:$D$8770,0))) -> 0 | AR11: =IF(INDEX(Calculations!$P$11:$P$8770,MATCH('Queue Miles'!B7&"-"&'Queue Miles'!$B11&"-"&'Queue Miles'!AR$6,Calculations!$D$11:$D$8770,0))=0,"---", INDEX(Calculations!$AM$11:$AM$8770,MATCH('Queue Miles'!B7&"-"&'Queue Miles'!$B11&"-"&'Queue Miles'!AR$6,Calculations!$D$11:$D$8770,0))) -> 0 | AS11: =IF(INDEX(Calculations!$P$11:$P$8770,MATCH('Queue Miles'!B7&"-"&'Queue Miles'!$B11&"-"&'Queue Miles'!AS$6,Calculations!$D$11:$D$8770,0))=0,"---", INDEX(Calculations!$AM$11:$AM$8770,MATCH('Queue Miles'!B7&"-"&'Queue Miles'!$B11&"-"&'Queue Miles'!AS$6,Calculations!$D$11:$D$8770,0))) -> 0 | AT11: =IF(INDEX(Calculations!$P$11:$P$8770,MATCH('Queue Miles'!B7&"-"&'Queue Miles'!$B11&"-"&'Queue Miles'!AT$6,Calculations!$D$11:$D$8770,0))=0,"---", INDEX(Calculations!$AM$11:$AM$8770,MATCH('Queue Miles'!B7&"-"&'Queue Miles'!$B11&"-"&'Queue Miles'!AT$6,Calculations!$D$11:$D$8770,0))) -> 0 | AU11: =IF(INDEX(Calculations!$P$11:$P$8770,MATCH('Queue Miles'!B7&"-"&'Queue Miles'!$B11&"-"&'Queue Miles'!AU$6,Calculations!$D$11:$D$8770,0))=0,"---", INDEX(Calculations!$AM$11:$AM$8770,MATCH('Queue Miles'!B7&"-"&'Queue Miles'!$B11&"-"&'Queue Miles'!AU$6,Calculations!$D$11:$D$8770,0))) -> 0 | AV11: =IF(INDEX(Calculations!$P$11:$P$8770,MATCH('Queue Miles'!B7&"-"&'Queue Miles'!$B11&"-"&'Queue Miles'!AV$6,Calculations!$D$11:$D$8770,0))=0,"---", INDEX(Calculations!$AM$11:$AM$8770,MATCH('Queue Miles'!B7&"-"&'Queue Miles'!$B11&"-"&'Queue Miles'!AV$6,Calculations!$D$11:$D$8770,0))) -> 0 | AW11: =IF(INDEX(Calculations!$P$11:$P$8770,MATCH('Queue Miles'!B7&"-"&'Queue Miles'!$B11&"-"&'Queue Miles'!AW$6,Calculations!$D$11:$D$8770,0))=0,"---", INDEX(Calculations!$AM$11:$AM$8770,MATCH('Queue Miles'!B7&"-"&'Queue Miles'!$B11&"-"&'Queue Miles'!AW$6,Calculations!$D$11:$D$8770,0))) -> 0 | AX11: =IF(INDEX(Calculations!$P$11:$P$8770,MATCH('Queue Miles'!B7&"-"&'Queue Miles'!$B11&"-"&'Queue Miles'!AX$6,Calculations!$D$11:$D$8770,0))=0,"---", INDEX(Calculations!$AM$11:$AM$8770,MATCH('Queue Miles'!B7&"-"&'Queue Miles'!$B11&"-"&'Queue Miles'!AX$6,Calculations!$D$11:$D$8770,0))) -> 0
A12: =INDEX(Calculations!$F$11:$F$8770,MATCH('Queue Miles'!B7&"-"&'Queue Miles'!B12&"-"&'Queue Miles'!C$6,Calculations!$D$11:$D$8770,0)) -> Saturday | B12: 5 | C12: =IF(INDEX(Calculations!$M$11:$M$8770,MATCH('Queue Miles'!B7&"-"&'Queue Miles'!$B12&"-"&'Queue Miles'!C$6,Calculations!$D$11:$D$8770,0))=0,"---", INDEX(Calculations!$W$11:$W$8770,MATCH('Queue Miles'!B7&"-"&'Queue Miles'!$B12&"-"&'Queue Miles'!C$6,Calculations!$D$11:$D$8770,0))) -> 0 | D12: =IF(INDEX(Calculations!$M$11:$M$8770,MATCH('Queue Miles'!B7&"-"&'Queue Miles'!$B12&"-"&'Queue Miles'!D$6,Calculations!$D$11:$D$8770,0))=0,"---", INDEX(Calculations!$W$11:$W$8770,MATCH('Queue Miles'!B7&"-"&'Queue Miles'!$B12&"-"&'Queue Miles'!D$6,Calculations!$D$11:$D$8770,0))) -> 0 | E12: =IF(INDEX(Calculations!$M$11:$M$8770,MATCH('Queue Miles'!B7&"-"&'Queue Miles'!$B12&"-"&'Queue Miles'!E$6,Calculations!$D$11:$D$8770,0))=0,"---", INDEX(Calculations!$W$11:$W$8770,MATCH('Queue Miles'!B7&"-"&'Queue Miles'!$B12&"-"&'Queue Miles'!E$6,Calculations!$D$11:$D$8770,0))) -> 0 | F12: =IF(INDEX(Calculations!$M$11:$M$8770,MATCH('Queue Miles'!B7&"-"&'Queue Miles'!$B12&"-"&'Queue Miles'!F$6,Calculations!$D$11:$D$8770,0))=0,"---", INDEX(Calculations!$W$11:$W$8770,MATCH('Queue Miles'!B7&"-"&'Queue Miles'!$B12&"-"&'Queue Miles'!F$6,Calculations!$D$11:$D$8770,0))) -> 0 | G12: =IF(INDEX(Calculations!$M$11:$M$8770,MATCH('Queue Miles'!B7&"-"&'Queue Miles'!$B12&"-"&'Queue Miles'!G$6,Calculations!$D$11:$D$8770,0))=0,"---", INDEX(Calculations!$W$11:$W$8770,MATCH('Queue Miles'!B7&"-"&'Queue Miles'!$B12&"-"&'Queue Miles'!G$6,Calculations!$D$11:$D$8770,0))) -> 0 | H12: =IF(INDEX(Calculations!$M$11:$M$8770,MATCH('Queue Miles'!B7&"-"&'Queue Miles'!$B12&"-"&'Queue Miles'!H$6,Calculations!$D$11:$D$8770,0))=0,"---", INDEX(Calculations!$W$11:$W$8770,MATCH('Queue Miles'!B7&"-"&'Queue Miles'!$B12&"-"&'Queue Miles'!H$6,Calculations!$D$11:$D$8770,0))) -> 0 | I12: =IF(INDEX(Calculations!$M$11:$M$8770,MATCH('Queue Miles'!B7&"-"&'Queue Miles'!$B12&"-"&'Queue Miles'!I$6,Calculations!$D$11:$D$8770,0))=0,"---", INDEX(Calculations!$W$11:$W$8770,MATCH('Queue Miles'!B7&"-"&'Queue Miles'!$B12&"-"&'Queue Miles'!I$6,Calculations!$D$11:$D$8770,0))) -> 0 | J12: =IF(INDEX(Calculations!$M$11:$M$8770,MATCH('Queue Miles'!B7&"-"&'Queue Miles'!$B12&"-"&'Queue Miles'!J$6,Calculations!$D$11:$D$8770,0))=0,"---", INDEX(Calculations!$W$11:$W$8770,MATCH('Queue Miles'!B7&"-"&'Queue Miles'!$B12&"-"&'Queue Miles'!J$6,Calculations!$D$11:$D$8770,0))) -> 0 | K12: =IF(INDEX(Calculations!$M$11:$M$8770,MATCH('Queue Miles'!B7&"-"&'Queue Miles'!$B12&"-"&'Queue Miles'!K$6,Calculations!$D$11:$D$8770,0))=0,"---", INDEX(Calculations!$W$11:$W$8770,MATCH('Queue Miles'!B7&"-"&'Queue Miles'!$B12&"-"&'Queue Miles'!K$6,Calculations!$D$11:$D$8770,0))) -> 0 | L12: =IF(INDEX(Calculations!$M$11:$M$8770,MATCH('Queue Miles'!B7&"-"&'Queue Miles'!$B12&"-"&'Queue Miles'!L$6,Calculations!$D$11:$D$8770,0))=0,"---", INDEX(Calculations!$W$11:$W$8770,MATCH('Queue Miles'!B7&"-"&'Queue Miles'!$B12&"-"&'Queue Miles'!L$6,Calculations!$D$11:$D$8770,0))) -> 0 | M12: =IF(INDEX(Calculations!$M$11:$M$8770,MATCH('Queue Miles'!B7&"-"&'Queue Miles'!$B12&"-"&'Queue Miles'!M$6,Calculations!$D$11:$D$8770,0))=0,"---", INDEX(Calculations!$W$11:$W$8770,MATCH('Queue Miles'!B7&"-"&'Queue Miles'!$B12&"-"&'Queue Miles'!M$6,Calculations!$D$11:$D$8770,0))) -> 0 | N12: =IF(INDEX(Calculations!$M$11:$M$8770,MATCH('Queue Miles'!B7&"-"&'Queue Miles'!$B12&"-"&'Queue Miles'!N$6,Calculations!$D$11:$D$8770,0))=0,"---", INDEX(Calculations!$W$11:$W$8770,MATCH('Queue Miles'!B7&"-"&'Queue Miles'!$B12&"-"&'Queue Miles'!N$6,Calculations!$D$11:$D$8770,0))) -> 0 | O12: =IF(INDEX(Calculations!$M$11:$M$8770,MATCH('Queue Miles'!B7&"-"&'Queue Miles'!$B12&"-"&'Queue Miles'!O$6,Calculations!$D$11:$D$8770,0))=0,"---", INDEX(Calculations!$W$11:$W$8770,MATCH('Queue Miles'!B7&"-"&'Queue Miles'!$B12&"-"&'Queue Miles'!O$6,Calculations!$D$11:$D$8770,0))) -> 0 | P12: =IF(INDEX(Calculations!$M$11:$M$8770,MATCH('Queue Miles'!B7&"-"&'Queue Miles'!$B12&"-"&'Queue Miles'!P$6,Calculations!$D$11:$D$8770,0))=0,"---", INDEX(Calculations!$W$11:$W$8770,MATCH('Queue Miles'!B7&"-"&'Queue Miles'!$B12&"-"&'Queue Miles'!P$6,Calculations!$D$11:$D$8770,0))) -> 0 | Q12: =IF(INDEX(Calculations!$M$11:$M$8770,MATCH('Queue Miles'!B7&"-"&'Queue Miles'!$B12&"-"&'Queue Miles'!Q$6,Calculations!$D$11:$D$8770,0))=0,"---", INDEX(Calculations!$W$11:$W$8770,MATCH('Queue Miles'!B7&"-"&'Queue Miles'!$B12&"-"&'Queue Miles'!Q$6,Calculations!$D$11:$D$8770,0))) -> 0 | R12: =IF(INDEX(Calculations!$M$11:$M$8770,MATCH('Queue Miles'!B7&"-"&'Queue Miles'!$B12&"-"&'Queue Miles'!R$6,Calculations!$D$11:$D$8770,0))=0,"---", INDEX(Calculations!$W$11:$W$8770,MATCH('Queue Miles'!B7&"-"&'Queue Miles'!$B12&"-"&'Queue Miles'!R$6,Calculations!$D$11:$D$8770,0))) -> 0 | S12: =IF(INDEX(Calculations!$M$11:$M$8770,MATCH('Queue Miles'!B7&"-"&'Queue Miles'!$B12&"-"&'Queue Miles'!S$6,Calculations!$D$11:$D$8770,0))=0,"---", INDEX(Calculations!$W$11:$W$8770,MATCH('Queue Miles'!B7&"-"&'Queue Miles'!$B12&"-"&'Queue Miles'!S$6,Calculations!$D$11:$D$8770,0))) -> 0 | T12: =IF(INDEX(Calculations!$M$11:$M$8770,MATCH('Queue Miles'!B7&"-"&'Queue Miles'!$B12&"-"&'Queue Miles'!T$6,Calculations!$D$11:$D$8770,0))=0,"---", INDEX(Calculations!$W$11:$W$8770,MATCH('Queue Miles'!B7&"-"&'Queue Miles'!$B12&"-"&'Queue Miles'!T$6,Calculations!$D$11:$D$8770,0))) -> 0 | U12: =IF(INDEX(Calculations!$M$11:$M$8770,MATCH('Queue Miles'!B7&"-"&'Queue Miles'!$B12&"-"&'Queue Miles'!U$6,Calculations!$D$11:$D$8770,0))=0,"---", INDEX(Calculations!$W$11:$W$8770,MATCH('Queue Miles'!B7&"-"&'Queue Miles'!$B12&"-"&'Queue Miles'!U$6,Calculations!$D$11:$D$8770,0))) -> 0 | V12: =IF(INDEX(Calculations!$M$11:$M$8770,MATCH('Queue Miles'!B7&"-"&'Queue Miles'!$B12&"-"&'Queue Miles'!V$6,Calculations!$D$11:$D$8770,0))=0,"---", INDEX(Calculations!$W$11:$W$8770,MATCH('Queue Miles'!B7&"-"&'Queue Miles'!$B12&"-"&'Queue Miles'!V$6,Calculations!$D$11:$D$8770,0))) -> 0 | W12: =IF(INDEX(Calculations!$M$11:$M$8770,MATCH('Queue Miles'!B7&"-"&'Queue Miles'!$B12&"-"&'Queue Miles'!W$6,Calculations!$D$11:$D$8770,0))=0,"---", INDEX(Calculations!$W$11:$W$8770,MATCH('Queue Miles'!B7&"-"&'Queue Miles'!$B12&"-"&'Queue Miles'!W$6,Calculations!$D$11:$D$8770,0))) -> 0 | X12: =IF(INDEX(Calculations!$M$11:$M$8770,MATCH('Queue Miles'!B7&"-"&'Queue Miles'!$B12&"-"&'Queue Miles'!X$6,Calculations!$D$11:$D$8770,0))=0,"---", INDEX(Calculations!$W$11:$W$8770,MATCH('Queue Miles'!B7&"-"&'Queue Miles'!$B12&"-"&'Queue Miles'!X$6,Calculations!$D$11:$D$8770,0))) -> 0 | Y12: =IF(INDEX(Calculations!$M$11:$M$8770,MATCH('Queue Miles'!B7&"-"&'Queue Miles'!$B12&"-"&'Queue Miles'!Y$6,Calculations!$D$11:$D$8770,0))=0,"---", INDEX(Calculations!$W$11:$W$8770,MATCH('Queue Miles'!B7&"-"&'Queue Miles'!$B12&"-"&'Queue Miles'!Y$6,Calculations!$D$11:$D$8770,0))) -> 0 | Z12: =IF(INDEX(Calculations!$M$11:$M$8770,MATCH('Queue Miles'!B7&"-"&'Queue Miles'!$B12&"-"&'Queue Miles'!Z$6,Calculations!$D$11:$D$8770,0))=0,"---", INDEX(Calculations!$W$11:$W$8770,MATCH('Queue Miles'!B7&"-"&'Queue Miles'!$B12&"-"&'Queue Miles'!Z$6,Calculations!$D$11:$D$8770,0))) -> 0 | AA12: =IF(INDEX(Calculations!$P$11:$P$8770,MATCH('Queue Miles'!B7&"-"&'Queue Miles'!$B12&"-"&'Queue Miles'!AA$6,Calculations!$D$11:$D$8770,0))=0,"---", INDEX(Calculations!$AM$11:$AM$8770,MATCH('Queue Miles'!B7&"-"&'Queue Miles'!$B12&"-"&'Queue Miles'!AA$6,Calculations!$D$11:$D$8770,0))) -> 0 | AB12: =IF(INDEX(Calculations!$P$11:$P$8770,MATCH('Queue Miles'!B7&"-"&'Queue Miles'!$B12&"-"&'Queue Miles'!AB$6,Calculations!$D$11:$D$8770,0))=0,"---", INDEX(Calculations!$AM$11:$AM$8770,MATCH('Queue Miles'!B7&"-"&'Queue Miles'!$B12&"-"&'Queue Miles'!AB$6,Calculations!$D$11:$D$8770,0))) -> 0 | AC12: =IF(INDEX(Calculations!$P$11:$P$8770,MATCH('Queue Miles'!B7&"-"&'Queue Miles'!$B12&"-"&'Queue Miles'!AC$6,Calculations!$D$11:$D$8770,0))=0,"---", INDEX(Calculations!$AM$11:$AM$8770,MATCH('Queue Miles'!B7&"-"&'Queue Miles'!$B12&"-"&'Queue Miles'!AC$6,Calculations!$D$11:$D$8770,0))) -> 0 | AD12: =IF(INDEX(Calculations!$P$11:$P$8770,MATCH('Queue Miles'!B7&"-"&'Queue Miles'!$B12&"-"&'Queue Miles'!AD$6,Calculations!$D$11:$D$8770,0))=0,"---", INDEX(Calculations!$AM$11:$AM$8770,MATCH('Queue Miles'!B7&"-"&'Queue Miles'!$B12&"-"&'Queue Miles'!AD$6,Calculations!$D$11:$D$8770,0))) -> 0 | AE12: =IF(INDEX(Calculations!$P$11:$P$8770,MATCH('Queue Miles'!B7&"-"&'Queue Miles'!$B12&"-"&'Queue Miles'!AE$6,Calculations!$D$11:$D$8770,0))=0,"---", INDEX(Calculations!$AM$11:$AM$8770,MATCH('Queue Miles'!B7&"-"&'Queue Miles'!$B12&"-"&'Queue Miles'!AE$6,Calculations!$D$11:$D$8770,0))) -> 0 | AF12: =IF(INDEX(Calculations!$P$11:$P$8770,MATCH('Queue Miles'!B7&"-"&'Queue Miles'!$B12&"-"&'Queue Miles'!AF$6,Calculations!$D$11:$D$8770,0))=0,"---", INDEX(Calculations!$AM$11:$AM$8770,MATCH('Queue Miles'!B7&"-"&'Queue Miles'!$B12&"-"&'Queue Miles'!AF$6,Calculations!$D$11:$D$8770,0))) -> 0 | AG12: =IF(INDEX(Calculations!$P$11:$P$8770,MATCH('Queue Miles'!B7&"-"&'Queue Miles'!$B12&"-"&'Queue Miles'!AG$6,Calculations!$D$11:$D$8770,0))=0,"---", INDEX(Calculations!$AM$11:$AM$8770,MATCH('Queue Miles'!B7&"-"&'Queue Miles'!$B12&"-"&'Queue Miles'!AG$6,Calculations!$D$11:$D$8770,0))) -> 0 | AH12: =IF(INDEX(Calculations!$P$11:$P$8770,MATCH('Queue Miles'!B7&"-"&'Queue Miles'!$B12&"-"&'Queue Miles'!AH$6,Calculations!$D$11:$D$8770,0))=0,"---", INDEX(Calculations!$AM$11:$AM$8770,MATCH('Queue Miles'!B7&"-"&'Queue Miles'!$B12&"-"&'Queue Miles'!AH$6,Calculations!$D$11:$D$8770,0))) -> 0 | AI12: =IF(INDEX(Calculations!$P$11:$P$8770,MATCH('Queue Miles'!B7&"-"&'Queue Miles'!$B12&"-"&'Queue Miles'!AI$6,Calculations!$D$11:$D$8770,0))=0,"---", INDEX(Calculations!$AM$11:$AM$8770,MATCH('Queue Miles'!B7&"-"&'Queue Miles'!$B12&"-"&'Queue Miles'!AI$6,Calculations!$D$11:$D$8770,0))) -> 0 | AJ12: =IF(INDEX(Calculations!$P$11:$P$8770,MATCH('Queue Miles'!B7&"-"&'Queue Miles'!$B12&"-"&'Queue Miles'!AJ$6,Calculations!$D$11:$D$8770,0))=0,"---", INDEX(Calculations!$AM$11:$AM$8770,MATCH('Queue Miles'!B7&"-"&'Queue Miles'!$B12&"-"&'Queue Miles'!AJ$6,Calculations!$D$11:$D$8770,0))) -> 0 | AK12: =IF(INDEX(Calculations!$P$11:$P$8770,MATCH('Queue Miles'!B7&"-"&'Queue Miles'!$B12&"-"&'Queue Miles'!AK$6,Calculations!$D$11:$D$8770,0))=0,"---", INDEX(Calculations!$AM$11:$AM$8770,MATCH('Queue Miles'!B7&"-"&'Queue Miles'!$B12&"-"&'Queue Miles'!AK$6,Calculations!$D$11:$D$8770,0))) -> 0 | AL12: =IF(INDEX(Calculations!$P$11:$P$8770,MATCH('Queue Miles'!B7&"-"&'Queue Miles'!$B12&"-"&'Queue Miles'!AL$6,Calculations!$D$11:$D$8770,0))=0,"---", INDEX(Calculations!$AM$11:$AM$8770,MATCH('Queue Miles'!B7&"-"&'Queue Miles'!$B12&"-"&'Queue Miles'!AL$6,Calculations!$D$11:$D$8770,0))) -> 0 | AM12: =IF(INDEX(Calculations!$P$11:$P$8770,MATCH('Queue Miles'!B7&"-"&'Queue Miles'!$B12&"-"&'Queue Miles'!AM$6,Calculations!$D$11:$D$8770,0))=0,"---", INDEX(Calculations!$AM$11:$AM$8770,MATCH('Queue Miles'!B7&"-"&'Queue Miles'!$B12&"-"&'Queue Miles'!AM$6,Calculations!$D$11:$D$8770,0))) -> 0 | AN12: =IF(INDEX(Calculations!$P$11:$P$8770,MATCH('Queue Miles'!B7&"-"&'Queue Miles'!$B12&"-"&'Queue Miles'!AN$6,Calculations!$D$11:$D$8770,0))=0,"---", INDEX(Calculations!$AM$11:$AM$8770,MATCH('Queue Miles'!B7&"-"&'Queue Miles'!$B12&"-"&'Queue Miles'!AN$6,Calculations!$D$11:$D$8770,0))) -> 0 | AO12: =IF(INDEX(Calculations!$P$11:$P$8770,MATCH('Queue Miles'!B7&"-"&'Queue Miles'!$B12&"-"&'Queue Miles'!AO$6,Calculations!$D$11:$D$8770,0))=0,"---", INDEX(Calculations!$AM$11:$AM$8770,MATCH('Queue Miles'!B7&"-"&'Queue Miles'!$B12&"-"&'Queue Miles'!AO$6,Calculations!$D$11:$D$8770,0))) -> 0 | AP12: =IF(INDEX(Calculations!$P$11:$P$8770,MATCH('Queue Miles'!B7&"-"&'Queue Miles'!$B12&"-"&'Queue Miles'!AP$6,Calculations!$D$11:$D$8770,0))=0,"---", INDEX(Calculations!$AM$11:$AM$8770,MATCH('Queue Miles'!B7&"-"&'Queue Miles'!$B12&"-"&'Queue Miles'!AP$6,Calculations!$D$11:$D$8770,0))) -> 0 | AQ12: =IF(INDEX(Calculations!$P$11:$P$8770,MATCH('Queue Miles'!B7&"-"&'Queue Miles'!$B12&"-"&'Queue Miles'!AQ$6,Calculations!$D$11:$D$8770,0))=0,"---", INDEX(Calculations!$AM$11:$AM$8770,MATCH('Queue Miles'!B7&"-"&'Queue Miles'!$B12&"-"&'Queue Miles'!AQ$6,Calculations!$D$11:$D$8770,0))) -> 0 | AR12: =IF(INDEX(Calculations!$P$11:$P$8770,MATCH('Queue Miles'!B7&"-"&'Queue Miles'!$B12&"-"&'Queue Miles'!AR$6,Calculations!$D$11:$D$8770,0))=0,"---", INDEX(Calculations!$AM$11:$AM$8770,MATCH('Queue Miles'!B7&"-"&'Queue Miles'!$B12&"-"&'Queue Miles'!AR$6,Calculations!$D$11:$D$8770,0))) -> 0 | AS12: =IF(INDEX(Calculations!$P$11:$P$8770,MATCH('Queue Miles'!B7&"-"&'Queue Miles'!$B12&"-"&'Queue Miles'!AS$6,Calculations!$D$11:$D$8770,0))=0,"---", INDEX(Calculations!$AM$11:$AM$8770,MATCH('Queue Miles'!B7&"-"&'Queue Miles'!$B12&"-"&'Queue Miles'!AS$6,Calculations!$D$11:$D$8770,0))) -> 0 | AT12: =IF(INDEX(Calculations!$P$11:$P$8770,MATCH('Queue Miles'!B7&"-"&'Queue Miles'!$B12&"-"&'Queue Miles'!AT$6,Calculations!$D$11:$D$8770,0))=0,"---", INDEX(Calculations!$AM$11:$AM$8770,MATCH('Queue Miles'!B7&"-"&'Queue Miles'!$B12&"-"&'Queue Miles'!AT$6,Calculations!$D$11:$D$8770,0))) -> 0 | AU12: =IF(INDEX(Calculations!$P$11:$P$8770,MATCH('Queue Miles'!B7&"-"&'Queue Miles'!$B12&"-"&'Queue Miles'!AU$6,Calculations!$D$11:$D$8770,0))=0,"---", INDEX(Calculations!$AM$11:$AM$8770,MATCH('Queue Miles'!B7&"-"&'Queue Miles'!$B12&"-"&'Queue Miles'!AU$6,Calculations!$D$11:$D$8770,0))) -> 0 | AV12: =IF(INDEX(Calculations!$P$11:$P$8770,MATCH('Queue Miles'!B7&"-"&'Queue Miles'!$B12&"-"&'Queue Miles'!AV$6,Calculations!$D$11:$D$8770,0))=0,"---", INDEX(Calculations!$AM$11:$AM$8770,MATCH('Queue Miles'!B7&"-"&'Queue Miles'!$B12&"-"&'Queue Miles'!AV$6,Calculations!$D$11:$D$8770,0))) -> 0 | AW12: =IF(INDEX(Calculations!$P$11:$P$8770,MATCH('Queue Miles'!B7&"-"&'Queue Miles'!$B12&"-"&'Queue Miles'!AW$6,Calculations!$D$11:$D$8770,0))=0,"---", INDEX(Calculations!$AM$11:$AM$8770,MATCH('Queue Miles'!B7&"-"&'Queue Miles'!$B12&"-"&'Queue Miles'!AW$6,Calculations!$D$11:$D$8770,0))) -> 0 | AX12: =IF(INDEX(Calculations!$P$11:$P$8770,MATCH('Queue Miles'!B7&"-"&'Queue Miles'!$B12&"-"&'Queue Miles'!AX$6,Calculations!$D$11:$D$8770,0))=0,"---", INDEX(Calculations!$AM$11:$AM$8770,MATCH('Queue Miles'!B7&"-"&'Queue Miles'!$B12&"-"&'Queue Miles'!AX$6,Calculations!$D$11:$D$8770,0))) -> 0
